Workbook

Sheet CADETS
H1: MASCULINS et FEMININES | Q1: DATE : | S1: 2014-06-30
G2: LISTING NATIONAL 3° TRIMESTRE | O2: 2013-2014
A4: SEXE | B4: ZONE | C4: REG. | D4: CL. | E4: LICENCE | F4: NOMS | G4: Prénoms | H4: AN | I4: POIDS | J4: CLUB | K4: NAT | L4: 1 | M4: 2 | N4: 3 | O4: ARR | P4: 1 | Q4: 2 | R4: 3 | S4: EP-J | T4: Total | V4: SERIE | X4: Catég | Y4: IWF | AA4: DEP + | AB4: REG + | AC4: IRG + | AD4: FED + | AE4: NAT + | AF4: INTB + | AG4: INTA + | AH4: OLY + | AI4: NCL
A6: F | B6: SO | C6: AQU | D6: 1 | E6: 298421 | F6: MOCAER | G6: Nolwenn | H6: 99 | I6: 43.2 | J6: EA ST MEDARD EN JALLES | K6: F | L6: 43 | M6: 46 | N6: 47 | O6: =IF(H6="","",IF(MAXA(L6:N6)<=0,0,MAXA(L6:N6))) -> 47 | P6: 56 | Q6: 59 | R6: 61 | S6: =IF(H6="","",IF(MAXA(P6:R6)<=0,0,MAXA(P6:R6))) -> 61 | T6: =IF(H6="","",IF(OR(O6=0,S6=0),0,O6+S6)) -> 108 | V6: =IF(H6="","",AP6) -> INTA + | W6: =IF(P6="","",IF(AH6>=0,AH6,IF(AG6>=0,AG6,IF(AF6>=0,AF6,IF(AE6>=0,AE6,IF(AD6>=0,AD6,IF(AC6>=0,AC6,IF(AB6>=0,AB6,AA6)))))))) -> 8 | X6: =IF(I6="","",IF(A6="H",IF(OR(H6="SEN",H6<94),VLOOKUP(I6,Feuil1!$A$10:$E$28,5),IF(AND(H6>93,H6<97),VLOOKUP(I6,Feuil1!$A$10:$E$28,4),IF(AND(H6>93,H6<97),VLOOKUP(I6,Feuil1!$A$10:$E$28,3),IF(AND(H6>96,H6<100),VLOOKUP(I6,Feuil1!$A$10:$E$28,3),VLOOKUP(I6,Feuil1!$A$10:$E$28,2))))),IF(OR(H6="SEN",H6<94),VLOOKUP(I6,Feuil1!$F$10:$J$24,5),IF(AND(H6>93,H6<97),VLOOKUP(I6,Feuil1!$F$10:$J$24,4),IF(AND(H6>93,H6<97),VLOOKUP(I6,Feuil1!$F$10:$J$24,4),IF(AND(H6>96,H6<100),VLOOKUP(I6,Feuil1!$F$10:$J$24,3),VLOOKUP(I6,Feuil1!$F$10:$J$24,2))))))) -> FC44 | Y6: =IF(I6="","",IF(A6="H",10^(0.794358141*LOG(I6/174.393)^2)*T6,IF(A6="F",10^(0.89726074*LOG(I6/148.026)^2)*T6,""))) -> 195.0303977 | AA6: =T6-HLOOKUP(X6,Feuil1!$C$1:$AU$9,2,FALSE) -> 68 | AB6: =T6-HLOOKUP(X6,Feuil1!$C$1:$AU$9,3,FALSE) -> 58 | AC6: =T6-HLOOKUP(X6,Feuil1!$C$1:$AU$9,4,FALSE) -> 48 | AD6: =T6-HLOOKUP(X6,Feuil1!$C$1:$AU$9,5,FALSE) -> 38 | AE6: =T6-HLOOKUP(X6,Feuil1!$C$1:$AU$9,6,FALSE) -> 28 | AF6: =T6-HLOOKUP(X6,Feuil1!$C$1:$AU$9,7,FALSE) -> 18 | AG6: =T6-HLOOKUP(X6,Feuil1!$C$1:$AU$9,8,FALSE) -> 8 | AH6: =T6-HLOOKUP(X6,Feuil1!$C$1:$AU$9,9,FALSE) -> -892 | AP6: =IF(AH6>=0,$AH$4,IF(AG6>=0,$AG$4,IF(AF6>=0,$AF$4,IF(AE6>=0,$AE$4,IF(AD6>=0,$AD$4,IF(AC6>=0,$AC$4,IF(AB6>=0,$AB$4,IF(AA6>=0,$AA$4,$AI$4)))))))) -> INTA +
A7: F | B7: NE | C7: CHA | D7: 2 | E7: 193808 | F7: POIRET | G7: Kimberley | H7: 97 | I7: 41.78 | J7: Reims HM | K7: F | L7: 42 | M7: 45 | N7: 47 | O7: 47 | P7: 54 | Q7: 58 | R7: -62 | S7: 58 | T7: 105 | V7: INTA + | W7: 5 | X7: =IF(I7="","",IF(A7="H",IF(OR(H7="SEN",H7<94),VLOOKUP(I7,Feuil1!$A$10:$E$28,5),IF(AND(H7>93,H7<97),VLOOKUP(I7,Feuil1!$A$10:$E$28,4),IF(AND(H7>93,H7<97),VLOOKUP(I7,Feuil1!$A$10:$E$28,3),IF(AND(H7>96,H7<100),VLOOKUP(I7,Feuil1!$A$10:$E$28,3),VLOOKUP(I7,Feuil1!$A$10:$E$28,2))))),IF(OR(H7="SEN",H7<94),VLOOKUP(I7,Feuil1!$F$10:$J$24,5),IF(AND(H7>93,H7<97),VLOOKUP(I7,Feuil1!$F$10:$J$24,4),IF(AND(H7>93,H7<97),VLOOKUP(I7,Feuil1!$F$10:$J$24,4),IF(AND(H7>96,H7<100),VLOOKUP(I7,Feuil1!$F$10:$J$24,3),VLOOKUP(I7,Feuil1!$F$10:$J$24,2))))))) -> FC44 | Y7: 195.8794164 | AA7: =T7-HLOOKUP(X7,Feuil1!$C$1:$AU$9,2,FALSE) -> 65 | AB7: =T7-HLOOKUP(X7,Feuil1!$C$1:$AU$9,3,FALSE) -> 55 | AC7: =T7-HLOOKUP(X7,Feuil1!$C$1:$AU$9,4,FALSE) -> 45 | AD7: =T7-HLOOKUP(X7,Feuil1!$C$1:$AU$9,5,FALSE) -> 35 | AE7: =T7-HLOOKUP(X7,Feuil1!$C$1:$AU$9,6,FALSE) -> 25 | AF7: =T7-HLOOKUP(X7,Feuil1!$C$1:$AU$9,7,FALSE) -> 15 | AG7: =T7-HLOOKUP(X7,Feuil1!$C$1:$AU$9,8,FALSE) -> 5 | AH7: =T7-HLOOKUP(X7,Feuil1!$C$1:$AU$9,9,FALSE) -> -895 | AP7: INTA +
A8: F | B8: CO | C8: PDL | D8: 3 | E8: 191138 | F8: L'HERMIER | G8: Nolwen | H8: 99 | I8: 41.7 | J8: CJF LAVAL - VOUTRÉ | K8: F | L8: 38 | M8: 40 | N8: 42 | O8: 42 | P8: 50 | Q8: 53 | R8: 55 | S8: 55 | T8: 97 | V8: INTB + | W8: 7 | X8: =IF(I8="","",IF(A8="H",IF(OR(H8="SEN",H8<94),VLOOKUP(I8,Feuil1!$A$10:$E$28,5),IF(AND(H8>93,H8<97),VLOOKUP(I8,Feuil1!$A$10:$E$28,4),IF(AND(H8>93,H8<97),VLOOKUP(I8,Feuil1!$A$10:$E$28,3),IF(AND(H8>96,H8<100),VLOOKUP(I8,Feuil1!$A$10:$E$28,3),VLOOKUP(I8,Feuil1!$A$10:$E$28,2))))),IF(OR(H8="SEN",H8<94),VLOOKUP(I8,Feuil1!$F$10:$J$24,5),IF(AND(H8>93,H8<97),VLOOKUP(I8,Feuil1!$F$10:$J$24,4),IF(AND(H8>93,H8<97),VLOOKUP(I8,Feuil1!$F$10:$J$24,4),IF(AND(H8>96,H8<100),VLOOKUP(I8,Feuil1!$F$10:$J$24,3),VLOOKUP(I8,Feuil1!$F$10:$J$24,2))))))) -> FC44 | Y8: 181.2977713 | AA8: =T8-HLOOKUP(X8,Feuil1!$C$1:$AU$9,2,FALSE) -> 57 | AB8: =T8-HLOOKUP(X8,Feuil1!$C$1:$AU$9,3,FALSE) -> 47 | AC8: =T8-HLOOKUP(X8,Feuil1!$C$1:$AU$9,4,FALSE) -> 37 | AD8: =T8-HLOOKUP(X8,Feuil1!$C$1:$AU$9,5,FALSE) -> 27 | AE8: =T8-HLOOKUP(X8,Feuil1!$C$1:$AU$9,6,FALSE) -> 17 | AF8: =T8-HLOOKUP(X8,Feuil1!$C$1:$AU$9,7,FALSE) -> 7 | AG8: =T8-HLOOKUP(X8,Feuil1!$C$1:$AU$9,8,FALSE) -> -3 | AH8: =T8-HLOOKUP(X8,Feuil1!$C$1:$AU$9,9,FALSE) -> -903 | AP8: INTB +
A9: F | B9: NE | C9: CHA | D9: 4 | E9: 234791 | F9: LORRAIN | G9: Olga | H9: 98 | I9: 43.8 | J9: Langres HM | K9: F | L9: 30 | M9: 33 | N9: 35 | O9: 35 | P9: 40 | Q9: 45 | R9: -47 | S9: 45 | T9: 80 | V9: NAT + | W9: 0 | X9: =IF(I9="","",IF(A9="H",IF(OR(H9="SEN",H9<94),VLOOKUP(I9,Feuil1!$A$10:$E$28,5),IF(AND(H9>93,H9<97),VLOOKUP(I9,Feuil1!$A$10:$E$28,4),IF(AND(H9>93,H9<97),VLOOKUP(I9,Feuil1!$A$10:$E$28,3),IF(AND(H9>96,H9<100),VLOOKUP(I9,Feuil1!$A$10:$E$28,3),VLOOKUP(I9,Feuil1!$A$10:$E$28,2))))),IF(OR(H9="SEN",H9<94),VLOOKUP(I9,Feuil1!$F$10:$J$24,5),IF(AND(H9>93,H9<97),VLOOKUP(I9,Feuil1!$F$10:$J$24,4),IF(AND(H9>93,H9<97),VLOOKUP(I9,Feuil1!$F$10:$J$24,4),IF(AND(H9>96,H9<100),VLOOKUP(I9,Feuil1!$F$10:$J$24,3),VLOOKUP(I9,Feuil1!$F$10:$J$24,2))))))) -> FC44 | Y9: 142.5775474 | AA9: =T9-HLOOKUP(X9,Feuil1!$C$1:$AU$9,2,FALSE) -> 40 | AB9: =T9-HLOOKUP(X9,Feuil1!$C$1:$AU$9,3,FALSE) -> 30 | AC9: =T9-HLOOKUP(X9,Feuil1!$C$1:$AU$9,4,FALSE) -> 20 | AD9: =T9-HLOOKUP(X9,Feuil1!$C$1:$AU$9,5,FALSE) -> 10 | AE9: =T9-HLOOKUP(X9,Feuil1!$C$1:$AU$9,6,FALSE) -> 0 | AF9: =T9-HLOOKUP(X9,Feuil1!$C$1:$AU$9,7,FALSE) -> -10 | AG9: =T9-HLOOKUP(X9,Feuil1!$C$1:$AU$9,8,FALSE) -> -20 | AH9: =T9-HLOOKUP(X9,Feuil1!$C$1:$AU$9,9,FALSE) -> -920 | AP9: NAT +
A10: F | B10: SE | C10: RAL | D10: 5 | E10: 366936 | F10: MARESCAUX | G10: Amandine | H10: 97 | I10: 36.7 | J10: VALENCE | K10: F | L10: 23 | M10: 25 | N10: 26 | O10: 26 | P10: 30 | Q10: 32 | R10: 34 | S10: 34 | T10: 60 | V10: IRG + | W10: 0 | X10: =IF(I10="","",IF(A10="H",IF(OR(H10="SEN",H10<94),VLOOKUP(I10,Feuil1!$A$10:$E$28,5),IF(AND(H10>93,H10<97),VLOOKUP(I10,Feuil1!$A$10:$E$28,4),IF(AND(H10>93,H10<97),VLOOKUP(I10,Feuil1!$A$10:$E$28,3),IF(AND(H10>96,H10<100),VLOOKUP(I10,Feuil1!$A$10:$E$28,3),VLOOKUP(I10,Feuil1!$A$10:$E$28,2))))),IF(OR(H10="SEN",H10<94),VLOOKUP(I10,Feuil1!$F$10:$J$24,5),IF(AND(H10>93,H10<97),VLOOKUP(I10,Feuil1!$F$10:$J$24,4),IF(AND(H10>93,H10<97),VLOOKUP(I10,Feuil1!$F$10:$J$24,4),IF(AND(H10>96,H10<100),VLOOKUP(I10,Feuil1!$F$10:$J$24,3),VLOOKUP(I10,Feuil1!$F$10:$J$24,2))))))) -> FC44 | Y10: 128.0268419 | AA10: =T10-HLOOKUP(X10,Feuil1!$C$1:$AU$9,2,FALSE) -> 20 | AB10: =T10-HLOOKUP(X10,Feuil1!$C$1:$AU$9,3,FALSE) -> 10 | AC10: =T10-HLOOKUP(X10,Feuil1!$C$1:$AU$9,4,FALSE) -> 0 | AD10: =T10-HLOOKUP(X10,Feuil1!$C$1:$AU$9,5,FALSE) -> -10 | AE10: =T10-HLOOKUP(X10,Feuil1!$C$1:$AU$9,6,FALSE) -> -20 | AF10: =T10-HLOOKUP(X10,Feuil1!$C$1:$AU$9,7,FALSE) -> -30 | AG10: =T10-HLOOKUP(X10,Feuil1!$C$1:$AU$9,8,FALSE) -> -40 | AH10: =T10-HLOOKUP(X10,Feuil1!$C$1:$AU$9,9,FALSE) -> -940 | AP10: IRG +
A11: F | B11: NORD | C11: NPC | D11: 6 | E11: 344393 | F11: CNOCKAERT | G11: Kelly-Ann | H11: 99 | I11: 39.7 | J11: CHCD COMINES | K11: BEL | L11: 20 | M11: 23 | N11: -24 | O11: 23 | P11: 23 | Q11: -25 | R11: 25 | S11: 25 | T11: 48 | V11: DEP + | W11: 8 | X11: =IF(I11="","",IF(A11="H",IF(OR(H11="SEN",H11<94),VLOOKUP(I11,Feuil1!$A$10:$E$28,5),IF(AND(H11>93,H11<97),VLOOKUP(I11,Feuil1!$A$10:$E$28,4),IF(AND(H11>93,H11<97),VLOOKUP(I11,Feuil1!$A$10:$E$28,3),IF(AND(H11>96,H11<100),VLOOKUP(I11,Feuil1!$A$10:$E$28,3),VLOOKUP(I11,Feuil1!$A$10:$E$28,2))))),IF(OR(H11="SEN",H11<94),VLOOKUP(I11,Feuil1!$F$10:$J$24,5),IF(AND(H11>93,H11<97),VLOOKUP(I11,Feuil1!$F$10:$J$24,4),IF(AND(H11>93,H11<97),VLOOKUP(I11,Feuil1!$F$10:$J$24,4),IF(AND(H11>96,H11<100),VLOOKUP(I11,Feuil1!$F$10:$J$24,3),VLOOKUP(I11,Feuil1!$F$10:$J$24,2))))))) -> FC44 | Y11: 94.26409446 | AA11: =T11-HLOOKUP(X11,Feuil1!$C$1:$AU$9,2,FALSE) -> 8 | AB11: =T11-HLOOKUP(X11,Feuil1!$C$1:$AU$9,3,FALSE) -> -2 | AC11: =T11-HLOOKUP(X11,Feuil1!$C$1:$AU$9,4,FALSE) -> -12 | AD11: =T11-HLOOKUP(X11,Feuil1!$C$1:$AU$9,5,FALSE) -> -22 | AE11: =T11-HLOOKUP(X11,Feuil1!$C$1:$AU$9,6,FALSE) -> -32 | AF11: =T11-HLOOKUP(X11,Feuil1!$C$1:$AU$9,7,FALSE) -> -42 | AG11: =T11-HLOOKUP(X11,Feuil1!$C$1:$AU$9,8,FALSE) -> -52 | AH11: =T11-HLOOKUP(X11,Feuil1!$C$1:$AU$9,9,FALSE) -> -952 | AP11: DEP +
A12: F | B12: NORD | C12: NPC | D12: 7 | E12: 331496 | F12: DESTRIERDT | G12: Elodie | H12: 99 | I12: 43.3 | J12: ST POL/MER | K12: F | L12: 16 | M12: 18 | N12: -19 | O12: 18 | P12: 22 | Q12: 24 | R12: 25 | S12: 25 | T12: 43 | V12: DEP + | W12: 3 | X12: =IF(I12="","",IF(A12="H",IF(OR(H12="SEN",H12<94),VLOOKUP(I12,Feuil1!$A$10:$E$28,5),IF(AND(H12>93,H12<97),VLOOKUP(I12,Feuil1!$A$10:$E$28,4),IF(AND(H12>93,H12<97),VLOOKUP(I12,Feuil1!$A$10:$E$28,3),IF(AND(H12>96,H12<100),VLOOKUP(I12,Feuil1!$A$10:$E$28,3),VLOOKUP(I12,Feuil1!$A$10:$E$28,2))))),IF(OR(H12="SEN",H12<94),VLOOKUP(I12,Feuil1!$F$10:$J$24,5),IF(AND(H12>93,H12<97),VLOOKUP(I12,Feuil1!$F$10:$J$24,4),IF(AND(H12>93,H12<97),VLOOKUP(I12,Feuil1!$F$10:$J$24,4),IF(AND(H12>96,H12<100),VLOOKUP(I12,Feuil1!$F$10:$J$24,3),VLOOKUP(I12,Feuil1!$F$10:$J$24,2))))))) -> FC44 | Y12: 77.47902038 | AA12: =T12-HLOOKUP(X12,Feuil1!$C$1:$AU$9,2,FALSE) -> 3 | AB12: =T12-HLOOKUP(X12,Feuil1!$C$1:$AU$9,3,FALSE) -> -7 | AC12: =T12-HLOOKUP(X12,Feuil1!$C$1:$AU$9,4,FALSE) -> -17 | AD12: =T12-HLOOKUP(X12,Feuil1!$C$1:$AU$9,5,FALSE) -> -27 | AE12: =T12-HLOOKUP(X12,Feuil1!$C$1:$AU$9,6,FALSE) -> -37 | AF12: =T12-HLOOKUP(X12,Feuil1!$C$1:$AU$9,7,FALSE) -> -47 | AG12: =T12-HLOOKUP(X12,Feuil1!$C$1:$AU$9,8,FALSE) -> -57 | AH12: =T12-HLOOKUP(X12,Feuil1!$C$1:$AU$9,9,FALSE) -> -957 | AP12: DEP +
A14: F | B14: SO | C14: AQU | D14: 1 | E14: 277832 | F14: RIGAUD | G14: Garance | H14: 99 | I14: 48 | J14: EA ST MEDARD EN JALLES | K14: F | L14: 45 | M14: 49 | N14: 51 | O14: =IF(H14="","",IF(MAXA(L14:N14)<=0,0,MAXA(L14:N14))) -> 51 | P14: -55 | Q14: 55 | R14: 58 | S14: =IF(H14="","",IF(MAXA(P14:R14)<=0,0,MAXA(P14:R14))) -> 58 | T14: =IF(H14="","",IF(OR(O14=0,S14=0),0,O14+S14)) -> 109 | V14: =IF(H14="","",AP14) -> INTA + | W14: =IF(P14="","",IF(AH14>=0,AH14,IF(AG14>=0,AG14,IF(AF14>=0,AF14,IF(AE14>=0,AE14,IF(AD14>=0,AD14,IF(AC14>=0,AC14,IF(AB14>=0,AB14,AA14)))))))) -> 4 | X14: =IF(I14="","",IF(A14="H",IF(OR(H14="SEN",H14<94),VLOOKUP(I14,Feuil1!$A$10:$E$28,5),IF(AND(H14>93,H14<97),VLOOKUP(I14,Feuil1!$A$10:$E$28,4),IF(AND(H14>93,H14<97),VLOOKUP(I14,Feuil1!$A$10:$E$28,3),IF(AND(H14>96,H14<100),VLOOKUP(I14,Feuil1!$A$10:$E$28,3),VLOOKUP(I14,Feuil1!$A$10:$E$28,2))))),IF(OR(H14="SEN",H14<94),VLOOKUP(I14,Feuil1!$F$10:$J$24,5),IF(AND(H14>93,H14<97),VLOOKUP(I14,Feuil1!$F$10:$J$24,4),IF(AND(H14>93,H14<97),VLOOKUP(I14,Feuil1!$F$10:$J$24,4),IF(AND(H14>96,H14<100),VLOOKUP(I14,Feuil1!$F$10:$J$24,3),VLOOKUP(I14,Feuil1!$F$10:$J$24,2))))))) -> FC48 | Y14: =IF(I14="","",IF(A14="H",10^(0.794358141*LOG(I14/174.393)^2)*T14,IF(A14="F",10^(0.89726074*LOG(I14/148.026)^2)*T14,""))) -> 178.6756235 | AA14: =T14-HLOOKUP(X14,Feuil1!$C$1:$AU$9,2,FALSE) -> 64 | AB14: =T14-HLOOKUP(X14,Feuil1!$C$1:$AU$9,3,FALSE) -> 54 | AC14: =T14-HLOOKUP(X14,Feuil1!$C$1:$AU$9,4,FALSE) -> 44 | AD14: =T14-HLOOKUP(X14,Feuil1!$C$1:$AU$9,5,FALSE) -> 34 | AE14: =T14-HLOOKUP(X14,Feuil1!$C$1:$AU$9,6,FALSE) -> 24 | AF14: =T14-HLOOKUP(X14,Feuil1!$C$1:$AU$9,7,FALSE) -> 14 | AG14: =T14-HLOOKUP(X14,Feuil1!$C$1:$AU$9,8,FALSE) -> 4 | AH14: =T14-HLOOKUP(X14,Feuil1!$C$1:$AU$9,9,FALSE) -> -891 | AP14: =IF(AH14>=0,$AH$4,IF(AG14>=0,$AG$4,IF(AF14>=0,$AF$4,IF(AE14>=0,$AE$4,IF(AD14>=0,$AD$4,IF(AC14>=0,$AC$4,IF(AB14>=0,$AB$4,IF(AA14>=0,$AA$4,$AI$4)))))))) -> INTA +
A15: F | B15: SE | C15: CAZ | D15: 2 | E15: 295873 | F15: RICHET | G15: Catherine | H15: 99 | I15: 47.1 | J15: ES VILLENEUVE LOUBET | K15: F | N15: 45 | O15: 45 | P15: 59 | S15: 59 | T15: 104 | V15: INTB + | W15: 9 | X15: =IF(I15="","",IF(A15="H",IF(OR(H15="SEN",H15<94),VLOOKUP(I15,Feuil1!$A$10:$E$28,5),IF(AND(H15>93,H15<97),VLOOKUP(I15,Feuil1!$A$10:$E$28,4),IF(AND(H15>93,H15<97),VLOOKUP(I15,Feuil1!$A$10:$E$28,3),IF(AND(H15>96,H15<100),VLOOKUP(I15,Feuil1!$A$10:$E$28,3),VLOOKUP(I15,Feuil1!$A$10:$E$28,2))))),IF(OR(H15="SEN",H15<94),VLOOKUP(I15,Feuil1!$F$10:$J$24,5),IF(AND(H15>93,H15<97),VLOOKUP(I15,Feuil1!$F$10:$J$24,4),IF(AND(H15>93,H15<97),VLOOKUP(I15,Feuil1!$F$10:$J$24,4),IF(AND(H15>96,H15<100),VLOOKUP(I15,Feuil1!$F$10:$J$24,3),VLOOKUP(I15,Feuil1!$F$10:$J$24,2))))))) -> FC48 | Y15: 173.3595292 | AA15: =T15-HLOOKUP(X15,Feuil1!$C$1:$AU$9,2,FALSE) -> 59 | AB15: =T15-HLOOKUP(X15,Feuil1!$C$1:$AU$9,3,FALSE) -> 49 | AC15: =T15-HLOOKUP(X15,Feuil1!$C$1:$AU$9,4,FALSE) -> 39 | AD15: =T15-HLOOKUP(X15,Feuil1!$C$1:$AU$9,5,FALSE) -> 29 | AE15: =T15-HLOOKUP(X15,Feuil1!$C$1:$AU$9,6,FALSE) -> 19 | AF15: =T15-HLOOKUP(X15,Feuil1!$C$1:$AU$9,7,FALSE) -> 9 | AG15: =T15-HLOOKUP(X15,Feuil1!$C$1:$AU$9,8,FALSE) -> -1 | AH15: =T15-HLOOKUP(X15,Feuil1!$C$1:$AU$9,9,FALSE) -> -896 | AP15: INTB +
A16: F | B16: SE | C16: CAZ | D16: 3 | E16: 363002 | F16: MAILLOT | G16: Asia | H16: 98 | I16: 47.5 | J16: ASLDD TOULON | K16: F | L16: 37 | M16: -39 | N16: 39 | O16: 39 | P16: 49 | Q16: 51 | R16: -54 | S16: 51 | T16: 90 | V16: NAT + | W16: 5 | X16: =IF(I16="","",IF(A16="H",IF(OR(H16="SEN",H16<94),VLOOKUP(I16,Feuil1!$A$10:$E$28,5),IF(AND(H16>93,H16<97),VLOOKUP(I16,Feuil1!$A$10:$E$28,4),IF(AND(H16>93,H16<97),VLOOKUP(I16,Feuil1!$A$10:$E$28,3),IF(AND(H16>96,H16<100),VLOOKUP(I16,Feuil1!$A$10:$E$28,3),VLOOKUP(I16,Feuil1!$A$10:$E$28,2))))),IF(OR(H16="SEN",H16<94),VLOOKUP(I16,Feuil1!$F$10:$J$24,5),IF(AND(H16>93,H16<97),VLOOKUP(I16,Feuil1!$F$10:$J$24,4),IF(AND(H16>93,H16<97),VLOOKUP(I16,Feuil1!$F$10:$J$24,4),IF(AND(H16>96,H16<100),VLOOKUP(I16,Feuil1!$F$10:$J$24,3),VLOOKUP(I16,Feuil1!$F$10:$J$24,2))))))) -> FC48 | Y16: 148.8988359 | AA16: =T16-HLOOKUP(X16,Feuil1!$C$1:$AU$9,2,FALSE) -> 45 | AB16: =T16-HLOOKUP(X16,Feuil1!$C$1:$AU$9,3,FALSE) -> 35 | AC16: =T16-HLOOKUP(X16,Feuil1!$C$1:$AU$9,4,FALSE) -> 25 | AD16: =T16-HLOOKUP(X16,Feuil1!$C$1:$AU$9,5,FALSE) -> 15 | AE16: =T16-HLOOKUP(X16,Feuil1!$C$1:$AU$9,6,FALSE) -> 5 | AF16: =T16-HLOOKUP(X16,Feuil1!$C$1:$AU$9,7,FALSE) -> -5 | AG16: =T16-HLOOKUP(X16,Feuil1!$C$1:$AU$9,8,FALSE) -> -15 | AH16: =T16-HLOOKUP(X16,Feuil1!$C$1:$AU$9,9,FALSE) -> -910 | AP16: NAT +
A17: F | B17: NE | C17: CHA | D17: 4 | E17: 234791 | F17: LORRAIN | G17: Olga | H17: 98 | I17: 45.4 | J17: Langres HM | K17: F | L17: 34 | M17: 37 | N17: -39 | O17: 37 | P17: 45 | Q17: 49 | R17: 51 | S17: 51 | T17: 88 | V17: NAT + | W17: 3 | X17: =IF(I17="","",IF(A17="H",IF(OR(H17="SEN",H17<94),VLOOKUP(I17,Feuil1!$A$10:$E$28,5),IF(AND(H17>93,H17<97),VLOOKUP(I17,Feuil1!$A$10:$E$28,4),IF(AND(H17>93,H17<97),VLOOKUP(I17,Feuil1!$A$10:$E$28,3),IF(AND(H17>96,H17<100),VLOOKUP(I17,Feuil1!$A$10:$E$28,3),VLOOKUP(I17,Feuil1!$A$10:$E$28,2))))),IF(OR(H17="SEN",H17<94),VLOOKUP(I17,Feuil1!$F$10:$J$24,5),IF(AND(H17>93,H17<97),VLOOKUP(I17,Feuil1!$F$10:$J$24,4),IF(AND(H17>93,H17<97),VLOOKUP(I17,Feuil1!$F$10:$J$24,4),IF(AND(H17>96,H17<100),VLOOKUP(I17,Feuil1!$F$10:$J$24,3),VLOOKUP(I17,Feuil1!$F$10:$J$24,2))))))) -> FC48 | Y17: 151.660925 | AA17: =T17-HLOOKUP(X17,Feuil1!$C$1:$AU$9,2,FALSE) -> 43 | AB17: =T17-HLOOKUP(X17,Feuil1!$C$1:$AU$9,3,FALSE) -> 33 | AC17: =T17-HLOOKUP(X17,Feuil1!$C$1:$AU$9,4,FALSE) -> 23 | AD17: =T17-HLOOKUP(X17,Feuil1!$C$1:$AU$9,5,FALSE) -> 13 | AE17: =T17-HLOOKUP(X17,Feuil1!$C$1:$AU$9,6,FALSE) -> 3 | AF17: =T17-HLOOKUP(X17,Feuil1!$C$1:$AU$9,7,FALSE) -> -7 | AG17: =T17-HLOOKUP(X17,Feuil1!$C$1:$AU$9,8,FALSE) -> -17 | AH17: =T17-HLOOKUP(X17,Feuil1!$C$1:$AU$9,9,FALSE) -> -912 | AP17: NAT +
A18: F | B18: NE | C18: BOU | D18: 5 | E18: 363263 | F18: MARCUS TABELLION | G18: CORALINE | H18: 98 | I18: 47.95 | J18: STADE DIJONNAIS HM | K18: F | L18: 32 | M18: 35 | N18: -37 | O18: 35 | P18: -45 | Q18: 45 | R18: 50 | S18: 50 | T18: 85 | V18: NAT + | W18: 0 | X18: =IF(I18="","",IF(A18="H",IF(OR(H18="SEN",H18<94),VLOOKUP(I18,Feuil1!$A$10:$E$28,5),IF(AND(H18>93,H18<97),VLOOKUP(I18,Feuil1!$A$10:$E$28,4),IF(AND(H18>93,H18<97),VLOOKUP(I18,Feuil1!$A$10:$E$28,3),IF(AND(H18>96,H18<100),VLOOKUP(I18,Feuil1!$A$10:$E$28,3),VLOOKUP(I18,Feuil1!$A$10:$E$28,2))))),IF(OR(H18="SEN",H18<94),VLOOKUP(I18,Feuil1!$F$10:$J$24,5),IF(AND(H18>93,H18<97),VLOOKUP(I18,Feuil1!$F$10:$J$24,4),IF(AND(H18>93,H18<97),VLOOKUP(I18,Feuil1!$F$10:$J$24,4),IF(AND(H18>96,H18<100),VLOOKUP(I18,Feuil1!$F$10:$J$24,3),VLOOKUP(I18,Feuil1!$F$10:$J$24,2))))))) -> FC48 | Y18: 139.4617739 | AA18: =T18-HLOOKUP(X18,Feuil1!$C$1:$AU$9,2,FALSE) -> 40 | AB18: =T18-HLOOKUP(X18,Feuil1!$C$1:$AU$9,3,FALSE) -> 30 | AC18: =T18-HLOOKUP(X18,Feuil1!$C$1:$AU$9,4,FALSE) -> 20 | AD18: =T18-HLOOKUP(X18,Feuil1!$C$1:$AU$9,5,FALSE) -> 10 | AE18: =T18-HLOOKUP(X18,Feuil1!$C$1:$AU$9,6,FALSE) -> 0 | AF18: =T18-HLOOKUP(X18,Feuil1!$C$1:$AU$9,7,FALSE) -> -10 | AG18: =T18-HLOOKUP(X18,Feuil1!$C$1:$AU$9,8,FALSE) -> -20 | AH18: =T18-HLOOKUP(X18,Feuil1!$C$1:$AU$9,9,FALSE) -> -915 | AP18: NAT +
A19: F | B19: SE | C19: CAZ | D19: 6 | E19: 201157 | F19: FAUCHER | G19: Roxane | H19: 97 | I19: 45.35 | J19: AC.GARDEEN | K19: F | L19: 27 | M19: 29 | N19: -30 | O19: 29 | P19: 39 | Q19: 41 | R19: 43 | S19: 43 | T19: 72 | V19: IRG + | W19: 7 | X19: =IF(I19="","",IF(A19="H",IF(OR(H19="SEN",H19<94),VLOOKUP(I19,Feuil1!$A$10:$E$28,5),IF(AND(H19>93,H19<97),VLOOKUP(I19,Feuil1!$A$10:$E$28,4),IF(AND(H19>93,H19<97),VLOOKUP(I19,Feuil1!$A$10:$E$28,3),IF(AND(H19>96,H19<100),VLOOKUP(I19,Feuil1!$A$10:$E$28,3),VLOOKUP(I19,Feuil1!$A$10:$E$28,2))))),IF(OR(H19="SEN",H19<94),VLOOKUP(I19,Feuil1!$F$10:$J$24,5),IF(AND(H19>93,H19<97),VLOOKUP(I19,Feuil1!$F$10:$J$24,4),IF(AND(H19>93,H19<97),VLOOKUP(I19,Feuil1!$F$10:$J$24,4),IF(AND(H19>96,H19<100),VLOOKUP(I19,Feuil1!$F$10:$J$24,3),VLOOKUP(I19,Feuil1!$F$10:$J$24,2))))))) -> FC48 | Y19: 124.2122793 | AA19: =T19-HLOOKUP(X19,Feuil1!$C$1:$AU$9,2,FALSE) -> 27 | AB19: =T19-HLOOKUP(X19,Feuil1!$C$1:$AU$9,3,FALSE) -> 17 | AC19: =T19-HLOOKUP(X19,Feuil1!$C$1:$AU$9,4,FALSE) -> 7 | AD19: =T19-HLOOKUP(X19,Feuil1!$C$1:$AU$9,5,FALSE) -> -3 | AE19: =T19-HLOOKUP(X19,Feuil1!$C$1:$AU$9,6,FALSE) -> -13 | AF19: =T19-HLOOKUP(X19,Feuil1!$C$1:$AU$9,7,FALSE) -> -23 | AG19: =T19-HLOOKUP(X19,Feuil1!$C$1:$AU$9,8,FALSE) -> -33 | AH19: =T19-HLOOKUP(X19,Feuil1!$C$1:$AU$9,9,FALSE) -> -928 | AP19: IRG +
A20: F | B20: SE | C20: CAZ | D20: 7 | E20: 341745 | F20: DOLET | G20: Oceane | H20: 97 | I20: 47.12 | J20: ASLDD TOULON | K20: F | L20: 28 | M20: 30 | N20: -32 | O20: 30 | P20: 33 | Q20: 35 | R20: 37 | S20: 37 | T20: 67 | V20: IRG + | W20: 2 | X20: =IF(I20="","",IF(A20="H",IF(OR(H20="SEN",H20<94),VLOOKUP(I20,Feuil1!$A$10:$E$28,5),IF(AND(H20>93,H20<97),VLOOKUP(I20,Feuil1!$A$10:$E$28,4),IF(AND(H20>93,H20<97),VLOOKUP(I20,Feuil1!$A$10:$E$28,3),IF(AND(H20>96,H20<100),VLOOKUP(I20,Feuil1!$A$10:$E$28,3),VLOOKUP(I20,Feuil1!$A$10:$E$28,2))))),IF(OR(H20="SEN",H20<94),VLOOKUP(I20,Feuil1!$F$10:$J$24,5),IF(AND(H20>93,H20<97),VLOOKUP(I20,Feuil1!$F$10:$J$24,4),IF(AND(H20>93,H20<97),VLOOKUP(I20,Feuil1!$F$10:$J$24,4),IF(AND(H20>96,H20<100),VLOOKUP(I20,Feuil1!$F$10:$J$24,3),VLOOKUP(I20,Feuil1!$F$10:$J$24,2))))))) -> FC48 | Y20: 111.6412443 | AA20: =T20-HLOOKUP(X20,Feuil1!$C$1:$AU$9,2,FALSE) -> 22 | AB20: =T20-HLOOKUP(X20,Feuil1!$C$1:$AU$9,3,FALSE) -> 12 | AC20: =T20-HLOOKUP(X20,Feuil1!$C$1:$AU$9,4,FALSE) -> 2 | AD20: =T20-HLOOKUP(X20,Feuil1!$C$1:$AU$9,5,FALSE) -> -8 | AE20: =T20-HLOOKUP(X20,Feuil1!$C$1:$AU$9,6,FALSE) -> -18 | AF20: =T20-HLOOKUP(X20,Feuil1!$C$1:$AU$9,7,FALSE) -> -28 | AG20: =T20-HLOOKUP(X20,Feuil1!$C$1:$AU$9,8,FALSE) -> -38 | AH20: =T20-HLOOKUP(X20,Feuil1!$C$1:$AU$9,9,FALSE) -> -933 | AP20: IRG +
A21: F | B21: Nord | C21: PIC | D21: 8 | E21: 308200 | F21: LEBON | G21: Vanessa | H21: 97 | I21: 45.12 | J21: CEHT Hirson | K21: F | L21: 23 | M21: 26 | N21: -28 | O21: 26 | P21: 35 | Q21: -38 | R21: 40 | S21: 40 | T21: 66 | V21: IRG + | W21: 1 | X21: =IF(I21="","",IF(A21="H",IF(OR(H21="SEN",H21<94),VLOOKUP(I21,Feuil1!$A$10:$E$28,5),IF(AND(H21>93,H21<97),VLOOKUP(I21,Feuil1!$A$10:$E$28,4),IF(AND(H21>93,H21<97),VLOOKUP(I21,Feuil1!$A$10:$E$28,3),IF(AND(H21>96,H21<100),VLOOKUP(I21,Feuil1!$A$10:$E$28,3),VLOOKUP(I21,Feuil1!$A$10:$E$28,2))))),IF(OR(H21="SEN",H21<94),VLOOKUP(I21,Feuil1!$F$10:$J$24,5),IF(AND(H21>93,H21<97),VLOOKUP(I21,Feuil1!$F$10:$J$24,4),IF(AND(H21>93,H21<97),VLOOKUP(I21,Feuil1!$F$10:$J$24,4),IF(AND(H21>96,H21<100),VLOOKUP(I21,Feuil1!$F$10:$J$24,3),VLOOKUP(I21,Feuil1!$F$10:$J$24,2))))))) -> FC48 | Y21: 114.3974137 | AA21: =T21-HLOOKUP(X21,Feuil1!$C$1:$AU$9,2,FALSE) -> 21 | AB21: =T21-HLOOKUP(X21,Feuil1!$C$1:$AU$9,3,FALSE) -> 11 | AC21: =T21-HLOOKUP(X21,Feuil1!$C$1:$AU$9,4,FALSE) -> 1 | AD21: =T21-HLOOKUP(X21,Feuil1!$C$1:$AU$9,5,FALSE) -> -9 | AE21: =T21-HLOOKUP(X21,Feuil1!$C$1:$AU$9,6,FALSE) -> -19 | AF21: =T21-HLOOKUP(X21,Feuil1!$C$1:$AU$9,7,FALSE) -> -29 | AG21: =T21-HLOOKUP(X21,Feuil1!$C$1:$AU$9,8,FALSE) -> -39 | AH21: =T21-HLOOKUP(X21,Feuil1!$C$1:$AU$9,9,FALSE) -> -934 | AP21: IRG +
A22: F | B22: NORD | C22: NPC | D22: 9 | E22: 368318 | F22: PARANTHOEN | G22: Sarah | H22: 98 | I22: 47.5 | J22: CA ROSENDAEL | K22: F | L22: 25 | M22: 27 | N22: 29 | O22: 29 | P22: -30 | Q22: 30 | R22: 32 | S22: 32 | T22: 61 | V22: REG + | W22: 6 | X22: =IF(I22="","",IF(A22="H",IF(OR(H22="SEN",H22<94),VLOOKUP(I22,Feuil1!$A$10:$E$28,5),IF(AND(H22>93,H22<97),VLOOKUP(I22,Feuil1!$A$10:$E$28,4),IF(AND(H22>93,H22<97),VLOOKUP(I22,Feuil1!$A$10:$E$28,3),IF(AND(H22>96,H22<100),VLOOKUP(I22,Feuil1!$A$10:$E$28,3),VLOOKUP(I22,Feuil1!$A$10:$E$28,2))))),IF(OR(H22="SEN",H22<94),VLOOKUP(I22,Feuil1!$F$10:$J$24,5),IF(AND(H22>93,H22<97),VLOOKUP(I22,Feuil1!$F$10:$J$24,4),IF(AND(H22>93,H22<97),VLOOKUP(I22,Feuil1!$F$10:$J$24,4),IF(AND(H22>96,H22<100),VLOOKUP(I22,Feuil1!$F$10:$J$24,3),VLOOKUP(I22,Feuil1!$F$10:$J$24,2))))))) -> FC48 | Y22: 100.9203221 | AA22: =T22-HLOOKUP(X22,Feuil1!$C$1:$AU$9,2,FALSE) -> 16 | AB22: =T22-HLOOKUP(X22,Feuil1!$C$1:$AU$9,3,FALSE) -> 6 | AC22: =T22-HLOOKUP(X22,Feuil1!$C$1:$AU$9,4,FALSE) -> -4 | AD22: =T22-HLOOKUP(X22,Feuil1!$C$1:$AU$9,5,FALSE) -> -14 | AE22: =T22-HLOOKUP(X22,Feuil1!$C$1:$AU$9,6,FALSE) -> -24 | AF22: =T22-HLOOKUP(X22,Feuil1!$C$1:$AU$9,7,FALSE) -> -34 | AG22: =T22-HLOOKUP(X22,Feuil1!$C$1:$AU$9,8,FALSE) -> -44 | AH22: =T22-HLOOKUP(X22,Feuil1!$C$1:$AU$9,9,FALSE) -> -939 | AP22: REG +
A23: F | B23: NE | C23: CHA | D23: 10 | E23: 368335 | F23: GUILLAUME | G23: Mathilde | H23: 99 | I23: 48 | J23: Langres HM | K23: F | L23: 17 | M23: 20 | N23: 22 | O23: 22 | P23: 25 | Q23: 28 | R23: -30 | S23: 28 | T23: 50 | V23: DEP + | W23: 5 | X23: =IF(I23="","",IF(A23="H",IF(OR(H23="SEN",H23<94),VLOOKUP(I23,Feuil1!$A$10:$E$28,5),IF(AND(H23>93,H23<97),VLOOKUP(I23,Feuil1!$A$10:$E$28,4),IF(AND(H23>93,H23<97),VLOOKUP(I23,Feuil1!$A$10:$E$28,3),IF(AND(H23>96,H23<100),VLOOKUP(I23,Feuil1!$A$10:$E$28,3),VLOOKUP(I23,Feuil1!$A$10:$E$28,2))))),IF(OR(H23="SEN",H23<94),VLOOKUP(I23,Feuil1!$F$10:$J$24,5),IF(AND(H23>93,H23<97),VLOOKUP(I23,Feuil1!$F$10:$J$24,4),IF(AND(H23>93,H23<97),VLOOKUP(I23,Feuil1!$F$10:$J$24,4),IF(AND(H23>96,H23<100),VLOOKUP(I23,Feuil1!$F$10:$J$24,3),VLOOKUP(I23,Feuil1!$F$10:$J$24,2))))))) -> FC48 | Y23: 81.96129517 | AA23: =T23-HLOOKUP(X23,Feuil1!$C$1:$AU$9,2,FALSE) -> 5 | AB23: =T23-HLOOKUP(X23,Feuil1!$C$1:$AU$9,3,FALSE) -> -5 | AC23: =T23-HLOOKUP(X23,Feuil1!$C$1:$AU$9,4,FALSE) -> -15 | AD23: =T23-HLOOKUP(X23,Feuil1!$C$1:$AU$9,5,FALSE) -> -25 | AE23: =T23-HLOOKUP(X23,Feuil1!$C$1:$AU$9,6,FALSE) -> -35 | AF23: =T23-HLOOKUP(X23,Feuil1!$C$1:$AU$9,7,FALSE) -> -45 | AG23: =T23-HLOOKUP(X23,Feuil1!$C$1:$AU$9,8,FALSE) -> -55 | AH23: =T23-HLOOKUP(X23,Feuil1!$C$1:$AU$9,9,FALSE) -> -950 | AP23: DEP +
A24: F | B24: NORD | C24: NPC | D24: 11 | E24: 362648 | F24: BOTACCI | G24: Kelly | H24: 97 | I24: 46.2 | J24: CA ROSENDAEL | K24: F | L24: 10 | M24: 13 | N24: 15 | O24: 15 | P24: 18 | Q24: 20 | R24: -22 | S24: 20 | T24: 35 | V24: NCL | W24: -10 | X24: =IF(I24="","",IF(A24="H",IF(OR(H24="SEN",H24<94),VLOOKUP(I24,Feuil1!$A$10:$E$28,5),IF(AND(H24>93,H24<97),VLOOKUP(I24,Feuil1!$A$10:$E$28,4),IF(AND(H24>93,H24<97),VLOOKUP(I24,Feuil1!$A$10:$E$28,3),IF(AND(H24>96,H24<100),VLOOKUP(I24,Feuil1!$A$10:$E$28,3),VLOOKUP(I24,Feuil1!$A$10:$E$28,2))))),IF(OR(H24="SEN",H24<94),VLOOKUP(I24,Feuil1!$F$10:$J$24,5),IF(AND(H24>93,H24<97),VLOOKUP(I24,Feuil1!$F$10:$J$24,4),IF(AND(H24>93,H24<97),VLOOKUP(I24,Feuil1!$F$10:$J$24,4),IF(AND(H24>96,H24<100),VLOOKUP(I24,Feuil1!$F$10:$J$24,3),VLOOKUP(I24,Feuil1!$F$10:$J$24,2))))))) -> FC48 | Y24: 59.36400092 | AA24: =T24-HLOOKUP(X24,Feuil1!$C$1:$AU$9,2,FALSE) -> -10 | AB24: =T24-HLOOKUP(X24,Feuil1!$C$1:$AU$9,3,FALSE) -> -20 | AC24: =T24-HLOOKUP(X24,Feuil1!$C$1:$AU$9,4,FALSE) -> -30 | AD24: =T24-HLOOKUP(X24,Feuil1!$C$1:$AU$9,5,FALSE) -> -40 | AE24: =T24-HLOOKUP(X24,Feuil1!$C$1:$AU$9,6,FALSE) -> -50 | AF24: =T24-HLOOKUP(X24,Feuil1!$C$1:$AU$9,7,FALSE) -> -60 | AG24: =T24-HLOOKUP(X24,Feuil1!$C$1:$AU$9,8,FALSE) -> -70 | AH24: =T24-HLOOKUP(X24,Feuil1!$C$1:$AU$9,9,FALSE) -> -965 | AP24: NCL
A26: F | B26: Nord | C26: PIC | D26: 1 | E26: 280885 | F26: CABON | G26: Ophélie | H26: 97 | I26: 53 | J26: AAEEP Péronne | K26: F | L26: 54 | M26: 58 | N26: 61 | O26: =IF(H26="","",IF(MAXA(L26:N26)<=0,0,MAXA(L26:N26))) -> 61 | P26: -70 | Q26: 70 | R26: 76 | S26: =IF(H26="","",IF(MAXA(P26:R26)<=0,0,MAXA(P26:R26))) -> 76 | T26: =IF(H26="","",IF(OR(O26=0,S26=0),0,O26+S26)) -> 137 | V26: =IF(H26="","",AP26) -> INTA + | W26: =IF(P26="","",IF(AH26>=0,AH26,IF(AG26>=0,AG26,IF(AF26>=0,AF26,IF(AE26>=0,AE26,IF(AD26>=0,AD26,IF(AC26>=0,AC26,IF(AB26>=0,AB26,AA26)))))))) -> 22 | X26: =IF(I26="","",IF(A26="H",IF(OR(H26="SEN",H26<94),VLOOKUP(I26,Feuil1!$A$10:$E$28,5),IF(AND(H26>93,H26<97),VLOOKUP(I26,Feuil1!$A$10:$E$28,4),IF(AND(H26>93,H26<97),VLOOKUP(I26,Feuil1!$A$10:$E$28,3),IF(AND(H26>96,H26<100),VLOOKUP(I26,Feuil1!$A$10:$E$28,3),VLOOKUP(I26,Feuil1!$A$10:$E$28,2))))),IF(OR(H26="SEN",H26<94),VLOOKUP(I26,Feuil1!$F$10:$J$24,5),IF(AND(H26>93,H26<97),VLOOKUP(I26,Feuil1!$F$10:$J$24,4),IF(AND(H26>93,H26<97),VLOOKUP(I26,Feuil1!$F$10:$J$24,4),IF(AND(H26>96,H26<100),VLOOKUP(I26,Feuil1!$F$10:$J$24,3),VLOOKUP(I26,Feuil1!$F$10:$J$24,2))))))) -> FC53 | Y26: =IF(I26="","",IF(A26="H",10^(0.794358141*LOG(I26/174.393)^2)*T26,IF(A26="F",10^(0.89726074*LOG(I26/148.026)^2)*T26,""))) -> 206.6568558 | AA26: =T26-HLOOKUP(X26,Feuil1!$C$1:$AU$9,2,FALSE) -> 87 | AB26: =T26-HLOOKUP(X26,Feuil1!$C$1:$AU$9,3,FALSE) -> 72 | AC26: =T26-HLOOKUP(X26,Feuil1!$C$1:$AU$9,4,FALSE) -> 62 | AD26: =T26-HLOOKUP(X26,Feuil1!$C$1:$AU$9,5,FALSE) -> 52 | AE26: =T26-HLOOKUP(X26,Feuil1!$C$1:$AU$9,6,FALSE) -> 42 | AF26: =T26-HLOOKUP(X26,Feuil1!$C$1:$AU$9,7,FALSE) -> 32 | AG26: =T26-HLOOKUP(X26,Feuil1!$C$1:$AU$9,8,FALSE) -> 22 | AH26: =T26-HLOOKUP(X26,Feuil1!$C$1:$AU$9,9,FALSE) -> -863 | AP26: =IF(AH26>=0,$AH$4,IF(AG26>=0,$AG$4,IF(AF26>=0,$AF$4,IF(AE26>=0,$AE$4,IF(AD26>=0,$AD$4,IF(AC26>=0,$AC$4,IF(AB26>=0,$AB$4,IF(AA26>=0,$AA$4,$AI$4)))))))) -> INTA +
A27: F | B27: SE | C27: LAN | D27: 2 | E27: 223733 | F27: PRUVOT | G27: Samantha | H27: 99 | I27: 51.6 | J27: Narbonne Haltéro | K27: F | L27: 44 | M27: 47 | N27: 49 | O27: 49 | P27: 60 | Q27: 64 | R27: -66 | S27: 64 | T27: 113 | V27: INTB + | W27: 8 | X27: =IF(I27="","",IF(A27="H",IF(OR(H27="SEN",H27<94),VLOOKUP(I27,Feuil1!$A$10:$E$28,5),IF(AND(H27>93,H27<97),VLOOKUP(I27,Feuil1!$A$10:$E$28,4),IF(AND(H27>93,H27<97),VLOOKUP(I27,Feuil1!$A$10:$E$28,3),IF(AND(H27>96,H27<100),VLOOKUP(I27,Feuil1!$A$10:$E$28,3),VLOOKUP(I27,Feuil1!$A$10:$E$28,2))))),IF(OR(H27="SEN",H27<94),VLOOKUP(I27,Feuil1!$F$10:$J$24,5),IF(AND(H27>93,H27<97),VLOOKUP(I27,Feuil1!$F$10:$J$24,4),IF(AND(H27>93,H27<97),VLOOKUP(I27,Feuil1!$F$10:$J$24,4),IF(AND(H27>96,H27<100),VLOOKUP(I27,Feuil1!$F$10:$J$24,3),VLOOKUP(I27,Feuil1!$F$10:$J$24,2))))))) -> FC53 | Y27: 174.1948659 | AA27: =T27-HLOOKUP(X27,Feuil1!$C$1:$AU$9,2,FALSE) -> 63 | AB27: =T27-HLOOKUP(X27,Feuil1!$C$1:$AU$9,3,FALSE) -> 48 | AC27: =T27-HLOOKUP(X27,Feuil1!$C$1:$AU$9,4,FALSE) -> 38 | AD27: =T27-HLOOKUP(X27,Feuil1!$C$1:$AU$9,5,FALSE) -> 28 | AE27: =T27-HLOOKUP(X27,Feuil1!$C$1:$AU$9,6,FALSE) -> 18 | AF27: =T27-HLOOKUP(X27,Feuil1!$C$1:$AU$9,7,FALSE) -> 8 | AG27: =T27-HLOOKUP(X27,Feuil1!$C$1:$AU$9,8,FALSE) -> -2 | AH27: =T27-HLOOKUP(X27,Feuil1!$C$1:$AU$9,9,FALSE) -> -887 | AP27: INTB +
A28: F | B28: SE | C28: RAL | D28: 3 | E28: 171425 | F28: HOSTALIER | G28: Melinda | H28: 97 | I28: 52.3 | J28: SAINT BALDOPH | K28: F | L28: 48 | M28: -50 | N28: 50 | O28: 50 | P28: 60 | Q28: 63 | R28: -65 | S28: 63 | T28: 113 | V28: INTB + | W28: 8 | X28: =IF(I28="","",IF(A28="H",IF(OR(H28="SEN",H28<94),VLOOKUP(I28,Feuil1!$A$10:$E$28,5),IF(AND(H28>93,H28<97),VLOOKUP(I28,Feuil1!$A$10:$E$28,4),IF(AND(H28>93,H28<97),VLOOKUP(I28,Feuil1!$A$10:$E$28,3),IF(AND(H28>96,H28<100),VLOOKUP(I28,Feuil1!$A$10:$E$28,3),VLOOKUP(I28,Feuil1!$A$10:$E$28,2))))),IF(OR(H28="SEN",H28<94),VLOOKUP(I28,Feuil1!$F$10:$J$24,5),IF(AND(H28>93,H28<97),VLOOKUP(I28,Feuil1!$F$10:$J$24,4),IF(AND(H28>93,H28<97),VLOOKUP(I28,Feuil1!$F$10:$J$24,4),IF(AND(H28>96,H28<100),VLOOKUP(I28,Feuil1!$F$10:$J$24,3),VLOOKUP(I28,Feuil1!$F$10:$J$24,2))))))) -> FC53 | Y28: 172.2898357 | AA28: =T28-HLOOKUP(X28,Feuil1!$C$1:$AU$9,2,FALSE) -> 63 | AB28: =T28-HLOOKUP(X28,Feuil1!$C$1:$AU$9,3,FALSE) -> 48 | AC28: =T28-HLOOKUP(X28,Feuil1!$C$1:$AU$9,4,FALSE) -> 38 | AD28: =T28-HLOOKUP(X28,Feuil1!$C$1:$AU$9,5,FALSE) -> 28 | AE28: =T28-HLOOKUP(X28,Feuil1!$C$1:$AU$9,6,FALSE) -> 18 | AF28: =T28-HLOOKUP(X28,Feuil1!$C$1:$AU$9,7,FALSE) -> 8 | AG28: =T28-HLOOKUP(X28,Feuil1!$C$1:$AU$9,8,FALSE) -> -2 | AH28: =T28-HLOOKUP(X28,Feuil1!$C$1:$AU$9,9,FALSE) -> -887 | AP28: INTB +
A29: F | B29: SE | C29: CAZ | D29: 4 | E29: 295873 | F29: RICHET | G29: Catherine | H29: 99 | I29: 48.7 | J29: ES VILLENEUVE LOUBET | K29: F | L29: 42 | M29: -45 | N29: 46 | O29: 46 | P29: -54 | Q29: 55 | R29: 60 | S29: 60 | T29: 106 | V29: INTB + | W29: 1 | X29: =IF(I29="","",IF(A29="H",IF(OR(H29="SEN",H29<94),VLOOKUP(I29,Feuil1!$A$10:$E$28,5),IF(AND(H29>93,H29<97),VLOOKUP(I29,Feuil1!$A$10:$E$28,4),IF(AND(H29>93,H29<97),VLOOKUP(I29,Feuil1!$A$10:$E$28,3),IF(AND(H29>96,H29<100),VLOOKUP(I29,Feuil1!$A$10:$E$28,3),VLOOKUP(I29,Feuil1!$A$10:$E$28,2))))),IF(OR(H29="SEN",H29<94),VLOOKUP(I29,Feuil1!$F$10:$J$24,5),IF(AND(H29>93,H29<97),VLOOKUP(I29,Feuil1!$F$10:$J$24,4),IF(AND(H29>93,H29<97),VLOOKUP(I29,Feuil1!$F$10:$J$24,4),IF(AND(H29>96,H29<100),VLOOKUP(I29,Feuil1!$F$10:$J$24,3),VLOOKUP(I29,Feuil1!$F$10:$J$24,2))))))) -> FC53 | Y29: 171.5779385 | AA29: =T29-HLOOKUP(X29,Feuil1!$C$1:$AU$9,2,FALSE) -> 56 | AB29: =T29-HLOOKUP(X29,Feuil1!$C$1:$AU$9,3,FALSE) -> 41 | AC29: =T29-HLOOKUP(X29,Feuil1!$C$1:$AU$9,4,FALSE) -> 31 | AD29: =T29-HLOOKUP(X29,Feuil1!$C$1:$AU$9,5,FALSE) -> 21 | AE29: =T29-HLOOKUP(X29,Feuil1!$C$1:$AU$9,6,FALSE) -> 11 | AF29: =T29-HLOOKUP(X29,Feuil1!$C$1:$AU$9,7,FALSE) -> 1 | AG29: =T29-HLOOKUP(X29,Feuil1!$C$1:$AU$9,8,FALSE) -> -9 | AH29: =T29-HLOOKUP(X29,Feuil1!$C$1:$AU$9,9,FALSE) -> -894 | AP29: INTB +
A30: F | B30: SE | C30: CAZ | D30: 5 | E30: 323896 | F30: DUPEYROUX | G30: Elise | H30: 97 | I30: 52.5 | J30: ASLDD TOULON | K30: F | L30: 41 | M30: 45 | N30: 47 | O30: 47 | P30: 52 | Q30: -55 | R30: 56 | S30: 56 | T30: 103 | V30: NAT + | W30: 8 | X30: =IF(I30="","",IF(A30="H",IF(OR(H30="SEN",H30<94),VLOOKUP(I30,Feuil1!$A$10:$E$28,5),IF(AND(H30>93,H30<97),VLOOKUP(I30,Feuil1!$A$10:$E$28,4),IF(AND(H30>93,H30<97),VLOOKUP(I30,Feuil1!$A$10:$E$28,3),IF(AND(H30>96,H30<100),VLOOKUP(I30,Feuil1!$A$10:$E$28,3),VLOOKUP(I30,Feuil1!$A$10:$E$28,2))))),IF(OR(H30="SEN",H30<94),VLOOKUP(I30,Feuil1!$F$10:$J$24,5),IF(AND(H30>93,H30<97),VLOOKUP(I30,Feuil1!$F$10:$J$24,4),IF(AND(H30>93,H30<97),VLOOKUP(I30,Feuil1!$F$10:$J$24,4),IF(AND(H30>96,H30<100),VLOOKUP(I30,Feuil1!$F$10:$J$24,3),VLOOKUP(I30,Feuil1!$F$10:$J$24,2))))))) -> FC53 | Y30: 156.5585751 | AA30: =T30-HLOOKUP(X30,Feuil1!$C$1:$AU$9,2,FALSE) -> 53 | AB30: =T30-HLOOKUP(X30,Feuil1!$C$1:$AU$9,3,FALSE) -> 38 | AC30: =T30-HLOOKUP(X30,Feuil1!$C$1:$AU$9,4,FALSE) -> 28 | AD30: =T30-HLOOKUP(X30,Feuil1!$C$1:$AU$9,5,FALSE) -> 18 | AE30: =T30-HLOOKUP(X30,Feuil1!$C$1:$AU$9,6,FALSE) -> 8 | AF30: =T30-HLOOKUP(X30,Feuil1!$C$1:$AU$9,7,FALSE) -> -2 | AG30: =T30-HLOOKUP(X30,Feuil1!$C$1:$AU$9,8,FALSE) -> -12 | AH30: =T30-HLOOKUP(X30,Feuil1!$C$1:$AU$9,9,FALSE) -> -897 | AP30: NAT +
A31: F | B31: Nord | C31: PIC | D31: 6 | E31: 326995 | F31: BONNIERE | G31: Priscillia | H31: 99 | I31: 52.8 | J31: KC Villers-Bretonneux | K31: F | L31: 40 | M31: 43 | N31: 45 | O31: 45 | P31: 50 | Q31: -52 | R31: 52 | S31: 52 | T31: 97 | V31: NAT + | W31: 2 | X31: =IF(I31="","",IF(A31="H",IF(OR(H31="SEN",H31<94),VLOOKUP(I31,Feuil1!$A$10:$E$28,5),IF(AND(H31>93,H31<97),VLOOKUP(I31,Feuil1!$A$10:$E$28,4),IF(AND(H31>93,H31<97),VLOOKUP(I31,Feuil1!$A$10:$E$28,3),IF(AND(H31>96,H31<100),VLOOKUP(I31,Feuil1!$A$10:$E$28,3),VLOOKUP(I31,Feuil1!$A$10:$E$28,2))))),IF(OR(H31="SEN",H31<94),VLOOKUP(I31,Feuil1!$F$10:$J$24,5),IF(AND(H31>93,H31<97),VLOOKUP(I31,Feuil1!$F$10:$J$24,4),IF(AND(H31>93,H31<97),VLOOKUP(I31,Feuil1!$F$10:$J$24,4),IF(AND(H31>96,H31<100),VLOOKUP(I31,Feuil1!$F$10:$J$24,3),VLOOKUP(I31,Feuil1!$F$10:$J$24,2))))))) -> FC53 | Y31: 146.7633883 | AA31: =T31-HLOOKUP(X31,Feuil1!$C$1:$AU$9,2,FALSE) -> 47 | AB31: =T31-HLOOKUP(X31,Feuil1!$C$1:$AU$9,3,FALSE) -> 32 | AC31: =T31-HLOOKUP(X31,Feuil1!$C$1:$AU$9,4,FALSE) -> 22 | AD31: =T31-HLOOKUP(X31,Feuil1!$C$1:$AU$9,5,FALSE) -> 12 | AE31: =T31-HLOOKUP(X31,Feuil1!$C$1:$AU$9,6,FALSE) -> 2 | AF31: =T31-HLOOKUP(X31,Feuil1!$C$1:$AU$9,7,FALSE) -> -8 | AG31: =T31-HLOOKUP(X31,Feuil1!$C$1:$AU$9,8,FALSE) -> -18 | AH31: =T31-HLOOKUP(X31,Feuil1!$C$1:$AU$9,9,FALSE) -> -903 | AP31: NAT +
A32: F | B32: CO | C32: BNO | D32: 7 | E32: 285369 | F32: VILLENEUVE | G32: Irys | H32: 98 | I32: 53 | J32: Caen CHM | K32: F | L32: -38 | M32: 38 | N32: 42 | O32: 42 | P32: 49 | Q32: 53 | R32: 55 | S32: 55 | T32: 97 | V32: NAT + | W32: 2 | X32: =IF(I32="","",IF(A32="H",IF(OR(H32="SEN",H32<94),VLOOKUP(I32,Feuil1!$A$10:$E$28,5),IF(AND(H32>93,H32<97),VLOOKUP(I32,Feuil1!$A$10:$E$28,4),IF(AND(H32>93,H32<97),VLOOKUP(I32,Feuil1!$A$10:$E$28,3),IF(AND(H32>96,H32<100),VLOOKUP(I32,Feuil1!$A$10:$E$28,3),VLOOKUP(I32,Feuil1!$A$10:$E$28,2))))),IF(OR(H32="SEN",H32<94),VLOOKUP(I32,Feuil1!$F$10:$J$24,5),IF(AND(H32>93,H32<97),VLOOKUP(I32,Feuil1!$F$10:$J$24,4),IF(AND(H32>93,H32<97),VLOOKUP(I32,Feuil1!$F$10:$J$24,4),IF(AND(H32>96,H32<100),VLOOKUP(I32,Feuil1!$F$10:$J$24,3),VLOOKUP(I32,Feuil1!$F$10:$J$24,2))))))) -> FC53 | Y32: 146.3190876 | AA32: =T32-HLOOKUP(X32,Feuil1!$C$1:$AU$9,2,FALSE) -> 47 | AB32: =T32-HLOOKUP(X32,Feuil1!$C$1:$AU$9,3,FALSE) -> 32 | AC32: =T32-HLOOKUP(X32,Feuil1!$C$1:$AU$9,4,FALSE) -> 22 | AD32: =T32-HLOOKUP(X32,Feuil1!$C$1:$AU$9,5,FALSE) -> 12 | AE32: =T32-HLOOKUP(X32,Feuil1!$C$1:$AU$9,6,FALSE) -> 2 | AF32: =T32-HLOOKUP(X32,Feuil1!$C$1:$AU$9,7,FALSE) -> -8 | AG32: =T32-HLOOKUP(X32,Feuil1!$C$1:$AU$9,8,FALSE) -> -18 | AH32: =T32-HLOOKUP(X32,Feuil1!$C$1:$AU$9,9,FALSE) -> -903 | AP32: NAT +
A33: F | B33: NE | C33: ALS | D33: 8 | E33: 327036 | F33: HELL | G33: MARINE | H33: 97 | I33: 51.8 | J33: US Wittenheim | K33: F | L33: 38 | M33: -41 | N33: 41 | O33: 41 | P33: 51 | Q33: -54 | R33: -54 | S33: 51 | T33: 92 | V33: FED + | W33: 7 | X33: =IF(I33="","",IF(A33="H",IF(OR(H33="SEN",H33<94),VLOOKUP(I33,Feuil1!$A$10:$E$28,5),IF(AND(H33>93,H33<97),VLOOKUP(I33,Feuil1!$A$10:$E$28,4),IF(AND(H33>93,H33<97),VLOOKUP(I33,Feuil1!$A$10:$E$28,3),IF(AND(H33>96,H33<100),VLOOKUP(I33,Feuil1!$A$10:$E$28,3),VLOOKUP(I33,Feuil1!$A$10:$E$28,2))))),IF(OR(H33="SEN",H33<94),VLOOKUP(I33,Feuil1!$F$10:$J$24,5),IF(AND(H33>93,H33<97),VLOOKUP(I33,Feuil1!$F$10:$J$24,4),IF(AND(H33>93,H33<97),VLOOKUP(I33,Feuil1!$F$10:$J$24,4),IF(AND(H33>96,H33<100),VLOOKUP(I33,Feuil1!$F$10:$J$24,3),VLOOKUP(I33,Feuil1!$F$10:$J$24,2))))))) -> FC53 | Y33: 141.3732958 | AA33: =T33-HLOOKUP(X33,Feuil1!$C$1:$AU$9,2,FALSE) -> 42 | AB33: =T33-HLOOKUP(X33,Feuil1!$C$1:$AU$9,3,FALSE) -> 27 | AC33: =T33-HLOOKUP(X33,Feuil1!$C$1:$AU$9,4,FALSE) -> 17 | AD33: =T33-HLOOKUP(X33,Feuil1!$C$1:$AU$9,5,FALSE) -> 7 | AE33: =T33-HLOOKUP(X33,Feuil1!$C$1:$AU$9,6,FALSE) -> -3 | AF33: =T33-HLOOKUP(X33,Feuil1!$C$1:$AU$9,7,FALSE) -> -13 | AG33: =T33-HLOOKUP(X33,Feuil1!$C$1:$AU$9,8,FALSE) -> -23 | AH33: =T33-HLOOKUP(X33,Feuil1!$C$1:$AU$9,9,FALSE) -> -908 | AP33: FED +
A34: F | B34: SE | C34: CAZ | D34: 9 | E34: 363002 | F34: MAILLOT | G34: Asia | H34: 98 | I34: 48.5 | J34: ASLDD TOULON | K34: F | L34: 36 | M34: 38 | N34: -39 | O34: 38 | P34: 46 | Q34: 48 | R34: 50 | S34: 50 | T34: 88 | V34: FED + | W34: 3 | X34: =IF(I34="","",IF(A34="H",IF(OR(H34="SEN",H34<94),VLOOKUP(I34,Feuil1!$A$10:$E$28,5),IF(AND(H34>93,H34<97),VLOOKUP(I34,Feuil1!$A$10:$E$28,4),IF(AND(H34>93,H34<97),VLOOKUP(I34,Feuil1!$A$10:$E$28,3),IF(AND(H34>96,H34<100),VLOOKUP(I34,Feuil1!$A$10:$E$28,3),VLOOKUP(I34,Feuil1!$A$10:$E$28,2))))),IF(OR(H34="SEN",H34<94),VLOOKUP(I34,Feuil1!$F$10:$J$24,5),IF(AND(H34>93,H34<97),VLOOKUP(I34,Feuil1!$F$10:$J$24,4),IF(AND(H34>93,H34<97),VLOOKUP(I34,Feuil1!$F$10:$J$24,4),IF(AND(H34>96,H34<100),VLOOKUP(I34,Feuil1!$F$10:$J$24,3),VLOOKUP(I34,Feuil1!$F$10:$J$24,2))))))) -> FC53 | Y34: 142.9517868 | AA34: =T34-HLOOKUP(X34,Feuil1!$C$1:$AU$9,2,FALSE) -> 38 | AB34: =T34-HLOOKUP(X34,Feuil1!$C$1:$AU$9,3,FALSE) -> 23 | AC34: =T34-HLOOKUP(X34,Feuil1!$C$1:$AU$9,4,FALSE) -> 13 | AD34: =T34-HLOOKUP(X34,Feuil1!$C$1:$AU$9,5,FALSE) -> 3 | AE34: =T34-HLOOKUP(X34,Feuil1!$C$1:$AU$9,6,FALSE) -> -7 | AF34: =T34-HLOOKUP(X34,Feuil1!$C$1:$AU$9,7,FALSE) -> -17 | AG34: =T34-HLOOKUP(X34,Feuil1!$C$1:$AU$9,8,FALSE) -> -27 | AH34: =T34-HLOOKUP(X34,Feuil1!$C$1:$AU$9,9,FALSE) -> -912 | AP34: FED +
A35: F | B35: DOM | C35: MAR | D35: 10 | E35: 362590 | F35: BOISFER | G35: Priscilla | H35: 99 | I35: 52.8 | J35: ABBC/Foyal Didier | K35: F | L35: 30 | M35: 35 | N35: -37 | O35: 35 | P35: 42 | Q35: 47 | R35: 50 | S35: 50 | T35: 85 | V35: FED + | W35: 0 | X35: =IF(I35="","",IF(A35="H",IF(OR(H35="SEN",H35<94),VLOOKUP(I35,Feuil1!$A$10:$E$28,5),IF(AND(H35>93,H35<97),VLOOKUP(I35,Feuil1!$A$10:$E$28,4),IF(AND(H35>93,H35<97),VLOOKUP(I35,Feuil1!$A$10:$E$28,3),IF(AND(H35>96,H35<100),VLOOKUP(I35,Feuil1!$A$10:$E$28,3),VLOOKUP(I35,Feuil1!$A$10:$E$28,2))))),IF(OR(H35="SEN",H35<94),VLOOKUP(I35,Feuil1!$F$10:$J$24,5),IF(AND(H35>93,H35<97),VLOOKUP(I35,Feuil1!$F$10:$J$24,4),IF(AND(H35>93,H35<97),VLOOKUP(I35,Feuil1!$F$10:$J$24,4),IF(AND(H35>96,H35<100),VLOOKUP(I35,Feuil1!$F$10:$J$24,3),VLOOKUP(I35,Feuil1!$F$10:$J$24,2))))))) -> FC53 | Y35: 128.6070929 | AA35: =T35-HLOOKUP(X35,Feuil1!$C$1:$AU$9,2,FALSE) -> 35 | AB35: =T35-HLOOKUP(X35,Feuil1!$C$1:$AU$9,3,FALSE) -> 20 | AC35: =T35-HLOOKUP(X35,Feuil1!$C$1:$AU$9,4,FALSE) -> 10 | AD35: =T35-HLOOKUP(X35,Feuil1!$C$1:$AU$9,5,FALSE) -> 0 | AE35: =T35-HLOOKUP(X35,Feuil1!$C$1:$AU$9,6,FALSE) -> -10 | AF35: =T35-HLOOKUP(X35,Feuil1!$C$1:$AU$9,7,FALSE) -> -20 | AG35: =T35-HLOOKUP(X35,Feuil1!$C$1:$AU$9,8,FALSE) -> -30 | AH35: =T35-HLOOKUP(X35,Feuil1!$C$1:$AU$9,9,FALSE) -> -915 | AP35: FED +
A36: F | B36: NE | C36: BOU | D36: 11 | E36: 363263 | F36: MARCUS TABELLION | G36: CORALINE | H36: 98 | I36: 49.2 | J36: STADE DIJONNAIS HM | K36: F | L36: 35 | M36: -37 | N36: -37 | O36: 35 | P36: 46 | Q36: -50 | R36: -50 | S36: 46 | T36: 81 | V36: IRG + | W36: 6 | X36: =IF(I36="","",IF(A36="H",IF(OR(H36="SEN",H36<94),VLOOKUP(I36,Feuil1!$A$10:$E$28,5),IF(AND(H36>93,H36<97),VLOOKUP(I36,Feuil1!$A$10:$E$28,4),IF(AND(H36>93,H36<97),VLOOKUP(I36,Feuil1!$A$10:$E$28,3),IF(AND(H36>96,H36<100),VLOOKUP(I36,Feuil1!$A$10:$E$28,3),VLOOKUP(I36,Feuil1!$A$10:$E$28,2))))),IF(OR(H36="SEN",H36<94),VLOOKUP(I36,Feuil1!$F$10:$J$24,5),IF(AND(H36>93,H36<97),VLOOKUP(I36,Feuil1!$F$10:$J$24,4),IF(AND(H36>93,H36<97),VLOOKUP(I36,Feuil1!$F$10:$J$24,4),IF(AND(H36>96,H36<100),VLOOKUP(I36,Feuil1!$F$10:$J$24,3),VLOOKUP(I36,Feuil1!$F$10:$J$24,2))))))) -> FC53 | Y36: 129.9615056 | AA36: =T36-HLOOKUP(X36,Feuil1!$C$1:$AU$9,2,FALSE) -> 31 | AB36: =T36-HLOOKUP(X36,Feuil1!$C$1:$AU$9,3,FALSE) -> 16 | AC36: =T36-HLOOKUP(X36,Feuil1!$C$1:$AU$9,4,FALSE) -> 6 | AD36: =T36-HLOOKUP(X36,Feuil1!$C$1:$AU$9,5,FALSE) -> -4 | AE36: =T36-HLOOKUP(X36,Feuil1!$C$1:$AU$9,6,FALSE) -> -14 | AF36: =T36-HLOOKUP(X36,Feuil1!$C$1:$AU$9,7,FALSE) -> -24 | AG36: =T36-HLOOKUP(X36,Feuil1!$C$1:$AU$9,8,FALSE) -> -34 | AH36: =T36-HLOOKUP(X36,Feuil1!$C$1:$AU$9,9,FALSE) -> -919 | AP36: IRG +
A37: F | B37: CO | C37: BNO | D37: 12 | E37: 306045 | F37: GAULTIER | G37: Esther | H37: 99 | I37: 51.3 | J37: STADE ST LOIS | K37: F | L37: 32 | M37: 35 | N37: -38 | O37: 35 | P37: 35 | Q37: 40 | R37: -41 | S37: 40 | T37: 75 | V37: IRG + | W37: 0 | X37: =IF(I37="","",IF(A37="H",IF(OR(H37="SEN",H37<94),VLOOKUP(I37,Feuil1!$A$10:$E$28,5),IF(AND(H37>93,H37<97),VLOOKUP(I37,Feuil1!$A$10:$E$28,4),IF(AND(H37>93,H37<97),VLOOKUP(I37,Feuil1!$A$10:$E$28,3),IF(AND(H37>96,H37<100),VLOOKUP(I37,Feuil1!$A$10:$E$28,3),VLOOKUP(I37,Feuil1!$A$10:$E$28,2))))),IF(OR(H37="SEN",H37<94),VLOOKUP(I37,Feuil1!$F$10:$J$24,5),IF(AND(H37>93,H37<97),VLOOKUP(I37,Feuil1!$F$10:$J$24,4),IF(AND(H37>93,H37<97),VLOOKUP(I37,Feuil1!$F$10:$J$24,4),IF(AND(H37>96,H37<100),VLOOKUP(I37,Feuil1!$F$10:$J$24,3),VLOOKUP(I37,Feuil1!$F$10:$J$24,2))))))) -> FC53 | Y37: 116.1726276 | AA37: =T37-HLOOKUP(X37,Feuil1!$C$1:$AU$9,2,FALSE) -> 25 | AB37: =T37-HLOOKUP(X37,Feuil1!$C$1:$AU$9,3,FALSE) -> 10 | AC37: =T37-HLOOKUP(X37,Feuil1!$C$1:$AU$9,4,FALSE) -> 0 | AD37: =T37-HLOOKUP(X37,Feuil1!$C$1:$AU$9,5,FALSE) -> -10 | AE37: =T37-HLOOKUP(X37,Feuil1!$C$1:$AU$9,6,FALSE) -> -20 | AF37: =T37-HLOOKUP(X37,Feuil1!$C$1:$AU$9,7,FALSE) -> -30 | AG37: =T37-HLOOKUP(X37,Feuil1!$C$1:$AU$9,8,FALSE) -> -40 | AH37: =T37-HLOOKUP(X37,Feuil1!$C$1:$AU$9,9,FALSE) -> -925 | AP37: IRG +
A38: F | B38: Nord | C38: IDF | D38: 13 | E38: 371173 | F38: HERVET | G38: JUSTINE | H38: 97 | I38: 53 | J38: MANTES | K38: F | L38: 28 | M38: 30 | N38: -33 | O38: 30 | P38: 41 | Q38: 43 | R38: -45 | S38: 43 | T38: 73 | V38: REG + | W38: 8 | X38: =IF(I38="","",IF(A38="H",IF(OR(H38="SEN",H38<94),VLOOKUP(I38,Feuil1!$A$10:$E$28,5),IF(AND(H38>93,H38<97),VLOOKUP(I38,Feuil1!$A$10:$E$28,4),IF(AND(H38>93,H38<97),VLOOKUP(I38,Feuil1!$A$10:$E$28,3),IF(AND(H38>96,H38<100),VLOOKUP(I38,Feuil1!$A$10:$E$28,3),VLOOKUP(I38,Feuil1!$A$10:$E$28,2))))),IF(OR(H38="SEN",H38<94),VLOOKUP(I38,Feuil1!$F$10:$J$24,5),IF(AND(H38>93,H38<97),VLOOKUP(I38,Feuil1!$F$10:$J$24,4),IF(AND(H38>93,H38<97),VLOOKUP(I38,Feuil1!$F$10:$J$24,4),IF(AND(H38>96,H38<100),VLOOKUP(I38,Feuil1!$F$10:$J$24,3),VLOOKUP(I38,Feuil1!$F$10:$J$24,2))))))) -> FC53 | Y38: 110.1164268 | AA38: =T38-HLOOKUP(X38,Feuil1!$C$1:$AU$9,2,FALSE) -> 23 | AB38: =T38-HLOOKUP(X38,Feuil1!$C$1:$AU$9,3,FALSE) -> 8 | AC38: =T38-HLOOKUP(X38,Feuil1!$C$1:$AU$9,4,FALSE) -> -2 | AD38: =T38-HLOOKUP(X38,Feuil1!$C$1:$AU$9,5,FALSE) -> -12 | AE38: =T38-HLOOKUP(X38,Feuil1!$C$1:$AU$9,6,FALSE) -> -22 | AF38: =T38-HLOOKUP(X38,Feuil1!$C$1:$AU$9,7,FALSE) -> -32 | AG38: =T38-HLOOKUP(X38,Feuil1!$C$1:$AU$9,8,FALSE) -> -42 | AH38: =T38-HLOOKUP(X38,Feuil1!$C$1:$AU$9,9,FALSE) -> -927 | AP38: REG +
A39: F | B39: DOM | C39: GUA | D39: 14 | E39: 339433 | F39: CHALDER | G39: Lou Ann | H39: 99 | I39: 52.6 | J39: AHCS/Pointois | K39: F | L39: 28 | M39: 32 | N39: -35 | O39: 32 | P39: 32 | Q39: 37 | R39: -40 | S39: 37 | T39: 69 | V39: REG + | W39: 4 | X39: =IF(I39="","",IF(A39="H",IF(OR(H39="SEN",H39<94),VLOOKUP(I39,Feuil1!$A$10:$E$28,5),IF(AND(H39>93,H39<97),VLOOKUP(I39,Feuil1!$A$10:$E$28,4),IF(AND(H39>93,H39<97),VLOOKUP(I39,Feuil1!$A$10:$E$28,3),IF(AND(H39>96,H39<100),VLOOKUP(I39,Feuil1!$A$10:$E$28,3),VLOOKUP(I39,Feuil1!$A$10:$E$28,2))))),IF(OR(H39="SEN",H39<94),VLOOKUP(I39,Feuil1!$F$10:$J$24,5),IF(AND(H39>93,H39<97),VLOOKUP(I39,Feuil1!$F$10:$J$24,4),IF(AND(H39>93,H39<97),VLOOKUP(I39,Feuil1!$F$10:$J$24,4),IF(AND(H39>96,H39<100),VLOOKUP(I39,Feuil1!$F$10:$J$24,3),VLOOKUP(I39,Feuil1!$F$10:$J$24,2))))))) -> FC53 | Y39: 104.7180856 | AA39: =T39-HLOOKUP(X39,Feuil1!$C$1:$AU$9,2,FALSE) -> 19 | AB39: =T39-HLOOKUP(X39,Feuil1!$C$1:$AU$9,3,FALSE) -> 4 | AC39: =T39-HLOOKUP(X39,Feuil1!$C$1:$AU$9,4,FALSE) -> -6 | AD39: =T39-HLOOKUP(X39,Feuil1!$C$1:$AU$9,5,FALSE) -> -16 | AE39: =T39-HLOOKUP(X39,Feuil1!$C$1:$AU$9,6,FALSE) -> -26 | AF39: =T39-HLOOKUP(X39,Feuil1!$C$1:$AU$9,7,FALSE) -> -36 | AG39: =T39-HLOOKUP(X39,Feuil1!$C$1:$AU$9,8,FALSE) -> -46 | AH39: =T39-HLOOKUP(X39,Feuil1!$C$1:$AU$9,9,FALSE) -> -931 | AP39: REG +
A40: F | B40: NORD | C40: NPC | D40: 15 | E40: 345223 | F40: MARTINS | G40: Morgane | H40: 99 | I40: 52.6 | J40: ST POL/MER | K40: F | L40: 27 | M40: -30 | N40: -30 | O40: 27 | P40: 37 | Q40: 40 | R40: 42 | S40: 42 | T40: 69 | V40: REG + | W40: 4 | X40: =IF(I40="","",IF(A40="H",IF(OR(H40="SEN",H40<94),VLOOKUP(I40,Feuil1!$A$10:$E$28,5),IF(AND(H40>93,H40<97),VLOOKUP(I40,Feuil1!$A$10:$E$28,4),IF(AND(H40>93,H40<97),VLOOKUP(I40,Feuil1!$A$10:$E$28,3),IF(AND(H40>96,H40<100),VLOOKUP(I40,Feuil1!$A$10:$E$28,3),VLOOKUP(I40,Feuil1!$A$10:$E$28,2))))),IF(OR(H40="SEN",H40<94),VLOOKUP(I40,Feuil1!$F$10:$J$24,5),IF(AND(H40>93,H40<97),VLOOKUP(I40,Feuil1!$F$10:$J$24,4),IF(AND(H40>93,H40<97),VLOOKUP(I40,Feuil1!$F$10:$J$24,4),IF(AND(H40>96,H40<100),VLOOKUP(I40,Feuil1!$F$10:$J$24,3),VLOOKUP(I40,Feuil1!$F$10:$J$24,2))))))) -> FC53 | Y40: 104.7180856 | AA40: =T40-HLOOKUP(X40,Feuil1!$C$1:$AU$9,2,FALSE) -> 19 | AB40: =T40-HLOOKUP(X40,Feuil1!$C$1:$AU$9,3,FALSE) -> 4 | AC40: =T40-HLOOKUP(X40,Feuil1!$C$1:$AU$9,4,FALSE) -> -6 | AD40: =T40-HLOOKUP(X40,Feuil1!$C$1:$AU$9,5,FALSE) -> -16 | AE40: =T40-HLOOKUP(X40,Feuil1!$C$1:$AU$9,6,FALSE) -> -26 | AF40: =T40-HLOOKUP(X40,Feuil1!$C$1:$AU$9,7,FALSE) -> -36 | AG40: =T40-HLOOKUP(X40,Feuil1!$C$1:$AU$9,8,FALSE) -> -46 | AH40: =T40-HLOOKUP(X40,Feuil1!$C$1:$AU$9,9,FALSE) -> -931 | AP40: REG +
A41: F | B41: SE | C41: RAL | D41: 16 | E41: 372486 | F41: LLORENS | G41: Amandine | H41: 99 | I41: 50.2 | J41: BOURG DE PEAGE | K41: F | L41: 28 | M41: 30 | N41: -32 | O41: 30 | P41: 32 | Q41: 34 | R41: -36 | S41: 34 | T41: 64 | V41: DEP + | W41: 14 | X41: =IF(I41="","",IF(A41="H",IF(OR(H41="SEN",H41<94),VLOOKUP(I41,Feuil1!$A$10:$E$28,5),IF(AND(H41>93,H41<97),VLOOKUP(I41,Feuil1!$A$10:$E$28,4),IF(AND(H41>93,H41<97),VLOOKUP(I41,Feuil1!$A$10:$E$28,3),IF(AND(H41>96,H41<100),VLOOKUP(I41,Feuil1!$A$10:$E$28,3),VLOOKUP(I41,Feuil1!$A$10:$E$28,2))))),IF(OR(H41="SEN",H41<94),VLOOKUP(I41,Feuil1!$F$10:$J$24,5),IF(AND(H41>93,H41<97),VLOOKUP(I41,Feuil1!$F$10:$J$24,4),IF(AND(H41>93,H41<97),VLOOKUP(I41,Feuil1!$F$10:$J$24,4),IF(AND(H41>96,H41<100),VLOOKUP(I41,Feuil1!$F$10:$J$24,3),VLOOKUP(I41,Feuil1!$F$10:$J$24,2))))))) -> FC53 | Y41: 100.9430771 | AA41: =T41-HLOOKUP(X41,Feuil1!$C$1:$AU$9,2,FALSE) -> 14 | AB41: =T41-HLOOKUP(X41,Feuil1!$C$1:$AU$9,3,FALSE) -> -1 | AC41: =T41-HLOOKUP(X41,Feuil1!$C$1:$AU$9,4,FALSE) -> -11 | AD41: =T41-HLOOKUP(X41,Feuil1!$C$1:$AU$9,5,FALSE) -> -21 | AE41: =T41-HLOOKUP(X41,Feuil1!$C$1:$AU$9,6,FALSE) -> -31 | AF41: =T41-HLOOKUP(X41,Feuil1!$C$1:$AU$9,7,FALSE) -> -41 | AG41: =T41-HLOOKUP(X41,Feuil1!$C$1:$AU$9,8,FALSE) -> -51 | AH41: =T41-HLOOKUP(X41,Feuil1!$C$1:$AU$9,9,FALSE) -> -936 | AP41: DEP +
A42: F | B42: DOM | C42: GUA | D42: 17 | E42: 341950 | F42: PHAETON | G42: Margot | H42: 99 | I42: 51 | J42: AHCS/Pointois | K42: F | L42: 20 | M42: 25 | N42: 27 | O42: 27 | P42: 25 | Q42: 27 | R42: 30 | S42: 30 | T42: 57 | V42: DEP + | W42: 7 | X42: =IF(I42="","",IF(A42="H",IF(OR(H42="SEN",H42<94),VLOOKUP(I42,Feuil1!$A$10:$E$28,5),IF(AND(H42>93,H42<97),VLOOKUP(I42,Feuil1!$A$10:$E$28,4),IF(AND(H42>93,H42<97),VLOOKUP(I42,Feuil1!$A$10:$E$28,3),IF(AND(H42>96,H42<100),VLOOKUP(I42,Feuil1!$A$10:$E$28,3),VLOOKUP(I42,Feuil1!$A$10:$E$28,2))))),IF(OR(H42="SEN",H42<94),VLOOKUP(I42,Feuil1!$F$10:$J$24,5),IF(AND(H42>93,H42<97),VLOOKUP(I42,Feuil1!$F$10:$J$24,4),IF(AND(H42>93,H42<97),VLOOKUP(I42,Feuil1!$F$10:$J$24,4),IF(AND(H42>96,H42<100),VLOOKUP(I42,Feuil1!$F$10:$J$24,3),VLOOKUP(I42,Feuil1!$F$10:$J$24,2))))))) -> FC53 | Y42: 88.72109393 | AA42: =T42-HLOOKUP(X42,Feuil1!$C$1:$AU$9,2,FALSE) -> 7 | AB42: =T42-HLOOKUP(X42,Feuil1!$C$1:$AU$9,3,FALSE) -> -8 | AC42: =T42-HLOOKUP(X42,Feuil1!$C$1:$AU$9,4,FALSE) -> -18 | AD42: =T42-HLOOKUP(X42,Feuil1!$C$1:$AU$9,5,FALSE) -> -28 | AE42: =T42-HLOOKUP(X42,Feuil1!$C$1:$AU$9,6,FALSE) -> -38 | AF42: =T42-HLOOKUP(X42,Feuil1!$C$1:$AU$9,7,FALSE) -> -48 | AG42: =T42-HLOOKUP(X42,Feuil1!$C$1:$AU$9,8,FALSE) -> -58 | AH42: =T42-HLOOKUP(X42,Feuil1!$C$1:$AU$9,9,FALSE) -> -943 | AP42: DEP +
A43: F | B43: Nord | C43: PIC | D43: 18 | E43: 356155 | F43: ALLAL BEN MAATI | G43: Kelly | H43: 99 | I43: 51.7 | J43: AAEEP Péronne | K43: F | L43: 20 | M43: 23 | N43: 25 | O43: 25 | P43: 25 | Q43: 28 | R43: 30 | S43: 30 | T43: 55 | V43: DEP + | W43: 5 | X43: =IF(I43="","",IF(A43="H",IF(OR(H43="SEN",H43<94),VLOOKUP(I43,Feuil1!$A$10:$E$28,5),IF(AND(H43>93,H43<97),VLOOKUP(I43,Feuil1!$A$10:$E$28,4),IF(AND(H43>93,H43<97),VLOOKUP(I43,Feuil1!$A$10:$E$28,3),IF(AND(H43>96,H43<100),VLOOKUP(I43,Feuil1!$A$10:$E$28,3),VLOOKUP(I43,Feuil1!$A$10:$E$28,2))))),IF(OR(H43="SEN",H43<94),VLOOKUP(I43,Feuil1!$F$10:$J$24,5),IF(AND(H43>93,H43<97),VLOOKUP(I43,Feuil1!$F$10:$J$24,4),IF(AND(H43>93,H43<97),VLOOKUP(I43,Feuil1!$F$10:$J$24,4),IF(AND(H43>96,H43<100),VLOOKUP(I43,Feuil1!$F$10:$J$24,3),VLOOKUP(I43,Feuil1!$F$10:$J$24,2))))))) -> FC53 | Y43: 84.65051832 | AA43: =T43-HLOOKUP(X43,Feuil1!$C$1:$AU$9,2,FALSE) -> 5 | AB43: =T43-HLOOKUP(X43,Feuil1!$C$1:$AU$9,3,FALSE) -> -10 | AC43: =T43-HLOOKUP(X43,Feuil1!$C$1:$AU$9,4,FALSE) -> -20 | AD43: =T43-HLOOKUP(X43,Feuil1!$C$1:$AU$9,5,FALSE) -> -30 | AE43: =T43-HLOOKUP(X43,Feuil1!$C$1:$AU$9,6,FALSE) -> -40 | AF43: =T43-HLOOKUP(X43,Feuil1!$C$1:$AU$9,7,FALSE) -> -50 | AG43: =T43-HLOOKUP(X43,Feuil1!$C$1:$AU$9,8,FALSE) -> -60 | AH43: =T43-HLOOKUP(X43,Feuil1!$C$1:$AU$9,9,FALSE) -> -945 | AP43: DEP +
A44: F | B44: SE | C44: RAL | D44: 19 | E44: 372605 | F44: KHERRAF | G44: Lea | H44: 99 | I44: 51.6 | J44: GAULOISE DE VAISE | K44: F | L44: 18 | M44: 20 | N44: 22 | O44: 22 | P44: 25 | Q44: -28 | R44: 28 | S44: 28 | T44: 50 | V44: DEP + | W44: 0 | X44: =IF(I44="","",IF(A44="H",IF(OR(H44="SEN",H44<94),VLOOKUP(I44,Feuil1!$A$10:$E$28,5),IF(AND(H44>93,H44<97),VLOOKUP(I44,Feuil1!$A$10:$E$28,4),IF(AND(H44>93,H44<97),VLOOKUP(I44,Feuil1!$A$10:$E$28,3),IF(AND(H44>96,H44<100),VLOOKUP(I44,Feuil1!$A$10:$E$28,3),VLOOKUP(I44,Feuil1!$A$10:$E$28,2))))),IF(OR(H44="SEN",H44<94),VLOOKUP(I44,Feuil1!$F$10:$J$24,5),IF(AND(H44>93,H44<97),VLOOKUP(I44,Feuil1!$F$10:$J$24,4),IF(AND(H44>93,H44<97),VLOOKUP(I44,Feuil1!$F$10:$J$24,4),IF(AND(H44>96,H44<100),VLOOKUP(I44,Feuil1!$F$10:$J$24,3),VLOOKUP(I44,Feuil1!$F$10:$J$24,2))))))) -> FC53 | Y44: 77.0773743 | AA44: =T44-HLOOKUP(X44,Feuil1!$C$1:$AU$9,2,FALSE) -> 0 | AB44: =T44-HLOOKUP(X44,Feuil1!$C$1:$AU$9,3,FALSE) -> -15 | AC44: =T44-HLOOKUP(X44,Feuil1!$C$1:$AU$9,4,FALSE) -> -25 | AD44: =T44-HLOOKUP(X44,Feuil1!$C$1:$AU$9,5,FALSE) -> -35 | AE44: =T44-HLOOKUP(X44,Feuil1!$C$1:$AU$9,6,FALSE) -> -45 | AF44: =T44-HLOOKUP(X44,Feuil1!$C$1:$AU$9,7,FALSE) -> -55 | AG44: =T44-HLOOKUP(X44,Feuil1!$C$1:$AU$9,8,FALSE) -> -65 | AH44: =T44-HLOOKUP(X44,Feuil1!$C$1:$AU$9,9,FALSE) -> -950 | AP44: DEP +
A46: F | B46: Nord | C46: PIC | D46: 1 | E46: 280885 | F46: CABON | G46: Ophélie | H46: 97 | I46: 53.3 | J46: AAEEP Péronne | K46: F | L46: 55 | M46: 59 | N46: 62 | O46: =IF(H46="","",IF(MAXA(L46:N46)<=0,0,MAXA(L46:N46))) -> 62 | P46: 73 | Q46: 76 | R46: 78 | S46: =IF(H46="","",IF(MAXA(P46:R46)<=0,0,MAXA(P46:R46))) -> 78 | T46: =IF(H46="","",IF(OR(O46=0,S46=0),0,O46+S46)) -> 140 | V46: =IF(H46="","",AP46) -> INTA + | W46: =IF(P46="","",IF(AH46>=0,AH46,IF(AG46>=0,AG46,IF(AF46>=0,AF46,IF(AE46>=0,AE46,IF(AD46>=0,AD46,IF(AC46>=0,AC46,IF(AB46>=0,AB46,AA46)))))))) -> 15 | X46: =IF(I46="","",IF(A46="H",IF(OR(H46="SEN",H46<94),VLOOKUP(I46,Feuil1!$A$10:$E$28,5),IF(AND(H46>93,H46<97),VLOOKUP(I46,Feuil1!$A$10:$E$28,4),IF(AND(H46>93,H46<97),VLOOKUP(I46,Feuil1!$A$10:$E$28,3),IF(AND(H46>96,H46<100),VLOOKUP(I46,Feuil1!$A$10:$E$28,3),VLOOKUP(I46,Feuil1!$A$10:$E$28,2))))),IF(OR(H46="SEN",H46<94),VLOOKUP(I46,Feuil1!$F$10:$J$24,5),IF(AND(H46>93,H46<97),VLOOKUP(I46,Feuil1!$F$10:$J$24,4),IF(AND(H46>93,H46<97),VLOOKUP(I46,Feuil1!$F$10:$J$24,4),IF(AND(H46>96,H46<100),VLOOKUP(I46,Feuil1!$F$10:$J$24,3),VLOOKUP(I46,Feuil1!$F$10:$J$24,2))))))) -> FC58 | Y46: =IF(I46="","",IF(A46="H",10^(0.794358141*LOG(I46/174.393)^2)*T46,IF(A46="F",10^(0.89726074*LOG(I46/148.026)^2)*T46,""))) -> 210.2327923 | AA46: =T46-HLOOKUP(X46,Feuil1!$C$1:$AU$9,2,FALSE) -> 85 | AB46: =T46-HLOOKUP(X46,Feuil1!$C$1:$AU$9,3,FALSE) -> 70 | AC46: =T46-HLOOKUP(X46,Feuil1!$C$1:$AU$9,4,FALSE) -> 60 | AD46: =T46-HLOOKUP(X46,Feuil1!$C$1:$AU$9,5,FALSE) -> 50 | AE46: =T46-HLOOKUP(X46,Feuil1!$C$1:$AU$9,6,FALSE) -> 40 | AF46: =T46-HLOOKUP(X46,Feuil1!$C$1:$AU$9,7,FALSE) -> 25 | AG46: =T46-HLOOKUP(X46,Feuil1!$C$1:$AU$9,8,FALSE) -> 15 | AH46: =T46-HLOOKUP(X46,Feuil1!$C$1:$AU$9,9,FALSE) -> -860 | AP46: =IF(AH46>=0,$AH$4,IF(AG46>=0,$AG$4,IF(AF46>=0,$AF$4,IF(AE46>=0,$AE$4,IF(AD46>=0,$AD$4,IF(AC46>=0,$AC$4,IF(AB46>=0,$AB$4,IF(AA46>=0,$AA$4,$AI$4)))))))) -> INTA +
A47: F | B47: NE | C47: CHA | D47: 2 | E47: 274946 | F47: GROSJEAN | G47: Loriane | H47: 97 | I47: 56.94 | J47: Langres HM | K47: F | L47: -57 | M47: 57 | N47: -60 | O47: 57 | P47: 70 | Q47: 73 | R47: 76 | S47: 76 | T47: 133 | V47: INTA + | W47: 8 | X47: =IF(I47="","",IF(A47="H",IF(OR(H47="SEN",H47<94),VLOOKUP(I47,Feuil1!$A$10:$E$28,5),IF(AND(H47>93,H47<97),VLOOKUP(I47,Feuil1!$A$10:$E$28,4),IF(AND(H47>93,H47<97),VLOOKUP(I47,Feuil1!$A$10:$E$28,3),IF(AND(H47>96,H47<100),VLOOKUP(I47,Feuil1!$A$10:$E$28,3),VLOOKUP(I47,Feuil1!$A$10:$E$28,2))))),IF(OR(H47="SEN",H47<94),VLOOKUP(I47,Feuil1!$F$10:$J$24,5),IF(AND(H47>93,H47<97),VLOOKUP(I47,Feuil1!$F$10:$J$24,4),IF(AND(H47>93,H47<97),VLOOKUP(I47,Feuil1!$F$10:$J$24,4),IF(AND(H47>96,H47<100),VLOOKUP(I47,Feuil1!$F$10:$J$24,3),VLOOKUP(I47,Feuil1!$F$10:$J$24,2))))))) -> FC58 | Y47: 189.8117976 | AA47: =T47-HLOOKUP(X47,Feuil1!$C$1:$AU$9,2,FALSE) -> 78 | AB47: =T47-HLOOKUP(X47,Feuil1!$C$1:$AU$9,3,FALSE) -> 63 | AC47: =T47-HLOOKUP(X47,Feuil1!$C$1:$AU$9,4,FALSE) -> 53 | AD47: =T47-HLOOKUP(X47,Feuil1!$C$1:$AU$9,5,FALSE) -> 43 | AE47: =T47-HLOOKUP(X47,Feuil1!$C$1:$AU$9,6,FALSE) -> 33 | AF47: =T47-HLOOKUP(X47,Feuil1!$C$1:$AU$9,7,FALSE) -> 18 | AG47: =T47-HLOOKUP(X47,Feuil1!$C$1:$AU$9,8,FALSE) -> 8 | AH47: =T47-HLOOKUP(X47,Feuil1!$C$1:$AU$9,9,FALSE) -> -867 | AP47: INTA +
A48: F | B48: Nord | C48: PIC | D48: 3 | E48: 260923 | F48: ARNOULD | G48: Lutricia | H48: 98 | I48: 57.1 | J48: KC Villers-Bretonneux | K48: F | L48: 52 | M48: 55 | N48: -56 | O48: 55 | P48: 65 | Q48: 68 | R48: 69 | S48: 69 | T48: 124 | V48: INTB + | W48: 9 | X48: =IF(I48="","",IF(A48="H",IF(OR(H48="SEN",H48<94),VLOOKUP(I48,Feuil1!$A$10:$E$28,5),IF(AND(H48>93,H48<97),VLOOKUP(I48,Feuil1!$A$10:$E$28,4),IF(AND(H48>93,H48<97),VLOOKUP(I48,Feuil1!$A$10:$E$28,3),IF(AND(H48>96,H48<100),VLOOKUP(I48,Feuil1!$A$10:$E$28,3),VLOOKUP(I48,Feuil1!$A$10:$E$28,2))))),IF(OR(H48="SEN",H48<94),VLOOKUP(I48,Feuil1!$F$10:$J$24,5),IF(AND(H48>93,H48<97),VLOOKUP(I48,Feuil1!$F$10:$J$24,4),IF(AND(H48>93,H48<97),VLOOKUP(I48,Feuil1!$F$10:$J$24,4),IF(AND(H48>96,H48<100),VLOOKUP(I48,Feuil1!$F$10:$J$24,3),VLOOKUP(I48,Feuil1!$F$10:$J$24,2))))))) -> FC58 | Y48: 176.5985752 | AA48: =T48-HLOOKUP(X48,Feuil1!$C$1:$AU$9,2,FALSE) -> 69 | AB48: =T48-HLOOKUP(X48,Feuil1!$C$1:$AU$9,3,FALSE) -> 54 | AC48: =T48-HLOOKUP(X48,Feuil1!$C$1:$AU$9,4,FALSE) -> 44 | AD48: =T48-HLOOKUP(X48,Feuil1!$C$1:$AU$9,5,FALSE) -> 34 | AE48: =T48-HLOOKUP(X48,Feuil1!$C$1:$AU$9,6,FALSE) -> 24 | AF48: =T48-HLOOKUP(X48,Feuil1!$C$1:$AU$9,7,FALSE) -> 9 | AG48: =T48-HLOOKUP(X48,Feuil1!$C$1:$AU$9,8,FALSE) -> -1 | AH48: =T48-HLOOKUP(X48,Feuil1!$C$1:$AU$9,9,FALSE) -> -876 | AP48: INTB +
A49: F | B49: Nord | C49: PIC | D49: 4 | E49: 219978 | F49: GAUTIER | G49: Ophélie | H49: 97 | I49: 56.34 | J49: La Vaillante St Quentin | K49: F | L49: 48 | M49: 51 | N49: 53 | O49: 53 | P49: 65 | Q49: 68 | R49: 70 | S49: 70 | T49: 123 | V49: INTB + | W49: 8 | X49: =IF(I49="","",IF(A49="H",IF(OR(H49="SEN",H49<94),VLOOKUP(I49,Feuil1!$A$10:$E$28,5),IF(AND(H49>93,H49<97),VLOOKUP(I49,Feuil1!$A$10:$E$28,4),IF(AND(H49>93,H49<97),VLOOKUP(I49,Feuil1!$A$10:$E$28,3),IF(AND(H49>96,H49<100),VLOOKUP(I49,Feuil1!$A$10:$E$28,3),VLOOKUP(I49,Feuil1!$A$10:$E$28,2))))),IF(OR(H49="SEN",H49<94),VLOOKUP(I49,Feuil1!$F$10:$J$24,5),IF(AND(H49>93,H49<97),VLOOKUP(I49,Feuil1!$F$10:$J$24,4),IF(AND(H49>93,H49<97),VLOOKUP(I49,Feuil1!$F$10:$J$24,4),IF(AND(H49>96,H49<100),VLOOKUP(I49,Feuil1!$F$10:$J$24,3),VLOOKUP(I49,Feuil1!$F$10:$J$24,2))))))) -> FC58 | Y49: 176.9380396 | AA49: =T49-HLOOKUP(X49,Feuil1!$C$1:$AU$9,2,FALSE) -> 68 | AB49: =T49-HLOOKUP(X49,Feuil1!$C$1:$AU$9,3,FALSE) -> 53 | AC49: =T49-HLOOKUP(X49,Feuil1!$C$1:$AU$9,4,FALSE) -> 43 | AD49: =T49-HLOOKUP(X49,Feuil1!$C$1:$AU$9,5,FALSE) -> 33 | AE49: =T49-HLOOKUP(X49,Feuil1!$C$1:$AU$9,6,FALSE) -> 23 | AF49: =T49-HLOOKUP(X49,Feuil1!$C$1:$AU$9,7,FALSE) -> 8 | AG49: =T49-HLOOKUP(X49,Feuil1!$C$1:$AU$9,8,FALSE) -> -2 | AH49: =T49-HLOOKUP(X49,Feuil1!$C$1:$AU$9,9,FALSE) -> -877 | AP49: INTB +
A50: F | B50: NE | C50: Bou | D50: 5 | E50: 334936 | F50: COMTE | G50: PAULINE | H50: 99 | I50: 57.13 | J50: HC Avallon | K50: f | L50: 48 | M50: -51 | N50: 51 | O50: 51 | P50: 59 | Q50: -62 | R50: 62 | S50: 62 | T50: 113 | V50: NAT + | W50: 13 | X50: =IF(I50="","",IF(A50="H",IF(OR(H50="SEN",H50<94),VLOOKUP(I50,Feuil1!$A$10:$E$28,5),IF(AND(H50>93,H50<97),VLOOKUP(I50,Feuil1!$A$10:$E$28,4),IF(AND(H50>93,H50<97),VLOOKUP(I50,Feuil1!$A$10:$E$28,3),IF(AND(H50>96,H50<100),VLOOKUP(I50,Feuil1!$A$10:$E$28,3),VLOOKUP(I50,Feuil1!$A$10:$E$28,2))))),IF(OR(H50="SEN",H50<94),VLOOKUP(I50,Feuil1!$F$10:$J$24,5),IF(AND(H50>93,H50<97),VLOOKUP(I50,Feuil1!$F$10:$J$24,4),IF(AND(H50>93,H50<97),VLOOKUP(I50,Feuil1!$F$10:$J$24,4),IF(AND(H50>96,H50<100),VLOOKUP(I50,Feuil1!$F$10:$J$24,3),VLOOKUP(I50,Feuil1!$F$10:$J$24,2))))))) -> FC58 | Y50: 160.8698467 | AA50: =T50-HLOOKUP(X50,Feuil1!$C$1:$AU$9,2,FALSE) -> 58 | AB50: =T50-HLOOKUP(X50,Feuil1!$C$1:$AU$9,3,FALSE) -> 43 | AC50: =T50-HLOOKUP(X50,Feuil1!$C$1:$AU$9,4,FALSE) -> 33 | AD50: =T50-HLOOKUP(X50,Feuil1!$C$1:$AU$9,5,FALSE) -> 23 | AE50: =T50-HLOOKUP(X50,Feuil1!$C$1:$AU$9,6,FALSE) -> 13 | AF50: =T50-HLOOKUP(X50,Feuil1!$C$1:$AU$9,7,FALSE) -> -2 | AG50: =T50-HLOOKUP(X50,Feuil1!$C$1:$AU$9,8,FALSE) -> -12 | AH50: =T50-HLOOKUP(X50,Feuil1!$C$1:$AU$9,9,FALSE) -> -887 | AP50: NAT +
A51: F | B51: SE | C51: RAL | D51: 6 | E51: 171425 | F51: HOSTALIER | G51: Melinda | H51: 97 | I51: 54.2 | J51: SAINT BALDOPH | K51: F | L51: 47 | M51: -50 | N51: 50 | O51: 50 | P51: 57 | Q51: 60 | R51: 62 | S51: 62 | T51: 112 | V51: NAT + | W51: 12 | X51: =IF(I51="","",IF(A51="H",IF(OR(H51="SEN",H51<94),VLOOKUP(I51,Feuil1!$A$10:$E$28,5),IF(AND(H51>93,H51<97),VLOOKUP(I51,Feuil1!$A$10:$E$28,4),IF(AND(H51>93,H51<97),VLOOKUP(I51,Feuil1!$A$10:$E$28,3),IF(AND(H51>96,H51<100),VLOOKUP(I51,Feuil1!$A$10:$E$28,3),VLOOKUP(I51,Feuil1!$A$10:$E$28,2))))),IF(OR(H51="SEN",H51<94),VLOOKUP(I51,Feuil1!$F$10:$J$24,5),IF(AND(H51>93,H51<97),VLOOKUP(I51,Feuil1!$F$10:$J$24,4),IF(AND(H51>93,H51<97),VLOOKUP(I51,Feuil1!$F$10:$J$24,4),IF(AND(H51>96,H51<100),VLOOKUP(I51,Feuil1!$F$10:$J$24,3),VLOOKUP(I51,Feuil1!$F$10:$J$24,2))))))) -> FC58 | Y51: 165.9773473 | AA51: =T51-HLOOKUP(X51,Feuil1!$C$1:$AU$9,2,FALSE) -> 57 | AB51: =T51-HLOOKUP(X51,Feuil1!$C$1:$AU$9,3,FALSE) -> 42 | AC51: =T51-HLOOKUP(X51,Feuil1!$C$1:$AU$9,4,FALSE) -> 32 | AD51: =T51-HLOOKUP(X51,Feuil1!$C$1:$AU$9,5,FALSE) -> 22 | AE51: =T51-HLOOKUP(X51,Feuil1!$C$1:$AU$9,6,FALSE) -> 12 | AF51: =T51-HLOOKUP(X51,Feuil1!$C$1:$AU$9,7,FALSE) -> -3 | AG51: =T51-HLOOKUP(X51,Feuil1!$C$1:$AU$9,8,FALSE) -> -13 | AH51: =T51-HLOOKUP(X51,Feuil1!$C$1:$AU$9,9,FALSE) -> -888 | AP51: NAT +
A52: F | B52: DOM | C52: MAR | D52: 7 | E52: 286912 | F52: KICHENAMA | G52: Clara | H52: 99 | I52: 57.6 | J52: ABBC/Foyal Didier | K52: F | L52: -46 | M52: -46 | N52: 46 | O52: 46 | P52: 55 | Q52: 60 | R52: -62 | S52: 60 | T52: 106 | V52: NAT + | W52: 6 | X52: =IF(I52="","",IF(A52="H",IF(OR(H52="SEN",H52<94),VLOOKUP(I52,Feuil1!$A$10:$E$28,5),IF(AND(H52>93,H52<97),VLOOKUP(I52,Feuil1!$A$10:$E$28,4),IF(AND(H52>93,H52<97),VLOOKUP(I52,Feuil1!$A$10:$E$28,3),IF(AND(H52>96,H52<100),VLOOKUP(I52,Feuil1!$A$10:$E$28,3),VLOOKUP(I52,Feuil1!$A$10:$E$28,2))))),IF(OR(H52="SEN",H52<94),VLOOKUP(I52,Feuil1!$F$10:$J$24,5),IF(AND(H52>93,H52<97),VLOOKUP(I52,Feuil1!$F$10:$J$24,4),IF(AND(H52>93,H52<97),VLOOKUP(I52,Feuil1!$F$10:$J$24,4),IF(AND(H52>96,H52<100),VLOOKUP(I52,Feuil1!$F$10:$J$24,3),VLOOKUP(I52,Feuil1!$F$10:$J$24,2))))))) -> FC58 | Y52: 149.9937786 | AA52: =T52-HLOOKUP(X52,Feuil1!$C$1:$AU$9,2,FALSE) -> 51 | AB52: =T52-HLOOKUP(X52,Feuil1!$C$1:$AU$9,3,FALSE) -> 36 | AC52: =T52-HLOOKUP(X52,Feuil1!$C$1:$AU$9,4,FALSE) -> 26 | AD52: =T52-HLOOKUP(X52,Feuil1!$C$1:$AU$9,5,FALSE) -> 16 | AE52: =T52-HLOOKUP(X52,Feuil1!$C$1:$AU$9,6,FALSE) -> 6 | AF52: =T52-HLOOKUP(X52,Feuil1!$C$1:$AU$9,7,FALSE) -> -9 | AG52: =T52-HLOOKUP(X52,Feuil1!$C$1:$AU$9,8,FALSE) -> -19 | AH52: =T52-HLOOKUP(X52,Feuil1!$C$1:$AU$9,9,FALSE) -> -894 | AP52: NAT +
A53: F | B53: NORD | C53: NPC | D53: 8 | E53: 208590 | F53: HOUZE | G53: Océane | H53: 98 | I53: 57.61 | J53: CHCD COMINES | K53: F | L53: 40 | M53: 43 | N53: 45 | O53: 45 | P53: 53 | Q53: 56 | R53: 58 | S53: 58 | T53: 103 | V53: NAT + | W53: 3 | X53: =IF(I53="","",IF(A53="H",IF(OR(H53="SEN",H53<94),VLOOKUP(I53,Feuil1!$A$10:$E$28,5),IF(AND(H53>93,H53<97),VLOOKUP(I53,Feuil1!$A$10:$E$28,4),IF(AND(H53>93,H53<97),VLOOKUP(I53,Feuil1!$A$10:$E$28,3),IF(AND(H53>96,H53<100),VLOOKUP(I53,Feuil1!$A$10:$E$28,3),VLOOKUP(I53,Feuil1!$A$10:$E$28,2))))),IF(OR(H53="SEN",H53<94),VLOOKUP(I53,Feuil1!$F$10:$J$24,5),IF(AND(H53>93,H53<97),VLOOKUP(I53,Feuil1!$F$10:$J$24,4),IF(AND(H53>93,H53<97),VLOOKUP(I53,Feuil1!$F$10:$J$24,4),IF(AND(H53>96,H53<100),VLOOKUP(I53,Feuil1!$F$10:$J$24,3),VLOOKUP(I53,Feuil1!$F$10:$J$24,2))))))) -> FC58 | Y53: 145.7300628 | AA53: =T53-HLOOKUP(X53,Feuil1!$C$1:$AU$9,2,FALSE) -> 48 | AB53: =T53-HLOOKUP(X53,Feuil1!$C$1:$AU$9,3,FALSE) -> 33 | AC53: =T53-HLOOKUP(X53,Feuil1!$C$1:$AU$9,4,FALSE) -> 23 | AD53: =T53-HLOOKUP(X53,Feuil1!$C$1:$AU$9,5,FALSE) -> 13 | AE53: =T53-HLOOKUP(X53,Feuil1!$C$1:$AU$9,6,FALSE) -> 3 | AF53: =T53-HLOOKUP(X53,Feuil1!$C$1:$AU$9,7,FALSE) -> -12 | AG53: =T53-HLOOKUP(X53,Feuil1!$C$1:$AU$9,8,FALSE) -> -22 | AH53: =T53-HLOOKUP(X53,Feuil1!$C$1:$AU$9,9,FALSE) -> -897 | AP53: NAT +
A54: F | B54: CO | C54: BNO | D54: 9 | E54: 285369 | F54: VILLENEUVE | G54: Irys | H54: 98 | I54: 54.2 | J54: Caen CHM | K54: F | L54: 40 | M54: 42 | N54: 44 | O54: 44 | P54: 50 | Q54: 56 | R54: -58 | S54: 56 | T54: 100 | V54: NAT + | W54: 0 | X54: =IF(I54="","",IF(A54="H",IF(OR(H54="SEN",H54<94),VLOOKUP(I54,Feuil1!$A$10:$E$28,5),IF(AND(H54>93,H54<97),VLOOKUP(I54,Feuil1!$A$10:$E$28,4),IF(AND(H54>93,H54<97),VLOOKUP(I54,Feuil1!$A$10:$E$28,3),IF(AND(H54>96,H54<100),VLOOKUP(I54,Feuil1!$A$10:$E$28,3),VLOOKUP(I54,Feuil1!$A$10:$E$28,2))))),IF(OR(H54="SEN",H54<94),VLOOKUP(I54,Feuil1!$F$10:$J$24,5),IF(AND(H54>93,H54<97),VLOOKUP(I54,Feuil1!$F$10:$J$24,4),IF(AND(H54>93,H54<97),VLOOKUP(I54,Feuil1!$F$10:$J$24,4),IF(AND(H54>96,H54<100),VLOOKUP(I54,Feuil1!$F$10:$J$24,3),VLOOKUP(I54,Feuil1!$F$10:$J$24,2))))))) -> FC58 | Y54: 148.1940601 | AA54: =T54-HLOOKUP(X54,Feuil1!$C$1:$AU$9,2,FALSE) -> 45 | AB54: =T54-HLOOKUP(X54,Feuil1!$C$1:$AU$9,3,FALSE) -> 30 | AC54: =T54-HLOOKUP(X54,Feuil1!$C$1:$AU$9,4,FALSE) -> 20 | AD54: =T54-HLOOKUP(X54,Feuil1!$C$1:$AU$9,5,FALSE) -> 10 | AE54: =T54-HLOOKUP(X54,Feuil1!$C$1:$AU$9,6,FALSE) -> 0 | AF54: =T54-HLOOKUP(X54,Feuil1!$C$1:$AU$9,7,FALSE) -> -15 | AG54: =T54-HLOOKUP(X54,Feuil1!$C$1:$AU$9,8,FALSE) -> -25 | AH54: =T54-HLOOKUP(X54,Feuil1!$C$1:$AU$9,9,FALSE) -> -900 | AP54: NAT +
A55: F | B55: SE | C55: CAZ | D55: 10 | E55: 339283 | F55: DULIO | G55: Ambre | H55: 99 | I55: 57 | J55: ES VILLENEUVE LOUBET | K55: F | L55: 42 | M55: 45 | N55: -47 | O55: 45 | P55: 52 | Q55: 55 | R55: -58 | S55: 55 | T55: 100 | V55: NAT + | W55: 0 | X55: =IF(I55="","",IF(A55="H",IF(OR(H55="SEN",H55<94),VLOOKUP(I55,Feuil1!$A$10:$E$28,5),IF(AND(H55>93,H55<97),VLOOKUP(I55,Feuil1!$A$10:$E$28,4),IF(AND(H55>93,H55<97),VLOOKUP(I55,Feuil1!$A$10:$E$28,3),IF(AND(H55>96,H55<100),VLOOKUP(I55,Feuil1!$A$10:$E$28,3),VLOOKUP(I55,Feuil1!$A$10:$E$28,2))))),IF(OR(H55="SEN",H55<94),VLOOKUP(I55,Feuil1!$F$10:$J$24,5),IF(AND(H55>93,H55<97),VLOOKUP(I55,Feuil1!$F$10:$J$24,4),IF(AND(H55>93,H55<97),VLOOKUP(I55,Feuil1!$F$10:$J$24,4),IF(AND(H55>96,H55<100),VLOOKUP(I55,Feuil1!$F$10:$J$24,3),VLOOKUP(I55,Feuil1!$F$10:$J$24,2))))))) -> FC58 | Y55: 142.6038273 | AA55: =T55-HLOOKUP(X55,Feuil1!$C$1:$AU$9,2,FALSE) -> 45 | AB55: =T55-HLOOKUP(X55,Feuil1!$C$1:$AU$9,3,FALSE) -> 30 | AC55: =T55-HLOOKUP(X55,Feuil1!$C$1:$AU$9,4,FALSE) -> 20 | AD55: =T55-HLOOKUP(X55,Feuil1!$C$1:$AU$9,5,FALSE) -> 10 | AE55: =T55-HLOOKUP(X55,Feuil1!$C$1:$AU$9,6,FALSE) -> 0 | AF55: =T55-HLOOKUP(X55,Feuil1!$C$1:$AU$9,7,FALSE) -> -15 | AG55: =T55-HLOOKUP(X55,Feuil1!$C$1:$AU$9,8,FALSE) -> -25 | AH55: =T55-HLOOKUP(X55,Feuil1!$C$1:$AU$9,9,FALSE) -> -900 | AP55: NAT +
A56: F | B56: SO | C56: AQU | D56: 11 | E56: 247123 | F56: LAPARCERIE | G56: Emeline | H56: 99 | I56: 57.9 | J56: ASPOM BORDEAUX | K56: F | L56: 40 | M56: 43 | N56: 45 | O56: 45 | P56: 50 | Q56: 53 | R56: 55 | S56: 55 | T56: 100 | V56: NAT + | W56: 0 | X56: =IF(I56="","",IF(A56="H",IF(OR(H56="SEN",H56<94),VLOOKUP(I56,Feuil1!$A$10:$E$28,5),IF(AND(H56>93,H56<97),VLOOKUP(I56,Feuil1!$A$10:$E$28,4),IF(AND(H56>93,H56<97),VLOOKUP(I56,Feuil1!$A$10:$E$28,3),IF(AND(H56>96,H56<100),VLOOKUP(I56,Feuil1!$A$10:$E$28,3),VLOOKUP(I56,Feuil1!$A$10:$E$28,2))))),IF(OR(H56="SEN",H56<94),VLOOKUP(I56,Feuil1!$F$10:$J$24,5),IF(AND(H56>93,H56<97),VLOOKUP(I56,Feuil1!$F$10:$J$24,4),IF(AND(H56>93,H56<97),VLOOKUP(I56,Feuil1!$F$10:$J$24,4),IF(AND(H56>96,H56<100),VLOOKUP(I56,Feuil1!$F$10:$J$24,3),VLOOKUP(I56,Feuil1!$F$10:$J$24,2))))))) -> FC58 | Y56: 140.9653486 | AA56: =T56-HLOOKUP(X56,Feuil1!$C$1:$AU$9,2,FALSE) -> 45 | AB56: =T56-HLOOKUP(X56,Feuil1!$C$1:$AU$9,3,FALSE) -> 30 | AC56: =T56-HLOOKUP(X56,Feuil1!$C$1:$AU$9,4,FALSE) -> 20 | AD56: =T56-HLOOKUP(X56,Feuil1!$C$1:$AU$9,5,FALSE) -> 10 | AE56: =T56-HLOOKUP(X56,Feuil1!$C$1:$AU$9,6,FALSE) -> 0 | AF56: =T56-HLOOKUP(X56,Feuil1!$C$1:$AU$9,7,FALSE) -> -15 | AG56: =T56-HLOOKUP(X56,Feuil1!$C$1:$AU$9,8,FALSE) -> -25 | AH56: =T56-HLOOKUP(X56,Feuil1!$C$1:$AU$9,9,FALSE) -> -900 | AP56: NAT +
A57: F | B57: Nord | C57: PIC | D57: 12 | E57: 326995 | F57: BONNIERE | G57: Priscillia | H57: 99 | I57: 56 | J57: KC Villers-Bretonneux | K57: F | L57: 41 | M57: 45 | N57: -48 | O57: 45 | P57: 50 | Q57: -54 | R57: 54 | S57: 54 | T57: 99 | V57: FED + | W57: 9 | X57: =IF(I57="","",IF(A57="H",IF(OR(H57="SEN",H57<94),VLOOKUP(I57,Feuil1!$A$10:$E$28,5),IF(AND(H57>93,H57<97),VLOOKUP(I57,Feuil1!$A$10:$E$28,4),IF(AND(H57>93,H57<97),VLOOKUP(I57,Feuil1!$A$10:$E$28,3),IF(AND(H57>96,H57<100),VLOOKUP(I57,Feuil1!$A$10:$E$28,3),VLOOKUP(I57,Feuil1!$A$10:$E$28,2))))),IF(OR(H57="SEN",H57<94),VLOOKUP(I57,Feuil1!$F$10:$J$24,5),IF(AND(H57>93,H57<97),VLOOKUP(I57,Feuil1!$F$10:$J$24,4),IF(AND(H57>93,H57<97),VLOOKUP(I57,Feuil1!$F$10:$J$24,4),IF(AND(H57>96,H57<100),VLOOKUP(I57,Feuil1!$F$10:$J$24,3),VLOOKUP(I57,Feuil1!$F$10:$J$24,2))))))) -> FC58 | Y57: 143.0660452 | AA57: =T57-HLOOKUP(X57,Feuil1!$C$1:$AU$9,2,FALSE) -> 44 | AB57: =T57-HLOOKUP(X57,Feuil1!$C$1:$AU$9,3,FALSE) -> 29 | AC57: =T57-HLOOKUP(X57,Feuil1!$C$1:$AU$9,4,FALSE) -> 19 | AD57: =T57-HLOOKUP(X57,Feuil1!$C$1:$AU$9,5,FALSE) -> 9 | AE57: =T57-HLOOKUP(X57,Feuil1!$C$1:$AU$9,6,FALSE) -> -1 | AF57: =T57-HLOOKUP(X57,Feuil1!$C$1:$AU$9,7,FALSE) -> -16 | AG57: =T57-HLOOKUP(X57,Feuil1!$C$1:$AU$9,8,FALSE) -> -26 | AH57: =T57-HLOOKUP(X57,Feuil1!$C$1:$AU$9,9,FALSE) -> -901 | AP57: FED +
A58: F | B58: SE | C58: LAN | D58: 13 | E58: 223733 | F58: PRUVOT | G58: Samantha | H58: 99 | I58: 53.2 | J58: Narbonne Haltéro | K58: F | L58: 39 | M58: 42 | N58: 44 | O58: 44 | P58: 54 | Q58: 46 | R58: -58 | S58: 54 | T58: 98 | V58: FED + | W58: 8 | X58: =IF(I58="","",IF(A58="H",IF(OR(H58="SEN",H58<94),VLOOKUP(I58,Feuil1!$A$10:$E$28,5),IF(AND(H58>93,H58<97),VLOOKUP(I58,Feuil1!$A$10:$E$28,4),IF(AND(H58>93,H58<97),VLOOKUP(I58,Feuil1!$A$10:$E$28,3),IF(AND(H58>96,H58<100),VLOOKUP(I58,Feuil1!$A$10:$E$28,3),VLOOKUP(I58,Feuil1!$A$10:$E$28,2))))),IF(OR(H58="SEN",H58<94),VLOOKUP(I58,Feuil1!$F$10:$J$24,5),IF(AND(H58>93,H58<97),VLOOKUP(I58,Feuil1!$F$10:$J$24,4),IF(AND(H58>93,H58<97),VLOOKUP(I58,Feuil1!$F$10:$J$24,4),IF(AND(H58>96,H58<100),VLOOKUP(I58,Feuil1!$F$10:$J$24,3),VLOOKUP(I58,Feuil1!$F$10:$J$24,2))))))) -> FC58 | Y58: 147.3833253 | AA58: =T58-HLOOKUP(X58,Feuil1!$C$1:$AU$9,2,FALSE) -> 43 | AB58: =T58-HLOOKUP(X58,Feuil1!$C$1:$AU$9,3,FALSE) -> 28 | AC58: =T58-HLOOKUP(X58,Feuil1!$C$1:$AU$9,4,FALSE) -> 18 | AD58: =T58-HLOOKUP(X58,Feuil1!$C$1:$AU$9,5,FALSE) -> 8 | AE58: =T58-HLOOKUP(X58,Feuil1!$C$1:$AU$9,6,FALSE) -> -2 | AF58: =T58-HLOOKUP(X58,Feuil1!$C$1:$AU$9,7,FALSE) -> -17 | AG58: =T58-HLOOKUP(X58,Feuil1!$C$1:$AU$9,8,FALSE) -> -27 | AH58: =T58-HLOOKUP(X58,Feuil1!$C$1:$AU$9,9,FALSE) -> -902 | AP58: FED +
A59: F | B59: NE | C59: ALS | D59: 14 | E59: 327036 | F59: HELL | G59: MARINE | H59: 97 | I59: 53.5 | J59: US Wittenheim | K59: F | L59: 38 | M59: 41 | N59: -43 | O59: 41 | P59: 50 | Q59: 53 | R59: 55 | S59: 55 | T59: 96 | V59: FED + | W59: 6 | X59: =IF(I59="","",IF(A59="H",IF(OR(H59="SEN",H59<94),VLOOKUP(I59,Feuil1!$A$10:$E$28,5),IF(AND(H59>93,H59<97),VLOOKUP(I59,Feuil1!$A$10:$E$28,4),IF(AND(H59>93,H59<97),VLOOKUP(I59,Feuil1!$A$10:$E$28,3),IF(AND(H59>96,H59<100),VLOOKUP(I59,Feuil1!$A$10:$E$28,3),VLOOKUP(I59,Feuil1!$A$10:$E$28,2))))),IF(OR(H59="SEN",H59<94),VLOOKUP(I59,Feuil1!$F$10:$J$24,5),IF(AND(H59>93,H59<97),VLOOKUP(I59,Feuil1!$F$10:$J$24,4),IF(AND(H59>93,H59<97),VLOOKUP(I59,Feuil1!$F$10:$J$24,4),IF(AND(H59>96,H59<100),VLOOKUP(I59,Feuil1!$F$10:$J$24,3),VLOOKUP(I59,Feuil1!$F$10:$J$24,2))))))) -> FC58 | Y59: 143.7312377 | AA59: =T59-HLOOKUP(X59,Feuil1!$C$1:$AU$9,2,FALSE) -> 41 | AB59: =T59-HLOOKUP(X59,Feuil1!$C$1:$AU$9,3,FALSE) -> 26 | AC59: =T59-HLOOKUP(X59,Feuil1!$C$1:$AU$9,4,FALSE) -> 16 | AD59: =T59-HLOOKUP(X59,Feuil1!$C$1:$AU$9,5,FALSE) -> 6 | AE59: =T59-HLOOKUP(X59,Feuil1!$C$1:$AU$9,6,FALSE) -> -4 | AF59: =T59-HLOOKUP(X59,Feuil1!$C$1:$AU$9,7,FALSE) -> -19 | AG59: =T59-HLOOKUP(X59,Feuil1!$C$1:$AU$9,8,FALSE) -> -29 | AH59: =T59-HLOOKUP(X59,Feuil1!$C$1:$AU$9,9,FALSE) -> -904 | AP59: FED +
A60: F | B60: NORD | C60: NPC | D60: 15 | E60: 280129 | F60: BOUDRAHEM | G60: Inès | H60: 99 | I60: 54.6 | J60: ST POL/MER | K60: F | L60: 40 | M60: 42 | N60: -44 | O60: 42 | P60: 50 | Q60: 53 | R60: -55 | S60: 53 | T60: 95 | V60: FED + | W60: 5 | X60: =IF(I60="","",IF(A60="H",IF(OR(H60="SEN",H60<94),VLOOKUP(I60,Feuil1!$A$10:$E$28,5),IF(AND(H60>93,H60<97),VLOOKUP(I60,Feuil1!$A$10:$E$28,4),IF(AND(H60>93,H60<97),VLOOKUP(I60,Feuil1!$A$10:$E$28,3),IF(AND(H60>96,H60<100),VLOOKUP(I60,Feuil1!$A$10:$E$28,3),VLOOKUP(I60,Feuil1!$A$10:$E$28,2))))),IF(OR(H60="SEN",H60<94),VLOOKUP(I60,Feuil1!$F$10:$J$24,5),IF(AND(H60>93,H60<97),VLOOKUP(I60,Feuil1!$F$10:$J$24,4),IF(AND(H60>93,H60<97),VLOOKUP(I60,Feuil1!$F$10:$J$24,4),IF(AND(H60>96,H60<100),VLOOKUP(I60,Feuil1!$F$10:$J$24,3),VLOOKUP(I60,Feuil1!$F$10:$J$24,2))))))) -> FC58 | Y60: 139.9790664 | AA60: =T60-HLOOKUP(X60,Feuil1!$C$1:$AU$9,2,FALSE) -> 40 | AB60: =T60-HLOOKUP(X60,Feuil1!$C$1:$AU$9,3,FALSE) -> 25 | AC60: =T60-HLOOKUP(X60,Feuil1!$C$1:$AU$9,4,FALSE) -> 15 | AD60: =T60-HLOOKUP(X60,Feuil1!$C$1:$AU$9,5,FALSE) -> 5 | AE60: =T60-HLOOKUP(X60,Feuil1!$C$1:$AU$9,6,FALSE) -> -5 | AF60: =T60-HLOOKUP(X60,Feuil1!$C$1:$AU$9,7,FALSE) -> -20 | AG60: =T60-HLOOKUP(X60,Feuil1!$C$1:$AU$9,8,FALSE) -> -30 | AH60: =T60-HLOOKUP(X60,Feuil1!$C$1:$AU$9,9,FALSE) -> -905 | AP60: FED +
A61: F | B61: CO | C61: BNO | D61: 16 | E61: 288978 | F61: BOURRIEN | G61: LAURA | H61: 98 | I61: 56.3 | J61: ST-LÔ | K61: F | L61: -35 | M61: 35 | N61: 40 | O61: 40 | P61: 45 | Q61: 50 | R61: 53 | S61: 53 | T61: 93 | V61: FED + | W61: 3 | X61: =IF(I61="","",IF(A61="H",IF(OR(H61="SEN",H61<94),VLOOKUP(I61,Feuil1!$A$10:$E$28,5),IF(AND(H61>93,H61<97),VLOOKUP(I61,Feuil1!$A$10:$E$28,4),IF(AND(H61>93,H61<97),VLOOKUP(I61,Feuil1!$A$10:$E$28,3),IF(AND(H61>96,H61<100),VLOOKUP(I61,Feuil1!$A$10:$E$28,3),VLOOKUP(I61,Feuil1!$A$10:$E$28,2))))),IF(OR(H61="SEN",H61<94),VLOOKUP(I61,Feuil1!$F$10:$J$24,5),IF(AND(H61>93,H61<97),VLOOKUP(I61,Feuil1!$F$10:$J$24,4),IF(AND(H61>93,H61<97),VLOOKUP(I61,Feuil1!$F$10:$J$24,4),IF(AND(H61>96,H61<100),VLOOKUP(I61,Feuil1!$F$10:$J$24,3),VLOOKUP(I61,Feuil1!$F$10:$J$24,2))))))) -> FC58 | Y61: 133.8539974 | AA61: =T61-HLOOKUP(X61,Feuil1!$C$1:$AU$9,2,FALSE) -> 38 | AB61: =T61-HLOOKUP(X61,Feuil1!$C$1:$AU$9,3,FALSE) -> 23 | AC61: =T61-HLOOKUP(X61,Feuil1!$C$1:$AU$9,4,FALSE) -> 13 | AD61: =T61-HLOOKUP(X61,Feuil1!$C$1:$AU$9,5,FALSE) -> 3 | AE61: =T61-HLOOKUP(X61,Feuil1!$C$1:$AU$9,6,FALSE) -> -7 | AF61: =T61-HLOOKUP(X61,Feuil1!$C$1:$AU$9,7,FALSE) -> -22 | AG61: =T61-HLOOKUP(X61,Feuil1!$C$1:$AU$9,8,FALSE) -> -32 | AH61: =T61-HLOOKUP(X61,Feuil1!$C$1:$AU$9,9,FALSE) -> -907 | AP61: FED +
A62: F | B62: SE | C62: CAZ | D62: 17 | E62: 323896 | F62: DUPEYROUX | G62: Elise | H62: 97 | I62: 53.3 | J62: ASLDD TOULON | K62: F | L62: 39 | M62: 42 | N62: -46 | O62: 42 | P62: 48 | Q62: 50 | R62: -53 | S62: 50 | T62: 92 | V62: FED + | W62: 2 | X62: =IF(I62="","",IF(A62="H",IF(OR(H62="SEN",H62<94),VLOOKUP(I62,Feuil1!$A$10:$E$28,5),IF(AND(H62>93,H62<97),VLOOKUP(I62,Feuil1!$A$10:$E$28,4),IF(AND(H62>93,H62<97),VLOOKUP(I62,Feuil1!$A$10:$E$28,3),IF(AND(H62>96,H62<100),VLOOKUP(I62,Feuil1!$A$10:$E$28,3),VLOOKUP(I62,Feuil1!$A$10:$E$28,2))))),IF(OR(H62="SEN",H62<94),VLOOKUP(I62,Feuil1!$F$10:$J$24,5),IF(AND(H62>93,H62<97),VLOOKUP(I62,Feuil1!$F$10:$J$24,4),IF(AND(H62>93,H62<97),VLOOKUP(I62,Feuil1!$F$10:$J$24,4),IF(AND(H62>96,H62<100),VLOOKUP(I62,Feuil1!$F$10:$J$24,3),VLOOKUP(I62,Feuil1!$F$10:$J$24,2))))))) -> FC58 | Y62: 138.1529778 | AA62: =T62-HLOOKUP(X62,Feuil1!$C$1:$AU$9,2,FALSE) -> 37 | AB62: =T62-HLOOKUP(X62,Feuil1!$C$1:$AU$9,3,FALSE) -> 22 | AC62: =T62-HLOOKUP(X62,Feuil1!$C$1:$AU$9,4,FALSE) -> 12 | AD62: =T62-HLOOKUP(X62,Feuil1!$C$1:$AU$9,5,FALSE) -> 2 | AE62: =T62-HLOOKUP(X62,Feuil1!$C$1:$AU$9,6,FALSE) -> -8 | AF62: =T62-HLOOKUP(X62,Feuil1!$C$1:$AU$9,7,FALSE) -> -23 | AG62: =T62-HLOOKUP(X62,Feuil1!$C$1:$AU$9,8,FALSE) -> -33 | AH62: =T62-HLOOKUP(X62,Feuil1!$C$1:$AU$9,9,FALSE) -> -908 | AP62: FED +
A63: F | B63: SE | C63: RAL | D63: 18 | E63: 142218 | F63: MONTORIER | G63: Clara | H63: 97 | I63: 56.6 | J63: ST QUENTIN FALLAVIER | K63: F | L63: 40 | M63: 43 | N63: -45 | O63: 43 | P63: 48 | Q63: -52 | R63: -52 | S63: 48 | T63: 91 | V63: FED + | W63: 1 | X63: =IF(I63="","",IF(A63="H",IF(OR(H63="SEN",H63<94),VLOOKUP(I63,Feuil1!$A$10:$E$28,5),IF(AND(H63>93,H63<97),VLOOKUP(I63,Feuil1!$A$10:$E$28,4),IF(AND(H63>93,H63<97),VLOOKUP(I63,Feuil1!$A$10:$E$28,3),IF(AND(H63>96,H63<100),VLOOKUP(I63,Feuil1!$A$10:$E$28,3),VLOOKUP(I63,Feuil1!$A$10:$E$28,2))))),IF(OR(H63="SEN",H63<94),VLOOKUP(I63,Feuil1!$F$10:$J$24,5),IF(AND(H63>93,H63<97),VLOOKUP(I63,Feuil1!$F$10:$J$24,4),IF(AND(H63>93,H63<97),VLOOKUP(I63,Feuil1!$F$10:$J$24,4),IF(AND(H63>96,H63<100),VLOOKUP(I63,Feuil1!$F$10:$J$24,3),VLOOKUP(I63,Feuil1!$F$10:$J$24,2))))))) -> FC58 | Y63: 130.4534923 | AA63: =T63-HLOOKUP(X63,Feuil1!$C$1:$AU$9,2,FALSE) -> 36 | AB63: =T63-HLOOKUP(X63,Feuil1!$C$1:$AU$9,3,FALSE) -> 21 | AC63: =T63-HLOOKUP(X63,Feuil1!$C$1:$AU$9,4,FALSE) -> 11 | AD63: =T63-HLOOKUP(X63,Feuil1!$C$1:$AU$9,5,FALSE) -> 1 | AE63: =T63-HLOOKUP(X63,Feuil1!$C$1:$AU$9,6,FALSE) -> -9 | AF63: =T63-HLOOKUP(X63,Feuil1!$C$1:$AU$9,7,FALSE) -> -24 | AG63: =T63-HLOOKUP(X63,Feuil1!$C$1:$AU$9,8,FALSE) -> -34 | AH63: =T63-HLOOKUP(X63,Feuil1!$C$1:$AU$9,9,FALSE) -> -909 | AP63: FED +
A64: F | B64: SE | C64: CAZ | D64: 19 | E64: 332468 | F64: TERSEN | G64: Chloe | H64: 98 | I64: 56.75 | J64: ES VILLENEUVE LOUBET | K64: F | L64: 36 | M64: 39 | N64: -41 | O64: 39 | P64: -41 | Q64: 41 | R64: 45 | S64: 45 | T64: 84 | V64: IRG + | W64: 4 | X64: =IF(I64="","",IF(A64="H",IF(OR(H64="SEN",H64<94),VLOOKUP(I64,Feuil1!$A$10:$E$28,5),IF(AND(H64>93,H64<97),VLOOKUP(I64,Feuil1!$A$10:$E$28,4),IF(AND(H64>93,H64<97),VLOOKUP(I64,Feuil1!$A$10:$E$28,3),IF(AND(H64>96,H64<100),VLOOKUP(I64,Feuil1!$A$10:$E$28,3),VLOOKUP(I64,Feuil1!$A$10:$E$28,2))))),IF(OR(H64="SEN",H64<94),VLOOKUP(I64,Feuil1!$F$10:$J$24,5),IF(AND(H64>93,H64<97),VLOOKUP(I64,Feuil1!$F$10:$J$24,4),IF(AND(H64>93,H64<97),VLOOKUP(I64,Feuil1!$F$10:$J$24,4),IF(AND(H64>96,H64<100),VLOOKUP(I64,Feuil1!$F$10:$J$24,3),VLOOKUP(I64,Feuil1!$F$10:$J$24,2))))))) -> FC58 | Y64: 120.1803802 | AA64: =T64-HLOOKUP(X64,Feuil1!$C$1:$AU$9,2,FALSE) -> 29 | AB64: =T64-HLOOKUP(X64,Feuil1!$C$1:$AU$9,3,FALSE) -> 14 | AC64: =T64-HLOOKUP(X64,Feuil1!$C$1:$AU$9,4,FALSE) -> 4 | AD64: =T64-HLOOKUP(X64,Feuil1!$C$1:$AU$9,5,FALSE) -> -6 | AE64: =T64-HLOOKUP(X64,Feuil1!$C$1:$AU$9,6,FALSE) -> -16 | AF64: =T64-HLOOKUP(X64,Feuil1!$C$1:$AU$9,7,FALSE) -> -31 | AG64: =T64-HLOOKUP(X64,Feuil1!$C$1:$AU$9,8,FALSE) -> -41 | AH64: =T64-HLOOKUP(X64,Feuil1!$C$1:$AU$9,9,FALSE) -> -916 | AP64: IRG +
A65: F | B65: CO | C65: PDL | D65: 20 | E65: 277015 | F65: MONTANDON | G65: Tamara | H65: 99 | I65: 57.6 | J65: ALLONNES | K65: F | L65: 32 | M65: -36 | N65: 37 | O65: 37 | P65: 42 | Q65: 46 | R65: 47 | S65: 47 | T65: 84 | V65: IRG + | W65: 4 | X65: =IF(I65="","",IF(A65="H",IF(OR(H65="SEN",H65<94),VLOOKUP(I65,Feuil1!$A$10:$E$28,5),IF(AND(H65>93,H65<97),VLOOKUP(I65,Feuil1!$A$10:$E$28,4),IF(AND(H65>93,H65<97),VLOOKUP(I65,Feuil1!$A$10:$E$28,3),IF(AND(H65>96,H65<100),VLOOKUP(I65,Feuil1!$A$10:$E$28,3),VLOOKUP(I65,Feuil1!$A$10:$E$28,2))))),IF(OR(H65="SEN",H65<94),VLOOKUP(I65,Feuil1!$F$10:$J$24,5),IF(AND(H65>93,H65<97),VLOOKUP(I65,Feuil1!$F$10:$J$24,4),IF(AND(H65>93,H65<97),VLOOKUP(I65,Feuil1!$F$10:$J$24,4),IF(AND(H65>96,H65<100),VLOOKUP(I65,Feuil1!$F$10:$J$24,3),VLOOKUP(I65,Feuil1!$F$10:$J$24,2))))))) -> FC58 | Y65: 118.8629943 | AA65: =T65-HLOOKUP(X65,Feuil1!$C$1:$AU$9,2,FALSE) -> 29 | AB65: =T65-HLOOKUP(X65,Feuil1!$C$1:$AU$9,3,FALSE) -> 14 | AC65: =T65-HLOOKUP(X65,Feuil1!$C$1:$AU$9,4,FALSE) -> 4 | AD65: =T65-HLOOKUP(X65,Feuil1!$C$1:$AU$9,5,FALSE) -> -6 | AE65: =T65-HLOOKUP(X65,Feuil1!$C$1:$AU$9,6,FALSE) -> -16 | AF65: =T65-HLOOKUP(X65,Feuil1!$C$1:$AU$9,7,FALSE) -> -31 | AG65: =T65-HLOOKUP(X65,Feuil1!$C$1:$AU$9,8,FALSE) -> -41 | AH65: =T65-HLOOKUP(X65,Feuil1!$C$1:$AU$9,9,FALSE) -> -916 | AP65: IRG +
A66: F | B66: NORD | C66: NPC | D66: 21 | E66: 362262 | F66: GILLIERS | G66: Océane | H66: 97 | I66: 57.15 | J66: CHCD COMINES | K66: F | L66: 25 | M66: 28 | N66: 30 | O66: 30 | P66: 46 | Q66: 48 | R66: 50 | S66: 50 | T66: 80 | V66: IRG + | W66: 0 | X66: =IF(I66="","",IF(A66="H",IF(OR(H66="SEN",H66<94),VLOOKUP(I66,Feuil1!$A$10:$E$28,5),IF(AND(H66>93,H66<97),VLOOKUP(I66,Feuil1!$A$10:$E$28,4),IF(AND(H66>93,H66<97),VLOOKUP(I66,Feuil1!$A$10:$E$28,3),IF(AND(H66>96,H66<100),VLOOKUP(I66,Feuil1!$A$10:$E$28,3),VLOOKUP(I66,Feuil1!$A$10:$E$28,2))))),IF(OR(H66="SEN",H66<94),VLOOKUP(I66,Feuil1!$F$10:$J$24,5),IF(AND(H66>93,H66<97),VLOOKUP(I66,Feuil1!$F$10:$J$24,4),IF(AND(H66>93,H66<97),VLOOKUP(I66,Feuil1!$F$10:$J$24,4),IF(AND(H66>96,H66<100),VLOOKUP(I66,Feuil1!$F$10:$J$24,3),VLOOKUP(I66,Feuil1!$F$10:$J$24,2))))))) -> FC58 | Y66: 113.8605879 | AA66: =T66-HLOOKUP(X66,Feuil1!$C$1:$AU$9,2,FALSE) -> 25 | AB66: =T66-HLOOKUP(X66,Feuil1!$C$1:$AU$9,3,FALSE) -> 10 | AC66: =T66-HLOOKUP(X66,Feuil1!$C$1:$AU$9,4,FALSE) -> 0 | AD66: =T66-HLOOKUP(X66,Feuil1!$C$1:$AU$9,5,FALSE) -> -10 | AE66: =T66-HLOOKUP(X66,Feuil1!$C$1:$AU$9,6,FALSE) -> -20 | AF66: =T66-HLOOKUP(X66,Feuil1!$C$1:$AU$9,7,FALSE) -> -35 | AG66: =T66-HLOOKUP(X66,Feuil1!$C$1:$AU$9,8,FALSE) -> -45 | AH66: =T66-HLOOKUP(X66,Feuil1!$C$1:$AU$9,9,FALSE) -> -920 | AP66: IRG +
A67: F | B67: SO | C67: MPY | D67: 22 | E67: 299773 | F67: BASHARAT | G67: Naila | H67: 97 | I67: 58 | J67: TOULOUSE HC | K67: F | L67: 30 | M67: 33 | N67: 35 | O67: 35 | P67: 40 | Q67: 43 | R67: 45 | S67: 45 | T67: 80 | V67: IRG + | W67: 0 | X67: =IF(I67="","",IF(A67="H",IF(OR(H67="SEN",H67<94),VLOOKUP(I67,Feuil1!$A$10:$E$28,5),IF(AND(H67>93,H67<97),VLOOKUP(I67,Feuil1!$A$10:$E$28,4),IF(AND(H67>93,H67<97),VLOOKUP(I67,Feuil1!$A$10:$E$28,3),IF(AND(H67>96,H67<100),VLOOKUP(I67,Feuil1!$A$10:$E$28,3),VLOOKUP(I67,Feuil1!$A$10:$E$28,2))))),IF(OR(H67="SEN",H67<94),VLOOKUP(I67,Feuil1!$F$10:$J$24,5),IF(AND(H67>93,H67<97),VLOOKUP(I67,Feuil1!$F$10:$J$24,4),IF(AND(H67>93,H67<97),VLOOKUP(I67,Feuil1!$F$10:$J$24,4),IF(AND(H67>96,H67<100),VLOOKUP(I67,Feuil1!$F$10:$J$24,3),VLOOKUP(I67,Feuil1!$F$10:$J$24,2))))))) -> FC58 | Y67: 112.6301371 | AA67: =T67-HLOOKUP(X67,Feuil1!$C$1:$AU$9,2,FALSE) -> 25 | AB67: =T67-HLOOKUP(X67,Feuil1!$C$1:$AU$9,3,FALSE) -> 10 | AC67: =T67-HLOOKUP(X67,Feuil1!$C$1:$AU$9,4,FALSE) -> 0 | AD67: =T67-HLOOKUP(X67,Feuil1!$C$1:$AU$9,5,FALSE) -> -10 | AE67: =T67-HLOOKUP(X67,Feuil1!$C$1:$AU$9,6,FALSE) -> -20 | AF67: =T67-HLOOKUP(X67,Feuil1!$C$1:$AU$9,7,FALSE) -> -35 | AG67: =T67-HLOOKUP(X67,Feuil1!$C$1:$AU$9,8,FALSE) -> -45 | AH67: =T67-HLOOKUP(X67,Feuil1!$C$1:$AU$9,9,FALSE) -> -920 | AP67: IRG +
A68: F | B68: NE | C68: BOU | D68: 23 | E68: 363264 | F68: GARCIA | G68: LAURA | H68: 97 | I68: 56.5 | J68: STADE DIJONNAIS HM | K68: F | L68: 28 | M68: -30 | N68: 30 | O68: 30 | P68: 40 | Q68: 42 | R68: 44 | S68: 44 | T68: 74 | V68: REG + | W68: 4 | X68: =IF(I68="","",IF(A68="H",IF(OR(H68="SEN",H68<94),VLOOKUP(I68,Feuil1!$A$10:$E$28,5),IF(AND(H68>93,H68<97),VLOOKUP(I68,Feuil1!$A$10:$E$28,4),IF(AND(H68>93,H68<97),VLOOKUP(I68,Feuil1!$A$10:$E$28,3),IF(AND(H68>96,H68<100),VLOOKUP(I68,Feuil1!$A$10:$E$28,3),VLOOKUP(I68,Feuil1!$A$10:$E$28,2))))),IF(OR(H68="SEN",H68<94),VLOOKUP(I68,Feuil1!$F$10:$J$24,5),IF(AND(H68>93,H68<97),VLOOKUP(I68,Feuil1!$F$10:$J$24,4),IF(AND(H68>93,H68<97),VLOOKUP(I68,Feuil1!$F$10:$J$24,4),IF(AND(H68>96,H68<100),VLOOKUP(I68,Feuil1!$F$10:$J$24,3),VLOOKUP(I68,Feuil1!$F$10:$J$24,2))))))) -> FC58 | Y68: 106.2238356 | AA68: =T68-HLOOKUP(X68,Feuil1!$C$1:$AU$9,2,FALSE) -> 19 | AB68: =T68-HLOOKUP(X68,Feuil1!$C$1:$AU$9,3,FALSE) -> 4 | AC68: =T68-HLOOKUP(X68,Feuil1!$C$1:$AU$9,4,FALSE) -> -6 | AD68: =T68-HLOOKUP(X68,Feuil1!$C$1:$AU$9,5,FALSE) -> -16 | AE68: =T68-HLOOKUP(X68,Feuil1!$C$1:$AU$9,6,FALSE) -> -26 | AF68: =T68-HLOOKUP(X68,Feuil1!$C$1:$AU$9,7,FALSE) -> -41 | AG68: =T68-HLOOKUP(X68,Feuil1!$C$1:$AU$9,8,FALSE) -> -51 | AH68: =T68-HLOOKUP(X68,Feuil1!$C$1:$AU$9,9,FALSE) -> -926 | AP68: REG +
A69: F | B69: NORD | C69: NPC | D69: 24 | E69: 345223 | F69: MARTINS | G69: Morgane | H69: 99 | I69: 53.7 | J69: ST POL/MER | K69: F | L69: -30 | M69: 30 | N69: -32 | O69: 30 | P69: 40 | Q69: 43 | R69: -45 | S69: 43 | T69: 73 | V69: REG + | W69: 3 | X69: =IF(I69="","",IF(A69="H",IF(OR(H69="SEN",H69<94),VLOOKUP(I69,Feuil1!$A$10:$E$28,5),IF(AND(H69>93,H69<97),VLOOKUP(I69,Feuil1!$A$10:$E$28,4),IF(AND(H69>93,H69<97),VLOOKUP(I69,Feuil1!$A$10:$E$28,3),IF(AND(H69>96,H69<100),VLOOKUP(I69,Feuil1!$A$10:$E$28,3),VLOOKUP(I69,Feuil1!$A$10:$E$28,2))))),IF(OR(H69="SEN",H69<94),VLOOKUP(I69,Feuil1!$F$10:$J$24,5),IF(AND(H69>93,H69<97),VLOOKUP(I69,Feuil1!$F$10:$J$24,4),IF(AND(H69>93,H69<97),VLOOKUP(I69,Feuil1!$F$10:$J$24,4),IF(AND(H69>96,H69<100),VLOOKUP(I69,Feuil1!$F$10:$J$24,3),VLOOKUP(I69,Feuil1!$F$10:$J$24,2))))))) -> FC58 | Y69: 108.9732356 | AA69: =T69-HLOOKUP(X69,Feuil1!$C$1:$AU$9,2,FALSE) -> 18 | AB69: =T69-HLOOKUP(X69,Feuil1!$C$1:$AU$9,3,FALSE) -> 3 | AC69: =T69-HLOOKUP(X69,Feuil1!$C$1:$AU$9,4,FALSE) -> -7 | AD69: =T69-HLOOKUP(X69,Feuil1!$C$1:$AU$9,5,FALSE) -> -17 | AE69: =T69-HLOOKUP(X69,Feuil1!$C$1:$AU$9,6,FALSE) -> -27 | AF69: =T69-HLOOKUP(X69,Feuil1!$C$1:$AU$9,7,FALSE) -> -42 | AG69: =T69-HLOOKUP(X69,Feuil1!$C$1:$AU$9,8,FALSE) -> -52 | AH69: =T69-HLOOKUP(X69,Feuil1!$C$1:$AU$9,9,FALSE) -> -927 | AP69: REG +
A70: F | B70: DOM | C70: GUA | D70: 25 | E70: 339516 | F70: NANOUAH | G70: Raîssa | H70: 99 | I70: 54.6 | J70: Body Club Domien | K70: F | L70: 27 | M70: 32 | N70: -35 | O70: 32 | P70: 35 | Q70: 40 | R70: -42 | S70: 40 | T70: 72 | V70: REG + | W70: 2 | X70: =IF(I70="","",IF(A70="H",IF(OR(H70="SEN",H70<94),VLOOKUP(I70,Feuil1!$A$10:$E$28,5),IF(AND(H70>93,H70<97),VLOOKUP(I70,Feuil1!$A$10:$E$28,4),IF(AND(H70>93,H70<97),VLOOKUP(I70,Feuil1!$A$10:$E$28,3),IF(AND(H70>96,H70<100),VLOOKUP(I70,Feuil1!$A$10:$E$28,3),VLOOKUP(I70,Feuil1!$A$10:$E$28,2))))),IF(OR(H70="SEN",H70<94),VLOOKUP(I70,Feuil1!$F$10:$J$24,5),IF(AND(H70>93,H70<97),VLOOKUP(I70,Feuil1!$F$10:$J$24,4),IF(AND(H70>93,H70<97),VLOOKUP(I70,Feuil1!$F$10:$J$24,4),IF(AND(H70>96,H70<100),VLOOKUP(I70,Feuil1!$F$10:$J$24,3),VLOOKUP(I70,Feuil1!$F$10:$J$24,2))))))) -> FC58 | Y70: 106.0893977 | AA70: =T70-HLOOKUP(X70,Feuil1!$C$1:$AU$9,2,FALSE) -> 17 | AB70: =T70-HLOOKUP(X70,Feuil1!$C$1:$AU$9,3,FALSE) -> 2 | AC70: =T70-HLOOKUP(X70,Feuil1!$C$1:$AU$9,4,FALSE) -> -8 | AD70: =T70-HLOOKUP(X70,Feuil1!$C$1:$AU$9,5,FALSE) -> -18 | AE70: =T70-HLOOKUP(X70,Feuil1!$C$1:$AU$9,6,FALSE) -> -28 | AF70: =T70-HLOOKUP(X70,Feuil1!$C$1:$AU$9,7,FALSE) -> -43 | AG70: =T70-HLOOKUP(X70,Feuil1!$C$1:$AU$9,8,FALSE) -> -53 | AH70: =T70-HLOOKUP(X70,Feuil1!$C$1:$AU$9,9,FALSE) -> -928 | AP70: REG +
A71: F | B71: SO | C71: MPY | D71: 26 | E71: 338639 | F71: BOUGES | G71: Ségolène | H71: 97 | I71: 55.8 | J71: TOULOUSE HC | K71: F | L71: 28 | M71: 31 | N71: -33 | O71: 31 | P71: 37 | Q71: 40 | R71: -43 | S71: 40 | T71: 71 | V71: REG + | W71: 1 | X71: =IF(I71="","",IF(A71="H",IF(OR(H71="SEN",H71<94),VLOOKUP(I71,Feuil1!$A$10:$E$28,5),IF(AND(H71>93,H71<97),VLOOKUP(I71,Feuil1!$A$10:$E$28,4),IF(AND(H71>93,H71<97),VLOOKUP(I71,Feuil1!$A$10:$E$28,3),IF(AND(H71>96,H71<100),VLOOKUP(I71,Feuil1!$A$10:$E$28,3),VLOOKUP(I71,Feuil1!$A$10:$E$28,2))))),IF(OR(H71="SEN",H71<94),VLOOKUP(I71,Feuil1!$F$10:$J$24,5),IF(AND(H71>93,H71<97),VLOOKUP(I71,Feuil1!$F$10:$J$24,4),IF(AND(H71>93,H71<97),VLOOKUP(I71,Feuil1!$F$10:$J$24,4),IF(AND(H71>96,H71<100),VLOOKUP(I71,Feuil1!$F$10:$J$24,3),VLOOKUP(I71,Feuil1!$F$10:$J$24,2))))))) -> FC58 | Y71: 102.8819071 | AA71: =T71-HLOOKUP(X71,Feuil1!$C$1:$AU$9,2,FALSE) -> 16 | AB71: =T71-HLOOKUP(X71,Feuil1!$C$1:$AU$9,3,FALSE) -> 1 | AC71: =T71-HLOOKUP(X71,Feuil1!$C$1:$AU$9,4,FALSE) -> -9 | AD71: =T71-HLOOKUP(X71,Feuil1!$C$1:$AU$9,5,FALSE) -> -19 | AE71: =T71-HLOOKUP(X71,Feuil1!$C$1:$AU$9,6,FALSE) -> -29 | AF71: =T71-HLOOKUP(X71,Feuil1!$C$1:$AU$9,7,FALSE) -> -44 | AG71: =T71-HLOOKUP(X71,Feuil1!$C$1:$AU$9,8,FALSE) -> -54 | AH71: =T71-HLOOKUP(X71,Feuil1!$C$1:$AU$9,9,FALSE) -> -929 | AP71: REG +
A72: F | B72: DOM | C72: GUA | D72: 27 | E72: 367889 | F72: UFREN | G72: Aurore | H72: 98 | I72: 57.8 | J72: AHCS/Pointois | K72: F | L72: 25 | M72: 30 | N72: -32 | O72: 30 | P72: 32 | Q72: 37 | R72: -40 | S72: 37 | T72: 67 | V72: DEP + | W72: 12 | X72: =IF(I72="","",IF(A72="H",IF(OR(H72="SEN",H72<94),VLOOKUP(I72,Feuil1!$A$10:$E$28,5),IF(AND(H72>93,H72<97),VLOOKUP(I72,Feuil1!$A$10:$E$28,4),IF(AND(H72>93,H72<97),VLOOKUP(I72,Feuil1!$A$10:$E$28,3),IF(AND(H72>96,H72<100),VLOOKUP(I72,Feuil1!$A$10:$E$28,3),VLOOKUP(I72,Feuil1!$A$10:$E$28,2))))),IF(OR(H72="SEN",H72<94),VLOOKUP(I72,Feuil1!$F$10:$J$24,5),IF(AND(H72>93,H72<97),VLOOKUP(I72,Feuil1!$F$10:$J$24,4),IF(AND(H72>93,H72<97),VLOOKUP(I72,Feuil1!$F$10:$J$24,4),IF(AND(H72>96,H72<100),VLOOKUP(I72,Feuil1!$F$10:$J$24,3),VLOOKUP(I72,Feuil1!$F$10:$J$24,2))))))) -> FC58 | Y72: 94.56640383 | AA72: =T72-HLOOKUP(X72,Feuil1!$C$1:$AU$9,2,FALSE) -> 12 | AB72: =T72-HLOOKUP(X72,Feuil1!$C$1:$AU$9,3,FALSE) -> -3 | AC72: =T72-HLOOKUP(X72,Feuil1!$C$1:$AU$9,4,FALSE) -> -13 | AD72: =T72-HLOOKUP(X72,Feuil1!$C$1:$AU$9,5,FALSE) -> -23 | AE72: =T72-HLOOKUP(X72,Feuil1!$C$1:$AU$9,6,FALSE) -> -33 | AF72: =T72-HLOOKUP(X72,Feuil1!$C$1:$AU$9,7,FALSE) -> -48 | AG72: =T72-HLOOKUP(X72,Feuil1!$C$1:$AU$9,8,FALSE) -> -58 | AH72: =T72-HLOOKUP(X72,Feuil1!$C$1:$AU$9,9,FALSE) -> -933 | AP72: DEP +
A73: F | B73: SE | C73: RAL | D73: 28 | E73: 366671 | F73: TARAKU | G73: Rachel | H73: 97 | I73: 56.5 | J73: VALENCE | K73: F | L73: 24 | M73: 26 | N73: 28 | O73: 28 | P73: 32 | Q73: 35 | R73: 37 | S73: 37 | T73: 65 | V73: DEP + | W73: 10 | X73: =IF(I73="","",IF(A73="H",IF(OR(H73="SEN",H73<94),VLOOKUP(I73,Feuil1!$A$10:$E$28,5),IF(AND(H73>93,H73<97),VLOOKUP(I73,Feuil1!$A$10:$E$28,4),IF(AND(H73>93,H73<97),VLOOKUP(I73,Feuil1!$A$10:$E$28,3),IF(AND(H73>96,H73<100),VLOOKUP(I73,Feuil1!$A$10:$E$28,3),VLOOKUP(I73,Feuil1!$A$10:$E$28,2))))),IF(OR(H73="SEN",H73<94),VLOOKUP(I73,Feuil1!$F$10:$J$24,5),IF(AND(H73>93,H73<97),VLOOKUP(I73,Feuil1!$F$10:$J$24,4),IF(AND(H73>93,H73<97),VLOOKUP(I73,Feuil1!$F$10:$J$24,4),IF(AND(H73>96,H73<100),VLOOKUP(I73,Feuil1!$F$10:$J$24,3),VLOOKUP(I73,Feuil1!$F$10:$J$24,2))))))) -> FC58 | Y73: 93.30472047 | AA73: =T73-HLOOKUP(X73,Feuil1!$C$1:$AU$9,2,FALSE) -> 10 | AB73: =T73-HLOOKUP(X73,Feuil1!$C$1:$AU$9,3,FALSE) -> -5 | AC73: =T73-HLOOKUP(X73,Feuil1!$C$1:$AU$9,4,FALSE) -> -15 | AD73: =T73-HLOOKUP(X73,Feuil1!$C$1:$AU$9,5,FALSE) -> -25 | AE73: =T73-HLOOKUP(X73,Feuil1!$C$1:$AU$9,6,FALSE) -> -35 | AF73: =T73-HLOOKUP(X73,Feuil1!$C$1:$AU$9,7,FALSE) -> -50 | AG73: =T73-HLOOKUP(X73,Feuil1!$C$1:$AU$9,8,FALSE) -> -60 | AH73: =T73-HLOOKUP(X73,Feuil1!$C$1:$AU$9,9,FALSE) -> -935 | AP73: DEP +
A74: F | B74: Nord | C74: IDF | D74: 29 | E74: 363283 | F74: CISSE | G74: BINTA | H74: 97 | I74: 57.7 | J74: BLANC-MESNIL | K74: F | L74: 25 | M74: -30 | N74: -30 | O74: 25 | P74: 35 | Q74: 37 | R74: 38 | S74: 38 | T74: 63 | V74: DEP + | W74: 8 | X74: =IF(I74="","",IF(A74="H",IF(OR(H74="SEN",H74<94),VLOOKUP(I74,Feuil1!$A$10:$E$28,5),IF(AND(H74>93,H74<97),VLOOKUP(I74,Feuil1!$A$10:$E$28,4),IF(AND(H74>93,H74<97),VLOOKUP(I74,Feuil1!$A$10:$E$28,3),IF(AND(H74>96,H74<100),VLOOKUP(I74,Feuil1!$A$10:$E$28,3),VLOOKUP(I74,Feuil1!$A$10:$E$28,2))))),IF(OR(H74="SEN",H74<94),VLOOKUP(I74,Feuil1!$F$10:$J$24,5),IF(AND(H74>93,H74<97),VLOOKUP(I74,Feuil1!$F$10:$J$24,4),IF(AND(H74>93,H74<97),VLOOKUP(I74,Feuil1!$F$10:$J$24,4),IF(AND(H74>96,H74<100),VLOOKUP(I74,Feuil1!$F$10:$J$24,3),VLOOKUP(I74,Feuil1!$F$10:$J$24,2))))))) -> FC58 | Y74: 89.03367259 | AA74: =T74-HLOOKUP(X74,Feuil1!$C$1:$AU$9,2,FALSE) -> 8 | AB74: =T74-HLOOKUP(X74,Feuil1!$C$1:$AU$9,3,FALSE) -> -7 | AC74: =T74-HLOOKUP(X74,Feuil1!$C$1:$AU$9,4,FALSE) -> -17 | AD74: =T74-HLOOKUP(X74,Feuil1!$C$1:$AU$9,5,FALSE) -> -27 | AE74: =T74-HLOOKUP(X74,Feuil1!$C$1:$AU$9,6,FALSE) -> -37 | AF74: =T74-HLOOKUP(X74,Feuil1!$C$1:$AU$9,7,FALSE) -> -52 | AG74: =T74-HLOOKUP(X74,Feuil1!$C$1:$AU$9,8,FALSE) -> -62 | AH74: =T74-HLOOKUP(X74,Feuil1!$C$1:$AU$9,9,FALSE) -> -937 | AP74: DEP +
A75: F | B75: SO | C75: MPY | D75: 30 | E75: 279235 | F75: AUNAY | G75: Amélie | H75: 98 | I75: 57.3 | J75: COLOMIERS US | K75: F | L75: 24 | M75: 26 | N75: -28 | O75: 26 | P75: 30 | Q75: 32 | R75: 35 | S75: 35 | T75: 61 | V75: DEP + | W75: 6 | X75: =IF(I75="","",IF(A75="H",IF(OR(H75="SEN",H75<94),VLOOKUP(I75,Feuil1!$A$10:$E$28,5),IF(AND(H75>93,H75<97),VLOOKUP(I75,Feuil1!$A$10:$E$28,4),IF(AND(H75>93,H75<97),VLOOKUP(I75,Feuil1!$A$10:$E$28,3),IF(AND(H75>96,H75<100),VLOOKUP(I75,Feuil1!$A$10:$E$28,3),VLOOKUP(I75,Feuil1!$A$10:$E$28,2))))),IF(OR(H75="SEN",H75<94),VLOOKUP(I75,Feuil1!$F$10:$J$24,5),IF(AND(H75>93,H75<97),VLOOKUP(I75,Feuil1!$F$10:$J$24,4),IF(AND(H75>93,H75<97),VLOOKUP(I75,Feuil1!$F$10:$J$24,4),IF(AND(H75>96,H75<100),VLOOKUP(I75,Feuil1!$F$10:$J$24,3),VLOOKUP(I75,Feuil1!$F$10:$J$24,2))))))) -> FC58 | Y75: 86.6503007 | AA75: =T75-HLOOKUP(X75,Feuil1!$C$1:$AU$9,2,FALSE) -> 6 | AB75: =T75-HLOOKUP(X75,Feuil1!$C$1:$AU$9,3,FALSE) -> -9 | AC75: =T75-HLOOKUP(X75,Feuil1!$C$1:$AU$9,4,FALSE) -> -19 | AD75: =T75-HLOOKUP(X75,Feuil1!$C$1:$AU$9,5,FALSE) -> -29 | AE75: =T75-HLOOKUP(X75,Feuil1!$C$1:$AU$9,6,FALSE) -> -39 | AF75: =T75-HLOOKUP(X75,Feuil1!$C$1:$AU$9,7,FALSE) -> -54 | AG75: =T75-HLOOKUP(X75,Feuil1!$C$1:$AU$9,8,FALSE) -> -64 | AH75: =T75-HLOOKUP(X75,Feuil1!$C$1:$AU$9,9,FALSE) -> -939 | AP75: DEP +
A76: F | B76: Nord | C76: PIC | D76: 31 | E76: 357294 | F76: MICHEL PINGUERBE | G76: Chloé | H76: 99 | I76: 55.7 | J76: KC Villers-Bretonneux | K76: F | L76: 20 | M76: 23 | N76: 25 | O76: 25 | P76: -25 | Q76: 25 | R76: 27 | S76: 27 | T76: 52 | V76: NCL | W76: -3 | X76: =IF(I76="","",IF(A76="H",IF(OR(H76="SEN",H76<94),VLOOKUP(I76,Feuil1!$A$10:$E$28,5),IF(AND(H76>93,H76<97),VLOOKUP(I76,Feuil1!$A$10:$E$28,4),IF(AND(H76>93,H76<97),VLOOKUP(I76,Feuil1!$A$10:$E$28,3),IF(AND(H76>96,H76<100),VLOOKUP(I76,Feuil1!$A$10:$E$28,3),VLOOKUP(I76,Feuil1!$A$10:$E$28,2))))),IF(OR(H76="SEN",H76<94),VLOOKUP(I76,Feuil1!$F$10:$J$24,5),IF(AND(H76>93,H76<97),VLOOKUP(I76,Feuil1!$F$10:$J$24,4),IF(AND(H76>93,H76<97),VLOOKUP(I76,Feuil1!$F$10:$J$24,4),IF(AND(H76>96,H76<100),VLOOKUP(I76,Feuil1!$F$10:$J$24,3),VLOOKUP(I76,Feuil1!$F$10:$J$24,2))))))) -> FC58 | Y76: 75.45306004 | AA76: =T76-HLOOKUP(X76,Feuil1!$C$1:$AU$9,2,FALSE) -> -3 | AB76: =T76-HLOOKUP(X76,Feuil1!$C$1:$AU$9,3,FALSE) -> -18 | AC76: =T76-HLOOKUP(X76,Feuil1!$C$1:$AU$9,4,FALSE) -> -28 | AD76: =T76-HLOOKUP(X76,Feuil1!$C$1:$AU$9,5,FALSE) -> -38 | AE76: =T76-HLOOKUP(X76,Feuil1!$C$1:$AU$9,6,FALSE) -> -48 | AF76: =T76-HLOOKUP(X76,Feuil1!$C$1:$AU$9,7,FALSE) -> -63 | AG76: =T76-HLOOKUP(X76,Feuil1!$C$1:$AU$9,8,FALSE) -> -73 | AH76: =T76-HLOOKUP(X76,Feuil1!$C$1:$AU$9,9,FALSE) -> -948 | AP76: NCL
A77: F | B77: SE | C77: CAZ | D77: 32 | E77: 363003 | F77: BERNARDINI | G77: Margaux | H77: 98 | I77: 53.97 | J77: ASLDD TOULON | K77: F | L77: 20 | M77: 22 | N77: 24 | O77: 24 | P77: 23 | Q77: 25 | R77: 27 | S77: 27 | T77: 51 | V77: NCL | W77: -4 | X77: =IF(I77="","",IF(A77="H",IF(OR(H77="SEN",H77<94),VLOOKUP(I77,Feuil1!$A$10:$E$28,5),IF(AND(H77>93,H77<97),VLOOKUP(I77,Feuil1!$A$10:$E$28,4),IF(AND(H77>93,H77<97),VLOOKUP(I77,Feuil1!$A$10:$E$28,3),IF(AND(H77>96,H77<100),VLOOKUP(I77,Feuil1!$A$10:$E$28,3),VLOOKUP(I77,Feuil1!$A$10:$E$28,2))))),IF(OR(H77="SEN",H77<94),VLOOKUP(I77,Feuil1!$F$10:$J$24,5),IF(AND(H77>93,H77<97),VLOOKUP(I77,Feuil1!$F$10:$J$24,4),IF(AND(H77>93,H77<97),VLOOKUP(I77,Feuil1!$F$10:$J$24,4),IF(AND(H77>96,H77<100),VLOOKUP(I77,Feuil1!$F$10:$J$24,3),VLOOKUP(I77,Feuil1!$F$10:$J$24,2))))))) -> FC58 | Y77: 75.8315908 | AA77: =T77-HLOOKUP(X77,Feuil1!$C$1:$AU$9,2,FALSE) -> -4 | AB77: =T77-HLOOKUP(X77,Feuil1!$C$1:$AU$9,3,FALSE) -> -19 | AC77: =T77-HLOOKUP(X77,Feuil1!$C$1:$AU$9,4,FALSE) -> -29 | AD77: =T77-HLOOKUP(X77,Feuil1!$C$1:$AU$9,5,FALSE) -> -39 | AE77: =T77-HLOOKUP(X77,Feuil1!$C$1:$AU$9,6,FALSE) -> -49 | AF77: =T77-HLOOKUP(X77,Feuil1!$C$1:$AU$9,7,FALSE) -> -64 | AG77: =T77-HLOOKUP(X77,Feuil1!$C$1:$AU$9,8,FALSE) -> -74 | AH77: =T77-HLOOKUP(X77,Feuil1!$C$1:$AU$9,9,FALSE) -> -949 | AP77: NCL
A78: F | B78: Nord | C78: PIC | D78: 33 | E78: 356155 | F78: ALLAL BEN MAATI | G78: Kelly | H78: 99 | I78: 54.6 | J78: AAEEP Péronne | K78: F | L78: 21 | M78: 23 | N78: 24 | O78: 24 | P78: 23 | Q78: -26 | R78: 26 | S78: 26 | T78: 50 | V78: NCL | W78: -5 | X78: =IF(I78="","",IF(A78="H",IF(OR(H78="SEN",H78<94),VLOOKUP(I78,Feuil1!$A$10:$E$28,5),IF(AND(H78>93,H78<97),VLOOKUP(I78,Feuil1!$A$10:$E$28,4),IF(AND(H78>93,H78<97),VLOOKUP(I78,Feuil1!$A$10:$E$28,3),IF(AND(H78>96,H78<100),VLOOKUP(I78,Feuil1!$A$10:$E$28,3),VLOOKUP(I78,Feuil1!$A$10:$E$28,2))))),IF(OR(H78="SEN",H78<94),VLOOKUP(I78,Feuil1!$F$10:$J$24,5),IF(AND(H78>93,H78<97),VLOOKUP(I78,Feuil1!$F$10:$J$24,4),IF(AND(H78>93,H78<97),VLOOKUP(I78,Feuil1!$F$10:$J$24,4),IF(AND(H78>96,H78<100),VLOOKUP(I78,Feuil1!$F$10:$J$24,3),VLOOKUP(I78,Feuil1!$F$10:$J$24,2))))))) -> FC58 | Y78: 73.67319284 | AA78: =T78-HLOOKUP(X78,Feuil1!$C$1:$AU$9,2,FALSE) -> -5 | AB78: =T78-HLOOKUP(X78,Feuil1!$C$1:$AU$9,3,FALSE) -> -20 | AC78: =T78-HLOOKUP(X78,Feuil1!$C$1:$AU$9,4,FALSE) -> -30 | AD78: =T78-HLOOKUP(X78,Feuil1!$C$1:$AU$9,5,FALSE) -> -40 | AE78: =T78-HLOOKUP(X78,Feuil1!$C$1:$AU$9,6,FALSE) -> -50 | AF78: =T78-HLOOKUP(X78,Feuil1!$C$1:$AU$9,7,FALSE) -> -65 | AG78: =T78-HLOOKUP(X78,Feuil1!$C$1:$AU$9,8,FALSE) -> -75 | AH78: =T78-HLOOKUP(X78,Feuil1!$C$1:$AU$9,9,FALSE) -> -950 | AP78: NCL
A79: F | B79: SO | C79: MPY | D79: 34 | E79: 365939 | F79: DELPECH | G79: Marine | H79: 99 | I79: 57.9 | J79: MONTAUBAN HC | K79: F | L79: 13 | M79: 15 | N79: 17 | O79: 17 | P79: 16 | Q79: 19 | R79: -21 | S79: 19 | T79: 36 | V79: NCL | W79: -19 | X79: =IF(I79="","",IF(A79="H",IF(OR(H79="SEN",H79<94),VLOOKUP(I79,Feuil1!$A$10:$E$28,5),IF(AND(H79>93,H79<97),VLOOKUP(I79,Feuil1!$A$10:$E$28,4),IF(AND(H79>93,H79<97),VLOOKUP(I79,Feuil1!$A$10:$E$28,3),IF(AND(H79>96,H79<100),VLOOKUP(I79,Feuil1!$A$10:$E$28,3),VLOOKUP(I79,Feuil1!$A$10:$E$28,2))))),IF(OR(H79="SEN",H79<94),VLOOKUP(I79,Feuil1!$F$10:$J$24,5),IF(AND(H79>93,H79<97),VLOOKUP(I79,Feuil1!$F$10:$J$24,4),IF(AND(H79>93,H79<97),VLOOKUP(I79,Feuil1!$F$10:$J$24,4),IF(AND(H79>96,H79<100),VLOOKUP(I79,Feuil1!$F$10:$J$24,3),VLOOKUP(I79,Feuil1!$F$10:$J$24,2))))))) -> FC58 | Y79: 50.74752551 | AA79: =T79-HLOOKUP(X79,Feuil1!$C$1:$AU$9,2,FALSE) -> -19 | AB79: =T79-HLOOKUP(X79,Feuil1!$C$1:$AU$9,3,FALSE) -> -34 | AC79: =T79-HLOOKUP(X79,Feuil1!$C$1:$AU$9,4,FALSE) -> -44 | AD79: =T79-HLOOKUP(X79,Feuil1!$C$1:$AU$9,5,FALSE) -> -54 | AE79: =T79-HLOOKUP(X79,Feuil1!$C$1:$AU$9,6,FALSE) -> -64 | AF79: =T79-HLOOKUP(X79,Feuil1!$C$1:$AU$9,7,FALSE) -> -79 | AG79: =T79-HLOOKUP(X79,Feuil1!$C$1:$AU$9,8,FALSE) -> -89 | AH79: =T79-HLOOKUP(X79,Feuil1!$C$1:$AU$9,9,FALSE) -> -964 | AP79: NCL
A81: F | B81: NE | C81: ALS | D81: 1 | E81: 238723 | F81: OTT | G81: JUSTINE | H81: 98 | I81: 62.2 | J81: SHC Haguenau | K81: F | L81: 61 | M81: 64 | N81: 66 | O81: =IF(H81="","",IF(MAXA(L81:N81)<=0,0,MAXA(L81:N81))) -> 66 | P81: 80 | Q81: 84 | R81: -88 | S81: =IF(H81="","",IF(MAXA(P81:R81)<=0,0,MAXA(P81:R81))) -> 84 | T81: =IF(H81="","",IF(OR(O81=0,S81=0),0,O81+S81)) -> 150 | V81: =IF(H81="","",AP81) -> INTA + | W81: =IF(P81="","",IF(AH81>=0,AH81,IF(AG81>=0,AG81,IF(AF81>=0,AF81,IF(AE81>=0,AE81,IF(AD81>=0,AD81,IF(AC81>=0,AC81,IF(AB81>=0,AB81,AA81)))))))) -> 15 | X81: =IF(I81="","",IF(A81="H",IF(OR(H81="SEN",H81<94),VLOOKUP(I81,Feuil1!$A$10:$E$28,5),IF(AND(H81>93,H81<97),VLOOKUP(I81,Feuil1!$A$10:$E$28,4),IF(AND(H81>93,H81<97),VLOOKUP(I81,Feuil1!$A$10:$E$28,3),IF(AND(H81>96,H81<100),VLOOKUP(I81,Feuil1!$A$10:$E$28,3),VLOOKUP(I81,Feuil1!$A$10:$E$28,2))))),IF(OR(H81="SEN",H81<94),VLOOKUP(I81,Feuil1!$F$10:$J$24,5),IF(AND(H81>93,H81<97),VLOOKUP(I81,Feuil1!$F$10:$J$24,4),IF(AND(H81>93,H81<97),VLOOKUP(I81,Feuil1!$F$10:$J$24,4),IF(AND(H81>96,H81<100),VLOOKUP(I81,Feuil1!$F$10:$J$24,3),VLOOKUP(I81,Feuil1!$F$10:$J$24,2))))))) -> FC63 | Y81: =IF(I81="","",IF(A81="H",10^(0.794358141*LOG(I81/174.393)^2)*T81,IF(A81="F",10^(0.89726074*LOG(I81/148.026)^2)*T81,""))) -> 201.0537431 | AA81: =T81-HLOOKUP(X81,Feuil1!$C$1:$AU$9,2,FALSE) -> 90 | AB81: =T81-HLOOKUP(X81,Feuil1!$C$1:$AU$9,3,FALSE) -> 75 | AC81: =T81-HLOOKUP(X81,Feuil1!$C$1:$AU$9,4,FALSE) -> 65 | AD81: =T81-HLOOKUP(X81,Feuil1!$C$1:$AU$9,5,FALSE) -> 55 | AE81: =T81-HLOOKUP(X81,Feuil1!$C$1:$AU$9,6,FALSE) -> 40 | AF81: =T81-HLOOKUP(X81,Feuil1!$C$1:$AU$9,7,FALSE) -> 25 | AG81: =T81-HLOOKUP(X81,Feuil1!$C$1:$AU$9,8,FALSE) -> 15 | AH81: =T81-HLOOKUP(X81,Feuil1!$C$1:$AU$9,9,FALSE) -> -850 | AP81: =IF(AH81>=0,$AH$4,IF(AG81>=0,$AG$4,IF(AF81>=0,$AF$4,IF(AE81>=0,$AE$4,IF(AD81>=0,$AD$4,IF(AC81>=0,$AC$4,IF(AB81>=0,$AB$4,IF(AA81>=0,$AA$4,$AI$4)))))))) -> INTA +
A82: F | B82: NE | C82: CHA | D82: 2 | E82: 274946 | F82: GROSJEAN | G82: Loriane | H82: 97 | I82: 59.9 | J82: Langres HM | K82: F | L82: 55 | M82: 59 | N82: 62 | O82: 62 | P82: 67 | Q82: 71 | R82: -73 | S82: 71 | T82: 133 | V82: INTB + | W82: 8 | X82: =IF(I82="","",IF(A82="H",IF(OR(H82="SEN",H82<94),VLOOKUP(I82,Feuil1!$A$10:$E$28,5),IF(AND(H82>93,H82<97),VLOOKUP(I82,Feuil1!$A$10:$E$28,4),IF(AND(H82>93,H82<97),VLOOKUP(I82,Feuil1!$A$10:$E$28,3),IF(AND(H82>96,H82<100),VLOOKUP(I82,Feuil1!$A$10:$E$28,3),VLOOKUP(I82,Feuil1!$A$10:$E$28,2))))),IF(OR(H82="SEN",H82<94),VLOOKUP(I82,Feuil1!$F$10:$J$24,5),IF(AND(H82>93,H82<97),VLOOKUP(I82,Feuil1!$F$10:$J$24,4),IF(AND(H82>93,H82<97),VLOOKUP(I82,Feuil1!$F$10:$J$24,4),IF(AND(H82>96,H82<100),VLOOKUP(I82,Feuil1!$F$10:$J$24,3),VLOOKUP(I82,Feuil1!$F$10:$J$24,2))))))) -> FC63 | Y82: 182.965848 | AA82: =T82-HLOOKUP(X82,Feuil1!$C$1:$AU$9,2,FALSE) -> 73 | AB82: =T82-HLOOKUP(X82,Feuil1!$C$1:$AU$9,3,FALSE) -> 58 | AC82: =T82-HLOOKUP(X82,Feuil1!$C$1:$AU$9,4,FALSE) -> 48 | AD82: =T82-HLOOKUP(X82,Feuil1!$C$1:$AU$9,5,FALSE) -> 38 | AE82: =T82-HLOOKUP(X82,Feuil1!$C$1:$AU$9,6,FALSE) -> 23 | AF82: =T82-HLOOKUP(X82,Feuil1!$C$1:$AU$9,7,FALSE) -> 8 | AG82: =T82-HLOOKUP(X82,Feuil1!$C$1:$AU$9,8,FALSE) -> -2 | AH82: =T82-HLOOKUP(X82,Feuil1!$C$1:$AU$9,9,FALSE) -> -867 | AP82: INTB +
A83: F | B83: NE | C83: ALS | D83: 3 | E83: 298196 | F83: CERDAN | G83: MARGOT | H83: 97 | I83: 62.3 | J83: US Wittenheim | K83: F | L83: 52 | M83: 56 | N83: -58 | O83: 56 | P83: 69 | Q83: 72 | R83: -74 | S83: 72 | T83: 128 | V83: INTB + | W83: 3 | X83: =IF(I83="","",IF(A83="H",IF(OR(H83="SEN",H83<94),VLOOKUP(I83,Feuil1!$A$10:$E$28,5),IF(AND(H83>93,H83<97),VLOOKUP(I83,Feuil1!$A$10:$E$28,4),IF(AND(H83>93,H83<97),VLOOKUP(I83,Feuil1!$A$10:$E$28,3),IF(AND(H83>96,H83<100),VLOOKUP(I83,Feuil1!$A$10:$E$28,3),VLOOKUP(I83,Feuil1!$A$10:$E$28,2))))),IF(OR(H83="SEN",H83<94),VLOOKUP(I83,Feuil1!$F$10:$J$24,5),IF(AND(H83>93,H83<97),VLOOKUP(I83,Feuil1!$F$10:$J$24,4),IF(AND(H83>93,H83<97),VLOOKUP(I83,Feuil1!$F$10:$J$24,4),IF(AND(H83>96,H83<100),VLOOKUP(I83,Feuil1!$F$10:$J$24,3),VLOOKUP(I83,Feuil1!$F$10:$J$24,2))))))) -> FC63 | Y83: 171.3798997 | AA83: =T83-HLOOKUP(X83,Feuil1!$C$1:$AU$9,2,FALSE) -> 68 | AB83: =T83-HLOOKUP(X83,Feuil1!$C$1:$AU$9,3,FALSE) -> 53 | AC83: =T83-HLOOKUP(X83,Feuil1!$C$1:$AU$9,4,FALSE) -> 43 | AD83: =T83-HLOOKUP(X83,Feuil1!$C$1:$AU$9,5,FALSE) -> 33 | AE83: =T83-HLOOKUP(X83,Feuil1!$C$1:$AU$9,6,FALSE) -> 18 | AF83: =T83-HLOOKUP(X83,Feuil1!$C$1:$AU$9,7,FALSE) -> 3 | AG83: =T83-HLOOKUP(X83,Feuil1!$C$1:$AU$9,8,FALSE) -> -7 | AH83: =T83-HLOOKUP(X83,Feuil1!$C$1:$AU$9,9,FALSE) -> -872 | AP83: INTB +
A84: F | B84: Nord | C84: PIC | D84: 4 | E84: 260923 | F84: ARNOULD | G84: Lutricia | H84: 98 | I84: 58.02 | J84: KC Villers-Bretonneux | K84: F | L84: 47 | M84: -50 | N84: 50 | O84: 50 | P84: 60 | Q84: 63 | R84: -65 | S84: 63 | T84: 113 | V84: NAT + | W84: 3 | X84: =IF(I84="","",IF(A84="H",IF(OR(H84="SEN",H84<94),VLOOKUP(I84,Feuil1!$A$10:$E$28,5),IF(AND(H84>93,H84<97),VLOOKUP(I84,Feuil1!$A$10:$E$28,4),IF(AND(H84>93,H84<97),VLOOKUP(I84,Feuil1!$A$10:$E$28,3),IF(AND(H84>96,H84<100),VLOOKUP(I84,Feuil1!$A$10:$E$28,3),VLOOKUP(I84,Feuil1!$A$10:$E$28,2))))),IF(OR(H84="SEN",H84<94),VLOOKUP(I84,Feuil1!$F$10:$J$24,5),IF(AND(H84>93,H84<97),VLOOKUP(I84,Feuil1!$F$10:$J$24,4),IF(AND(H84>93,H84<97),VLOOKUP(I84,Feuil1!$F$10:$J$24,4),IF(AND(H84>96,H84<100),VLOOKUP(I84,Feuil1!$F$10:$J$24,3),VLOOKUP(I84,Feuil1!$F$10:$J$24,2))))))) -> FC63 | Y84: 159.0500297 | AA84: =T84-HLOOKUP(X84,Feuil1!$C$1:$AU$9,2,FALSE) -> 53 | AB84: =T84-HLOOKUP(X84,Feuil1!$C$1:$AU$9,3,FALSE) -> 38 | AC84: =T84-HLOOKUP(X84,Feuil1!$C$1:$AU$9,4,FALSE) -> 28 | AD84: =T84-HLOOKUP(X84,Feuil1!$C$1:$AU$9,5,FALSE) -> 18 | AE84: =T84-HLOOKUP(X84,Feuil1!$C$1:$AU$9,6,FALSE) -> 3 | AF84: =T84-HLOOKUP(X84,Feuil1!$C$1:$AU$9,7,FALSE) -> -12 | AG84: =T84-HLOOKUP(X84,Feuil1!$C$1:$AU$9,8,FALSE) -> -22 | AH84: =T84-HLOOKUP(X84,Feuil1!$C$1:$AU$9,9,FALSE) -> -887 | AP84: NAT +
A85: F | B85: SE | C85: CAZ | D85: 5 | E85: 339283 | F85: DULIO | G85: Ambre | H85: 99 | I85: 58.6 | J85: ES VILLENEUVE LOUBET | K85: F | L85: 43 | M85: 46 | N85: 50 | O85: 50 | P85: 54 | Q85: 58 | R85: 60 | S85: 60 | T85: 110 | V85: NAT + | W85: 0 | X85: =IF(I85="","",IF(A85="H",IF(OR(H85="SEN",H85<94),VLOOKUP(I85,Feuil1!$A$10:$E$28,5),IF(AND(H85>93,H85<97),VLOOKUP(I85,Feuil1!$A$10:$E$28,4),IF(AND(H85>93,H85<97),VLOOKUP(I85,Feuil1!$A$10:$E$28,3),IF(AND(H85>96,H85<100),VLOOKUP(I85,Feuil1!$A$10:$E$28,3),VLOOKUP(I85,Feuil1!$A$10:$E$28,2))))),IF(OR(H85="SEN",H85<94),VLOOKUP(I85,Feuil1!$F$10:$J$24,5),IF(AND(H85>93,H85<97),VLOOKUP(I85,Feuil1!$F$10:$J$24,4),IF(AND(H85>93,H85<97),VLOOKUP(I85,Feuil1!$F$10:$J$24,4),IF(AND(H85>96,H85<100),VLOOKUP(I85,Feuil1!$F$10:$J$24,3),VLOOKUP(I85,Feuil1!$F$10:$J$24,2))))))) -> FC63 | Y85: 153.7133114 | AA85: =T85-HLOOKUP(X85,Feuil1!$C$1:$AU$9,2,FALSE) -> 50 | AB85: =T85-HLOOKUP(X85,Feuil1!$C$1:$AU$9,3,FALSE) -> 35 | AC85: =T85-HLOOKUP(X85,Feuil1!$C$1:$AU$9,4,FALSE) -> 25 | AD85: =T85-HLOOKUP(X85,Feuil1!$C$1:$AU$9,5,FALSE) -> 15 | AE85: =T85-HLOOKUP(X85,Feuil1!$C$1:$AU$9,6,FALSE) -> 0 | AF85: =T85-HLOOKUP(X85,Feuil1!$C$1:$AU$9,7,FALSE) -> -15 | AG85: =T85-HLOOKUP(X85,Feuil1!$C$1:$AU$9,8,FALSE) -> -25 | AH85: =T85-HLOOKUP(X85,Feuil1!$C$1:$AU$9,9,FALSE) -> -890 | AP85: NAT +
A86: F | B86: Nord | C86: IDF | D86: 6 | E86: 326999 | F86: BIFANO | G86: ELENA | H86: 97 | I86: 62.3 | J86: BLANC-MESNIL | K86: F | L86: 43 | M86: 47 | N86: -49 | O86: 47 | P86: 50 | Q86: 53 | R86: 55 | S86: 55 | T86: 102 | V86: FED + | W86: 7 | X86: =IF(I86="","",IF(A86="H",IF(OR(H86="SEN",H86<94),VLOOKUP(I86,Feuil1!$A$10:$E$28,5),IF(AND(H86>93,H86<97),VLOOKUP(I86,Feuil1!$A$10:$E$28,4),IF(AND(H86>93,H86<97),VLOOKUP(I86,Feuil1!$A$10:$E$28,3),IF(AND(H86>96,H86<100),VLOOKUP(I86,Feuil1!$A$10:$E$28,3),VLOOKUP(I86,Feuil1!$A$10:$E$28,2))))),IF(OR(H86="SEN",H86<94),VLOOKUP(I86,Feuil1!$F$10:$J$24,5),IF(AND(H86>93,H86<97),VLOOKUP(I86,Feuil1!$F$10:$J$24,4),IF(AND(H86>93,H86<97),VLOOKUP(I86,Feuil1!$F$10:$J$24,4),IF(AND(H86>96,H86<100),VLOOKUP(I86,Feuil1!$F$10:$J$24,3),VLOOKUP(I86,Feuil1!$F$10:$J$24,2))))))) -> FC63 | Y86: 136.5683575 | AA86: =T86-HLOOKUP(X86,Feuil1!$C$1:$AU$9,2,FALSE) -> 42 | AB86: =T86-HLOOKUP(X86,Feuil1!$C$1:$AU$9,3,FALSE) -> 27 | AC86: =T86-HLOOKUP(X86,Feuil1!$C$1:$AU$9,4,FALSE) -> 17 | AD86: =T86-HLOOKUP(X86,Feuil1!$C$1:$AU$9,5,FALSE) -> 7 | AE86: =T86-HLOOKUP(X86,Feuil1!$C$1:$AU$9,6,FALSE) -> -8 | AF86: =T86-HLOOKUP(X86,Feuil1!$C$1:$AU$9,7,FALSE) -> -23 | AG86: =T86-HLOOKUP(X86,Feuil1!$C$1:$AU$9,8,FALSE) -> -33 | AH86: =T86-HLOOKUP(X86,Feuil1!$C$1:$AU$9,9,FALSE) -> -898 | AP86: FED +
A87: F | B87: SO | C87: AQU | D87: 7 | E87: 332615 | F87: SUBE | G87: Julie | H87: 97 | I87: 61.98 | J87: SAUVETERRE DE GUYENNE | K87: F | L87: 40 | M87: 44 | N87: -46 | O87: 44 | P87: 50 | Q87: 55 | R87: 57 | S87: 57 | T87: 101 | V87: FED + | W87: 6 | X87: =IF(I87="","",IF(A87="H",IF(OR(H87="SEN",H87<94),VLOOKUP(I87,Feuil1!$A$10:$E$28,5),IF(AND(H87>93,H87<97),VLOOKUP(I87,Feuil1!$A$10:$E$28,4),IF(AND(H87>93,H87<97),VLOOKUP(I87,Feuil1!$A$10:$E$28,3),IF(AND(H87>96,H87<100),VLOOKUP(I87,Feuil1!$A$10:$E$28,3),VLOOKUP(I87,Feuil1!$A$10:$E$28,2))))),IF(OR(H87="SEN",H87<94),VLOOKUP(I87,Feuil1!$F$10:$J$24,5),IF(AND(H87>93,H87<97),VLOOKUP(I87,Feuil1!$F$10:$J$24,4),IF(AND(H87>93,H87<97),VLOOKUP(I87,Feuil1!$F$10:$J$24,4),IF(AND(H87>96,H87<100),VLOOKUP(I87,Feuil1!$F$10:$J$24,3),VLOOKUP(I87,Feuil1!$F$10:$J$24,2))))))) -> FC63 | Y87: 135.7013641 | AA87: =T87-HLOOKUP(X87,Feuil1!$C$1:$AU$9,2,FALSE) -> 41 | AB87: =T87-HLOOKUP(X87,Feuil1!$C$1:$AU$9,3,FALSE) -> 26 | AC87: =T87-HLOOKUP(X87,Feuil1!$C$1:$AU$9,4,FALSE) -> 16 | AD87: =T87-HLOOKUP(X87,Feuil1!$C$1:$AU$9,5,FALSE) -> 6 | AE87: =T87-HLOOKUP(X87,Feuil1!$C$1:$AU$9,6,FALSE) -> -9 | AF87: =T87-HLOOKUP(X87,Feuil1!$C$1:$AU$9,7,FALSE) -> -24 | AG87: =T87-HLOOKUP(X87,Feuil1!$C$1:$AU$9,8,FALSE) -> -34 | AH87: =T87-HLOOKUP(X87,Feuil1!$C$1:$AU$9,9,FALSE) -> -899 | AP87: FED +
A88: F | B88: NORD | C88: NPC | D88: 8 | E88: 208590 | F88: HOUZE | G88: Océane | H88: 98 | I88: 58.1 | J88: CHCD COMINES | K88: F | L88: 40 | M88: 43 | N88: 45 | O88: 45 | P88: 52 | Q88: 55 | R88: -57 | S88: 55 | T88: 100 | V88: FED + | W88: 5 | X88: =IF(I88="","",IF(A88="H",IF(OR(H88="SEN",H88<94),VLOOKUP(I88,Feuil1!$A$10:$E$28,5),IF(AND(H88>93,H88<97),VLOOKUP(I88,Feuil1!$A$10:$E$28,4),IF(AND(H88>93,H88<97),VLOOKUP(I88,Feuil1!$A$10:$E$28,3),IF(AND(H88>96,H88<100),VLOOKUP(I88,Feuil1!$A$10:$E$28,3),VLOOKUP(I88,Feuil1!$A$10:$E$28,2))))),IF(OR(H88="SEN",H88<94),VLOOKUP(I88,Feuil1!$F$10:$J$24,5),IF(AND(H88>93,H88<97),VLOOKUP(I88,Feuil1!$F$10:$J$24,4),IF(AND(H88>93,H88<97),VLOOKUP(I88,Feuil1!$F$10:$J$24,4),IF(AND(H88>96,H88<100),VLOOKUP(I88,Feuil1!$F$10:$J$24,3),VLOOKUP(I88,Feuil1!$F$10:$J$24,2))))))) -> FC63 | Y88: 140.6108489 | AA88: =T88-HLOOKUP(X88,Feuil1!$C$1:$AU$9,2,FALSE) -> 40 | AB88: =T88-HLOOKUP(X88,Feuil1!$C$1:$AU$9,3,FALSE) -> 25 | AC88: =T88-HLOOKUP(X88,Feuil1!$C$1:$AU$9,4,FALSE) -> 15 | AD88: =T88-HLOOKUP(X88,Feuil1!$C$1:$AU$9,5,FALSE) -> 5 | AE88: =T88-HLOOKUP(X88,Feuil1!$C$1:$AU$9,6,FALSE) -> -10 | AF88: =T88-HLOOKUP(X88,Feuil1!$C$1:$AU$9,7,FALSE) -> -25 | AG88: =T88-HLOOKUP(X88,Feuil1!$C$1:$AU$9,8,FALSE) -> -35 | AH88: =T88-HLOOKUP(X88,Feuil1!$C$1:$AU$9,9,FALSE) -> -900 | AP88: FED +
A89: F | B89: SO | C89: AQU | D89: 9 | E89: 247123 | F89: LAPARCERIE | G89: Emeline | H89: 99 | I89: 60 | J89: ASPOM BORDEAUX | K89: F | L89: 40 | M89: 43 | N89: 45 | O89: 45 | P89: 50 | Q89: 55 | R89: -57 | S89: 55 | T89: 100 | V89: FED + | W89: 5 | X89: =IF(I89="","",IF(A89="H",IF(OR(H89="SEN",H89<94),VLOOKUP(I89,Feuil1!$A$10:$E$28,5),IF(AND(H89>93,H89<97),VLOOKUP(I89,Feuil1!$A$10:$E$28,4),IF(AND(H89>93,H89<97),VLOOKUP(I89,Feuil1!$A$10:$E$28,3),IF(AND(H89>96,H89<100),VLOOKUP(I89,Feuil1!$A$10:$E$28,3),VLOOKUP(I89,Feuil1!$A$10:$E$28,2))))),IF(OR(H89="SEN",H89<94),VLOOKUP(I89,Feuil1!$F$10:$J$24,5),IF(AND(H89>93,H89<97),VLOOKUP(I89,Feuil1!$F$10:$J$24,4),IF(AND(H89>93,H89<97),VLOOKUP(I89,Feuil1!$F$10:$J$24,4),IF(AND(H89>96,H89<100),VLOOKUP(I89,Feuil1!$F$10:$J$24,3),VLOOKUP(I89,Feuil1!$F$10:$J$24,2))))))) -> FC63 | Y89: 137.4067532 | AA89: =T89-HLOOKUP(X89,Feuil1!$C$1:$AU$9,2,FALSE) -> 40 | AB89: =T89-HLOOKUP(X89,Feuil1!$C$1:$AU$9,3,FALSE) -> 25 | AC89: =T89-HLOOKUP(X89,Feuil1!$C$1:$AU$9,4,FALSE) -> 15 | AD89: =T89-HLOOKUP(X89,Feuil1!$C$1:$AU$9,5,FALSE) -> 5 | AE89: =T89-HLOOKUP(X89,Feuil1!$C$1:$AU$9,6,FALSE) -> -10 | AF89: =T89-HLOOKUP(X89,Feuil1!$C$1:$AU$9,7,FALSE) -> -25 | AG89: =T89-HLOOKUP(X89,Feuil1!$C$1:$AU$9,8,FALSE) -> -35 | AH89: =T89-HLOOKUP(X89,Feuil1!$C$1:$AU$9,9,FALSE) -> -900 | AP89: FED +
A90: F | B90: SO | C90: MPY | D90: 10 | E90: 360521 | F90: JENNISKEN | G90: Laura | H90: 98 | I90: 62.8 | J90: TOULOUSE HC | K90: F | L90: 38 | M90: -41 | N90: 41 | O90: 41 | P90: 51 | Q90: -54 | R90: 54 | S90: 54 | T90: 95 | V90: FED + | W90: 0 | X90: =IF(I90="","",IF(A90="H",IF(OR(H90="SEN",H90<94),VLOOKUP(I90,Feuil1!$A$10:$E$28,5),IF(AND(H90>93,H90<97),VLOOKUP(I90,Feuil1!$A$10:$E$28,4),IF(AND(H90>93,H90<97),VLOOKUP(I90,Feuil1!$A$10:$E$28,3),IF(AND(H90>96,H90<100),VLOOKUP(I90,Feuil1!$A$10:$E$28,3),VLOOKUP(I90,Feuil1!$A$10:$E$28,2))))),IF(OR(H90="SEN",H90<94),VLOOKUP(I90,Feuil1!$F$10:$J$24,5),IF(AND(H90>93,H90<97),VLOOKUP(I90,Feuil1!$F$10:$J$24,4),IF(AND(H90>93,H90<97),VLOOKUP(I90,Feuil1!$F$10:$J$24,4),IF(AND(H90>96,H90<100),VLOOKUP(I90,Feuil1!$F$10:$J$24,3),VLOOKUP(I90,Feuil1!$F$10:$J$24,2))))))) -> FC63 | Y90: 126.5152397 | AA90: =T90-HLOOKUP(X90,Feuil1!$C$1:$AU$9,2,FALSE) -> 35 | AB90: =T90-HLOOKUP(X90,Feuil1!$C$1:$AU$9,3,FALSE) -> 20 | AC90: =T90-HLOOKUP(X90,Feuil1!$C$1:$AU$9,4,FALSE) -> 10 | AD90: =T90-HLOOKUP(X90,Feuil1!$C$1:$AU$9,5,FALSE) -> 0 | AE90: =T90-HLOOKUP(X90,Feuil1!$C$1:$AU$9,6,FALSE) -> -15 | AF90: =T90-HLOOKUP(X90,Feuil1!$C$1:$AU$9,7,FALSE) -> -30 | AG90: =T90-HLOOKUP(X90,Feuil1!$C$1:$AU$9,8,FALSE) -> -40 | AH90: =T90-HLOOKUP(X90,Feuil1!$C$1:$AU$9,9,FALSE) -> -905 | AP90: FED +
A91: F | B91: SE | C91: RAL | D91: 11 | E91: 344106 | F91: LAFAURIE | G91: Lise | H91: 98 | I91: 61.4 | J91: CH Arbresle | K91: F | L91: 35 | M91: -38 | N91: 38 | O91: 38 | P91: 45 | Q91: 50 | R91: -53 | S91: 50 | T91: 88 | V91: IRG + | W91: 3 | X91: =IF(I91="","",IF(A91="H",IF(OR(H91="SEN",H91<94),VLOOKUP(I91,Feuil1!$A$10:$E$28,5),IF(AND(H91>93,H91<97),VLOOKUP(I91,Feuil1!$A$10:$E$28,4),IF(AND(H91>93,H91<97),VLOOKUP(I91,Feuil1!$A$10:$E$28,3),IF(AND(H91>96,H91<100),VLOOKUP(I91,Feuil1!$A$10:$E$28,3),VLOOKUP(I91,Feuil1!$A$10:$E$28,2))))),IF(OR(H91="SEN",H91<94),VLOOKUP(I91,Feuil1!$F$10:$J$24,5),IF(AND(H91>93,H91<97),VLOOKUP(I91,Feuil1!$F$10:$J$24,4),IF(AND(H91>93,H91<97),VLOOKUP(I91,Feuil1!$F$10:$J$24,4),IF(AND(H91>96,H91<100),VLOOKUP(I91,Feuil1!$F$10:$J$24,3),VLOOKUP(I91,Feuil1!$F$10:$J$24,2))))))) -> FC63 | Y91: 118.9955878 | AA91: =T91-HLOOKUP(X91,Feuil1!$C$1:$AU$9,2,FALSE) -> 28 | AB91: =T91-HLOOKUP(X91,Feuil1!$C$1:$AU$9,3,FALSE) -> 13 | AC91: =T91-HLOOKUP(X91,Feuil1!$C$1:$AU$9,4,FALSE) -> 3 | AD91: =T91-HLOOKUP(X91,Feuil1!$C$1:$AU$9,5,FALSE) -> -7 | AE91: =T91-HLOOKUP(X91,Feuil1!$C$1:$AU$9,6,FALSE) -> -22 | AF91: =T91-HLOOKUP(X91,Feuil1!$C$1:$AU$9,7,FALSE) -> -37 | AG91: =T91-HLOOKUP(X91,Feuil1!$C$1:$AU$9,8,FALSE) -> -47 | AH91: =T91-HLOOKUP(X91,Feuil1!$C$1:$AU$9,9,FALSE) -> -912 | AP91: IRG +
A92: F | B92: SE | C92: CAZ | D92: 12 | E92: 365254 | F92: GAUJARD | G92: Marine | H92: 98 | I92: 62.85 | J92: ASLDD TOULON | K92: F | L92: 33 | M92: 35 | N92: -37 | O92: 35 | P92: 47 | Q92: 50 | R92: 53 | S92: 53 | T92: 88 | V92: IRG + | W92: 3 | X92: =IF(I92="","",IF(A92="H",IF(OR(H92="SEN",H92<94),VLOOKUP(I92,Feuil1!$A$10:$E$28,5),IF(AND(H92>93,H92<97),VLOOKUP(I92,Feuil1!$A$10:$E$28,4),IF(AND(H92>93,H92<97),VLOOKUP(I92,Feuil1!$A$10:$E$28,3),IF(AND(H92>96,H92<100),VLOOKUP(I92,Feuil1!$A$10:$E$28,3),VLOOKUP(I92,Feuil1!$A$10:$E$28,2))))),IF(OR(H92="SEN",H92<94),VLOOKUP(I92,Feuil1!$F$10:$J$24,5),IF(AND(H92>93,H92<97),VLOOKUP(I92,Feuil1!$F$10:$J$24,4),IF(AND(H92>93,H92<97),VLOOKUP(I92,Feuil1!$F$10:$J$24,4),IF(AND(H92>96,H92<100),VLOOKUP(I92,Feuil1!$F$10:$J$24,3),VLOOKUP(I92,Feuil1!$F$10:$J$24,2))))))) -> FC63 | Y92: 117.1307832 | AA92: =T92-HLOOKUP(X92,Feuil1!$C$1:$AU$9,2,FALSE) -> 28 | AB92: =T92-HLOOKUP(X92,Feuil1!$C$1:$AU$9,3,FALSE) -> 13 | AC92: =T92-HLOOKUP(X92,Feuil1!$C$1:$AU$9,4,FALSE) -> 3 | AD92: =T92-HLOOKUP(X92,Feuil1!$C$1:$AU$9,5,FALSE) -> -7 | AE92: =T92-HLOOKUP(X92,Feuil1!$C$1:$AU$9,6,FALSE) -> -22 | AF92: =T92-HLOOKUP(X92,Feuil1!$C$1:$AU$9,7,FALSE) -> -37 | AG92: =T92-HLOOKUP(X92,Feuil1!$C$1:$AU$9,8,FALSE) -> -47 | AH92: =T92-HLOOKUP(X92,Feuil1!$C$1:$AU$9,9,FALSE) -> -912 | AP92: IRG +
A93: F | B93: SE | C93: CAZ | D93: 13 | E93: 363004 | F93: PEUGNIEZ | G93: Chlea | H93: 98 | I93: 63 | J93: ASLDD TOULON | K93: F | L93: 35 | M93: 37 | N93: -38 | O93: 37 | P93: 47 | Q93: 49 | R93: 51 | S93: 51 | T93: 88 | V93: IRG + | W93: 3 | X93: =IF(I93="","",IF(A93="H",IF(OR(H93="SEN",H93<94),VLOOKUP(I93,Feuil1!$A$10:$E$28,5),IF(AND(H93>93,H93<97),VLOOKUP(I93,Feuil1!$A$10:$E$28,4),IF(AND(H93>93,H93<97),VLOOKUP(I93,Feuil1!$A$10:$E$28,3),IF(AND(H93>96,H93<100),VLOOKUP(I93,Feuil1!$A$10:$E$28,3),VLOOKUP(I93,Feuil1!$A$10:$E$28,2))))),IF(OR(H93="SEN",H93<94),VLOOKUP(I93,Feuil1!$F$10:$J$24,5),IF(AND(H93>93,H93<97),VLOOKUP(I93,Feuil1!$F$10:$J$24,4),IF(AND(H93>93,H93<97),VLOOKUP(I93,Feuil1!$F$10:$J$24,4),IF(AND(H93>96,H93<100),VLOOKUP(I93,Feuil1!$F$10:$J$24,3),VLOOKUP(I93,Feuil1!$F$10:$J$24,2))))))) -> FC63 | Y93: 116.9447804 | AA93: =T93-HLOOKUP(X93,Feuil1!$C$1:$AU$9,2,FALSE) -> 28 | AB93: =T93-HLOOKUP(X93,Feuil1!$C$1:$AU$9,3,FALSE) -> 13 | AC93: =T93-HLOOKUP(X93,Feuil1!$C$1:$AU$9,4,FALSE) -> 3 | AD93: =T93-HLOOKUP(X93,Feuil1!$C$1:$AU$9,5,FALSE) -> -7 | AE93: =T93-HLOOKUP(X93,Feuil1!$C$1:$AU$9,6,FALSE) -> -22 | AF93: =T93-HLOOKUP(X93,Feuil1!$C$1:$AU$9,7,FALSE) -> -37 | AG93: =T93-HLOOKUP(X93,Feuil1!$C$1:$AU$9,8,FALSE) -> -47 | AH93: =T93-HLOOKUP(X93,Feuil1!$C$1:$AU$9,9,FALSE) -> -912 | AP93: IRG +
A94: F | B94: NE | C94: BOU | D94: 14 | E94: 363264 | F94: GARCIA | G94: LAURA | H94: 97 | I94: 58.4 | J94: STADE DIJONNAIS HM | K94: F | L94: 32 | M94: 34 | N94: 35 | O94: 35 | P94: 43 | Q94: 45 | R94: -47 | S94: 45 | T94: 80 | V94: REG + | W94: 5 | X94: =IF(I94="","",IF(A94="H",IF(OR(H94="SEN",H94<94),VLOOKUP(I94,Feuil1!$A$10:$E$28,5),IF(AND(H94>93,H94<97),VLOOKUP(I94,Feuil1!$A$10:$E$28,4),IF(AND(H94>93,H94<97),VLOOKUP(I94,Feuil1!$A$10:$E$28,3),IF(AND(H94>96,H94<100),VLOOKUP(I94,Feuil1!$A$10:$E$28,3),VLOOKUP(I94,Feuil1!$A$10:$E$28,2))))),IF(OR(H94="SEN",H94<94),VLOOKUP(I94,Feuil1!$F$10:$J$24,5),IF(AND(H94>93,H94<97),VLOOKUP(I94,Feuil1!$F$10:$J$24,4),IF(AND(H94>93,H94<97),VLOOKUP(I94,Feuil1!$F$10:$J$24,4),IF(AND(H94>96,H94<100),VLOOKUP(I94,Feuil1!$F$10:$J$24,3),VLOOKUP(I94,Feuil1!$F$10:$J$24,2))))))) -> FC63 | Y94: 112.0683662 | AA94: =T94-HLOOKUP(X94,Feuil1!$C$1:$AU$9,2,FALSE) -> 20 | AB94: =T94-HLOOKUP(X94,Feuil1!$C$1:$AU$9,3,FALSE) -> 5 | AC94: =T94-HLOOKUP(X94,Feuil1!$C$1:$AU$9,4,FALSE) -> -5 | AD94: =T94-HLOOKUP(X94,Feuil1!$C$1:$AU$9,5,FALSE) -> -15 | AE94: =T94-HLOOKUP(X94,Feuil1!$C$1:$AU$9,6,FALSE) -> -30 | AF94: =T94-HLOOKUP(X94,Feuil1!$C$1:$AU$9,7,FALSE) -> -45 | AG94: =T94-HLOOKUP(X94,Feuil1!$C$1:$AU$9,8,FALSE) -> -55 | AH94: =T94-HLOOKUP(X94,Feuil1!$C$1:$AU$9,9,FALSE) -> -920 | AP94: REG +
A95: F | B95: CO | C95: PDL | D95: 15 | E95: 277015 | F95: MONTANDON | G95: Tamara | H95: 99 | I95: 58.9 | J95: ALLONNES | K95: F | L95: 34 | M95: 36 | N95: -38 | O95: 36 | P95: 42 | Q95: 44 | R95: -46 | S95: 44 | T95: 80 | V95: REG + | W95: 5 | X95: =IF(I95="","",IF(A95="H",IF(OR(H95="SEN",H95<94),VLOOKUP(I95,Feuil1!$A$10:$E$28,5),IF(AND(H95>93,H95<97),VLOOKUP(I95,Feuil1!$A$10:$E$28,4),IF(AND(H95>93,H95<97),VLOOKUP(I95,Feuil1!$A$10:$E$28,3),IF(AND(H95>96,H95<100),VLOOKUP(I95,Feuil1!$A$10:$E$28,3),VLOOKUP(I95,Feuil1!$A$10:$E$28,2))))),IF(OR(H95="SEN",H95<94),VLOOKUP(I95,Feuil1!$F$10:$J$24,5),IF(AND(H95>93,H95<97),VLOOKUP(I95,Feuil1!$F$10:$J$24,4),IF(AND(H95>93,H95<97),VLOOKUP(I95,Feuil1!$F$10:$J$24,4),IF(AND(H95>96,H95<100),VLOOKUP(I95,Feuil1!$F$10:$J$24,3),VLOOKUP(I95,Feuil1!$F$10:$J$24,2))))))) -> FC63 | Y95: 111.3811281 | AA95: =T95-HLOOKUP(X95,Feuil1!$C$1:$AU$9,2,FALSE) -> 20 | AB95: =T95-HLOOKUP(X95,Feuil1!$C$1:$AU$9,3,FALSE) -> 5 | AC95: =T95-HLOOKUP(X95,Feuil1!$C$1:$AU$9,4,FALSE) -> -5 | AD95: =T95-HLOOKUP(X95,Feuil1!$C$1:$AU$9,5,FALSE) -> -15 | AE95: =T95-HLOOKUP(X95,Feuil1!$C$1:$AU$9,6,FALSE) -> -30 | AF95: =T95-HLOOKUP(X95,Feuil1!$C$1:$AU$9,7,FALSE) -> -45 | AG95: =T95-HLOOKUP(X95,Feuil1!$C$1:$AU$9,8,FALSE) -> -55 | AH95: =T95-HLOOKUP(X95,Feuil1!$C$1:$AU$9,9,FALSE) -> -920 | AP95: REG +
A96: F | B96: SE | C96: CAZ | D96: 16 | E96: 332468 | F96: TERSEN | G96: Chloe | H96: 98 | I96: 60.05 | J96: ES VILLENEUVE LOUBET | K96: F | L96: 34 | M96: 36 | N96: 38 | O96: 38 | P96: 40 | Q96: 42 | R96: -44 | S96: 42 | T96: 80 | V96: REG + | W96: 5 | X96: =IF(I96="","",IF(A96="H",IF(OR(H96="SEN",H96<94),VLOOKUP(I96,Feuil1!$A$10:$E$28,5),IF(AND(H96>93,H96<97),VLOOKUP(I96,Feuil1!$A$10:$E$28,4),IF(AND(H96>93,H96<97),VLOOKUP(I96,Feuil1!$A$10:$E$28,3),IF(AND(H96>96,H96<100),VLOOKUP(I96,Feuil1!$A$10:$E$28,3),VLOOKUP(I96,Feuil1!$A$10:$E$28,2))))),IF(OR(H96="SEN",H96<94),VLOOKUP(I96,Feuil1!$F$10:$J$24,5),IF(AND(H96>93,H96<97),VLOOKUP(I96,Feuil1!$F$10:$J$24,4),IF(AND(H96>93,H96<97),VLOOKUP(I96,Feuil1!$F$10:$J$24,4),IF(AND(H96>96,H96<100),VLOOKUP(I96,Feuil1!$F$10:$J$24,3),VLOOKUP(I96,Feuil1!$F$10:$J$24,2))))))) -> FC63 | Y96: 109.8610079 | AA96: =T96-HLOOKUP(X96,Feuil1!$C$1:$AU$9,2,FALSE) -> 20 | AB96: =T96-HLOOKUP(X96,Feuil1!$C$1:$AU$9,3,FALSE) -> 5 | AC96: =T96-HLOOKUP(X96,Feuil1!$C$1:$AU$9,4,FALSE) -> -5 | AD96: =T96-HLOOKUP(X96,Feuil1!$C$1:$AU$9,5,FALSE) -> -15 | AE96: =T96-HLOOKUP(X96,Feuil1!$C$1:$AU$9,6,FALSE) -> -30 | AF96: =T96-HLOOKUP(X96,Feuil1!$C$1:$AU$9,7,FALSE) -> -45 | AG96: =T96-HLOOKUP(X96,Feuil1!$C$1:$AU$9,8,FALSE) -> -55 | AH96: =T96-HLOOKUP(X96,Feuil1!$C$1:$AU$9,9,FALSE) -> -920 | AP96: REG +
A97: F | B97: NE | C97: ALS | D97: 17 | E97: 343984 | F97: KIENTZI | G97: JULIETTE | H97: 98 | I97: 58.7 | J97: SR Obernai HM | K97: F | L97: 31 | M97: -33 | N97: 33 | O97: 33 | P97: 40 | Q97: 42 | R97: 45 | S97: 45 | T97: 78 | V97: REG + | W97: 3 | X97: =IF(I97="","",IF(A97="H",IF(OR(H97="SEN",H97<94),VLOOKUP(I97,Feuil1!$A$10:$E$28,5),IF(AND(H97>93,H97<97),VLOOKUP(I97,Feuil1!$A$10:$E$28,4),IF(AND(H97>93,H97<97),VLOOKUP(I97,Feuil1!$A$10:$E$28,3),IF(AND(H97>96,H97<100),VLOOKUP(I97,Feuil1!$A$10:$E$28,3),VLOOKUP(I97,Feuil1!$A$10:$E$28,2))))),IF(OR(H97="SEN",H97<94),VLOOKUP(I97,Feuil1!$F$10:$J$24,5),IF(AND(H97>93,H97<97),VLOOKUP(I97,Feuil1!$F$10:$J$24,4),IF(AND(H97>93,H97<97),VLOOKUP(I97,Feuil1!$F$10:$J$24,4),IF(AND(H97>96,H97<100),VLOOKUP(I97,Feuil1!$F$10:$J$24,3),VLOOKUP(I97,Feuil1!$F$10:$J$24,2))))))) -> FC63 | Y97: 108.8627043 | AA97: =T97-HLOOKUP(X97,Feuil1!$C$1:$AU$9,2,FALSE) -> 18 | AB97: =T97-HLOOKUP(X97,Feuil1!$C$1:$AU$9,3,FALSE) -> 3 | AC97: =T97-HLOOKUP(X97,Feuil1!$C$1:$AU$9,4,FALSE) -> -7 | AD97: =T97-HLOOKUP(X97,Feuil1!$C$1:$AU$9,5,FALSE) -> -17 | AE97: =T97-HLOOKUP(X97,Feuil1!$C$1:$AU$9,6,FALSE) -> -32 | AF97: =T97-HLOOKUP(X97,Feuil1!$C$1:$AU$9,7,FALSE) -> -47 | AG97: =T97-HLOOKUP(X97,Feuil1!$C$1:$AU$9,8,FALSE) -> -57 | AH97: =T97-HLOOKUP(X97,Feuil1!$C$1:$AU$9,9,FALSE) -> -922 | AP97: REG +
A98: F | B98: NORD | C98: NPC | D98: 18 | E98: 362261 | F98: GODEFROIDT | G98: Charline | H98: 99 | I98: 62.2 | J98: CHCD COMINES | K98: F | L98: 30 | M98: 32 | N98: 34 | O98: 34 | P98: 38 | Q98: 41 | R98: -43 | S98: 41 | T98: 75 | V98: REG + | W98: 0 | X98: =IF(I98="","",IF(A98="H",IF(OR(H98="SEN",H98<94),VLOOKUP(I98,Feuil1!$A$10:$E$28,5),IF(AND(H98>93,H98<97),VLOOKUP(I98,Feuil1!$A$10:$E$28,4),IF(AND(H98>93,H98<97),VLOOKUP(I98,Feuil1!$A$10:$E$28,3),IF(AND(H98>96,H98<100),VLOOKUP(I98,Feuil1!$A$10:$E$28,3),VLOOKUP(I98,Feuil1!$A$10:$E$28,2))))),IF(OR(H98="SEN",H98<94),VLOOKUP(I98,Feuil1!$F$10:$J$24,5),IF(AND(H98>93,H98<97),VLOOKUP(I98,Feuil1!$F$10:$J$24,4),IF(AND(H98>93,H98<97),VLOOKUP(I98,Feuil1!$F$10:$J$24,4),IF(AND(H98>96,H98<100),VLOOKUP(I98,Feuil1!$F$10:$J$24,3),VLOOKUP(I98,Feuil1!$F$10:$J$24,2))))))) -> FC63 | Y98: 100.5268716 | AA98: =T98-HLOOKUP(X98,Feuil1!$C$1:$AU$9,2,FALSE) -> 15 | AB98: =T98-HLOOKUP(X98,Feuil1!$C$1:$AU$9,3,FALSE) -> 0 | AC98: =T98-HLOOKUP(X98,Feuil1!$C$1:$AU$9,4,FALSE) -> -10 | AD98: =T98-HLOOKUP(X98,Feuil1!$C$1:$AU$9,5,FALSE) -> -20 | AE98: =T98-HLOOKUP(X98,Feuil1!$C$1:$AU$9,6,FALSE) -> -35 | AF98: =T98-HLOOKUP(X98,Feuil1!$C$1:$AU$9,7,FALSE) -> -50 | AG98: =T98-HLOOKUP(X98,Feuil1!$C$1:$AU$9,8,FALSE) -> -60 | AH98: =T98-HLOOKUP(X98,Feuil1!$C$1:$AU$9,9,FALSE) -> -925 | AP98: REG +
A99: F | B99: SO | C99: MPY | D99: 19 | E99: 299773 | F99: BASHARAT | G99: Naila | H99: 97 | I99: 62.5 | J99: TOULOUSE HC | K99: F | L99: 25 | M99: 27 | N99: 30 | O99: 30 | P99: 33 | Q99: 36 | R99: 39 | S99: 39 | T99: 69 | V99: DEP + | W99: 9 | X99: =IF(I99="","",IF(A99="H",IF(OR(H99="SEN",H99<94),VLOOKUP(I99,Feuil1!$A$10:$E$28,5),IF(AND(H99>93,H99<97),VLOOKUP(I99,Feuil1!$A$10:$E$28,4),IF(AND(H99>93,H99<97),VLOOKUP(I99,Feuil1!$A$10:$E$28,3),IF(AND(H99>96,H99<100),VLOOKUP(I99,Feuil1!$A$10:$E$28,3),VLOOKUP(I99,Feuil1!$A$10:$E$28,2))))),IF(OR(H99="SEN",H99<94),VLOOKUP(I99,Feuil1!$F$10:$J$24,5),IF(AND(H99>93,H99<97),VLOOKUP(I99,Feuil1!$F$10:$J$24,4),IF(AND(H99>93,H99<97),VLOOKUP(I99,Feuil1!$F$10:$J$24,4),IF(AND(H99>96,H99<100),VLOOKUP(I99,Feuil1!$F$10:$J$24,3),VLOOKUP(I99,Feuil1!$F$10:$J$24,2))))))) -> FC63 | Y99: 92.18534815 | AA99: =T99-HLOOKUP(X99,Feuil1!$C$1:$AU$9,2,FALSE) -> 9 | AB99: =T99-HLOOKUP(X99,Feuil1!$C$1:$AU$9,3,FALSE) -> -6 | AC99: =T99-HLOOKUP(X99,Feuil1!$C$1:$AU$9,4,FALSE) -> -16 | AD99: =T99-HLOOKUP(X99,Feuil1!$C$1:$AU$9,5,FALSE) -> -26 | AE99: =T99-HLOOKUP(X99,Feuil1!$C$1:$AU$9,6,FALSE) -> -41 | AF99: =T99-HLOOKUP(X99,Feuil1!$C$1:$AU$9,7,FALSE) -> -56 | AG99: =T99-HLOOKUP(X99,Feuil1!$C$1:$AU$9,8,FALSE) -> -66 | AH99: =T99-HLOOKUP(X99,Feuil1!$C$1:$AU$9,9,FALSE) -> -931 | AP99: DEP +
A100: F | B100: NORD | C100: NPC | D100: 20 | E100: 362262 | F100: GILLIERS | G100: Océane | H100: 97 | I100: 58.5 | J100: CHCD COMINES | K100: F | L100: 25 | M100: 27 | N100: -29 | O100: 27 | P100: 38 | Q100: 41 | R100: -43 | S100: 41 | T100: 68 | V100: DEP + | W100: 8 | X100: =IF(I100="","",IF(A100="H",IF(OR(H100="SEN",H100<94),VLOOKUP(I100,Feuil1!$A$10:$E$28,5),IF(AND(H100>93,H100<97),VLOOKUP(I100,Feuil1!$A$10:$E$28,4),IF(AND(H100>93,H100<97),VLOOKUP(I100,Feuil1!$A$10:$E$28,3),IF(AND(H100>96,H100<100),VLOOKUP(I100,Feuil1!$A$10:$E$28,3),VLOOKUP(I100,Feuil1!$A$10:$E$28,2))))),IF(OR(H100="SEN",H100<94),VLOOKUP(I100,Feuil1!$F$10:$J$24,5),IF(AND(H100>93,H100<97),VLOOKUP(I100,Feuil1!$F$10:$J$24,4),IF(AND(H100>93,H100<97),VLOOKUP(I100,Feuil1!$F$10:$J$24,4),IF(AND(H100>96,H100<100),VLOOKUP(I100,Feuil1!$F$10:$J$24,3),VLOOKUP(I100,Feuil1!$F$10:$J$24,2))))))) -> FC63 | Y100: 95.1401611 | AA100: =T100-HLOOKUP(X100,Feuil1!$C$1:$AU$9,2,FALSE) -> 8 | AB100: =T100-HLOOKUP(X100,Feuil1!$C$1:$AU$9,3,FALSE) -> -7 | AC100: =T100-HLOOKUP(X100,Feuil1!$C$1:$AU$9,4,FALSE) -> -17 | AD100: =T100-HLOOKUP(X100,Feuil1!$C$1:$AU$9,5,FALSE) -> -27 | AE100: =T100-HLOOKUP(X100,Feuil1!$C$1:$AU$9,6,FALSE) -> -42 | AF100: =T100-HLOOKUP(X100,Feuil1!$C$1:$AU$9,7,FALSE) -> -57 | AG100: =T100-HLOOKUP(X100,Feuil1!$C$1:$AU$9,8,FALSE) -> -67 | AH100: =T100-HLOOKUP(X100,Feuil1!$C$1:$AU$9,9,FALSE) -> -932 | AP100: DEP +
A101: F | B101: NE | C101: ALS | D101: 21 | E101: 369423 | F101: JEANNINGROS | G101: HELENE | H101: 97 | I101: 59.8 | J101: US Wittenheim | K101: F | L101: 22 | M101: 24 | N101: -26 | O101: 24 | P101: 28 | Q101: 31 | R101: -34 | S101: 31 | T101: 55 | V101: NCL | W101: -5 | X101: =IF(I101="","",IF(A101="H",IF(OR(H101="SEN",H101<94),VLOOKUP(I101,Feuil1!$A$10:$E$28,5),IF(AND(H101>93,H101<97),VLOOKUP(I101,Feuil1!$A$10:$E$28,4),IF(AND(H101>93,H101<97),VLOOKUP(I101,Feuil1!$A$10:$E$28,3),IF(AND(H101>96,H101<100),VLOOKUP(I101,Feuil1!$A$10:$E$28,3),VLOOKUP(I101,Feuil1!$A$10:$E$28,2))))),IF(OR(H101="SEN",H101<94),VLOOKUP(I101,Feuil1!$F$10:$J$24,5),IF(AND(H101>93,H101<97),VLOOKUP(I101,Feuil1!$F$10:$J$24,4),IF(AND(H101>93,H101<97),VLOOKUP(I101,Feuil1!$F$10:$J$24,4),IF(AND(H101>96,H101<100),VLOOKUP(I101,Feuil1!$F$10:$J$24,3),VLOOKUP(I101,Feuil1!$F$10:$J$24,2))))))) -> FC63 | Y101: 75.7518411 | AA101: =T101-HLOOKUP(X101,Feuil1!$C$1:$AU$9,2,FALSE) -> -5 | AB101: =T101-HLOOKUP(X101,Feuil1!$C$1:$AU$9,3,FALSE) -> -20 | AC101: =T101-HLOOKUP(X101,Feuil1!$C$1:$AU$9,4,FALSE) -> -30 | AD101: =T101-HLOOKUP(X101,Feuil1!$C$1:$AU$9,5,FALSE) -> -40 | AE101: =T101-HLOOKUP(X101,Feuil1!$C$1:$AU$9,6,FALSE) -> -55 | AF101: =T101-HLOOKUP(X101,Feuil1!$C$1:$AU$9,7,FALSE) -> -70 | AG101: =T101-HLOOKUP(X101,Feuil1!$C$1:$AU$9,8,FALSE) -> -80 | AH101: =T101-HLOOKUP(X101,Feuil1!$C$1:$AU$9,9,FALSE) -> -945 | AP101: NCL
A102: F | B102: SE | C102: CAZ | D102: 22 | E102: 363001 | F102: GHERSSA | G102: Anissa | H102: 98 | I102: 58.2 | J102: ASLDD TOULON | K102: F | L102: 21 | M102: -23 | N102: 23 | O102: 23 | P102: 28 | Q102: 31 | R102: -33 | S102: 31 | T102: 54 | V102: NCL | W102: -6 | X102: =IF(I102="","",IF(A102="H",IF(OR(H102="SEN",H102<94),VLOOKUP(I102,Feuil1!$A$10:$E$28,5),IF(AND(H102>93,H102<97),VLOOKUP(I102,Feuil1!$A$10:$E$28,4),IF(AND(H102>93,H102<97),VLOOKUP(I102,Feuil1!$A$10:$E$28,3),IF(AND(H102>96,H102<100),VLOOKUP(I102,Feuil1!$A$10:$E$28,3),VLOOKUP(I102,Feuil1!$A$10:$E$28,2))))),IF(OR(H102="SEN",H102<94),VLOOKUP(I102,Feuil1!$F$10:$J$24,5),IF(AND(H102>93,H102<97),VLOOKUP(I102,Feuil1!$F$10:$J$24,4),IF(AND(H102>93,H102<97),VLOOKUP(I102,Feuil1!$F$10:$J$24,4),IF(AND(H102>96,H102<100),VLOOKUP(I102,Feuil1!$F$10:$J$24,3),VLOOKUP(I102,Feuil1!$F$10:$J$24,2))))))) -> FC63 | Y102: 75.8348331 | AA102: =T102-HLOOKUP(X102,Feuil1!$C$1:$AU$9,2,FALSE) -> -6 | AB102: =T102-HLOOKUP(X102,Feuil1!$C$1:$AU$9,3,FALSE) -> -21 | AC102: =T102-HLOOKUP(X102,Feuil1!$C$1:$AU$9,4,FALSE) -> -31 | AD102: =T102-HLOOKUP(X102,Feuil1!$C$1:$AU$9,5,FALSE) -> -41 | AE102: =T102-HLOOKUP(X102,Feuil1!$C$1:$AU$9,6,FALSE) -> -56 | AF102: =T102-HLOOKUP(X102,Feuil1!$C$1:$AU$9,7,FALSE) -> -71 | AG102: =T102-HLOOKUP(X102,Feuil1!$C$1:$AU$9,8,FALSE) -> -81 | AH102: =T102-HLOOKUP(X102,Feuil1!$C$1:$AU$9,9,FALSE) -> -946 | AP102: NCL
A103: F | B103: SE | C103: CAZ | D103: 23 | E103: 363003 | F103: BERNARDINI | G103: Margaux | H103: 98 | I103: 58.2 | J103: ASLDD TOULON | K103: F | L103: 23 | M103: -25 | N103: -25 | O103: 23 | P103: 28 | Q103: -30 | R103: 30 | S103: 30 | T103: 53 | V103: NCL | W103: -7 | X103: =IF(I103="","",IF(A103="H",IF(OR(H103="SEN",H103<94),VLOOKUP(I103,Feuil1!$A$10:$E$28,5),IF(AND(H103>93,H103<97),VLOOKUP(I103,Feuil1!$A$10:$E$28,4),IF(AND(H103>93,H103<97),VLOOKUP(I103,Feuil1!$A$10:$E$28,3),IF(AND(H103>96,H103<100),VLOOKUP(I103,Feuil1!$A$10:$E$28,3),VLOOKUP(I103,Feuil1!$A$10:$E$28,2))))),IF(OR(H103="SEN",H103<94),VLOOKUP(I103,Feuil1!$F$10:$J$24,5),IF(AND(H103>93,H103<97),VLOOKUP(I103,Feuil1!$F$10:$J$24,4),IF(AND(H103>93,H103<97),VLOOKUP(I103,Feuil1!$F$10:$J$24,4),IF(AND(H103>96,H103<100),VLOOKUP(I103,Feuil1!$F$10:$J$24,3),VLOOKUP(I103,Feuil1!$F$10:$J$24,2))))))) -> FC63 | Y103: 74.43048433 | AA103: =T103-HLOOKUP(X103,Feuil1!$C$1:$AU$9,2,FALSE) -> -7 | AB103: =T103-HLOOKUP(X103,Feuil1!$C$1:$AU$9,3,FALSE) -> -22 | AC103: =T103-HLOOKUP(X103,Feuil1!$C$1:$AU$9,4,FALSE) -> -32 | AD103: =T103-HLOOKUP(X103,Feuil1!$C$1:$AU$9,5,FALSE) -> -42 | AE103: =T103-HLOOKUP(X103,Feuil1!$C$1:$AU$9,6,FALSE) -> -57 | AF103: =T103-HLOOKUP(X103,Feuil1!$C$1:$AU$9,7,FALSE) -> -72 | AG103: =T103-HLOOKUP(X103,Feuil1!$C$1:$AU$9,8,FALSE) -> -82 | AH103: =T103-HLOOKUP(X103,Feuil1!$C$1:$AU$9,9,FALSE) -> -947 | AP103: NCL
A104: F | B104: Nord | C104: PIC | D104: 24 | E104: 357294 | F104: MICHEL PINGUERBE | G104: Chloé | H104: 99 | I104: 59.5 | J104: KC Villers-Bretonneux | K104: F | L104: 17 | M104: 19 | N104: 21 | O104: 21 | P104: 20 | Q104: 23 | R104: 26 | S104: 26 | T104: 47 | V104: NCL | W104: -13 | X104: =IF(I104="","",IF(A104="H",IF(OR(H104="SEN",H104<94),VLOOKUP(I104,Feuil1!$A$10:$E$28,5),IF(AND(H104>93,H104<97),VLOOKUP(I104,Feuil1!$A$10:$E$28,4),IF(AND(H104>93,H104<97),VLOOKUP(I104,Feuil1!$A$10:$E$28,3),IF(AND(H104>96,H104<100),VLOOKUP(I104,Feuil1!$A$10:$E$28,3),VLOOKUP(I104,Feuil1!$A$10:$E$28,2))))),IF(OR(H104="SEN",H104<94),VLOOKUP(I104,Feuil1!$F$10:$J$24,5),IF(AND(H104>93,H104<97),VLOOKUP(I104,Feuil1!$F$10:$J$24,4),IF(AND(H104>93,H104<97),VLOOKUP(I104,Feuil1!$F$10:$J$24,4),IF(AND(H104>96,H104<100),VLOOKUP(I104,Feuil1!$F$10:$J$24,3),VLOOKUP(I104,Feuil1!$F$10:$J$24,2))))))) -> FC63 | Y104: 64.96441784 | AA104: =T104-HLOOKUP(X104,Feuil1!$C$1:$AU$9,2,FALSE) -> -13 | AB104: =T104-HLOOKUP(X104,Feuil1!$C$1:$AU$9,3,FALSE) -> -28 | AC104: =T104-HLOOKUP(X104,Feuil1!$C$1:$AU$9,4,FALSE) -> -38 | AD104: =T104-HLOOKUP(X104,Feuil1!$C$1:$AU$9,5,FALSE) -> -48 | AE104: =T104-HLOOKUP(X104,Feuil1!$C$1:$AU$9,6,FALSE) -> -63 | AF104: =T104-HLOOKUP(X104,Feuil1!$C$1:$AU$9,7,FALSE) -> -78 | AG104: =T104-HLOOKUP(X104,Feuil1!$C$1:$AU$9,8,FALSE) -> -88 | AH104: =T104-HLOOKUP(X104,Feuil1!$C$1:$AU$9,9,FALSE) -> -953 | AP104: NCL
A106: F | B106: NE | C106: ALS | D106: 1 | E106: 238723 | F106: OTT | G106: JUSTINE | H106: 98 | I106: 63.6 | J106: SHC Haguenau | K106: F | L106: 54 | M106: 58 | N106: 61 | O106: =IF(H106="","",IF(MAXA(L106:N106)<=0,0,MAXA(L106:N106))) -> 61 | P106: 71 | Q106: 75 | R106: 77 | S106: =IF(H106="","",IF(MAXA(P106:R106)<=0,0,MAXA(P106:R106))) -> 77 | T106: =IF(H106="","",IF(OR(O106=0,S106=0),0,O106+S106)) -> 138 | V106: =IF(H106="","",AP106) -> INTB + | W106: =IF(P106="","",IF(AH106>=0,AH106,IF(AG106>=0,AG106,IF(AF106>=0,AF106,IF(AE106>=0,AE106,IF(AD106>=0,AD106,IF(AC106>=0,AC106,IF(AB106>=0,AB106,AA106)))))))) -> 3 | X106: =IF(I106="","",IF(A106="H",IF(OR(H106="SEN",H106<94),VLOOKUP(I106,Feuil1!$A$10:$E$28,5),IF(AND(H106>93,H106<97),VLOOKUP(I106,Feuil1!$A$10:$E$28,4),IF(AND(H106>93,H106<97),VLOOKUP(I106,Feuil1!$A$10:$E$28,3),IF(AND(H106>96,H106<100),VLOOKUP(I106,Feuil1!$A$10:$E$28,3),VLOOKUP(I106,Feuil1!$A$10:$E$28,2))))),IF(OR(H106="SEN",H106<94),VLOOKUP(I106,Feuil1!$F$10:$J$24,5),IF(AND(H106>93,H106<97),VLOOKUP(I106,Feuil1!$F$10:$J$24,4),IF(AND(H106>93,H106<97),VLOOKUP(I106,Feuil1!$F$10:$J$24,4),IF(AND(H106>96,H106<100),VLOOKUP(I106,Feuil1!$F$10:$J$24,3),VLOOKUP(I106,Feuil1!$F$10:$J$24,2))))))) -> FC69 | Y106: =IF(I106="","",IF(A106="H",10^(0.794358141*LOG(I106/174.393)^2)*T106,IF(A106="F",10^(0.89726074*LOG(I106/148.026)^2)*T106,""))) -> 182.2433983 | AA106: =T106-HLOOKUP(X106,Feuil1!$C$1:$AU$9,2,FALSE) -> 73 | AB106: =T106-HLOOKUP(X106,Feuil1!$C$1:$AU$9,3,FALSE) -> 58 | AC106: =T106-HLOOKUP(X106,Feuil1!$C$1:$AU$9,4,FALSE) -> 43 | AD106: =T106-HLOOKUP(X106,Feuil1!$C$1:$AU$9,5,FALSE) -> 33 | AE106: =T106-HLOOKUP(X106,Feuil1!$C$1:$AU$9,6,FALSE) -> 18 | AF106: =T106-HLOOKUP(X106,Feuil1!$C$1:$AU$9,7,FALSE) -> 3 | AG106: =T106-HLOOKUP(X106,Feuil1!$C$1:$AU$9,8,FALSE) -> -7 | AH106: =T106-HLOOKUP(X106,Feuil1!$C$1:$AU$9,9,FALSE) -> -862 | AP106: =IF(AH106>=0,$AH$4,IF(AG106>=0,$AG$4,IF(AF106>=0,$AF$4,IF(AE106>=0,$AE$4,IF(AD106>=0,$AD$4,IF(AC106>=0,$AC$4,IF(AB106>=0,$AB$4,IF(AA106>=0,$AA$4,$AI$4)))))))) -> INTB +
A107: F | B107: NE | C107: ALS | D107: 2 | E107: 217169 | F107: RUOLT | G107: CELINE | H107: 97 | I107: 68.55 | J107: MJC Ungersheim | K107: F | L107: 52 | M107: 56 | N107: 59 | O107: 59 | P107: 63 | Q107: 69 | R107: -74 | S107: 69 | T107: 128 | V107: NAT + | W107: 8 | X107: =IF(I107="","",IF(A107="H",IF(OR(H107="SEN",H107<94),VLOOKUP(I107,Feuil1!$A$10:$E$28,5),IF(AND(H107>93,H107<97),VLOOKUP(I107,Feuil1!$A$10:$E$28,4),IF(AND(H107>93,H107<97),VLOOKUP(I107,Feuil1!$A$10:$E$28,3),IF(AND(H107>96,H107<100),VLOOKUP(I107,Feuil1!$A$10:$E$28,3),VLOOKUP(I107,Feuil1!$A$10:$E$28,2))))),IF(OR(H107="SEN",H107<94),VLOOKUP(I107,Feuil1!$F$10:$J$24,5),IF(AND(H107>93,H107<97),VLOOKUP(I107,Feuil1!$F$10:$J$24,4),IF(AND(H107>93,H107<97),VLOOKUP(I107,Feuil1!$F$10:$J$24,4),IF(AND(H107>96,H107<100),VLOOKUP(I107,Feuil1!$F$10:$J$24,3),VLOOKUP(I107,Feuil1!$F$10:$J$24,2))))))) -> FC69 | Y107: 161.2512186 | AA107: =T107-HLOOKUP(X107,Feuil1!$C$1:$AU$9,2,FALSE) -> 63 | AB107: =T107-HLOOKUP(X107,Feuil1!$C$1:$AU$9,3,FALSE) -> 48 | AC107: =T107-HLOOKUP(X107,Feuil1!$C$1:$AU$9,4,FALSE) -> 33 | AD107: =T107-HLOOKUP(X107,Feuil1!$C$1:$AU$9,5,FALSE) -> 23 | AE107: =T107-HLOOKUP(X107,Feuil1!$C$1:$AU$9,6,FALSE) -> 8 | AF107: =T107-HLOOKUP(X107,Feuil1!$C$1:$AU$9,7,FALSE) -> -7 | AG107: =T107-HLOOKUP(X107,Feuil1!$C$1:$AU$9,8,FALSE) -> -17 | AH107: =T107-HLOOKUP(X107,Feuil1!$C$1:$AU$9,9,FALSE) -> -872 | AP107: NAT +
A108: F | B108: NE | C108: ALS | D108: 3 | E108: 298196 | F108: CERDAN | G108: MARGOT | H108: 97 | I108: 65.1 | J108: US Wittenheim | K108: F | L108: 50 | M108: 52 | N108: 54 | O108: 54 | P108: 67 | Q108: 69 | R108: 71 | S108: 71 | T108: 125 | V108: NAT + | W108: 5 | X108: =IF(I108="","",IF(A108="H",IF(OR(H108="SEN",H108<94),VLOOKUP(I108,Feuil1!$A$10:$E$28,5),IF(AND(H108>93,H108<97),VLOOKUP(I108,Feuil1!$A$10:$E$28,4),IF(AND(H108>93,H108<97),VLOOKUP(I108,Feuil1!$A$10:$E$28,3),IF(AND(H108>96,H108<100),VLOOKUP(I108,Feuil1!$A$10:$E$28,3),VLOOKUP(I108,Feuil1!$A$10:$E$28,2))))),IF(OR(H108="SEN",H108<94),VLOOKUP(I108,Feuil1!$F$10:$J$24,5),IF(AND(H108>93,H108<97),VLOOKUP(I108,Feuil1!$F$10:$J$24,4),IF(AND(H108>93,H108<97),VLOOKUP(I108,Feuil1!$F$10:$J$24,4),IF(AND(H108>96,H108<100),VLOOKUP(I108,Feuil1!$F$10:$J$24,3),VLOOKUP(I108,Feuil1!$F$10:$J$24,2))))))) -> FC69 | Y108: 162.5958225 | AA108: =T108-HLOOKUP(X108,Feuil1!$C$1:$AU$9,2,FALSE) -> 60 | AB108: =T108-HLOOKUP(X108,Feuil1!$C$1:$AU$9,3,FALSE) -> 45 | AC108: =T108-HLOOKUP(X108,Feuil1!$C$1:$AU$9,4,FALSE) -> 30 | AD108: =T108-HLOOKUP(X108,Feuil1!$C$1:$AU$9,5,FALSE) -> 20 | AE108: =T108-HLOOKUP(X108,Feuil1!$C$1:$AU$9,6,FALSE) -> 5 | AF108: =T108-HLOOKUP(X108,Feuil1!$C$1:$AU$9,7,FALSE) -> -10 | AG108: =T108-HLOOKUP(X108,Feuil1!$C$1:$AU$9,8,FALSE) -> -20 | AH108: =T108-HLOOKUP(X108,Feuil1!$C$1:$AU$9,9,FALSE) -> -875 | AP108: NAT +
A109: F | B109: NE | C109: CHA | D109: 4 | E109: 274946 | F109: GROSJEAN | G109: Loriane | H109: 97 | I109: 63.2 | J109: Langres HM | K109: F | L109: 52 | M109: 55 | N109: -57 | O109: 55 | P109: 63 | Q109: 66 | R109: 68 | S109: 68 | T109: 123 | V109: NAT + | W109: 3 | X109: =IF(I109="","",IF(A109="H",IF(OR(H109="SEN",H109<94),VLOOKUP(I109,Feuil1!$A$10:$E$28,5),IF(AND(H109>93,H109<97),VLOOKUP(I109,Feuil1!$A$10:$E$28,4),IF(AND(H109>93,H109<97),VLOOKUP(I109,Feuil1!$A$10:$E$28,3),IF(AND(H109>96,H109<100),VLOOKUP(I109,Feuil1!$A$10:$E$28,3),VLOOKUP(I109,Feuil1!$A$10:$E$28,2))))),IF(OR(H109="SEN",H109<94),VLOOKUP(I109,Feuil1!$F$10:$J$24,5),IF(AND(H109>93,H109<97),VLOOKUP(I109,Feuil1!$F$10:$J$24,4),IF(AND(H109>93,H109<97),VLOOKUP(I109,Feuil1!$F$10:$J$24,4),IF(AND(H109>96,H109<100),VLOOKUP(I109,Feuil1!$F$10:$J$24,3),VLOOKUP(I109,Feuil1!$F$10:$J$24,2))))))) -> FC69 | Y109: 163.1129868 | AA109: =T109-HLOOKUP(X109,Feuil1!$C$1:$AU$9,2,FALSE) -> 58 | AB109: =T109-HLOOKUP(X109,Feuil1!$C$1:$AU$9,3,FALSE) -> 43 | AC109: =T109-HLOOKUP(X109,Feuil1!$C$1:$AU$9,4,FALSE) -> 28 | AD109: =T109-HLOOKUP(X109,Feuil1!$C$1:$AU$9,5,FALSE) -> 18 | AE109: =T109-HLOOKUP(X109,Feuil1!$C$1:$AU$9,6,FALSE) -> 3 | AF109: =T109-HLOOKUP(X109,Feuil1!$C$1:$AU$9,7,FALSE) -> -12 | AG109: =T109-HLOOKUP(X109,Feuil1!$C$1:$AU$9,8,FALSE) -> -22 | AH109: =T109-HLOOKUP(X109,Feuil1!$C$1:$AU$9,9,FALSE) -> -877 | AP109: NAT +
A110: F | B110: CO | C110: BRE | D110: 5 | E110: 210931 | F110: BACCEI | G110: Marilou | H110: 98 | I110: 69 | J110: CHM Plouhinec Pointe du Raz | K110: F | L110: 52 | M110: -55 | N110: 55 | O110: 55 | P110: 60 | Q110: -63 | R110: -65 | S110: 60 | T110: 115 | V110: FED + | W110: 10 | X110: =IF(I110="","",IF(A110="H",IF(OR(H110="SEN",H110<94),VLOOKUP(I110,Feuil1!$A$10:$E$28,5),IF(AND(H110>93,H110<97),VLOOKUP(I110,Feuil1!$A$10:$E$28,4),IF(AND(H110>93,H110<97),VLOOKUP(I110,Feuil1!$A$10:$E$28,3),IF(AND(H110>96,H110<100),VLOOKUP(I110,Feuil1!$A$10:$E$28,3),VLOOKUP(I110,Feuil1!$A$10:$E$28,2))))),IF(OR(H110="SEN",H110<94),VLOOKUP(I110,Feuil1!$F$10:$J$24,5),IF(AND(H110>93,H110<97),VLOOKUP(I110,Feuil1!$F$10:$J$24,4),IF(AND(H110>93,H110<97),VLOOKUP(I110,Feuil1!$F$10:$J$24,4),IF(AND(H110>96,H110<100),VLOOKUP(I110,Feuil1!$F$10:$J$24,3),VLOOKUP(I110,Feuil1!$F$10:$J$24,2))))))) -> FC69 | Y110: 144.3089433 | AA110: =T110-HLOOKUP(X110,Feuil1!$C$1:$AU$9,2,FALSE) -> 50 | AB110: =T110-HLOOKUP(X110,Feuil1!$C$1:$AU$9,3,FALSE) -> 35 | AC110: =T110-HLOOKUP(X110,Feuil1!$C$1:$AU$9,4,FALSE) -> 20 | AD110: =T110-HLOOKUP(X110,Feuil1!$C$1:$AU$9,5,FALSE) -> 10 | AE110: =T110-HLOOKUP(X110,Feuil1!$C$1:$AU$9,6,FALSE) -> -5 | AF110: =T110-HLOOKUP(X110,Feuil1!$C$1:$AU$9,7,FALSE) -> -20 | AG110: =T110-HLOOKUP(X110,Feuil1!$C$1:$AU$9,8,FALSE) -> -30 | AH110: =T110-HLOOKUP(X110,Feuil1!$C$1:$AU$9,9,FALSE) -> -885 | AP110: FED +
A111: F | B111: NE | C111: ALS | D111: 6 | E111: 306518 | F111: BURST | G111: JUSTINE | H111: 98 | I111: 66.6 | J111: SR Obernai HM | K111: F | L111: 46 | M111: -50 | N111: 50 | O111: 50 | P111: 56 | Q111: 60 | R111: -62 | S111: 60 | T111: 110 | V111: FED + | W111: 5 | X111: =IF(I111="","",IF(A111="H",IF(OR(H111="SEN",H111<94),VLOOKUP(I111,Feuil1!$A$10:$E$28,5),IF(AND(H111>93,H111<97),VLOOKUP(I111,Feuil1!$A$10:$E$28,4),IF(AND(H111>93,H111<97),VLOOKUP(I111,Feuil1!$A$10:$E$28,3),IF(AND(H111>96,H111<100),VLOOKUP(I111,Feuil1!$A$10:$E$28,3),VLOOKUP(I111,Feuil1!$A$10:$E$28,2))))),IF(OR(H111="SEN",H111<94),VLOOKUP(I111,Feuil1!$F$10:$J$24,5),IF(AND(H111>93,H111<97),VLOOKUP(I111,Feuil1!$F$10:$J$24,4),IF(AND(H111>93,H111<97),VLOOKUP(I111,Feuil1!$F$10:$J$24,4),IF(AND(H111>96,H111<100),VLOOKUP(I111,Feuil1!$F$10:$J$24,3),VLOOKUP(I111,Feuil1!$F$10:$J$24,2))))))) -> FC69 | Y111: 141.0412482 | AA111: =T111-HLOOKUP(X111,Feuil1!$C$1:$AU$9,2,FALSE) -> 45 | AB111: =T111-HLOOKUP(X111,Feuil1!$C$1:$AU$9,3,FALSE) -> 30 | AC111: =T111-HLOOKUP(X111,Feuil1!$C$1:$AU$9,4,FALSE) -> 15 | AD111: =T111-HLOOKUP(X111,Feuil1!$C$1:$AU$9,5,FALSE) -> 5 | AE111: =T111-HLOOKUP(X111,Feuil1!$C$1:$AU$9,6,FALSE) -> -10 | AF111: =T111-HLOOKUP(X111,Feuil1!$C$1:$AU$9,7,FALSE) -> -25 | AG111: =T111-HLOOKUP(X111,Feuil1!$C$1:$AU$9,8,FALSE) -> -35 | AH111: =T111-HLOOKUP(X111,Feuil1!$C$1:$AU$9,9,FALSE) -> -890 | AP111: FED +
A112: F | B112: NORD | C112: NPC | D112: 7 | E112: 362261 | F112: GODEFROIDT | G112: Charline | H112: 99 | I112: 67.3 | J112: CHCD COMINES | K112: F | L112: 43 | M112: 45 | N112: 47 | O112: 47 | P112: 54 | Q112: 58 | R112: -60 | S112: 58 | T112: 105 | V112: FED + | W112: 0 | X112: =IF(I112="","",IF(A112="H",IF(OR(H112="SEN",H112<94),VLOOKUP(I112,Feuil1!$A$10:$E$28,5),IF(AND(H112>93,H112<97),VLOOKUP(I112,Feuil1!$A$10:$E$28,4),IF(AND(H112>93,H112<97),VLOOKUP(I112,Feuil1!$A$10:$E$28,3),IF(AND(H112>96,H112<100),VLOOKUP(I112,Feuil1!$A$10:$E$28,3),VLOOKUP(I112,Feuil1!$A$10:$E$28,2))))),IF(OR(H112="SEN",H112<94),VLOOKUP(I112,Feuil1!$F$10:$J$24,5),IF(AND(H112>93,H112<97),VLOOKUP(I112,Feuil1!$F$10:$J$24,4),IF(AND(H112>93,H112<97),VLOOKUP(I112,Feuil1!$F$10:$J$24,4),IF(AND(H112>96,H112<100),VLOOKUP(I112,Feuil1!$F$10:$J$24,3),VLOOKUP(I112,Feuil1!$F$10:$J$24,2))))))) -> FC69 | Y112: 133.7626285 | AA112: =T112-HLOOKUP(X112,Feuil1!$C$1:$AU$9,2,FALSE) -> 40 | AB112: =T112-HLOOKUP(X112,Feuil1!$C$1:$AU$9,3,FALSE) -> 25 | AC112: =T112-HLOOKUP(X112,Feuil1!$C$1:$AU$9,4,FALSE) -> 10 | AD112: =T112-HLOOKUP(X112,Feuil1!$C$1:$AU$9,5,FALSE) -> 0 | AE112: =T112-HLOOKUP(X112,Feuil1!$C$1:$AU$9,6,FALSE) -> -15 | AF112: =T112-HLOOKUP(X112,Feuil1!$C$1:$AU$9,7,FALSE) -> -30 | AG112: =T112-HLOOKUP(X112,Feuil1!$C$1:$AU$9,8,FALSE) -> -40 | AH112: =T112-HLOOKUP(X112,Feuil1!$C$1:$AU$9,9,FALSE) -> -895 | AP112: FED +
A113: F | B113: Nord | C113: IDF | D113: 8 | E113: 326999 | F113: BIFANO | G113: ELENA | H113: 97 | I113: 63.9 | J113: BLANC-MESNIL | K113: F | L113: 40 | M113: 44 | N113: 46 | O113: 46 | P113: 50 | Q113: 54 | R113: 56 | S113: 56 | T113: 102 | V113: IRG + | W113: 7 | X113: =IF(I113="","",IF(A113="H",IF(OR(H113="SEN",H113<94),VLOOKUP(I113,Feuil1!$A$10:$E$28,5),IF(AND(H113>93,H113<97),VLOOKUP(I113,Feuil1!$A$10:$E$28,4),IF(AND(H113>93,H113<97),VLOOKUP(I113,Feuil1!$A$10:$E$28,3),IF(AND(H113>96,H113<100),VLOOKUP(I113,Feuil1!$A$10:$E$28,3),VLOOKUP(I113,Feuil1!$A$10:$E$28,2))))),IF(OR(H113="SEN",H113<94),VLOOKUP(I113,Feuil1!$F$10:$J$24,5),IF(AND(H113>93,H113<97),VLOOKUP(I113,Feuil1!$F$10:$J$24,4),IF(AND(H113>93,H113<97),VLOOKUP(I113,Feuil1!$F$10:$J$24,4),IF(AND(H113>96,H113<100),VLOOKUP(I113,Feuil1!$F$10:$J$24,3),VLOOKUP(I113,Feuil1!$F$10:$J$24,2))))))) -> FC69 | Y113: 134.2861083 | AA113: =T113-HLOOKUP(X113,Feuil1!$C$1:$AU$9,2,FALSE) -> 37 | AB113: =T113-HLOOKUP(X113,Feuil1!$C$1:$AU$9,3,FALSE) -> 22 | AC113: =T113-HLOOKUP(X113,Feuil1!$C$1:$AU$9,4,FALSE) -> 7 | AD113: =T113-HLOOKUP(X113,Feuil1!$C$1:$AU$9,5,FALSE) -> -3 | AE113: =T113-HLOOKUP(X113,Feuil1!$C$1:$AU$9,6,FALSE) -> -18 | AF113: =T113-HLOOKUP(X113,Feuil1!$C$1:$AU$9,7,FALSE) -> -33 | AG113: =T113-HLOOKUP(X113,Feuil1!$C$1:$AU$9,8,FALSE) -> -43 | AH113: =T113-HLOOKUP(X113,Feuil1!$C$1:$AU$9,9,FALSE) -> -898 | AP113: IRG +
A114: F | B114: NE | C114: CHA | D114: 9 | E114: 239747 | F114: VAUTARD | G114: Priscillia | H114: 99 | I114: 68.4 | J114: Langres HM | K114: F | L114: 42 | M114: 46 | N114: 48 | O114: 48 | P114: 50 | Q114: 54 | R114: -57 | S114: 54 | T114: 102 | V114: IRG + | W114: 7 | X114: =IF(I114="","",IF(A114="H",IF(OR(H114="SEN",H114<94),VLOOKUP(I114,Feuil1!$A$10:$E$28,5),IF(AND(H114>93,H114<97),VLOOKUP(I114,Feuil1!$A$10:$E$28,4),IF(AND(H114>93,H114<97),VLOOKUP(I114,Feuil1!$A$10:$E$28,3),IF(AND(H114>96,H114<100),VLOOKUP(I114,Feuil1!$A$10:$E$28,3),VLOOKUP(I114,Feuil1!$A$10:$E$28,2))))),IF(OR(H114="SEN",H114<94),VLOOKUP(I114,Feuil1!$F$10:$J$24,5),IF(AND(H114>93,H114<97),VLOOKUP(I114,Feuil1!$F$10:$J$24,4),IF(AND(H114>93,H114<97),VLOOKUP(I114,Feuil1!$F$10:$J$24,4),IF(AND(H114>96,H114<100),VLOOKUP(I114,Feuil1!$F$10:$J$24,3),VLOOKUP(I114,Feuil1!$F$10:$J$24,2))))))) -> FC69 | Y114: 128.6662961 | AA114: =T114-HLOOKUP(X114,Feuil1!$C$1:$AU$9,2,FALSE) -> 37 | AB114: =T114-HLOOKUP(X114,Feuil1!$C$1:$AU$9,3,FALSE) -> 22 | AC114: =T114-HLOOKUP(X114,Feuil1!$C$1:$AU$9,4,FALSE) -> 7 | AD114: =T114-HLOOKUP(X114,Feuil1!$C$1:$AU$9,5,FALSE) -> -3 | AE114: =T114-HLOOKUP(X114,Feuil1!$C$1:$AU$9,6,FALSE) -> -18 | AF114: =T114-HLOOKUP(X114,Feuil1!$C$1:$AU$9,7,FALSE) -> -33 | AG114: =T114-HLOOKUP(X114,Feuil1!$C$1:$AU$9,8,FALSE) -> -43 | AH114: =T114-HLOOKUP(X114,Feuil1!$C$1:$AU$9,9,FALSE) -> -898 | AP114: IRG +
A115: F | B115: SE | C115: CAZ | D115: 10 | E115: 362268 | F115: MAZOUZ | G115: Sophie | H115: 98 | I115: 66.2 | J115: ASLDD TOULON | K115: F | L115: 37 | M115: 40 | N115: -43 | O115: 40 | P115: 55 | Q115: 57 | R115: 60 | S115: 60 | T115: 100 | V115: IRG + | W115: 5 | X115: =IF(I115="","",IF(A115="H",IF(OR(H115="SEN",H115<94),VLOOKUP(I115,Feuil1!$A$10:$E$28,5),IF(AND(H115>93,H115<97),VLOOKUP(I115,Feuil1!$A$10:$E$28,4),IF(AND(H115>93,H115<97),VLOOKUP(I115,Feuil1!$A$10:$E$28,3),IF(AND(H115>96,H115<100),VLOOKUP(I115,Feuil1!$A$10:$E$28,3),VLOOKUP(I115,Feuil1!$A$10:$E$28,2))))),IF(OR(H115="SEN",H115<94),VLOOKUP(I115,Feuil1!$F$10:$J$24,5),IF(AND(H115>93,H115<97),VLOOKUP(I115,Feuil1!$F$10:$J$24,4),IF(AND(H115>93,H115<97),VLOOKUP(I115,Feuil1!$F$10:$J$24,4),IF(AND(H115>96,H115<100),VLOOKUP(I115,Feuil1!$F$10:$J$24,3),VLOOKUP(I115,Feuil1!$F$10:$J$24,2))))))) -> FC69 | Y115: 128.7028278 | AA115: =T115-HLOOKUP(X115,Feuil1!$C$1:$AU$9,2,FALSE) -> 35 | AB115: =T115-HLOOKUP(X115,Feuil1!$C$1:$AU$9,3,FALSE) -> 20 | AC115: =T115-HLOOKUP(X115,Feuil1!$C$1:$AU$9,4,FALSE) -> 5 | AD115: =T115-HLOOKUP(X115,Feuil1!$C$1:$AU$9,5,FALSE) -> -5 | AE115: =T115-HLOOKUP(X115,Feuil1!$C$1:$AU$9,6,FALSE) -> -20 | AF115: =T115-HLOOKUP(X115,Feuil1!$C$1:$AU$9,7,FALSE) -> -35 | AG115: =T115-HLOOKUP(X115,Feuil1!$C$1:$AU$9,8,FALSE) -> -45 | AH115: =T115-HLOOKUP(X115,Feuil1!$C$1:$AU$9,9,FALSE) -> -900 | AP115: IRG +
A116: F | B116: SO | C116: MPY | D116: 11 | E116: 360521 | F116: JENNISKEN | G116: Laura | H116: 98 | I116: 64.2 | J116: TOULOUSE HC | K116: F | L116: 37 | M116: 40 | N116: -43 | O116: 40 | P116: 45 | Q116: 49 | R116: 53 | S116: 53 | T116: 93 | V116: REG + | W116: 13 | X116: =IF(I116="","",IF(A116="H",IF(OR(H116="SEN",H116<94),VLOOKUP(I116,Feuil1!$A$10:$E$28,5),IF(AND(H116>93,H116<97),VLOOKUP(I116,Feuil1!$A$10:$E$28,4),IF(AND(H116>93,H116<97),VLOOKUP(I116,Feuil1!$A$10:$E$28,3),IF(AND(H116>96,H116<100),VLOOKUP(I116,Feuil1!$A$10:$E$28,3),VLOOKUP(I116,Feuil1!$A$10:$E$28,2))))),IF(OR(H116="SEN",H116<94),VLOOKUP(I116,Feuil1!$F$10:$J$24,5),IF(AND(H116>93,H116<97),VLOOKUP(I116,Feuil1!$F$10:$J$24,4),IF(AND(H116>93,H116<97),VLOOKUP(I116,Feuil1!$F$10:$J$24,4),IF(AND(H116>96,H116<100),VLOOKUP(I116,Feuil1!$F$10:$J$24,3),VLOOKUP(I116,Feuil1!$F$10:$J$24,2))))))) -> FC69 | Y116: 122.0634919 | AA116: =T116-HLOOKUP(X116,Feuil1!$C$1:$AU$9,2,FALSE) -> 28 | AB116: =T116-HLOOKUP(X116,Feuil1!$C$1:$AU$9,3,FALSE) -> 13 | AC116: =T116-HLOOKUP(X116,Feuil1!$C$1:$AU$9,4,FALSE) -> -2 | AD116: =T116-HLOOKUP(X116,Feuil1!$C$1:$AU$9,5,FALSE) -> -12 | AE116: =T116-HLOOKUP(X116,Feuil1!$C$1:$AU$9,6,FALSE) -> -27 | AF116: =T116-HLOOKUP(X116,Feuil1!$C$1:$AU$9,7,FALSE) -> -42 | AG116: =T116-HLOOKUP(X116,Feuil1!$C$1:$AU$9,8,FALSE) -> -52 | AH116: =T116-HLOOKUP(X116,Feuil1!$C$1:$AU$9,9,FALSE) -> -907 | AP116: REG +
A117: F | B117: SE | C117: CAZ | D117: 12 | E117: 365254 | F117: GAUJARD | G117: Marine | H117: 98 | I117: 63.1 | J117: ASLDD TOULON | K117: F | L117: 34 | M117: 36 | N117: -38 | O117: 36 | P117: -47 | Q117: 48 | R117: 51 | S117: 51 | T117: 87 | V117: REG + | W117: 7 | X117: =IF(I117="","",IF(A117="H",IF(OR(H117="SEN",H117<94),VLOOKUP(I117,Feuil1!$A$10:$E$28,5),IF(AND(H117>93,H117<97),VLOOKUP(I117,Feuil1!$A$10:$E$28,4),IF(AND(H117>93,H117<97),VLOOKUP(I117,Feuil1!$A$10:$E$28,3),IF(AND(H117>96,H117<100),VLOOKUP(I117,Feuil1!$A$10:$E$28,3),VLOOKUP(I117,Feuil1!$A$10:$E$28,2))))),IF(OR(H117="SEN",H117<94),VLOOKUP(I117,Feuil1!$F$10:$J$24,5),IF(AND(H117>93,H117<97),VLOOKUP(I117,Feuil1!$F$10:$J$24,4),IF(AND(H117>93,H117<97),VLOOKUP(I117,Feuil1!$F$10:$J$24,4),IF(AND(H117>96,H117<100),VLOOKUP(I117,Feuil1!$F$10:$J$24,3),VLOOKUP(I117,Feuil1!$F$10:$J$24,2))))))) -> FC69 | Y117: 115.493958 | AA117: =T117-HLOOKUP(X117,Feuil1!$C$1:$AU$9,2,FALSE) -> 22 | AB117: =T117-HLOOKUP(X117,Feuil1!$C$1:$AU$9,3,FALSE) -> 7 | AC117: =T117-HLOOKUP(X117,Feuil1!$C$1:$AU$9,4,FALSE) -> -8 | AD117: =T117-HLOOKUP(X117,Feuil1!$C$1:$AU$9,5,FALSE) -> -18 | AE117: =T117-HLOOKUP(X117,Feuil1!$C$1:$AU$9,6,FALSE) -> -33 | AF117: =T117-HLOOKUP(X117,Feuil1!$C$1:$AU$9,7,FALSE) -> -48 | AG117: =T117-HLOOKUP(X117,Feuil1!$C$1:$AU$9,8,FALSE) -> -58 | AH117: =T117-HLOOKUP(X117,Feuil1!$C$1:$AU$9,9,FALSE) -> -913 | AP117: REG +
A118: F | B118: NORD | C118: NPC | D118: 13 | E118: 191850 | F118: GONZALES | G118: Naomi | H118: 98 | I118: 68.5 | J118: CHCD COMINES | K118: F | L118: 33 | M118: 36 | N118: -38 | O118: 36 | P118: 45 | Q118: 50 | R118: -52 | S118: 50 | T118: 86 | V118: REG + | W118: 6 | X118: =IF(I118="","",IF(A118="H",IF(OR(H118="SEN",H118<94),VLOOKUP(I118,Feuil1!$A$10:$E$28,5),IF(AND(H118>93,H118<97),VLOOKUP(I118,Feuil1!$A$10:$E$28,4),IF(AND(H118>93,H118<97),VLOOKUP(I118,Feuil1!$A$10:$E$28,3),IF(AND(H118>96,H118<100),VLOOKUP(I118,Feuil1!$A$10:$E$28,3),VLOOKUP(I118,Feuil1!$A$10:$E$28,2))))),IF(OR(H118="SEN",H118<94),VLOOKUP(I118,Feuil1!$F$10:$J$24,5),IF(AND(H118>93,H118<97),VLOOKUP(I118,Feuil1!$F$10:$J$24,4),IF(AND(H118>93,H118<97),VLOOKUP(I118,Feuil1!$F$10:$J$24,4),IF(AND(H118>96,H118<100),VLOOKUP(I118,Feuil1!$F$10:$J$24,3),VLOOKUP(I118,Feuil1!$F$10:$J$24,2))))))) -> FC69 | Y118: 108.3881236 | AA118: =T118-HLOOKUP(X118,Feuil1!$C$1:$AU$9,2,FALSE) -> 21 | AB118: =T118-HLOOKUP(X118,Feuil1!$C$1:$AU$9,3,FALSE) -> 6 | AC118: =T118-HLOOKUP(X118,Feuil1!$C$1:$AU$9,4,FALSE) -> -9 | AD118: =T118-HLOOKUP(X118,Feuil1!$C$1:$AU$9,5,FALSE) -> -19 | AE118: =T118-HLOOKUP(X118,Feuil1!$C$1:$AU$9,6,FALSE) -> -34 | AF118: =T118-HLOOKUP(X118,Feuil1!$C$1:$AU$9,7,FALSE) -> -49 | AG118: =T118-HLOOKUP(X118,Feuil1!$C$1:$AU$9,8,FALSE) -> -59 | AH118: =T118-HLOOKUP(X118,Feuil1!$C$1:$AU$9,9,FALSE) -> -914 | AP118: REG +
A119: F | B119: SE | C119: RAL | D119: 14 | E119: 363024 | F119: PONCET | G119: Phebe | H119: 99 | I119: 67.6 | J119: SAINT BALDOPH | K119: F | L119: 32 | M119: -35 | N119: 35 | O119: 35 | P119: 42 | Q119: 45 | R119: 47 | S119: 47 | T119: 82 | V119: REG + | W119: 2 | X119: =IF(I119="","",IF(A119="H",IF(OR(H119="SEN",H119<94),VLOOKUP(I119,Feuil1!$A$10:$E$28,5),IF(AND(H119>93,H119<97),VLOOKUP(I119,Feuil1!$A$10:$E$28,4),IF(AND(H119>93,H119<97),VLOOKUP(I119,Feuil1!$A$10:$E$28,3),IF(AND(H119>96,H119<100),VLOOKUP(I119,Feuil1!$A$10:$E$28,3),VLOOKUP(I119,Feuil1!$A$10:$E$28,2))))),IF(OR(H119="SEN",H119<94),VLOOKUP(I119,Feuil1!$F$10:$J$24,5),IF(AND(H119>93,H119<97),VLOOKUP(I119,Feuil1!$F$10:$J$24,4),IF(AND(H119>93,H119<97),VLOOKUP(I119,Feuil1!$F$10:$J$24,4),IF(AND(H119>96,H119<100),VLOOKUP(I119,Feuil1!$F$10:$J$24,3),VLOOKUP(I119,Feuil1!$F$10:$J$24,2))))))) -> FC69 | Y119: 104.1780161 | AA119: =T119-HLOOKUP(X119,Feuil1!$C$1:$AU$9,2,FALSE) -> 17 | AB119: =T119-HLOOKUP(X119,Feuil1!$C$1:$AU$9,3,FALSE) -> 2 | AC119: =T119-HLOOKUP(X119,Feuil1!$C$1:$AU$9,4,FALSE) -> -13 | AD119: =T119-HLOOKUP(X119,Feuil1!$C$1:$AU$9,5,FALSE) -> -23 | AE119: =T119-HLOOKUP(X119,Feuil1!$C$1:$AU$9,6,FALSE) -> -38 | AF119: =T119-HLOOKUP(X119,Feuil1!$C$1:$AU$9,7,FALSE) -> -53 | AG119: =T119-HLOOKUP(X119,Feuil1!$C$1:$AU$9,8,FALSE) -> -63 | AH119: =T119-HLOOKUP(X119,Feuil1!$C$1:$AU$9,9,FALSE) -> -918 | AP119: REG +
A120: F | B120: NE | C120: BOU | D120: 15 | E120: 330961 | F120: ALLYOT | G120: CHARLOTTE | H120: 97 | I120: 68.35 | J120: ASO DU MONT DE REME | K120: F | L120: 33 | M120: 35 | N120: -37 | O120: 35 | P120: 43 | Q120: 45 | R120: 47 | S120: 47 | T120: 82 | V120: REG + | W120: 2 | X120: =IF(I120="","",IF(A120="H",IF(OR(H120="SEN",H120<94),VLOOKUP(I120,Feuil1!$A$10:$E$28,5),IF(AND(H120>93,H120<97),VLOOKUP(I120,Feuil1!$A$10:$E$28,4),IF(AND(H120>93,H120<97),VLOOKUP(I120,Feuil1!$A$10:$E$28,3),IF(AND(H120>96,H120<100),VLOOKUP(I120,Feuil1!$A$10:$E$28,3),VLOOKUP(I120,Feuil1!$A$10:$E$28,2))))),IF(OR(H120="SEN",H120<94),VLOOKUP(I120,Feuil1!$F$10:$J$24,5),IF(AND(H120>93,H120<97),VLOOKUP(I120,Feuil1!$F$10:$J$24,4),IF(AND(H120>93,H120<97),VLOOKUP(I120,Feuil1!$F$10:$J$24,4),IF(AND(H120>96,H120<100),VLOOKUP(I120,Feuil1!$F$10:$J$24,3),VLOOKUP(I120,Feuil1!$F$10:$J$24,2))))))) -> FC69 | Y120: 103.4831525 | AA120: =T120-HLOOKUP(X120,Feuil1!$C$1:$AU$9,2,FALSE) -> 17 | AB120: =T120-HLOOKUP(X120,Feuil1!$C$1:$AU$9,3,FALSE) -> 2 | AC120: =T120-HLOOKUP(X120,Feuil1!$C$1:$AU$9,4,FALSE) -> -13 | AD120: =T120-HLOOKUP(X120,Feuil1!$C$1:$AU$9,5,FALSE) -> -23 | AE120: =T120-HLOOKUP(X120,Feuil1!$C$1:$AU$9,6,FALSE) -> -38 | AF120: =T120-HLOOKUP(X120,Feuil1!$C$1:$AU$9,7,FALSE) -> -53 | AG120: =T120-HLOOKUP(X120,Feuil1!$C$1:$AU$9,8,FALSE) -> -63 | AH120: =T120-HLOOKUP(X120,Feuil1!$C$1:$AU$9,9,FALSE) -> -918 | AP120: REG +
A121: F | B121: NE | C121: ALS | D121: 16 | E121: 362720 | F121: JOAQUIM | G121: EMILIE | H121: 97 | I121: 66.95 | J121: CA Moosch | K121: F | L121: 33 | M121: 36 | N121: 38 | O121: 38 | P121: 37 | Q121: 40 | R121: 43 | S121: 43 | T121: 81 | V121: REG + | W121: 1 | X121: =IF(I121="","",IF(A121="H",IF(OR(H121="SEN",H121<94),VLOOKUP(I121,Feuil1!$A$10:$E$28,5),IF(AND(H121>93,H121<97),VLOOKUP(I121,Feuil1!$A$10:$E$28,4),IF(AND(H121>93,H121<97),VLOOKUP(I121,Feuil1!$A$10:$E$28,3),IF(AND(H121>96,H121<100),VLOOKUP(I121,Feuil1!$A$10:$E$28,3),VLOOKUP(I121,Feuil1!$A$10:$E$28,2))))),IF(OR(H121="SEN",H121<94),VLOOKUP(I121,Feuil1!$F$10:$J$24,5),IF(AND(H121>93,H121<97),VLOOKUP(I121,Feuil1!$F$10:$J$24,4),IF(AND(H121>93,H121<97),VLOOKUP(I121,Feuil1!$F$10:$J$24,4),IF(AND(H121>96,H121<100),VLOOKUP(I121,Feuil1!$F$10:$J$24,3),VLOOKUP(I121,Feuil1!$F$10:$J$24,2))))))) -> FC69 | Y121: 103.5204617 | AA121: =T121-HLOOKUP(X121,Feuil1!$C$1:$AU$9,2,FALSE) -> 16 | AB121: =T121-HLOOKUP(X121,Feuil1!$C$1:$AU$9,3,FALSE) -> 1 | AC121: =T121-HLOOKUP(X121,Feuil1!$C$1:$AU$9,4,FALSE) -> -14 | AD121: =T121-HLOOKUP(X121,Feuil1!$C$1:$AU$9,5,FALSE) -> -24 | AE121: =T121-HLOOKUP(X121,Feuil1!$C$1:$AU$9,6,FALSE) -> -39 | AF121: =T121-HLOOKUP(X121,Feuil1!$C$1:$AU$9,7,FALSE) -> -54 | AG121: =T121-HLOOKUP(X121,Feuil1!$C$1:$AU$9,8,FALSE) -> -64 | AH121: =T121-HLOOKUP(X121,Feuil1!$C$1:$AU$9,9,FALSE) -> -919 | AP121: REG +
A122: F | B122: SO | C122: MPY | D122: 17 | E122: 254618 | F122: LOUGLEB | G122: Manal | H122: 98 | I122: 68.8 | J122: FIGEAC HC | K122: F | L122: 25 | M122: 30 | N122: -33 | O122: 30 | P122: 40 | Q122: 45 | R122: 50 | S122: 50 | T122: 80 | V122: REG + | W122: 0 | X122: =IF(I122="","",IF(A122="H",IF(OR(H122="SEN",H122<94),VLOOKUP(I122,Feuil1!$A$10:$E$28,5),IF(AND(H122>93,H122<97),VLOOKUP(I122,Feuil1!$A$10:$E$28,4),IF(AND(H122>93,H122<97),VLOOKUP(I122,Feuil1!$A$10:$E$28,3),IF(AND(H122>96,H122<100),VLOOKUP(I122,Feuil1!$A$10:$E$28,3),VLOOKUP(I122,Feuil1!$A$10:$E$28,2))))),IF(OR(H122="SEN",H122<94),VLOOKUP(I122,Feuil1!$F$10:$J$24,5),IF(AND(H122>93,H122<97),VLOOKUP(I122,Feuil1!$F$10:$J$24,4),IF(AND(H122>93,H122<97),VLOOKUP(I122,Feuil1!$F$10:$J$24,4),IF(AND(H122>96,H122<100),VLOOKUP(I122,Feuil1!$F$10:$J$24,3),VLOOKUP(I122,Feuil1!$F$10:$J$24,2))))))) -> FC69 | Y122: 100.5626562 | AA122: =T122-HLOOKUP(X122,Feuil1!$C$1:$AU$9,2,FALSE) -> 15 | AB122: =T122-HLOOKUP(X122,Feuil1!$C$1:$AU$9,3,FALSE) -> 0 | AC122: =T122-HLOOKUP(X122,Feuil1!$C$1:$AU$9,4,FALSE) -> -15 | AD122: =T122-HLOOKUP(X122,Feuil1!$C$1:$AU$9,5,FALSE) -> -25 | AE122: =T122-HLOOKUP(X122,Feuil1!$C$1:$AU$9,6,FALSE) -> -40 | AF122: =T122-HLOOKUP(X122,Feuil1!$C$1:$AU$9,7,FALSE) -> -55 | AG122: =T122-HLOOKUP(X122,Feuil1!$C$1:$AU$9,8,FALSE) -> -65 | AH122: =T122-HLOOKUP(X122,Feuil1!$C$1:$AU$9,9,FALSE) -> -920 | AP122: REG +
A123: F | B123: NE | C123: BOU | D123: 18 | E123: 367031 | F123: CASTAINGT | G123: MELANIE | H123: 98 | I123: 68.45 | J123: STADE DIJONNAIS HM | K123: F | L123: 32 | M123: -35 | N123: 35 | O123: 35 | P123: -42 | Q123: 42 | R123: -47 | S123: 42 | T123: 77 | V123: DEP + | W123: 12 | X123: =IF(I123="","",IF(A123="H",IF(OR(H123="SEN",H123<94),VLOOKUP(I123,Feuil1!$A$10:$E$28,5),IF(AND(H123>93,H123<97),VLOOKUP(I123,Feuil1!$A$10:$E$28,4),IF(AND(H123>93,H123<97),VLOOKUP(I123,Feuil1!$A$10:$E$28,3),IF(AND(H123>96,H123<100),VLOOKUP(I123,Feuil1!$A$10:$E$28,3),VLOOKUP(I123,Feuil1!$A$10:$E$28,2))))),IF(OR(H123="SEN",H123<94),VLOOKUP(I123,Feuil1!$F$10:$J$24,5),IF(AND(H123>93,H123<97),VLOOKUP(I123,Feuil1!$F$10:$J$24,4),IF(AND(H123>93,H123<97),VLOOKUP(I123,Feuil1!$F$10:$J$24,4),IF(AND(H123>96,H123<100),VLOOKUP(I123,Feuil1!$F$10:$J$24,3),VLOOKUP(I123,Feuil1!$F$10:$J$24,2))))))) -> FC69 | Y123: 97.08776471 | AA123: =T123-HLOOKUP(X123,Feuil1!$C$1:$AU$9,2,FALSE) -> 12 | AB123: =T123-HLOOKUP(X123,Feuil1!$C$1:$AU$9,3,FALSE) -> -3 | AC123: =T123-HLOOKUP(X123,Feuil1!$C$1:$AU$9,4,FALSE) -> -18 | AD123: =T123-HLOOKUP(X123,Feuil1!$C$1:$AU$9,5,FALSE) -> -28 | AE123: =T123-HLOOKUP(X123,Feuil1!$C$1:$AU$9,6,FALSE) -> -43 | AF123: =T123-HLOOKUP(X123,Feuil1!$C$1:$AU$9,7,FALSE) -> -58 | AG123: =T123-HLOOKUP(X123,Feuil1!$C$1:$AU$9,8,FALSE) -> -68 | AH123: =T123-HLOOKUP(X123,Feuil1!$C$1:$AU$9,9,FALSE) -> -923 | AP123: DEP +
A124: F | B124: DOM | C124: GUA | D124: 19 | E124: 342878 | F124: CALIF | G124: Maeva | H124: 98 | I124: 69 | J124: Body Club Domien | K124: F | L124: 28 | M124: 32 | N124: -35 | O124: 32 | P124: 35 | Q124: 40 | R124: -43 | S124: 40 | T124: 72 | V124: DEP + | W124: 7 | X124: =IF(I124="","",IF(A124="H",IF(OR(H124="SEN",H124<94),VLOOKUP(I124,Feuil1!$A$10:$E$28,5),IF(AND(H124>93,H124<97),VLOOKUP(I124,Feuil1!$A$10:$E$28,4),IF(AND(H124>93,H124<97),VLOOKUP(I124,Feuil1!$A$10:$E$28,3),IF(AND(H124>96,H124<100),VLOOKUP(I124,Feuil1!$A$10:$E$28,3),VLOOKUP(I124,Feuil1!$A$10:$E$28,2))))),IF(OR(H124="SEN",H124<94),VLOOKUP(I124,Feuil1!$F$10:$J$24,5),IF(AND(H124>93,H124<97),VLOOKUP(I124,Feuil1!$F$10:$J$24,4),IF(AND(H124>93,H124<97),VLOOKUP(I124,Feuil1!$F$10:$J$24,4),IF(AND(H124>96,H124<100),VLOOKUP(I124,Feuil1!$F$10:$J$24,3),VLOOKUP(I124,Feuil1!$F$10:$J$24,2))))))) -> FC69 | Y124: 90.34994709 | AA124: =T124-HLOOKUP(X124,Feuil1!$C$1:$AU$9,2,FALSE) -> 7 | AB124: =T124-HLOOKUP(X124,Feuil1!$C$1:$AU$9,3,FALSE) -> -8 | AC124: =T124-HLOOKUP(X124,Feuil1!$C$1:$AU$9,4,FALSE) -> -23 | AD124: =T124-HLOOKUP(X124,Feuil1!$C$1:$AU$9,5,FALSE) -> -33 | AE124: =T124-HLOOKUP(X124,Feuil1!$C$1:$AU$9,6,FALSE) -> -48 | AF124: =T124-HLOOKUP(X124,Feuil1!$C$1:$AU$9,7,FALSE) -> -63 | AG124: =T124-HLOOKUP(X124,Feuil1!$C$1:$AU$9,8,FALSE) -> -73 | AH124: =T124-HLOOKUP(X124,Feuil1!$C$1:$AU$9,9,FALSE) -> -928 | AP124: DEP +
A125: F | B125: DOM | C125: GUA | D125: 20 | E125: 367890 | F125: AZINCOURT | G125: Erika | H125: 97 | I125: 68.4 | J125: Body Club Domien | K125: F | L125: 25 | M125: 30 | N125: -33 | O125: 30 | P125: 35 | Q125: 40 | R125: -45 | S125: 40 | T125: 70 | V125: DEP + | W125: 5 | X125: =IF(I125="","",IF(A125="H",IF(OR(H125="SEN",H125<94),VLOOKUP(I125,Feuil1!$A$10:$E$28,5),IF(AND(H125>93,H125<97),VLOOKUP(I125,Feuil1!$A$10:$E$28,4),IF(AND(H125>93,H125<97),VLOOKUP(I125,Feuil1!$A$10:$E$28,3),IF(AND(H125>96,H125<100),VLOOKUP(I125,Feuil1!$A$10:$E$28,3),VLOOKUP(I125,Feuil1!$A$10:$E$28,2))))),IF(OR(H125="SEN",H125<94),VLOOKUP(I125,Feuil1!$F$10:$J$24,5),IF(AND(H125>93,H125<97),VLOOKUP(I125,Feuil1!$F$10:$J$24,4),IF(AND(H125>93,H125<97),VLOOKUP(I125,Feuil1!$F$10:$J$24,4),IF(AND(H125>96,H125<100),VLOOKUP(I125,Feuil1!$F$10:$J$24,3),VLOOKUP(I125,Feuil1!$F$10:$J$24,2))))))) -> FC69 | Y125: 88.30039927 | AA125: =T125-HLOOKUP(X125,Feuil1!$C$1:$AU$9,2,FALSE) -> 5 | AB125: =T125-HLOOKUP(X125,Feuil1!$C$1:$AU$9,3,FALSE) -> -10 | AC125: =T125-HLOOKUP(X125,Feuil1!$C$1:$AU$9,4,FALSE) -> -25 | AD125: =T125-HLOOKUP(X125,Feuil1!$C$1:$AU$9,5,FALSE) -> -35 | AE125: =T125-HLOOKUP(X125,Feuil1!$C$1:$AU$9,6,FALSE) -> -50 | AF125: =T125-HLOOKUP(X125,Feuil1!$C$1:$AU$9,7,FALSE) -> -65 | AG125: =T125-HLOOKUP(X125,Feuil1!$C$1:$AU$9,8,FALSE) -> -75 | AH125: =T125-HLOOKUP(X125,Feuil1!$C$1:$AU$9,9,FALSE) -> -930 | AP125: DEP +
A126: F | B126: DOM | C126: GUA | D126: 21 | E126: 367888 | F126: BOUDINE | G126: Rémyka | H126: 97 | I126: 69 | J126: AHCS/Pointois | K126: F | L126: 25 | M126: 30 | N126: -32 | O126: 30 | P126: 35 | Q126: 40 | R126: -42 | S126: 40 | T126: 70 | V126: DEP + | W126: 5 | X126: =IF(I126="","",IF(A126="H",IF(OR(H126="SEN",H126<94),VLOOKUP(I126,Feuil1!$A$10:$E$28,5),IF(AND(H126>93,H126<97),VLOOKUP(I126,Feuil1!$A$10:$E$28,4),IF(AND(H126>93,H126<97),VLOOKUP(I126,Feuil1!$A$10:$E$28,3),IF(AND(H126>96,H126<100),VLOOKUP(I126,Feuil1!$A$10:$E$28,3),VLOOKUP(I126,Feuil1!$A$10:$E$28,2))))),IF(OR(H126="SEN",H126<94),VLOOKUP(I126,Feuil1!$F$10:$J$24,5),IF(AND(H126>93,H126<97),VLOOKUP(I126,Feuil1!$F$10:$J$24,4),IF(AND(H126>93,H126<97),VLOOKUP(I126,Feuil1!$F$10:$J$24,4),IF(AND(H126>96,H126<100),VLOOKUP(I126,Feuil1!$F$10:$J$24,3),VLOOKUP(I126,Feuil1!$F$10:$J$24,2))))))) -> FC69 | Y126: 87.84022634 | AA126: =T126-HLOOKUP(X126,Feuil1!$C$1:$AU$9,2,FALSE) -> 5 | AB126: =T126-HLOOKUP(X126,Feuil1!$C$1:$AU$9,3,FALSE) -> -10 | AC126: =T126-HLOOKUP(X126,Feuil1!$C$1:$AU$9,4,FALSE) -> -25 | AD126: =T126-HLOOKUP(X126,Feuil1!$C$1:$AU$9,5,FALSE) -> -35 | AE126: =T126-HLOOKUP(X126,Feuil1!$C$1:$AU$9,6,FALSE) -> -50 | AF126: =T126-HLOOKUP(X126,Feuil1!$C$1:$AU$9,7,FALSE) -> -65 | AG126: =T126-HLOOKUP(X126,Feuil1!$C$1:$AU$9,8,FALSE) -> -75 | AH126: =T126-HLOOKUP(X126,Feuil1!$C$1:$AU$9,9,FALSE) -> -930 | AP126: DEP +
A127: F | B127: Nord | C127: PIC | D127: 22 | E127: 305376 | F127: CLARYS | G127: Pauline | H127: 98 | I127: 67.5 | J127: USC Moislains | K127: F | L127: 26 | M127: 30 | N127: -32 | O127: 30 | P127: 34 | Q127: 36 | R127: 39 | S127: 39 | T127: 69 | V127: DEP + | W127: 4 | X127: =IF(I127="","",IF(A127="H",IF(OR(H127="SEN",H127<94),VLOOKUP(I127,Feuil1!$A$10:$E$28,5),IF(AND(H127>93,H127<97),VLOOKUP(I127,Feuil1!$A$10:$E$28,4),IF(AND(H127>93,H127<97),VLOOKUP(I127,Feuil1!$A$10:$E$28,3),IF(AND(H127>96,H127<100),VLOOKUP(I127,Feuil1!$A$10:$E$28,3),VLOOKUP(I127,Feuil1!$A$10:$E$28,2))))),IF(OR(H127="SEN",H127<94),VLOOKUP(I127,Feuil1!$F$10:$J$24,5),IF(AND(H127>93,H127<97),VLOOKUP(I127,Feuil1!$F$10:$J$24,4),IF(AND(H127>93,H127<97),VLOOKUP(I127,Feuil1!$F$10:$J$24,4),IF(AND(H127>96,H127<100),VLOOKUP(I127,Feuil1!$F$10:$J$24,3),VLOOKUP(I127,Feuil1!$F$10:$J$24,2))))))) -> FC69 | Y127: 87.74137073 | AA127: =T127-HLOOKUP(X127,Feuil1!$C$1:$AU$9,2,FALSE) -> 4 | AB127: =T127-HLOOKUP(X127,Feuil1!$C$1:$AU$9,3,FALSE) -> -11 | AC127: =T127-HLOOKUP(X127,Feuil1!$C$1:$AU$9,4,FALSE) -> -26 | AD127: =T127-HLOOKUP(X127,Feuil1!$C$1:$AU$9,5,FALSE) -> -36 | AE127: =T127-HLOOKUP(X127,Feuil1!$C$1:$AU$9,6,FALSE) -> -51 | AF127: =T127-HLOOKUP(X127,Feuil1!$C$1:$AU$9,7,FALSE) -> -66 | AG127: =T127-HLOOKUP(X127,Feuil1!$C$1:$AU$9,8,FALSE) -> -76 | AH127: =T127-HLOOKUP(X127,Feuil1!$C$1:$AU$9,9,FALSE) -> -931 | AP127: DEP +
A128: F | B128: NE | C128: FCO | D128: 23 | E128: 370228 | F128: PERRAUT | G128: fanny | H128: 99 | I128: 64 | J128: CH LUXEUIL | K128: F | L128: 24 | M128: 26 | N128: 29 | O128: 29 | P128: 28 | Q128: 30 | R128: 35 | S128: 35 | T128: 64 | V128: NCL | W128: -1 | X128: =IF(I128="","",IF(A128="H",IF(OR(H128="SEN",H128<94),VLOOKUP(I128,Feuil1!$A$10:$E$28,5),IF(AND(H128>93,H128<97),VLOOKUP(I128,Feuil1!$A$10:$E$28,4),IF(AND(H128>93,H128<97),VLOOKUP(I128,Feuil1!$A$10:$E$28,3),IF(AND(H128>96,H128<100),VLOOKUP(I128,Feuil1!$A$10:$E$28,3),VLOOKUP(I128,Feuil1!$A$10:$E$28,2))))),IF(OR(H128="SEN",H128<94),VLOOKUP(I128,Feuil1!$F$10:$J$24,5),IF(AND(H128>93,H128<97),VLOOKUP(I128,Feuil1!$F$10:$J$24,4),IF(AND(H128>93,H128<97),VLOOKUP(I128,Feuil1!$F$10:$J$24,4),IF(AND(H128>96,H128<100),VLOOKUP(I128,Feuil1!$F$10:$J$24,3),VLOOKUP(I128,Feuil1!$F$10:$J$24,2))))))) -> FC69 | Y128: 84.17181293 | AA128: =T128-HLOOKUP(X128,Feuil1!$C$1:$AU$9,2,FALSE) -> -1 | AB128: =T128-HLOOKUP(X128,Feuil1!$C$1:$AU$9,3,FALSE) -> -16 | AC128: =T128-HLOOKUP(X128,Feuil1!$C$1:$AU$9,4,FALSE) -> -31 | AD128: =T128-HLOOKUP(X128,Feuil1!$C$1:$AU$9,5,FALSE) -> -41 | AE128: =T128-HLOOKUP(X128,Feuil1!$C$1:$AU$9,6,FALSE) -> -56 | AF128: =T128-HLOOKUP(X128,Feuil1!$C$1:$AU$9,7,FALSE) -> -71 | AG128: =T128-HLOOKUP(X128,Feuil1!$C$1:$AU$9,8,FALSE) -> -81 | AH128: =T128-HLOOKUP(X128,Feuil1!$C$1:$AU$9,9,FALSE) -> -936 | AP128: NCL
A129: F | B129: Nord | C129: IDF | D129: 24 | E129: 273035 | F129: LASSARA | G129: Agnès | H129: 97 | I129: 66.9 | J129: PONTOISE | K129: F | L129: 23 | M129: 25 | N129: -26 | O129: 25 | P129: 30 | Q129: 33 | R129: 35 | S129: 35 | T129: 60 | V129: NCL | W129: -5 | X129: =IF(I129="","",IF(A129="H",IF(OR(H129="SEN",H129<94),VLOOKUP(I129,Feuil1!$A$10:$E$28,5),IF(AND(H129>93,H129<97),VLOOKUP(I129,Feuil1!$A$10:$E$28,4),IF(AND(H129>93,H129<97),VLOOKUP(I129,Feuil1!$A$10:$E$28,3),IF(AND(H129>96,H129<100),VLOOKUP(I129,Feuil1!$A$10:$E$28,3),VLOOKUP(I129,Feuil1!$A$10:$E$28,2))))),IF(OR(H129="SEN",H129<94),VLOOKUP(I129,Feuil1!$F$10:$J$24,5),IF(AND(H129>93,H129<97),VLOOKUP(I129,Feuil1!$F$10:$J$24,4),IF(AND(H129>93,H129<97),VLOOKUP(I129,Feuil1!$F$10:$J$24,4),IF(AND(H129>96,H129<100),VLOOKUP(I129,Feuil1!$F$10:$J$24,3),VLOOKUP(I129,Feuil1!$F$10:$J$24,2))))))) -> FC69 | Y129: 76.71727435 | AA129: =T129-HLOOKUP(X129,Feuil1!$C$1:$AU$9,2,FALSE) -> -5 | AB129: =T129-HLOOKUP(X129,Feuil1!$C$1:$AU$9,3,FALSE) -> -20 | AC129: =T129-HLOOKUP(X129,Feuil1!$C$1:$AU$9,4,FALSE) -> -35 | AD129: =T129-HLOOKUP(X129,Feuil1!$C$1:$AU$9,5,FALSE) -> -45 | AE129: =T129-HLOOKUP(X129,Feuil1!$C$1:$AU$9,6,FALSE) -> -60 | AF129: =T129-HLOOKUP(X129,Feuil1!$C$1:$AU$9,7,FALSE) -> -75 | AG129: =T129-HLOOKUP(X129,Feuil1!$C$1:$AU$9,8,FALSE) -> -85 | AH129: =T129-HLOOKUP(X129,Feuil1!$C$1:$AU$9,9,FALSE) -> -940 | AP129: NCL
A130: F | B130: NE | C130: BOU | D130: 25 | E130: 336127 | F130: COSTA | G130: Charlène | H130: 97 | I130: 63.5 | J130: Olympique Mâcon | K130: F | L130: 22 | M130: 25 | N130: -28 | O130: 25 | P130: 25 | Q130: 28 | R130: -30 | S130: 28 | T130: 53 | V130: NCL | W130: -12 | X130: =IF(I130="","",IF(A130="H",IF(OR(H130="SEN",H130<94),VLOOKUP(I130,Feuil1!$A$10:$E$28,5),IF(AND(H130>93,H130<97),VLOOKUP(I130,Feuil1!$A$10:$E$28,4),IF(AND(H130>93,H130<97),VLOOKUP(I130,Feuil1!$A$10:$E$28,3),IF(AND(H130>96,H130<100),VLOOKUP(I130,Feuil1!$A$10:$E$28,3),VLOOKUP(I130,Feuil1!$A$10:$E$28,2))))),IF(OR(H130="SEN",H130<94),VLOOKUP(I130,Feuil1!$F$10:$J$24,5),IF(AND(H130>93,H130<97),VLOOKUP(I130,Feuil1!$F$10:$J$24,4),IF(AND(H130>93,H130<97),VLOOKUP(I130,Feuil1!$F$10:$J$24,4),IF(AND(H130>96,H130<100),VLOOKUP(I130,Feuil1!$F$10:$J$24,3),VLOOKUP(I130,Feuil1!$F$10:$J$24,2))))))) -> FC69 | Y130: 70.06464645 | AA130: =T130-HLOOKUP(X130,Feuil1!$C$1:$AU$9,2,FALSE) -> -12 | AB130: =T130-HLOOKUP(X130,Feuil1!$C$1:$AU$9,3,FALSE) -> -27 | AC130: =T130-HLOOKUP(X130,Feuil1!$C$1:$AU$9,4,FALSE) -> -42 | AD130: =T130-HLOOKUP(X130,Feuil1!$C$1:$AU$9,5,FALSE) -> -52 | AE130: =T130-HLOOKUP(X130,Feuil1!$C$1:$AU$9,6,FALSE) -> -67 | AF130: =T130-HLOOKUP(X130,Feuil1!$C$1:$AU$9,7,FALSE) -> -82 | AG130: =T130-HLOOKUP(X130,Feuil1!$C$1:$AU$9,8,FALSE) -> -92 | AH130: =T130-HLOOKUP(X130,Feuil1!$C$1:$AU$9,9,FALSE) -> -947 | AP130: NCL
A131: F | B131: CO | C131: BNO | D131: 26 | E131: 368943 | F131: SPIES | G131: Agathe | H131: 98 | I131: 67.2 | J131: VERSON HM | K131: F | L131: 20 | M131: 23 | N131: -25 | O131: 23 | P131: 25 | Q131: -28 | R131: 28 | S131: 28 | T131: 51 | V131: NCL | W131: -14 | X131: =IF(I131="","",IF(A131="H",IF(OR(H131="SEN",H131<94),VLOOKUP(I131,Feuil1!$A$10:$E$28,5),IF(AND(H131>93,H131<97),VLOOKUP(I131,Feuil1!$A$10:$E$28,4),IF(AND(H131>93,H131<97),VLOOKUP(I131,Feuil1!$A$10:$E$28,3),IF(AND(H131>96,H131<100),VLOOKUP(I131,Feuil1!$A$10:$E$28,3),VLOOKUP(I131,Feuil1!$A$10:$E$28,2))))),IF(OR(H131="SEN",H131<94),VLOOKUP(I131,Feuil1!$F$10:$J$24,5),IF(AND(H131>93,H131<97),VLOOKUP(I131,Feuil1!$F$10:$J$24,4),IF(AND(H131>93,H131<97),VLOOKUP(I131,Feuil1!$F$10:$J$24,4),IF(AND(H131>96,H131<100),VLOOKUP(I131,Feuil1!$F$10:$J$24,3),VLOOKUP(I131,Feuil1!$F$10:$J$24,2))))))) -> FC69 | Y131: 65.02985098 | AA131: =T131-HLOOKUP(X131,Feuil1!$C$1:$AU$9,2,FALSE) -> -14 | AB131: =T131-HLOOKUP(X131,Feuil1!$C$1:$AU$9,3,FALSE) -> -29 | AC131: =T131-HLOOKUP(X131,Feuil1!$C$1:$AU$9,4,FALSE) -> -44 | AD131: =T131-HLOOKUP(X131,Feuil1!$C$1:$AU$9,5,FALSE) -> -54 | AE131: =T131-HLOOKUP(X131,Feuil1!$C$1:$AU$9,6,FALSE) -> -69 | AF131: =T131-HLOOKUP(X131,Feuil1!$C$1:$AU$9,7,FALSE) -> -84 | AG131: =T131-HLOOKUP(X131,Feuil1!$C$1:$AU$9,8,FALSE) -> -94 | AH131: =T131-HLOOKUP(X131,Feuil1!$C$1:$AU$9,9,FALSE) -> -949 | AP131: NCL
A132: F | B132: SO | C132: MPY | D132: 27 | E132: 365941 | F132: BRANCO | G132: Margaux | H132: 99 | I132: 67.1 | J132: MONTAUBAN HC | K132: F | L132: 17 | M132: 19 | N132: 21 | O132: 21 | P132: 22 | Q132: 24 | R132: 26 | S132: 26 | T132: 47 | V132: NCL | W132: -18 | X132: =IF(I132="","",IF(A132="H",IF(OR(H132="SEN",H132<94),VLOOKUP(I132,Feuil1!$A$10:$E$28,5),IF(AND(H132>93,H132<97),VLOOKUP(I132,Feuil1!$A$10:$E$28,4),IF(AND(H132>93,H132<97),VLOOKUP(I132,Feuil1!$A$10:$E$28,3),IF(AND(H132>96,H132<100),VLOOKUP(I132,Feuil1!$A$10:$E$28,3),VLOOKUP(I132,Feuil1!$A$10:$E$28,2))))),IF(OR(H132="SEN",H132<94),VLOOKUP(I132,Feuil1!$F$10:$J$24,5),IF(AND(H132>93,H132<97),VLOOKUP(I132,Feuil1!$F$10:$J$24,4),IF(AND(H132>93,H132<97),VLOOKUP(I132,Feuil1!$F$10:$J$24,4),IF(AND(H132>96,H132<100),VLOOKUP(I132,Feuil1!$F$10:$J$24,3),VLOOKUP(I132,Feuil1!$F$10:$J$24,2))))))) -> FC69 | Y132: 59.98447603 | AA132: =T132-HLOOKUP(X132,Feuil1!$C$1:$AU$9,2,FALSE) -> -18 | AB132: =T132-HLOOKUP(X132,Feuil1!$C$1:$AU$9,3,FALSE) -> -33 | AC132: =T132-HLOOKUP(X132,Feuil1!$C$1:$AU$9,4,FALSE) -> -48 | AD132: =T132-HLOOKUP(X132,Feuil1!$C$1:$AU$9,5,FALSE) -> -58 | AE132: =T132-HLOOKUP(X132,Feuil1!$C$1:$AU$9,6,FALSE) -> -73 | AF132: =T132-HLOOKUP(X132,Feuil1!$C$1:$AU$9,7,FALSE) -> -88 | AG132: =T132-HLOOKUP(X132,Feuil1!$C$1:$AU$9,8,FALSE) -> -98 | AH132: =T132-HLOOKUP(X132,Feuil1!$C$1:$AU$9,9,FALSE) -> -953 | AP132: NCL
A134: F | B134: DOM | C134: REU | D134: 1 | E134: 306021 | F134: HERMET | G134: FRANCINE | H134: 97 | I134: 95.8 | J134: CH La Plaine | K134: F | L134: 45 | M134: 50 | N134: 55 | O134: =IF(H134="","",IF(MAXA(L134:N134)<=0,0,MAXA(L134:N134))) -> 55 | P134: 65 | Q134: 70 | R134: 75 | S134: =IF(H134="","",IF(MAXA(P134:R134)<=0,0,MAXA(P134:R134))) -> 75 | T134: =IF(H134="","",IF(OR(O134=0,S134=0),0,O134+S134)) -> 130 | V134: =IF(H134="","",AP134) -> NAT + | W134: =IF(P134="","",IF(AH134>=0,AH134,IF(AG134>=0,AG134,IF(AF134>=0,AF134,IF(AE134>=0,AE134,IF(AD134>=0,AD134,IF(AC134>=0,AC134,IF(AB134>=0,AB134,AA134)))))))) -> 0 | X134: =IF(I134="","",IF(A134="H",IF(OR(H134="SEN",H134<94),VLOOKUP(I134,Feuil1!$A$10:$E$28,5),IF(AND(H134>93,H134<97),VLOOKUP(I134,Feuil1!$A$10:$E$28,4),IF(AND(H134>93,H134<97),VLOOKUP(I134,Feuil1!$A$10:$E$28,3),IF(AND(H134>96,H134<100),VLOOKUP(I134,Feuil1!$A$10:$E$28,3),VLOOKUP(I134,Feuil1!$A$10:$E$28,2))))),IF(OR(H134="SEN",H134<94),VLOOKUP(I134,Feuil1!$F$10:$J$24,5),IF(AND(H134>93,H134<97),VLOOKUP(I134,Feuil1!$F$10:$J$24,4),IF(AND(H134>93,H134<97),VLOOKUP(I134,Feuil1!$F$10:$J$24,4),IF(AND(H134>96,H134<100),VLOOKUP(I134,Feuil1!$F$10:$J$24,3),VLOOKUP(I134,Feuil1!$F$10:$J$24,2))))))) -> FC+69 | Y134: =IF(I134="","",IF(A134="H",10^(0.794358141*LOG(I134/174.393)^2)*T134,IF(A134="F",10^(0.89726074*LOG(I134/148.026)^2)*T134,""))) -> 139.9539225 | AA134: =T134-HLOOKUP(X134,Feuil1!$C$1:$AU$9,2,FALSE) -> 55 | AB134: =T134-HLOOKUP(X134,Feuil1!$C$1:$AU$9,3,FALSE) -> 40 | AC134: =T134-HLOOKUP(X134,Feuil1!$C$1:$AU$9,4,FALSE) -> 25 | AD134: =T134-HLOOKUP(X134,Feuil1!$C$1:$AU$9,5,FALSE) -> 15 | AE134: =T134-HLOOKUP(X134,Feuil1!$C$1:$AU$9,6,FALSE) -> 0 | AF134: =T134-HLOOKUP(X134,Feuil1!$C$1:$AU$9,7,FALSE) -> -15 | AG134: =T134-HLOOKUP(X134,Feuil1!$C$1:$AU$9,8,FALSE) -> -25 | AH134: =T134-HLOOKUP(X134,Feuil1!$C$1:$AU$9,9,FALSE) -> -870 | AP134: =IF(AH134>=0,$AH$4,IF(AG134>=0,$AG$4,IF(AF134>=0,$AF$4,IF(AE134>=0,$AE$4,IF(AD134>=0,$AD$4,IF(AC134>=0,$AC$4,IF(AB134>=0,$AB$4,IF(AA134>=0,$AA$4,$AI$4)))))))) -> NAT +
A135: F | B135: NE | C135: ALS | D135: 2 | E135: 348083 | F135: LEIBUNDGUTH | G135: LISA | H135: 97 | I135: 74.55 | J135: ASI Avenir HMF | K135: F | L135: 48 | M135: 52 | N135: 55 | O135: 55 | P135: 68 | Q135: 72 | R135: -75 | S135: 72 | T135: 127 | V135: FED + | W135: 12 | X135: =IF(I135="","",IF(A135="H",IF(OR(H135="SEN",H135<94),VLOOKUP(I135,Feuil1!$A$10:$E$28,5),IF(AND(H135>93,H135<97),VLOOKUP(I135,Feuil1!$A$10:$E$28,4),IF(AND(H135>93,H135<97),VLOOKUP(I135,Feuil1!$A$10:$E$28,3),IF(AND(H135>96,H135<100),VLOOKUP(I135,Feuil1!$A$10:$E$28,3),VLOOKUP(I135,Feuil1!$A$10:$E$28,2))))),IF(OR(H135="SEN",H135<94),VLOOKUP(I135,Feuil1!$F$10:$J$24,5),IF(AND(H135>93,H135<97),VLOOKUP(I135,Feuil1!$F$10:$J$24,4),IF(AND(H135>93,H135<97),VLOOKUP(I135,Feuil1!$F$10:$J$24,4),IF(AND(H135>96,H135<100),VLOOKUP(I135,Feuil1!$F$10:$J$24,3),VLOOKUP(I135,Feuil1!$F$10:$J$24,2))))))) -> FC+69 | Y135: 152.5546467 | AA135: =T135-HLOOKUP(X135,Feuil1!$C$1:$AU$9,2,FALSE) -> 52 | AB135: =T135-HLOOKUP(X135,Feuil1!$C$1:$AU$9,3,FALSE) -> 37 | AC135: =T135-HLOOKUP(X135,Feuil1!$C$1:$AU$9,4,FALSE) -> 22 | AD135: =T135-HLOOKUP(X135,Feuil1!$C$1:$AU$9,5,FALSE) -> 12 | AE135: =T135-HLOOKUP(X135,Feuil1!$C$1:$AU$9,6,FALSE) -> -3 | AF135: =T135-HLOOKUP(X135,Feuil1!$C$1:$AU$9,7,FALSE) -> -18 | AG135: =T135-HLOOKUP(X135,Feuil1!$C$1:$AU$9,8,FALSE) -> -28 | AH135: =T135-HLOOKUP(X135,Feuil1!$C$1:$AU$9,9,FALSE) -> -873 | AP135: FED +
A136: F | B136: NE | C136: ALS | D136: 3 | E136: 217169 | F136: RUOLT | G136: CELINE | H136: 97 | I136: 69.1 | J136: MJC Ungersheim | K136: F | L136: 52 | M136: 55 | N136: 57 | O136: 57 | P136: -68 | Q136: 68 | R136: -71 | S136: 68 | T136: 125 | V136: FED + | W136: 10 | X136: =IF(I136="","",IF(A136="H",IF(OR(H136="SEN",H136<94),VLOOKUP(I136,Feuil1!$A$10:$E$28,5),IF(AND(H136>93,H136<97),VLOOKUP(I136,Feuil1!$A$10:$E$28,4),IF(AND(H136>93,H136<97),VLOOKUP(I136,Feuil1!$A$10:$E$28,3),IF(AND(H136>96,H136<100),VLOOKUP(I136,Feuil1!$A$10:$E$28,3),VLOOKUP(I136,Feuil1!$A$10:$E$28,2))))),IF(OR(H136="SEN",H136<94),VLOOKUP(I136,Feuil1!$F$10:$J$24,5),IF(AND(H136>93,H136<97),VLOOKUP(I136,Feuil1!$F$10:$J$24,4),IF(AND(H136>93,H136<97),VLOOKUP(I136,Feuil1!$F$10:$J$24,4),IF(AND(H136>96,H136<100),VLOOKUP(I136,Feuil1!$F$10:$J$24,3),VLOOKUP(I136,Feuil1!$F$10:$J$24,2))))))) -> FC+69 | Y136: 156.7226009 | AA136: =T136-HLOOKUP(X136,Feuil1!$C$1:$AU$9,2,FALSE) -> 50 | AB136: =T136-HLOOKUP(X136,Feuil1!$C$1:$AU$9,3,FALSE) -> 35 | AC136: =T136-HLOOKUP(X136,Feuil1!$C$1:$AU$9,4,FALSE) -> 20 | AD136: =T136-HLOOKUP(X136,Feuil1!$C$1:$AU$9,5,FALSE) -> 10 | AE136: =T136-HLOOKUP(X136,Feuil1!$C$1:$AU$9,6,FALSE) -> -5 | AF136: =T136-HLOOKUP(X136,Feuil1!$C$1:$AU$9,7,FALSE) -> -20 | AG136: =T136-HLOOKUP(X136,Feuil1!$C$1:$AU$9,8,FALSE) -> -30 | AH136: =T136-HLOOKUP(X136,Feuil1!$C$1:$AU$9,9,FALSE) -> -875 | AP136: FED +
A137: F | B137: Nord | C137: IDF | D137: 4 | E137: 269090 | F137: NITU | G137: CLAUDIA | H137: 99 | I137: 70.3 | J137: USEDR Blanc-Mesnil | K137: Roum | L137: 40 | M137: 45 | N137: 50 | O137: 50 | P137: 60 | Q137: 65 | R137: 68 | S137: 68 | T137: 118 | V137: FED + | W137: 3 | X137: =IF(I137="","",IF(A137="H",IF(OR(H137="SEN",H137<94),VLOOKUP(I137,Feuil1!$A$10:$E$28,5),IF(AND(H137>93,H137<97),VLOOKUP(I137,Feuil1!$A$10:$E$28,4),IF(AND(H137>93,H137<97),VLOOKUP(I137,Feuil1!$A$10:$E$28,3),IF(AND(H137>96,H137<100),VLOOKUP(I137,Feuil1!$A$10:$E$28,3),VLOOKUP(I137,Feuil1!$A$10:$E$28,2))))),IF(OR(H137="SEN",H137<94),VLOOKUP(I137,Feuil1!$F$10:$J$24,5),IF(AND(H137>93,H137<97),VLOOKUP(I137,Feuil1!$F$10:$J$24,4),IF(AND(H137>93,H137<97),VLOOKUP(I137,Feuil1!$F$10:$J$24,4),IF(AND(H137>96,H137<100),VLOOKUP(I137,Feuil1!$F$10:$J$24,3),VLOOKUP(I137,Feuil1!$F$10:$J$24,2))))))) -> FC+69 | Y137: 146.4583937 | AA137: =T137-HLOOKUP(X137,Feuil1!$C$1:$AU$9,2,FALSE) -> 43 | AB137: =T137-HLOOKUP(X137,Feuil1!$C$1:$AU$9,3,FALSE) -> 28 | AC137: =T137-HLOOKUP(X137,Feuil1!$C$1:$AU$9,4,FALSE) -> 13 | AD137: =T137-HLOOKUP(X137,Feuil1!$C$1:$AU$9,5,FALSE) -> 3 | AE137: =T137-HLOOKUP(X137,Feuil1!$C$1:$AU$9,6,FALSE) -> -12 | AF137: =T137-HLOOKUP(X137,Feuil1!$C$1:$AU$9,7,FALSE) -> -27 | AG137: =T137-HLOOKUP(X137,Feuil1!$C$1:$AU$9,8,FALSE) -> -37 | AH137: =T137-HLOOKUP(X137,Feuil1!$C$1:$AU$9,9,FALSE) -> -882 | AP137: FED +
A138: F | B138: CO | C138: BRE | D138: 5 | E138: 210931 | F138: BACCEI | G138: Marilou | H138: 98 | I138: 71.25 | J138: CHM Plouhinec Pointe du Raz | K138: F | L138: 50 | M138: 53 | N138: -56 | O138: 53 | P138: 60 | Q138: -63 | R138: 63 | S138: 63 | T138: 116 | V138: FED + | W138: 1 | X138: =IF(I138="","",IF(A138="H",IF(OR(H138="SEN",H138<94),VLOOKUP(I138,Feuil1!$A$10:$E$28,5),IF(AND(H138>93,H138<97),VLOOKUP(I138,Feuil1!$A$10:$E$28,4),IF(AND(H138>93,H138<97),VLOOKUP(I138,Feuil1!$A$10:$E$28,3),IF(AND(H138>96,H138<100),VLOOKUP(I138,Feuil1!$A$10:$E$28,3),VLOOKUP(I138,Feuil1!$A$10:$E$28,2))))),IF(OR(H138="SEN",H138<94),VLOOKUP(I138,Feuil1!$F$10:$J$24,5),IF(AND(H138>93,H138<97),VLOOKUP(I138,Feuil1!$F$10:$J$24,4),IF(AND(H138>93,H138<97),VLOOKUP(I138,Feuil1!$F$10:$J$24,4),IF(AND(H138>96,H138<100),VLOOKUP(I138,Feuil1!$F$10:$J$24,3),VLOOKUP(I138,Feuil1!$F$10:$J$24,2))))))) -> FC+69 | Y138: 142.8689183 | AA138: =T138-HLOOKUP(X138,Feuil1!$C$1:$AU$9,2,FALSE) -> 41 | AB138: =T138-HLOOKUP(X138,Feuil1!$C$1:$AU$9,3,FALSE) -> 26 | AC138: =T138-HLOOKUP(X138,Feuil1!$C$1:$AU$9,4,FALSE) -> 11 | AD138: =T138-HLOOKUP(X138,Feuil1!$C$1:$AU$9,5,FALSE) -> 1 | AE138: =T138-HLOOKUP(X138,Feuil1!$C$1:$AU$9,6,FALSE) -> -14 | AF138: =T138-HLOOKUP(X138,Feuil1!$C$1:$AU$9,7,FALSE) -> -29 | AG138: =T138-HLOOKUP(X138,Feuil1!$C$1:$AU$9,8,FALSE) -> -39 | AH138: =T138-HLOOKUP(X138,Feuil1!$C$1:$AU$9,9,FALSE) -> -884 | AP138: FED +
A139: F | B139: NORD | C139: NPC | D139: 6 | E139: 362261 | F139: GODEFROIDT | G139: Charline | H139: 99 | I139: 71.18 | J139: CHCD COMINES | K139: F | L139: 40 | M139: 43 | N139: 45 | O139: 45 | P139: 52 | Q139: 55 | R139: 57 | S139: 57 | T139: 102 | V139: REG + | W139: 12 | X139: =IF(I139="","",IF(A139="H",IF(OR(H139="SEN",H139<94),VLOOKUP(I139,Feuil1!$A$10:$E$28,5),IF(AND(H139>93,H139<97),VLOOKUP(I139,Feuil1!$A$10:$E$28,4),IF(AND(H139>93,H139<97),VLOOKUP(I139,Feuil1!$A$10:$E$28,3),IF(AND(H139>96,H139<100),VLOOKUP(I139,Feuil1!$A$10:$E$28,3),VLOOKUP(I139,Feuil1!$A$10:$E$28,2))))),IF(OR(H139="SEN",H139<94),VLOOKUP(I139,Feuil1!$F$10:$J$24,5),IF(AND(H139>93,H139<97),VLOOKUP(I139,Feuil1!$F$10:$J$24,4),IF(AND(H139>93,H139<97),VLOOKUP(I139,Feuil1!$F$10:$J$24,4),IF(AND(H139>96,H139<100),VLOOKUP(I139,Feuil1!$F$10:$J$24,3),VLOOKUP(I139,Feuil1!$F$10:$J$24,2))))))) -> FC+69 | Y139: 125.6965522 | AA139: =T139-HLOOKUP(X139,Feuil1!$C$1:$AU$9,2,FALSE) -> 27 | AB139: =T139-HLOOKUP(X139,Feuil1!$C$1:$AU$9,3,FALSE) -> 12 | AC139: =T139-HLOOKUP(X139,Feuil1!$C$1:$AU$9,4,FALSE) -> -3 | AD139: =T139-HLOOKUP(X139,Feuil1!$C$1:$AU$9,5,FALSE) -> -13 | AE139: =T139-HLOOKUP(X139,Feuil1!$C$1:$AU$9,6,FALSE) -> -28 | AF139: =T139-HLOOKUP(X139,Feuil1!$C$1:$AU$9,7,FALSE) -> -43 | AG139: =T139-HLOOKUP(X139,Feuil1!$C$1:$AU$9,8,FALSE) -> -53 | AH139: =T139-HLOOKUP(X139,Feuil1!$C$1:$AU$9,9,FALSE) -> -898 | AP139: REG +
A140: F | B140: NE | C140: ALS | D140: 7 | E140: 362720 | F140: JOAQUIM | G140: EMILIE | H140: 97 | I140: 70.55 | J140: CA Moosch | K140: F | L140: 36 | M140: 40 | N140: 43 | O140: 43 | P140: 46 | Q140: 50 | R140: -53 | S140: 50 | T140: 93 | V140: REG + | W140: 3 | X140: =IF(I140="","",IF(A140="H",IF(OR(H140="SEN",H140<94),VLOOKUP(I140,Feuil1!$A$10:$E$28,5),IF(AND(H140>93,H140<97),VLOOKUP(I140,Feuil1!$A$10:$E$28,4),IF(AND(H140>93,H140<97),VLOOKUP(I140,Feuil1!$A$10:$E$28,3),IF(AND(H140>96,H140<100),VLOOKUP(I140,Feuil1!$A$10:$E$28,3),VLOOKUP(I140,Feuil1!$A$10:$E$28,2))))),IF(OR(H140="SEN",H140<94),VLOOKUP(I140,Feuil1!$F$10:$J$24,5),IF(AND(H140>93,H140<97),VLOOKUP(I140,Feuil1!$F$10:$J$24,4),IF(AND(H140>93,H140<97),VLOOKUP(I140,Feuil1!$F$10:$J$24,4),IF(AND(H140>96,H140<100),VLOOKUP(I140,Feuil1!$F$10:$J$24,3),VLOOKUP(I140,Feuil1!$F$10:$J$24,2))))))) -> FC+69 | Y140: 115.1920931 | AA140: =T140-HLOOKUP(X140,Feuil1!$C$1:$AU$9,2,FALSE) -> 18 | AB140: =T140-HLOOKUP(X140,Feuil1!$C$1:$AU$9,3,FALSE) -> 3 | AC140: =T140-HLOOKUP(X140,Feuil1!$C$1:$AU$9,4,FALSE) -> -12 | AD140: =T140-HLOOKUP(X140,Feuil1!$C$1:$AU$9,5,FALSE) -> -22 | AE140: =T140-HLOOKUP(X140,Feuil1!$C$1:$AU$9,6,FALSE) -> -37 | AF140: =T140-HLOOKUP(X140,Feuil1!$C$1:$AU$9,7,FALSE) -> -52 | AG140: =T140-HLOOKUP(X140,Feuil1!$C$1:$AU$9,8,FALSE) -> -62 | AH140: =T140-HLOOKUP(X140,Feuil1!$C$1:$AU$9,9,FALSE) -> -907 | AP140: REG +
A141: F | B141: DOM | C141: GUA | D141: 8 | E141: 339432 | F141: SEVERIN | G141: Miledy | H141: 97 | I141: 70 | J141: AHCS/Pointois | K141: F | L141: 35 | M141: 40 | N141: 42 | O141: 42 | P141: 45 | Q141: 50 | R141: -53 | S141: 50 | T141: 92 | V141: REG + | W141: 2 | X141: =IF(I141="","",IF(A141="H",IF(OR(H141="SEN",H141<94),VLOOKUP(I141,Feuil1!$A$10:$E$28,5),IF(AND(H141>93,H141<97),VLOOKUP(I141,Feuil1!$A$10:$E$28,4),IF(AND(H141>93,H141<97),VLOOKUP(I141,Feuil1!$A$10:$E$28,3),IF(AND(H141>96,H141<100),VLOOKUP(I141,Feuil1!$A$10:$E$28,3),VLOOKUP(I141,Feuil1!$A$10:$E$28,2))))),IF(OR(H141="SEN",H141<94),VLOOKUP(I141,Feuil1!$F$10:$J$24,5),IF(AND(H141>93,H141<97),VLOOKUP(I141,Feuil1!$F$10:$J$24,4),IF(AND(H141>93,H141<97),VLOOKUP(I141,Feuil1!$F$10:$J$24,4),IF(AND(H141>96,H141<100),VLOOKUP(I141,Feuil1!$F$10:$J$24,3),VLOOKUP(I141,Feuil1!$F$10:$J$24,2))))))) -> FC+69 | Y141: 114.4724548 | AA141: =T141-HLOOKUP(X141,Feuil1!$C$1:$AU$9,2,FALSE) -> 17 | AB141: =T141-HLOOKUP(X141,Feuil1!$C$1:$AU$9,3,FALSE) -> 2 | AC141: =T141-HLOOKUP(X141,Feuil1!$C$1:$AU$9,4,FALSE) -> -13 | AD141: =T141-HLOOKUP(X141,Feuil1!$C$1:$AU$9,5,FALSE) -> -23 | AE141: =T141-HLOOKUP(X141,Feuil1!$C$1:$AU$9,6,FALSE) -> -38 | AF141: =T141-HLOOKUP(X141,Feuil1!$C$1:$AU$9,7,FALSE) -> -53 | AG141: =T141-HLOOKUP(X141,Feuil1!$C$1:$AU$9,8,FALSE) -> -63 | AH141: =T141-HLOOKUP(X141,Feuil1!$C$1:$AU$9,9,FALSE) -> -908 | AP141: REG +
A142: F | B142: DOM | C142: GUA | D142: 9 | E142: 337652 | F142: PIMPIT | G142: Stessy | H142: 99 | I142: 78.5 | J142: AHCS/Pointois | K142: F | L142: 32 | M142: 37 | N142: 40 | O142: 40 | P142: 43 | Q142: 48 | R142: -50 | S142: 48 | T142: 88 | V142: DEP + | W142: 13 | X142: =IF(I142="","",IF(A142="H",IF(OR(H142="SEN",H142<94),VLOOKUP(I142,Feuil1!$A$10:$E$28,5),IF(AND(H142>93,H142<97),VLOOKUP(I142,Feuil1!$A$10:$E$28,4),IF(AND(H142>93,H142<97),VLOOKUP(I142,Feuil1!$A$10:$E$28,3),IF(AND(H142>96,H142<100),VLOOKUP(I142,Feuil1!$A$10:$E$28,3),VLOOKUP(I142,Feuil1!$A$10:$E$28,2))))),IF(OR(H142="SEN",H142<94),VLOOKUP(I142,Feuil1!$F$10:$J$24,5),IF(AND(H142>93,H142<97),VLOOKUP(I142,Feuil1!$F$10:$J$24,4),IF(AND(H142>93,H142<97),VLOOKUP(I142,Feuil1!$F$10:$J$24,4),IF(AND(H142>96,H142<100),VLOOKUP(I142,Feuil1!$F$10:$J$24,3),VLOOKUP(I142,Feuil1!$F$10:$J$24,2))))))) -> FC+69 | Y142: 102.936486 | AA142: =T142-HLOOKUP(X142,Feuil1!$C$1:$AU$9,2,FALSE) -> 13 | AB142: =T142-HLOOKUP(X142,Feuil1!$C$1:$AU$9,3,FALSE) -> -2 | AC142: =T142-HLOOKUP(X142,Feuil1!$C$1:$AU$9,4,FALSE) -> -17 | AD142: =T142-HLOOKUP(X142,Feuil1!$C$1:$AU$9,5,FALSE) -> -27 | AE142: =T142-HLOOKUP(X142,Feuil1!$C$1:$AU$9,6,FALSE) -> -42 | AF142: =T142-HLOOKUP(X142,Feuil1!$C$1:$AU$9,7,FALSE) -> -57 | AG142: =T142-HLOOKUP(X142,Feuil1!$C$1:$AU$9,8,FALSE) -> -67 | AH142: =T142-HLOOKUP(X142,Feuil1!$C$1:$AU$9,9,FALSE) -> -912 | AP142: DEP +
A143: F | B143: Nord | C143: PIC | D143: 10 | E143: 304577 | F143: MARTEL | G143: Laurine | H143: 99 | I143: 82.2 | J143: USC Moislains | K143: F | L143: 30 | M143: 34 | N143: -36 | O143: 34 | P143: 48 | Q143: 51 | R143: 53 | S143: 53 | T143: 87 | V143: DEP + | W143: 12 | X143: =IF(I143="","",IF(A143="H",IF(OR(H143="SEN",H143<94),VLOOKUP(I143,Feuil1!$A$10:$E$28,5),IF(AND(H143>93,H143<97),VLOOKUP(I143,Feuil1!$A$10:$E$28,4),IF(AND(H143>93,H143<97),VLOOKUP(I143,Feuil1!$A$10:$E$28,3),IF(AND(H143>96,H143<100),VLOOKUP(I143,Feuil1!$A$10:$E$28,3),VLOOKUP(I143,Feuil1!$A$10:$E$28,2))))),IF(OR(H143="SEN",H143<94),VLOOKUP(I143,Feuil1!$F$10:$J$24,5),IF(AND(H143>93,H143<97),VLOOKUP(I143,Feuil1!$F$10:$J$24,4),IF(AND(H143>93,H143<97),VLOOKUP(I143,Feuil1!$F$10:$J$24,4),IF(AND(H143>96,H143<100),VLOOKUP(I143,Feuil1!$F$10:$J$24,3),VLOOKUP(I143,Feuil1!$F$10:$J$24,2))))))) -> FC+69 | Y143: 99.55822737 | AA143: =T143-HLOOKUP(X143,Feuil1!$C$1:$AU$9,2,FALSE) -> 12 | AB143: =T143-HLOOKUP(X143,Feuil1!$C$1:$AU$9,3,FALSE) -> -3 | AC143: =T143-HLOOKUP(X143,Feuil1!$C$1:$AU$9,4,FALSE) -> -18 | AD143: =T143-HLOOKUP(X143,Feuil1!$C$1:$AU$9,5,FALSE) -> -28 | AE143: =T143-HLOOKUP(X143,Feuil1!$C$1:$AU$9,6,FALSE) -> -43 | AF143: =T143-HLOOKUP(X143,Feuil1!$C$1:$AU$9,7,FALSE) -> -58 | AG143: =T143-HLOOKUP(X143,Feuil1!$C$1:$AU$9,8,FALSE) -> -68 | AH143: =T143-HLOOKUP(X143,Feuil1!$C$1:$AU$9,9,FALSE) -> -913 | AP143: DEP +
A144: F | B144: NE | C144: BOU | D144: 11 | E144: 367031 | F144: CASTAINGT | G144: MELANIE | H144: 98 | I144: 70.7 | J144: STADE DIJONNAIS HM | K144: F | L144: 34 | M144: -37 | N144: 37 | O144: 37 | P144: -48 | Q144: 48 | R144: -51 | S144: 48 | T144: 85 | V144: DEP + | W144: 10 | X144: =IF(I144="","",IF(A144="H",IF(OR(H144="SEN",H144<94),VLOOKUP(I144,Feuil1!$A$10:$E$28,5),IF(AND(H144>93,H144<97),VLOOKUP(I144,Feuil1!$A$10:$E$28,4),IF(AND(H144>93,H144<97),VLOOKUP(I144,Feuil1!$A$10:$E$28,3),IF(AND(H144>96,H144<100),VLOOKUP(I144,Feuil1!$A$10:$E$28,3),VLOOKUP(I144,Feuil1!$A$10:$E$28,2))))),IF(OR(H144="SEN",H144<94),VLOOKUP(I144,Feuil1!$F$10:$J$24,5),IF(AND(H144>93,H144<97),VLOOKUP(I144,Feuil1!$F$10:$J$24,4),IF(AND(H144>93,H144<97),VLOOKUP(I144,Feuil1!$F$10:$J$24,4),IF(AND(H144>96,H144<100),VLOOKUP(I144,Feuil1!$F$10:$J$24,3),VLOOKUP(I144,Feuil1!$F$10:$J$24,2))))))) -> FC+69 | Y144: 105.1542136 | AA144: =T144-HLOOKUP(X144,Feuil1!$C$1:$AU$9,2,FALSE) -> 10 | AB144: =T144-HLOOKUP(X144,Feuil1!$C$1:$AU$9,3,FALSE) -> -5 | AC144: =T144-HLOOKUP(X144,Feuil1!$C$1:$AU$9,4,FALSE) -> -20 | AD144: =T144-HLOOKUP(X144,Feuil1!$C$1:$AU$9,5,FALSE) -> -30 | AE144: =T144-HLOOKUP(X144,Feuil1!$C$1:$AU$9,6,FALSE) -> -45 | AF144: =T144-HLOOKUP(X144,Feuil1!$C$1:$AU$9,7,FALSE) -> -60 | AG144: =T144-HLOOKUP(X144,Feuil1!$C$1:$AU$9,8,FALSE) -> -70 | AH144: =T144-HLOOKUP(X144,Feuil1!$C$1:$AU$9,9,FALSE) -> -915 | AP144: DEP +
A145: F | B145: NE | C145: FCO | D145: 12 | E145: 208776 | F145: HUOT-MARCHAND | G145: charlotte | H145: 98 | I145: 72.1 | J145: CH LUXEUIL | K145: F | L145: 34 | M145: 36 | N145: 38 | O145: 38 | P145: 41 | Q145: 43 | R145: 47 | S145: 47 | T145: 85 | V145: DEP + | W145: 10 | X145: =IF(I145="","",IF(A145="H",IF(OR(H145="SEN",H145<94),VLOOKUP(I145,Feuil1!$A$10:$E$28,5),IF(AND(H145>93,H145<97),VLOOKUP(I145,Feuil1!$A$10:$E$28,4),IF(AND(H145>93,H145<97),VLOOKUP(I145,Feuil1!$A$10:$E$28,3),IF(AND(H145>96,H145<100),VLOOKUP(I145,Feuil1!$A$10:$E$28,3),VLOOKUP(I145,Feuil1!$A$10:$E$28,2))))),IF(OR(H145="SEN",H145<94),VLOOKUP(I145,Feuil1!$F$10:$J$24,5),IF(AND(H145>93,H145<97),VLOOKUP(I145,Feuil1!$F$10:$J$24,4),IF(AND(H145>93,H145<97),VLOOKUP(I145,Feuil1!$F$10:$J$24,4),IF(AND(H145>96,H145<100),VLOOKUP(I145,Feuil1!$F$10:$J$24,3),VLOOKUP(I145,Feuil1!$F$10:$J$24,2))))))) -> FC+69 | Y145: 103.989026 | AA145: =T145-HLOOKUP(X145,Feuil1!$C$1:$AU$9,2,FALSE) -> 10 | AB145: =T145-HLOOKUP(X145,Feuil1!$C$1:$AU$9,3,FALSE) -> -5 | AC145: =T145-HLOOKUP(X145,Feuil1!$C$1:$AU$9,4,FALSE) -> -20 | AD145: =T145-HLOOKUP(X145,Feuil1!$C$1:$AU$9,5,FALSE) -> -30 | AE145: =T145-HLOOKUP(X145,Feuil1!$C$1:$AU$9,6,FALSE) -> -45 | AF145: =T145-HLOOKUP(X145,Feuil1!$C$1:$AU$9,7,FALSE) -> -60 | AG145: =T145-HLOOKUP(X145,Feuil1!$C$1:$AU$9,8,FALSE) -> -70 | AH145: =T145-HLOOKUP(X145,Feuil1!$C$1:$AU$9,9,FALSE) -> -915 | AP145: DEP +
A146: F | B146: NORD | C146: NPC | D146: 13 | E146: 191850 | F146: GONZALES | G146: Naomi | H146: 98 | I146: 71.1 | J146: CHCD COMINES | K146: F | L146: 33 | M146: -36 | N146: -36 | O146: 33 | P146: 43 | Q146: 46 | R146: 50 | S146: 50 | T146: 83 | V146: DEP + | W146: 8 | X146: =IF(I146="","",IF(A146="H",IF(OR(H146="SEN",H146<94),VLOOKUP(I146,Feuil1!$A$10:$E$28,5),IF(AND(H146>93,H146<97),VLOOKUP(I146,Feuil1!$A$10:$E$28,4),IF(AND(H146>93,H146<97),VLOOKUP(I146,Feuil1!$A$10:$E$28,3),IF(AND(H146>96,H146<100),VLOOKUP(I146,Feuil1!$A$10:$E$28,3),VLOOKUP(I146,Feuil1!$A$10:$E$28,2))))),IF(OR(H146="SEN",H146<94),VLOOKUP(I146,Feuil1!$F$10:$J$24,5),IF(AND(H146>93,H146<97),VLOOKUP(I146,Feuil1!$F$10:$J$24,4),IF(AND(H146>93,H146<97),VLOOKUP(I146,Feuil1!$F$10:$J$24,4),IF(AND(H146>96,H146<100),VLOOKUP(I146,Feuil1!$F$10:$J$24,3),VLOOKUP(I146,Feuil1!$F$10:$J$24,2))))))) -> FC+69 | Y146: 102.3481936 | AA146: =T146-HLOOKUP(X146,Feuil1!$C$1:$AU$9,2,FALSE) -> 8 | AB146: =T146-HLOOKUP(X146,Feuil1!$C$1:$AU$9,3,FALSE) -> -7 | AC146: =T146-HLOOKUP(X146,Feuil1!$C$1:$AU$9,4,FALSE) -> -22 | AD146: =T146-HLOOKUP(X146,Feuil1!$C$1:$AU$9,5,FALSE) -> -32 | AE146: =T146-HLOOKUP(X146,Feuil1!$C$1:$AU$9,6,FALSE) -> -47 | AF146: =T146-HLOOKUP(X146,Feuil1!$C$1:$AU$9,7,FALSE) -> -62 | AG146: =T146-HLOOKUP(X146,Feuil1!$C$1:$AU$9,8,FALSE) -> -72 | AH146: =T146-HLOOKUP(X146,Feuil1!$C$1:$AU$9,9,FALSE) -> -917 | AP146: DEP +
A147: F | B147: NE | C147: BOU | D147: 14 | E147: 363262 | F147: GENESTIER | G147: SOLENE | H147: 97 | I147: 69.8 | J147: STADE DIJONNAIS HM | K147: F | L147: 28 | M147: 30 | N147: -32 | O147: 30 | P147: 40 | Q147: 42 | R147: 45 | S147: 45 | T147: 75 | V147: DEP + | W147: 0 | X147: =IF(I147="","",IF(A147="H",IF(OR(H147="SEN",H147<94),VLOOKUP(I147,Feuil1!$A$10:$E$28,5),IF(AND(H147>93,H147<97),VLOOKUP(I147,Feuil1!$A$10:$E$28,4),IF(AND(H147>93,H147<97),VLOOKUP(I147,Feuil1!$A$10:$E$28,3),IF(AND(H147>96,H147<100),VLOOKUP(I147,Feuil1!$A$10:$E$28,3),VLOOKUP(I147,Feuil1!$A$10:$E$28,2))))),IF(OR(H147="SEN",H147<94),VLOOKUP(I147,Feuil1!$F$10:$J$24,5),IF(AND(H147>93,H147<97),VLOOKUP(I147,Feuil1!$F$10:$J$24,4),IF(AND(H147>93,H147<97),VLOOKUP(I147,Feuil1!$F$10:$J$24,4),IF(AND(H147>96,H147<100),VLOOKUP(I147,Feuil1!$F$10:$J$24,3),VLOOKUP(I147,Feuil1!$F$10:$J$24,2))))))) -> FC+69 | Y147: 93.4762048 | AA147: =T147-HLOOKUP(X147,Feuil1!$C$1:$AU$9,2,FALSE) -> 0 | AB147: =T147-HLOOKUP(X147,Feuil1!$C$1:$AU$9,3,FALSE) -> -15 | AC147: =T147-HLOOKUP(X147,Feuil1!$C$1:$AU$9,4,FALSE) -> -30 | AD147: =T147-HLOOKUP(X147,Feuil1!$C$1:$AU$9,5,FALSE) -> -40 | AE147: =T147-HLOOKUP(X147,Feuil1!$C$1:$AU$9,6,FALSE) -> -55 | AF147: =T147-HLOOKUP(X147,Feuil1!$C$1:$AU$9,7,FALSE) -> -70 | AG147: =T147-HLOOKUP(X147,Feuil1!$C$1:$AU$9,8,FALSE) -> -80 | AH147: =T147-HLOOKUP(X147,Feuil1!$C$1:$AU$9,9,FALSE) -> -925 | AP147: DEP +
A148: F | B148: SO | C148: MPY | D148: 15 | E148: 254618 | F148: LOUGLEB | G148: Manal | H148: 98 | I148: 73.5 | J148: FIGEAC HC | K148: F | L148: 30 | M148: -34 | N148: -34 | O148: 30 | P148: 40 | Q148: 42 | R148: 45 | S148: 45 | T148: 75 | V148: DEP + | W148: 0 | X148: =IF(I148="","",IF(A148="H",IF(OR(H148="SEN",H148<94),VLOOKUP(I148,Feuil1!$A$10:$E$28,5),IF(AND(H148>93,H148<97),VLOOKUP(I148,Feuil1!$A$10:$E$28,4),IF(AND(H148>93,H148<97),VLOOKUP(I148,Feuil1!$A$10:$E$28,3),IF(AND(H148>96,H148<100),VLOOKUP(I148,Feuil1!$A$10:$E$28,3),VLOOKUP(I148,Feuil1!$A$10:$E$28,2))))),IF(OR(H148="SEN",H148<94),VLOOKUP(I148,Feuil1!$F$10:$J$24,5),IF(AND(H148>93,H148<97),VLOOKUP(I148,Feuil1!$F$10:$J$24,4),IF(AND(H148>93,H148<97),VLOOKUP(I148,Feuil1!$F$10:$J$24,4),IF(AND(H148>96,H148<100),VLOOKUP(I148,Feuil1!$F$10:$J$24,3),VLOOKUP(I148,Feuil1!$F$10:$J$24,2))))))) -> FC+69 | Y148: 90.78417547 | AA148: =T148-HLOOKUP(X148,Feuil1!$C$1:$AU$9,2,FALSE) -> 0 | AB148: =T148-HLOOKUP(X148,Feuil1!$C$1:$AU$9,3,FALSE) -> -15 | AC148: =T148-HLOOKUP(X148,Feuil1!$C$1:$AU$9,4,FALSE) -> -30 | AD148: =T148-HLOOKUP(X148,Feuil1!$C$1:$AU$9,5,FALSE) -> -40 | AE148: =T148-HLOOKUP(X148,Feuil1!$C$1:$AU$9,6,FALSE) -> -55 | AF148: =T148-HLOOKUP(X148,Feuil1!$C$1:$AU$9,7,FALSE) -> -70 | AG148: =T148-HLOOKUP(X148,Feuil1!$C$1:$AU$9,8,FALSE) -> -80 | AH148: =T148-HLOOKUP(X148,Feuil1!$C$1:$AU$9,9,FALSE) -> -925 | AP148: DEP +
A149: F | B149: Nord | C149: PIC | D149: 16 | E149: 367780 | F149: DENANT | G149: Gwendoline | H149: 98 | I149: 73.8 | J149: CMHM La Ferté Milon | K149: F | L149: 25 | M149: 27 | N149: 29 | O149: 29 | P149: 35 | Q149: 38 | R149: 40 | S149: 40 | T149: 69 | V149: NCL | W149: -6 | X149: =IF(I149="","",IF(A149="H",IF(OR(H149="SEN",H149<94),VLOOKUP(I149,Feuil1!$A$10:$E$28,5),IF(AND(H149>93,H149<97),VLOOKUP(I149,Feuil1!$A$10:$E$28,4),IF(AND(H149>93,H149<97),VLOOKUP(I149,Feuil1!$A$10:$E$28,3),IF(AND(H149>96,H149<100),VLOOKUP(I149,Feuil1!$A$10:$E$28,3),VLOOKUP(I149,Feuil1!$A$10:$E$28,2))))),IF(OR(H149="SEN",H149<94),VLOOKUP(I149,Feuil1!$F$10:$J$24,5),IF(AND(H149>93,H149<97),VLOOKUP(I149,Feuil1!$F$10:$J$24,4),IF(AND(H149>93,H149<97),VLOOKUP(I149,Feuil1!$F$10:$J$24,4),IF(AND(H149>96,H149<100),VLOOKUP(I149,Feuil1!$F$10:$J$24,3),VLOOKUP(I149,Feuil1!$F$10:$J$24,2))))))) -> FC+69 | Y149: 83.33655913 | AA149: =T149-HLOOKUP(X149,Feuil1!$C$1:$AU$9,2,FALSE) -> -6 | AB149: =T149-HLOOKUP(X149,Feuil1!$C$1:$AU$9,3,FALSE) -> -21 | AC149: =T149-HLOOKUP(X149,Feuil1!$C$1:$AU$9,4,FALSE) -> -36 | AD149: =T149-HLOOKUP(X149,Feuil1!$C$1:$AU$9,5,FALSE) -> -46 | AE149: =T149-HLOOKUP(X149,Feuil1!$C$1:$AU$9,6,FALSE) -> -61 | AF149: =T149-HLOOKUP(X149,Feuil1!$C$1:$AU$9,7,FALSE) -> -76 | AG149: =T149-HLOOKUP(X149,Feuil1!$C$1:$AU$9,8,FALSE) -> -86 | AH149: =T149-HLOOKUP(X149,Feuil1!$C$1:$AU$9,9,FALSE) -> -931 | AP149: NCL
A150: F | B150: NE | C150: BOU | D150: 17 | E150: 342297 | F150: BILLIER | G150: LEA | H150: 98 | I150: 74.9 | J150: ASO DU MONT DE REME | K150: F | L150: 28 | M150: 30 | N150: 32 | O150: 32 | P150: 32 | Q150: 34 | R150: 36 | S150: 36 | T150: 68 | V150: NCL | W150: -7 | X150: =IF(I150="","",IF(A150="H",IF(OR(H150="SEN",H150<94),VLOOKUP(I150,Feuil1!$A$10:$E$28,5),IF(AND(H150>93,H150<97),VLOOKUP(I150,Feuil1!$A$10:$E$28,4),IF(AND(H150>93,H150<97),VLOOKUP(I150,Feuil1!$A$10:$E$28,3),IF(AND(H150>96,H150<100),VLOOKUP(I150,Feuil1!$A$10:$E$28,3),VLOOKUP(I150,Feuil1!$A$10:$E$28,2))))),IF(OR(H150="SEN",H150<94),VLOOKUP(I150,Feuil1!$F$10:$J$24,5),IF(AND(H150>93,H150<97),VLOOKUP(I150,Feuil1!$F$10:$J$24,4),IF(AND(H150>93,H150<97),VLOOKUP(I150,Feuil1!$F$10:$J$24,4),IF(AND(H150>96,H150<100),VLOOKUP(I150,Feuil1!$F$10:$J$24,3),VLOOKUP(I150,Feuil1!$F$10:$J$24,2))))))) -> FC+69 | Y150: 81.47923398 | AA150: =T150-HLOOKUP(X150,Feuil1!$C$1:$AU$9,2,FALSE) -> -7 | AB150: =T150-HLOOKUP(X150,Feuil1!$C$1:$AU$9,3,FALSE) -> -22 | AC150: =T150-HLOOKUP(X150,Feuil1!$C$1:$AU$9,4,FALSE) -> -37 | AD150: =T150-HLOOKUP(X150,Feuil1!$C$1:$AU$9,5,FALSE) -> -47 | AE150: =T150-HLOOKUP(X150,Feuil1!$C$1:$AU$9,6,FALSE) -> -62 | AF150: =T150-HLOOKUP(X150,Feuil1!$C$1:$AU$9,7,FALSE) -> -77 | AG150: =T150-HLOOKUP(X150,Feuil1!$C$1:$AU$9,8,FALSE) -> -87 | AH150: =T150-HLOOKUP(X150,Feuil1!$C$1:$AU$9,9,FALSE) -> -932 | AP150: NCL
A151: F | B151: SO | C151: MPY | D151: 18 | E151: 365941 | F151: BRANCO | G151: Margaux | H151: 99 | I151: 69.3 | J151: MONTAUBAN HC | K151: F | L151: 21 | M151: 23 | N151: -25 | O151: 23 | P151: 27 | Q151: 30 | R151: -33 | S151: 30 | T151: 53 | V151: NCL | W151: -22 | X151: =IF(I151="","",IF(A151="H",IF(OR(H151="SEN",H151<94),VLOOKUP(I151,Feuil1!$A$10:$E$28,5),IF(AND(H151>93,H151<97),VLOOKUP(I151,Feuil1!$A$10:$E$28,4),IF(AND(H151>93,H151<97),VLOOKUP(I151,Feuil1!$A$10:$E$28,3),IF(AND(H151>96,H151<100),VLOOKUP(I151,Feuil1!$A$10:$E$28,3),VLOOKUP(I151,Feuil1!$A$10:$E$28,2))))),IF(OR(H151="SEN",H151<94),VLOOKUP(I151,Feuil1!$F$10:$J$24,5),IF(AND(H151>93,H151<97),VLOOKUP(I151,Feuil1!$F$10:$J$24,4),IF(AND(H151>93,H151<97),VLOOKUP(I151,Feuil1!$F$10:$J$24,4),IF(AND(H151>96,H151<100),VLOOKUP(I151,Feuil1!$F$10:$J$24,3),VLOOKUP(I151,Feuil1!$F$10:$J$24,2))))))) -> FC+69 | Y151: 66.33666769 | AA151: =T151-HLOOKUP(X151,Feuil1!$C$1:$AU$9,2,FALSE) -> -22 | AB151: =T151-HLOOKUP(X151,Feuil1!$C$1:$AU$9,3,FALSE) -> -37 | AC151: =T151-HLOOKUP(X151,Feuil1!$C$1:$AU$9,4,FALSE) -> -52 | AD151: =T151-HLOOKUP(X151,Feuil1!$C$1:$AU$9,5,FALSE) -> -62 | AE151: =T151-HLOOKUP(X151,Feuil1!$C$1:$AU$9,6,FALSE) -> -77 | AF151: =T151-HLOOKUP(X151,Feuil1!$C$1:$AU$9,7,FALSE) -> -92 | AG151: =T151-HLOOKUP(X151,Feuil1!$C$1:$AU$9,8,FALSE) -> -102 | AH151: =T151-HLOOKUP(X151,Feuil1!$C$1:$AU$9,9,FALSE) -> -947 | AP151: NCL
A154: H | B154: SEST | C154: PRO | D154: 1 | E154: 245875 | F154: MARI | G154: Edouard | H154: 97 | I154: 49.82 | J154: H.M. STE TULLE | K154: F | L154: 67 | M154: 70 | N154: -72 | O154: =IF(H154="","",IF(MAXA(L154:N154)<=0,0,MAXA(L154:N154))) -> 70 | P154: 85 | Q154: 89 | R154: 94 | S154: =IF(H154="","",IF(MAXA(P154:R154)<=0,0,MAXA(P154:R154))) -> 94 | T154: =IF(H154="","",IF(OR(O154=0,S154=0),0,O154+S154)) -> 164 | V154: =IF(H154="","",AP154) -> INTA + | W154: =IF(P154="","",IF(AH154>=0,AH154,IF(AG154>=0,AG154,IF(AF154>=0,AF154,IF(AE154>=0,AE154,IF(AD154>=0,AD154,IF(AC154>=0,AC154,IF(AB154>=0,AB154,AA154)))))))) -> 14 | X154: =IF(I154="","",IF(A154="H",IF(OR(H154="SEN",H154<94),VLOOKUP(I154,Feuil1!$A$10:$E$28,5),IF(AND(H154>93,H154<97),VLOOKUP(I154,Feuil1!$A$10:$E$28,4),IF(AND(H154>93,H154<97),VLOOKUP(I154,Feuil1!$A$10:$E$28,3),IF(AND(H154>96,H154<100),VLOOKUP(I154,Feuil1!$A$10:$E$28,3),VLOOKUP(I154,Feuil1!$A$10:$E$28,2))))),IF(OR(H154="SEN",H154<94),VLOOKUP(I154,Feuil1!$F$10:$J$24,5),IF(AND(H154>93,H154<97),VLOOKUP(I154,Feuil1!$F$10:$J$24,4),IF(AND(H154>93,H154<97),VLOOKUP(I154,Feuil1!$F$10:$J$24,4),IF(AND(H154>96,H154<100),VLOOKUP(I154,Feuil1!$F$10:$J$24,3),VLOOKUP(I154,Feuil1!$F$10:$J$24,2))))))) -> C50 | Y154: =IF(I154="","",IF(A154="H",10^(0.794358141*LOG(I154/174.393)^2)*T154,IF(A154="F",10^(0.89726074*LOG(I154/148.026)^2)*T154,""))) -> 281.8586356 | AA154: =T154-HLOOKUP(X154,Feuil1!$C$1:$AU$9,2,FALSE) -> 99 | AB154: =T154-HLOOKUP(X154,Feuil1!$C$1:$AU$9,3,FALSE) -> 84 | AC154: =T154-HLOOKUP(X154,Feuil1!$C$1:$AU$9,4,FALSE) -> 69 | AD154: =T154-HLOOKUP(X154,Feuil1!$C$1:$AU$9,5,FALSE) -> 54 | AE154: =T154-HLOOKUP(X154,Feuil1!$C$1:$AU$9,6,FALSE) -> 44 | AF154: =T154-HLOOKUP(X154,Feuil1!$C$1:$AU$9,7,FALSE) -> 29 | AG154: =T154-HLOOKUP(X154,Feuil1!$C$1:$AU$9,8,FALSE) -> 14 | AH154: =T154-HLOOKUP(X154,Feuil1!$C$1:$AU$9,9,FALSE) -> -836 | AP154: =IF(AH154>=0,$AH$4,IF(AG154>=0,$AG$4,IF(AF154>=0,$AF$4,IF(AE154>=0,$AE$4,IF(AD154>=0,$AD$4,IF(AC154>=0,$AC$4,IF(AB154>=0,$AB$4,IF(AA154>=0,$AA$4,$AI$4)))))))) -> INTA +
A155: H | B155: SEST | C155: CAZ | D155: 2 | E155: 305873 | F155: LANDAIS | G155: Alexis | H155: 99 | I155: 48.95 | J155: E.S. VIL. LOUBET | K155: F | L155: 61 | M155: -64 | N155: -65 | O155: 61 | P155: 75 | Q155: 78 | R155: -81 | S155: 78 | T155: 139 | V155: INTB + | W155: 4 | X155: =IF(I155="","",IF(A155="H",IF(OR(H155="SEN",H155<94),VLOOKUP(I155,Feuil1!$A$10:$E$28,5),IF(AND(H155>93,H155<97),VLOOKUP(I155,Feuil1!$A$10:$E$28,4),IF(AND(H155>93,H155<97),VLOOKUP(I155,Feuil1!$A$10:$E$28,3),IF(AND(H155>96,H155<100),VLOOKUP(I155,Feuil1!$A$10:$E$28,3),VLOOKUP(I155,Feuil1!$A$10:$E$28,2))))),IF(OR(H155="SEN",H155<94),VLOOKUP(I155,Feuil1!$F$10:$J$24,5),IF(AND(H155>93,H155<97),VLOOKUP(I155,Feuil1!$F$10:$J$24,4),IF(AND(H155>93,H155<97),VLOOKUP(I155,Feuil1!$F$10:$J$24,4),IF(AND(H155>96,H155<100),VLOOKUP(I155,Feuil1!$F$10:$J$24,3),VLOOKUP(I155,Feuil1!$F$10:$J$24,2))))))) -> C50 | Y155: 242.5843674 | AA155: =T155-HLOOKUP(X155,Feuil1!$C$1:$AU$9,2,FALSE) -> 74 | AB155: =T155-HLOOKUP(X155,Feuil1!$C$1:$AU$9,3,FALSE) -> 59 | AC155: =T155-HLOOKUP(X155,Feuil1!$C$1:$AU$9,4,FALSE) -> 44 | AD155: =T155-HLOOKUP(X155,Feuil1!$C$1:$AU$9,5,FALSE) -> 29 | AE155: =T155-HLOOKUP(X155,Feuil1!$C$1:$AU$9,6,FALSE) -> 19 | AF155: =T155-HLOOKUP(X155,Feuil1!$C$1:$AU$9,7,FALSE) -> 4 | AG155: =T155-HLOOKUP(X155,Feuil1!$C$1:$AU$9,8,FALSE) -> -11 | AH155: =T155-HLOOKUP(X155,Feuil1!$C$1:$AU$9,9,FALSE) -> -861 | AP155: INTB +
A156: H | B156: SO | C156: MPY | D156: 3 | E156: 300998 | F156: DELPECH | G156: Rémy | H156: 97 | I156: 49.07 | J156: FIGEAC HC | K156: F | L156: 57 | M156: -60 | N156: -60 | O156: 57 | P156: 70 | Q156: 75 | R156: -83 | S156: 75 | T156: 132 | V156: NAT + | W156: 12 | X156: =IF(I156="","",IF(A156="H",IF(OR(H156="SEN",H156<94),VLOOKUP(I156,Feuil1!$A$10:$E$28,5),IF(AND(H156>93,H156<97),VLOOKUP(I156,Feuil1!$A$10:$E$28,4),IF(AND(H156>93,H156<97),VLOOKUP(I156,Feuil1!$A$10:$E$28,3),IF(AND(H156>96,H156<100),VLOOKUP(I156,Feuil1!$A$10:$E$28,3),VLOOKUP(I156,Feuil1!$A$10:$E$28,2))))),IF(OR(H156="SEN",H156<94),VLOOKUP(I156,Feuil1!$F$10:$J$24,5),IF(AND(H156>93,H156<97),VLOOKUP(I156,Feuil1!$F$10:$J$24,4),IF(AND(H156>93,H156<97),VLOOKUP(I156,Feuil1!$F$10:$J$24,4),IF(AND(H156>96,H156<100),VLOOKUP(I156,Feuil1!$F$10:$J$24,3),VLOOKUP(I156,Feuil1!$F$10:$J$24,2))))))) -> C50 | Y156: 229.8744376 | AA156: =T156-HLOOKUP(X156,Feuil1!$C$1:$AU$9,2,FALSE) -> 67 | AB156: =T156-HLOOKUP(X156,Feuil1!$C$1:$AU$9,3,FALSE) -> 52 | AC156: =T156-HLOOKUP(X156,Feuil1!$C$1:$AU$9,4,FALSE) -> 37 | AD156: =T156-HLOOKUP(X156,Feuil1!$C$1:$AU$9,5,FALSE) -> 22 | AE156: =T156-HLOOKUP(X156,Feuil1!$C$1:$AU$9,6,FALSE) -> 12 | AF156: =T156-HLOOKUP(X156,Feuil1!$C$1:$AU$9,7,FALSE) -> -3 | AG156: =T156-HLOOKUP(X156,Feuil1!$C$1:$AU$9,8,FALSE) -> -18 | AH156: =T156-HLOOKUP(X156,Feuil1!$C$1:$AU$9,9,FALSE) -> -868 | AP156: NAT +
A157: H | B157: NE | C157: LOR | D157: 4 | E157: 273033 | F157: GUINDOS | G157: Vincent | H157: 98 | I157: 49.35 | J157: E.S.Laneuveville | K157: F | L157: 50 | M157: 53 | N157: 55 | O157: 55 | P157: 63 | Q157: 66 | R157: 68 | S157: 68 | T157: 123 | V157: NAT + | W157: 3 | X157: =IF(I157="","",IF(A157="H",IF(OR(H157="SEN",H157<94),VLOOKUP(I157,Feuil1!$A$10:$E$28,5),IF(AND(H157>93,H157<97),VLOOKUP(I157,Feuil1!$A$10:$E$28,4),IF(AND(H157>93,H157<97),VLOOKUP(I157,Feuil1!$A$10:$E$28,3),IF(AND(H157>96,H157<100),VLOOKUP(I157,Feuil1!$A$10:$E$28,3),VLOOKUP(I157,Feuil1!$A$10:$E$28,2))))),IF(OR(H157="SEN",H157<94),VLOOKUP(I157,Feuil1!$F$10:$J$24,5),IF(AND(H157>93,H157<97),VLOOKUP(I157,Feuil1!$F$10:$J$24,4),IF(AND(H157>93,H157<97),VLOOKUP(I157,Feuil1!$F$10:$J$24,4),IF(AND(H157>96,H157<100),VLOOKUP(I157,Feuil1!$F$10:$J$24,3),VLOOKUP(I157,Feuil1!$F$10:$J$24,2))))))) -> C50 | Y157: 213.1398619 | AA157: =T157-HLOOKUP(X157,Feuil1!$C$1:$AU$9,2,FALSE) -> 58 | AB157: =T157-HLOOKUP(X157,Feuil1!$C$1:$AU$9,3,FALSE) -> 43 | AC157: =T157-HLOOKUP(X157,Feuil1!$C$1:$AU$9,4,FALSE) -> 28 | AD157: =T157-HLOOKUP(X157,Feuil1!$C$1:$AU$9,5,FALSE) -> 13 | AE157: =T157-HLOOKUP(X157,Feuil1!$C$1:$AU$9,6,FALSE) -> 3 | AF157: =T157-HLOOKUP(X157,Feuil1!$C$1:$AU$9,7,FALSE) -> -12 | AG157: =T157-HLOOKUP(X157,Feuil1!$C$1:$AU$9,8,FALSE) -> -27 | AH157: =T157-HLOOKUP(X157,Feuil1!$C$1:$AU$9,9,FALSE) -> -877 | AP157: NAT +
A158: H | B158: SEST | C158: RAL | D158: 5 | E158: 339517 | F158: PIZZO | G158: Paolo | H158: 97 | I158: 50 | J158: Pierrelatte | K158: F | L158: 50 | M158: 53 | N158: 56 | O158: 56 | P158: 62 | Q158: 66 | R158: -70 | S158: 66 | T158: 122 | V158: NAT + | W158: 2 | X158: =IF(I158="","",IF(A158="H",IF(OR(H158="SEN",H158<94),VLOOKUP(I158,Feuil1!$A$10:$E$28,5),IF(AND(H158>93,H158<97),VLOOKUP(I158,Feuil1!$A$10:$E$28,4),IF(AND(H158>93,H158<97),VLOOKUP(I158,Feuil1!$A$10:$E$28,3),IF(AND(H158>96,H158<100),VLOOKUP(I158,Feuil1!$A$10:$E$28,3),VLOOKUP(I158,Feuil1!$A$10:$E$28,2))))),IF(OR(H158="SEN",H158<94),VLOOKUP(I158,Feuil1!$F$10:$J$24,5),IF(AND(H158>93,H158<97),VLOOKUP(I158,Feuil1!$F$10:$J$24,4),IF(AND(H158>93,H158<97),VLOOKUP(I158,Feuil1!$F$10:$J$24,4),IF(AND(H158>96,H158<100),VLOOKUP(I158,Feuil1!$F$10:$J$24,3),VLOOKUP(I158,Feuil1!$F$10:$J$24,2))))))) -> C50 | Y158: 209.0235831 | AA158: =T158-HLOOKUP(X158,Feuil1!$C$1:$AU$9,2,FALSE) -> 57 | AB158: =T158-HLOOKUP(X158,Feuil1!$C$1:$AU$9,3,FALSE) -> 42 | AC158: =T158-HLOOKUP(X158,Feuil1!$C$1:$AU$9,4,FALSE) -> 27 | AD158: =T158-HLOOKUP(X158,Feuil1!$C$1:$AU$9,5,FALSE) -> 12 | AE158: =T158-HLOOKUP(X158,Feuil1!$C$1:$AU$9,6,FALSE) -> 2 | AF158: =T158-HLOOKUP(X158,Feuil1!$C$1:$AU$9,7,FALSE) -> -13 | AG158: =T158-HLOOKUP(X158,Feuil1!$C$1:$AU$9,8,FALSE) -> -28 | AH158: =T158-HLOOKUP(X158,Feuil1!$C$1:$AU$9,9,FALSE) -> -878 | AP158: NAT +
A159: H | B159: Nord | C159: PIC | D159: 6 | E159: 343406 | F159: CANUT | G159: Timothé | H159: 99 | I159: 49.4 | J159: La Vaillante St Quentin | K159: F | L159: 42 | M159: 47 | N159: 50 | O159: 50 | P159: 60 | Q159: 65 | R159: -70 | S159: 65 | T159: 115 | V159: FED + | W159: 5 | X159: =IF(I159="","",IF(A159="H",IF(OR(H159="SEN",H159<94),VLOOKUP(I159,Feuil1!$A$10:$E$28,5),IF(AND(H159>93,H159<97),VLOOKUP(I159,Feuil1!$A$10:$E$28,4),IF(AND(H159>93,H159<97),VLOOKUP(I159,Feuil1!$A$10:$E$28,3),IF(AND(H159>96,H159<100),VLOOKUP(I159,Feuil1!$A$10:$E$28,3),VLOOKUP(I159,Feuil1!$A$10:$E$28,2))))),IF(OR(H159="SEN",H159<94),VLOOKUP(I159,Feuil1!$F$10:$J$24,5),IF(AND(H159>93,H159<97),VLOOKUP(I159,Feuil1!$F$10:$J$24,4),IF(AND(H159>93,H159<97),VLOOKUP(I159,Feuil1!$F$10:$J$24,4),IF(AND(H159>96,H159<100),VLOOKUP(I159,Feuil1!$F$10:$J$24,3),VLOOKUP(I159,Feuil1!$F$10:$J$24,2))))))) -> C50 | Y159: 199.1014869 | AA159: =T159-HLOOKUP(X159,Feuil1!$C$1:$AU$9,2,FALSE) -> 50 | AB159: =T159-HLOOKUP(X159,Feuil1!$C$1:$AU$9,3,FALSE) -> 35 | AC159: =T159-HLOOKUP(X159,Feuil1!$C$1:$AU$9,4,FALSE) -> 20 | AD159: =T159-HLOOKUP(X159,Feuil1!$C$1:$AU$9,5,FALSE) -> 5 | AE159: =T159-HLOOKUP(X159,Feuil1!$C$1:$AU$9,6,FALSE) -> -5 | AF159: =T159-HLOOKUP(X159,Feuil1!$C$1:$AU$9,7,FALSE) -> -20 | AG159: =T159-HLOOKUP(X159,Feuil1!$C$1:$AU$9,8,FALSE) -> -35 | AH159: =T159-HLOOKUP(X159,Feuil1!$C$1:$AU$9,9,FALSE) -> -885 | AP159: FED +
A160: H | B160: Nord | C160: PIC | D160: 7 | E160: 246085 | F160: ARNOULD | G160: Bastian | H160: 99 | I160: 49.5 | J160: KC Villers-Bretonneux | K160: F | L160: 40 | M160: -45 | N160: 45 | O160: 45 | P160: 50 | Q160: 55 | R160: 60 | S160: 60 | T160: 105 | V160: IRG + | W160: 10 | X160: =IF(I160="","",IF(A160="H",IF(OR(H160="SEN",H160<94),VLOOKUP(I160,Feuil1!$A$10:$E$28,5),IF(AND(H160>93,H160<97),VLOOKUP(I160,Feuil1!$A$10:$E$28,4),IF(AND(H160>93,H160<97),VLOOKUP(I160,Feuil1!$A$10:$E$28,3),IF(AND(H160>96,H160<100),VLOOKUP(I160,Feuil1!$A$10:$E$28,3),VLOOKUP(I160,Feuil1!$A$10:$E$28,2))))),IF(OR(H160="SEN",H160<94),VLOOKUP(I160,Feuil1!$F$10:$J$24,5),IF(AND(H160>93,H160<97),VLOOKUP(I160,Feuil1!$F$10:$J$24,4),IF(AND(H160>93,H160<97),VLOOKUP(I160,Feuil1!$F$10:$J$24,4),IF(AND(H160>96,H160<100),VLOOKUP(I160,Feuil1!$F$10:$J$24,3),VLOOKUP(I160,Feuil1!$F$10:$J$24,2))))))) -> C50 | Y160: 181.4689106 | AA160: =T160-HLOOKUP(X160,Feuil1!$C$1:$AU$9,2,FALSE) -> 40 | AB160: =T160-HLOOKUP(X160,Feuil1!$C$1:$AU$9,3,FALSE) -> 25 | AC160: =T160-HLOOKUP(X160,Feuil1!$C$1:$AU$9,4,FALSE) -> 10 | AD160: =T160-HLOOKUP(X160,Feuil1!$C$1:$AU$9,5,FALSE) -> -5 | AE160: =T160-HLOOKUP(X160,Feuil1!$C$1:$AU$9,6,FALSE) -> -15 | AF160: =T160-HLOOKUP(X160,Feuil1!$C$1:$AU$9,7,FALSE) -> -30 | AG160: =T160-HLOOKUP(X160,Feuil1!$C$1:$AU$9,8,FALSE) -> -45 | AH160: =T160-HLOOKUP(X160,Feuil1!$C$1:$AU$9,9,FALSE) -> -895 | AP160: IRG +
A161: H | B161: CO | C161: BNO | D161: 8 | E161: 234307 | F161: ROUSSELET | G161: Clément | H161: 99 | I161: 48 | J161: HM GIBERVILLE | K161: F | L161: 41 | M161: 43 | N161: 45 | O161: 45 | P161: 53 | Q161: 57 | R161: -59 | S161: 57 | T161: 102 | V161: IRG + | W161: 7 | X161: =IF(I161="","",IF(A161="H",IF(OR(H161="SEN",H161<94),VLOOKUP(I161,Feuil1!$A$10:$E$28,5),IF(AND(H161>93,H161<97),VLOOKUP(I161,Feuil1!$A$10:$E$28,4),IF(AND(H161>93,H161<97),VLOOKUP(I161,Feuil1!$A$10:$E$28,3),IF(AND(H161>96,H161<100),VLOOKUP(I161,Feuil1!$A$10:$E$28,3),VLOOKUP(I161,Feuil1!$A$10:$E$28,2))))),IF(OR(H161="SEN",H161<94),VLOOKUP(I161,Feuil1!$F$10:$J$24,5),IF(AND(H161>93,H161<97),VLOOKUP(I161,Feuil1!$F$10:$J$24,4),IF(AND(H161>93,H161<97),VLOOKUP(I161,Feuil1!$F$10:$J$24,4),IF(AND(H161>96,H161<100),VLOOKUP(I161,Feuil1!$F$10:$J$24,3),VLOOKUP(I161,Feuil1!$F$10:$J$24,2))))))) -> C50 | Y161: 181.1202508 | AA161: =T161-HLOOKUP(X161,Feuil1!$C$1:$AU$9,2,FALSE) -> 37 | AB161: =T161-HLOOKUP(X161,Feuil1!$C$1:$AU$9,3,FALSE) -> 22 | AC161: =T161-HLOOKUP(X161,Feuil1!$C$1:$AU$9,4,FALSE) -> 7 | AD161: =T161-HLOOKUP(X161,Feuil1!$C$1:$AU$9,5,FALSE) -> -8 | AE161: =T161-HLOOKUP(X161,Feuil1!$C$1:$AU$9,6,FALSE) -> -18 | AF161: =T161-HLOOKUP(X161,Feuil1!$C$1:$AU$9,7,FALSE) -> -33 | AG161: =T161-HLOOKUP(X161,Feuil1!$C$1:$AU$9,8,FALSE) -> -48 | AH161: =T161-HLOOKUP(X161,Feuil1!$C$1:$AU$9,9,FALSE) -> -898 | AP161: IRG +
A162: H | B162: NORD | C162: NPC | D162: 9 | E162: 332308 | F162: EVERARD | G162: Gaetan | H162: 99 | I162: 49.9 | J162: ST POL/MER | K162: F | L162: 37 | M162: 41 | N162: 43 | O162: 43 | P162: 50 | Q162: 55 | R162: 57 | S162: 57 | T162: 100 | V162: IRG + | W162: 5 | X162: =IF(I162="","",IF(A162="H",IF(OR(H162="SEN",H162<94),VLOOKUP(I162,Feuil1!$A$10:$E$28,5),IF(AND(H162>93,H162<97),VLOOKUP(I162,Feuil1!$A$10:$E$28,4),IF(AND(H162>93,H162<97),VLOOKUP(I162,Feuil1!$A$10:$E$28,3),IF(AND(H162>96,H162<100),VLOOKUP(I162,Feuil1!$A$10:$E$28,3),VLOOKUP(I162,Feuil1!$A$10:$E$28,2))))),IF(OR(H162="SEN",H162<94),VLOOKUP(I162,Feuil1!$F$10:$J$24,5),IF(AND(H162>93,H162<97),VLOOKUP(I162,Feuil1!$F$10:$J$24,4),IF(AND(H162>93,H162<97),VLOOKUP(I162,Feuil1!$F$10:$J$24,4),IF(AND(H162>96,H162<100),VLOOKUP(I162,Feuil1!$F$10:$J$24,3),VLOOKUP(I162,Feuil1!$F$10:$J$24,2))))))) -> C50 | Y162: 171.626959 | AA162: =T162-HLOOKUP(X162,Feuil1!$C$1:$AU$9,2,FALSE) -> 35 | AB162: =T162-HLOOKUP(X162,Feuil1!$C$1:$AU$9,3,FALSE) -> 20 | AC162: =T162-HLOOKUP(X162,Feuil1!$C$1:$AU$9,4,FALSE) -> 5 | AD162: =T162-HLOOKUP(X162,Feuil1!$C$1:$AU$9,5,FALSE) -> -10 | AE162: =T162-HLOOKUP(X162,Feuil1!$C$1:$AU$9,6,FALSE) -> -20 | AF162: =T162-HLOOKUP(X162,Feuil1!$C$1:$AU$9,7,FALSE) -> -35 | AG162: =T162-HLOOKUP(X162,Feuil1!$C$1:$AU$9,8,FALSE) -> -50 | AH162: =T162-HLOOKUP(X162,Feuil1!$C$1:$AU$9,9,FALSE) -> -900 | AP162: IRG +
A163: H | B163: DOM | C163: REU | D163: 10 | E163: 250368 | F163: MARKA | G163: ERWAN | H163: 99 | I163: 49.3 | J163: CSPJ St Denis | K163: F | L163: 37 | M163: 40 | N163: 42 | O163: 42 | P163: 50 | Q163: 52 | R163: 56 | S163: 56 | T163: 98 | V163: IRG + | W163: 3 | X163: =IF(I163="","",IF(A163="H",IF(OR(H163="SEN",H163<94),VLOOKUP(I163,Feuil1!$A$10:$E$28,5),IF(AND(H163>93,H163<97),VLOOKUP(I163,Feuil1!$A$10:$E$28,4),IF(AND(H163>93,H163<97),VLOOKUP(I163,Feuil1!$A$10:$E$28,3),IF(AND(H163>96,H163<100),VLOOKUP(I163,Feuil1!$A$10:$E$28,3),VLOOKUP(I163,Feuil1!$A$10:$E$28,2))))),IF(OR(H163="SEN",H163<94),VLOOKUP(I163,Feuil1!$F$10:$J$24,5),IF(AND(H163>93,H163<97),VLOOKUP(I163,Feuil1!$F$10:$J$24,4),IF(AND(H163>93,H163<97),VLOOKUP(I163,Feuil1!$F$10:$J$24,4),IF(AND(H163>96,H163<100),VLOOKUP(I163,Feuil1!$F$10:$J$24,3),VLOOKUP(I163,Feuil1!$F$10:$J$24,2))))))) -> C50 | Y163: 169.9688146 | AA163: =T163-HLOOKUP(X163,Feuil1!$C$1:$AU$9,2,FALSE) -> 33 | AB163: =T163-HLOOKUP(X163,Feuil1!$C$1:$AU$9,3,FALSE) -> 18 | AC163: =T163-HLOOKUP(X163,Feuil1!$C$1:$AU$9,4,FALSE) -> 3 | AD163: =T163-HLOOKUP(X163,Feuil1!$C$1:$AU$9,5,FALSE) -> -12 | AE163: =T163-HLOOKUP(X163,Feuil1!$C$1:$AU$9,6,FALSE) -> -22 | AF163: =T163-HLOOKUP(X163,Feuil1!$C$1:$AU$9,7,FALSE) -> -37 | AG163: =T163-HLOOKUP(X163,Feuil1!$C$1:$AU$9,8,FALSE) -> -52 | AH163: =T163-HLOOKUP(X163,Feuil1!$C$1:$AU$9,9,FALSE) -> -902 | AP163: IRG +
A164: H | B164: ZCO | C164: CEN | D164: 11 | E164: 357303 | F164: ESTEBAN | G164: Marlon | H164: 99 | I164: 48.9 | J164: AAJ BLOIS | K164: F | L164: 38 | M164: 40 | N164: 42 | O164: 42 | P164: 50 | Q164: 53 | R164: 55 | S164: 55 | T164: 97 | V164: IRG + | W164: 2 | X164: =IF(I164="","",IF(A164="H",IF(OR(H164="SEN",H164<94),VLOOKUP(I164,Feuil1!$A$10:$E$28,5),IF(AND(H164>93,H164<97),VLOOKUP(I164,Feuil1!$A$10:$E$28,4),IF(AND(H164>93,H164<97),VLOOKUP(I164,Feuil1!$A$10:$E$28,3),IF(AND(H164>96,H164<100),VLOOKUP(I164,Feuil1!$A$10:$E$28,3),VLOOKUP(I164,Feuil1!$A$10:$E$28,2))))),IF(OR(H164="SEN",H164<94),VLOOKUP(I164,Feuil1!$F$10:$J$24,5),IF(AND(H164>93,H164<97),VLOOKUP(I164,Feuil1!$F$10:$J$24,4),IF(AND(H164>93,H164<97),VLOOKUP(I164,Feuil1!$F$10:$J$24,4),IF(AND(H164>96,H164<100),VLOOKUP(I164,Feuil1!$F$10:$J$24,3),VLOOKUP(I164,Feuil1!$F$10:$J$24,2))))))) -> C50 | Y164: 169.4372818 | AA164: =T164-HLOOKUP(X164,Feuil1!$C$1:$AU$9,2,FALSE) -> 32 | AB164: =T164-HLOOKUP(X164,Feuil1!$C$1:$AU$9,3,FALSE) -> 17 | AC164: =T164-HLOOKUP(X164,Feuil1!$C$1:$AU$9,4,FALSE) -> 2 | AD164: =T164-HLOOKUP(X164,Feuil1!$C$1:$AU$9,5,FALSE) -> -13 | AE164: =T164-HLOOKUP(X164,Feuil1!$C$1:$AU$9,6,FALSE) -> -23 | AF164: =T164-HLOOKUP(X164,Feuil1!$C$1:$AU$9,7,FALSE) -> -38 | AG164: =T164-HLOOKUP(X164,Feuil1!$C$1:$AU$9,8,FALSE) -> -53 | AH164: =T164-HLOOKUP(X164,Feuil1!$C$1:$AU$9,9,FALSE) -> -903 | AP164: IRG +
A165: H | B165: NORD | C165: NPC | D165: 12 | E165: 279997 | F165: RIQUIER | G165: Dimitri | H165: 99 | I165: 45.3 | J165: LILLE U C | K165: F | L165: -38 | M165: 38 | N165: 40 | O165: 40 | P165: 50 | Q165: -55 | R165: 55 | S165: 55 | T165: 95 | V165: IRG + | W165: 0 | X165: =IF(I165="","",IF(A165="H",IF(OR(H165="SEN",H165<94),VLOOKUP(I165,Feuil1!$A$10:$E$28,5),IF(AND(H165>93,H165<97),VLOOKUP(I165,Feuil1!$A$10:$E$28,4),IF(AND(H165>93,H165<97),VLOOKUP(I165,Feuil1!$A$10:$E$28,3),IF(AND(H165>96,H165<100),VLOOKUP(I165,Feuil1!$A$10:$E$28,3),VLOOKUP(I165,Feuil1!$A$10:$E$28,2))))),IF(OR(H165="SEN",H165<94),VLOOKUP(I165,Feuil1!$F$10:$J$24,5),IF(AND(H165>93,H165<97),VLOOKUP(I165,Feuil1!$F$10:$J$24,4),IF(AND(H165>93,H165<97),VLOOKUP(I165,Feuil1!$F$10:$J$24,4),IF(AND(H165>96,H165<100),VLOOKUP(I165,Feuil1!$F$10:$J$24,3),VLOOKUP(I165,Feuil1!$F$10:$J$24,2))))))) -> C50 | Y165: 177.817048 | AA165: =T165-HLOOKUP(X165,Feuil1!$C$1:$AU$9,2,FALSE) -> 30 | AB165: =T165-HLOOKUP(X165,Feuil1!$C$1:$AU$9,3,FALSE) -> 15 | AC165: =T165-HLOOKUP(X165,Feuil1!$C$1:$AU$9,4,FALSE) -> 0 | AD165: =T165-HLOOKUP(X165,Feuil1!$C$1:$AU$9,5,FALSE) -> -15 | AE165: =T165-HLOOKUP(X165,Feuil1!$C$1:$AU$9,6,FALSE) -> -25 | AF165: =T165-HLOOKUP(X165,Feuil1!$C$1:$AU$9,7,FALSE) -> -40 | AG165: =T165-HLOOKUP(X165,Feuil1!$C$1:$AU$9,8,FALSE) -> -55 | AH165: =T165-HLOOKUP(X165,Feuil1!$C$1:$AU$9,9,FALSE) -> -905 | AP165: IRG +
A166: H | B166: SEST | C166: CAZ | D166: 13 | E166: 357026 | F166: MONTAGNOLI | G166: Corentin | H166: 98 | I166: 50 | J166: E.S. VIL. LOUBET | K166: F | L166: 40 | M166: -43 | N166: -43 | O166: 40 | P166: 46 | Q166: 50 | R166: 55 | S166: 55 | T166: 95 | V166: IRG + | W166: 0 | X166: =IF(I166="","",IF(A166="H",IF(OR(H166="SEN",H166<94),VLOOKUP(I166,Feuil1!$A$10:$E$28,5),IF(AND(H166>93,H166<97),VLOOKUP(I166,Feuil1!$A$10:$E$28,4),IF(AND(H166>93,H166<97),VLOOKUP(I166,Feuil1!$A$10:$E$28,3),IF(AND(H166>96,H166<100),VLOOKUP(I166,Feuil1!$A$10:$E$28,3),VLOOKUP(I166,Feuil1!$A$10:$E$28,2))))),IF(OR(H166="SEN",H166<94),VLOOKUP(I166,Feuil1!$F$10:$J$24,5),IF(AND(H166>93,H166<97),VLOOKUP(I166,Feuil1!$F$10:$J$24,4),IF(AND(H166>93,H166<97),VLOOKUP(I166,Feuil1!$F$10:$J$24,4),IF(AND(H166>96,H166<100),VLOOKUP(I166,Feuil1!$F$10:$J$24,3),VLOOKUP(I166,Feuil1!$F$10:$J$24,2))))))) -> C50 | Y166: 162.7642655 | AA166: =T166-HLOOKUP(X166,Feuil1!$C$1:$AU$9,2,FALSE) -> 30 | AB166: =T166-HLOOKUP(X166,Feuil1!$C$1:$AU$9,3,FALSE) -> 15 | AC166: =T166-HLOOKUP(X166,Feuil1!$C$1:$AU$9,4,FALSE) -> 0 | AD166: =T166-HLOOKUP(X166,Feuil1!$C$1:$AU$9,5,FALSE) -> -15 | AE166: =T166-HLOOKUP(X166,Feuil1!$C$1:$AU$9,6,FALSE) -> -25 | AF166: =T166-HLOOKUP(X166,Feuil1!$C$1:$AU$9,7,FALSE) -> -40 | AG166: =T166-HLOOKUP(X166,Feuil1!$C$1:$AU$9,8,FALSE) -> -55 | AH166: =T166-HLOOKUP(X166,Feuil1!$C$1:$AU$9,9,FALSE) -> -905 | AP166: IRG +
A167: H | B167: NORD | C167: NPC | D167: 14 | E167: 360369 | F167: HENOCQ | G167: Yohan | H167: 98 | I167: 46.4 | J167: ASPTT LILLE | K167: F | L167: 32 | M167: 36 | N167: 40 | O167: 40 | P167: 42 | Q167: 47 | R167: 53 | S167: 53 | T167: 93 | V167: REG + | W167: 13 | X167: =IF(I167="","",IF(A167="H",IF(OR(H167="SEN",H167<94),VLOOKUP(I167,Feuil1!$A$10:$E$28,5),IF(AND(H167>93,H167<97),VLOOKUP(I167,Feuil1!$A$10:$E$28,4),IF(AND(H167>93,H167<97),VLOOKUP(I167,Feuil1!$A$10:$E$28,3),IF(AND(H167>96,H167<100),VLOOKUP(I167,Feuil1!$A$10:$E$28,3),VLOOKUP(I167,Feuil1!$A$10:$E$28,2))))),IF(OR(H167="SEN",H167<94),VLOOKUP(I167,Feuil1!$F$10:$J$24,5),IF(AND(H167>93,H167<97),VLOOKUP(I167,Feuil1!$F$10:$J$24,4),IF(AND(H167>93,H167<97),VLOOKUP(I167,Feuil1!$F$10:$J$24,4),IF(AND(H167>96,H167<100),VLOOKUP(I167,Feuil1!$F$10:$J$24,3),VLOOKUP(I167,Feuil1!$F$10:$J$24,2))))))) -> C50 | Y167: 170.2659163 | AA167: =T167-HLOOKUP(X167,Feuil1!$C$1:$AU$9,2,FALSE) -> 28 | AB167: =T167-HLOOKUP(X167,Feuil1!$C$1:$AU$9,3,FALSE) -> 13 | AC167: =T167-HLOOKUP(X167,Feuil1!$C$1:$AU$9,4,FALSE) -> -2 | AD167: =T167-HLOOKUP(X167,Feuil1!$C$1:$AU$9,5,FALSE) -> -17 | AE167: =T167-HLOOKUP(X167,Feuil1!$C$1:$AU$9,6,FALSE) -> -27 | AF167: =T167-HLOOKUP(X167,Feuil1!$C$1:$AU$9,7,FALSE) -> -42 | AG167: =T167-HLOOKUP(X167,Feuil1!$C$1:$AU$9,8,FALSE) -> -57 | AH167: =T167-HLOOKUP(X167,Feuil1!$C$1:$AU$9,9,FALSE) -> -907 | AP167: REG +
A168: H | B168: CO | C168: BNO | D168: 15 | E168: 252463 | F168: TANQUEREL | G168: Julien | H168: 98 | I168: 45.2 | J168: Caen CHM | K168: F | L168: 33 | M168: 35 | N168: 38 | O168: 38 | P168: 42 | Q168: 45 | R168: 48 | S168: 48 | T168: 86 | V168: REG + | W168: 6 | X168: =IF(I168="","",IF(A168="H",IF(OR(H168="SEN",H168<94),VLOOKUP(I168,Feuil1!$A$10:$E$28,5),IF(AND(H168>93,H168<97),VLOOKUP(I168,Feuil1!$A$10:$E$28,4),IF(AND(H168>93,H168<97),VLOOKUP(I168,Feuil1!$A$10:$E$28,3),IF(AND(H168>96,H168<100),VLOOKUP(I168,Feuil1!$A$10:$E$28,3),VLOOKUP(I168,Feuil1!$A$10:$E$28,2))))),IF(OR(H168="SEN",H168<94),VLOOKUP(I168,Feuil1!$F$10:$J$24,5),IF(AND(H168>93,H168<97),VLOOKUP(I168,Feuil1!$F$10:$J$24,4),IF(AND(H168>93,H168<97),VLOOKUP(I168,Feuil1!$F$10:$J$24,4),IF(AND(H168>96,H168<100),VLOOKUP(I168,Feuil1!$F$10:$J$24,3),VLOOKUP(I168,Feuil1!$F$10:$J$24,2))))))) -> C50 | Y168: 161.3027001 | AA168: =T168-HLOOKUP(X168,Feuil1!$C$1:$AU$9,2,FALSE) -> 21 | AB168: =T168-HLOOKUP(X168,Feuil1!$C$1:$AU$9,3,FALSE) -> 6 | AC168: =T168-HLOOKUP(X168,Feuil1!$C$1:$AU$9,4,FALSE) -> -9 | AD168: =T168-HLOOKUP(X168,Feuil1!$C$1:$AU$9,5,FALSE) -> -24 | AE168: =T168-HLOOKUP(X168,Feuil1!$C$1:$AU$9,6,FALSE) -> -34 | AF168: =T168-HLOOKUP(X168,Feuil1!$C$1:$AU$9,7,FALSE) -> -49 | AG168: =T168-HLOOKUP(X168,Feuil1!$C$1:$AU$9,8,FALSE) -> -64 | AH168: =T168-HLOOKUP(X168,Feuil1!$C$1:$AU$9,9,FALSE) -> -914 | AP168: REG +
A169: H | B169: SEST | C169: CAZ | D169: 16 | E169: 357153 | F169: KHOU | G169: Nicolas | H169: 98 | I169: 47.8 | J169: ASLDD TOULON | K169: F | L169: 34 | M169: 36 | N169: -38 | O169: 36 | P169: 48 | Q169: 50 | R169: -52 | S169: 50 | T169: 86 | V169: REG + | W169: 6 | X169: =IF(I169="","",IF(A169="H",IF(OR(H169="SEN",H169<94),VLOOKUP(I169,Feuil1!$A$10:$E$28,5),IF(AND(H169>93,H169<97),VLOOKUP(I169,Feuil1!$A$10:$E$28,4),IF(AND(H169>93,H169<97),VLOOKUP(I169,Feuil1!$A$10:$E$28,3),IF(AND(H169>96,H169<100),VLOOKUP(I169,Feuil1!$A$10:$E$28,3),VLOOKUP(I169,Feuil1!$A$10:$E$28,2))))),IF(OR(H169="SEN",H169<94),VLOOKUP(I169,Feuil1!$F$10:$J$24,5),IF(AND(H169>93,H169<97),VLOOKUP(I169,Feuil1!$F$10:$J$24,4),IF(AND(H169>93,H169<97),VLOOKUP(I169,Feuil1!$F$10:$J$24,4),IF(AND(H169>96,H169<100),VLOOKUP(I169,Feuil1!$F$10:$J$24,3),VLOOKUP(I169,Feuil1!$F$10:$J$24,2))))))) -> C50 | Y169: 153.278777 | AA169: =T169-HLOOKUP(X169,Feuil1!$C$1:$AU$9,2,FALSE) -> 21 | AB169: =T169-HLOOKUP(X169,Feuil1!$C$1:$AU$9,3,FALSE) -> 6 | AC169: =T169-HLOOKUP(X169,Feuil1!$C$1:$AU$9,4,FALSE) -> -9 | AD169: =T169-HLOOKUP(X169,Feuil1!$C$1:$AU$9,5,FALSE) -> -24 | AE169: =T169-HLOOKUP(X169,Feuil1!$C$1:$AU$9,6,FALSE) -> -34 | AF169: =T169-HLOOKUP(X169,Feuil1!$C$1:$AU$9,7,FALSE) -> -49 | AG169: =T169-HLOOKUP(X169,Feuil1!$C$1:$AU$9,8,FALSE) -> -64 | AH169: =T169-HLOOKUP(X169,Feuil1!$C$1:$AU$9,9,FALSE) -> -914 | AP169: REG +
A170: H | B170: Nord | C170: PIC | D170: 17 | E170: 357557 | F170: THIERRY | G170: Alexis | H170: 99 | I170: 45.7 | J170: CMHM La Ferté Milon | K170: F | L170: 30 | M170: -34 | N170: -34 | O170: 30 | P170: 45 | Q170: 50 | R170: 55 | S170: 55 | T170: 85 | V170: REG + | W170: 5 | X170: =IF(I170="","",IF(A170="H",IF(OR(H170="SEN",H170<94),VLOOKUP(I170,Feuil1!$A$10:$E$28,5),IF(AND(H170>93,H170<97),VLOOKUP(I170,Feuil1!$A$10:$E$28,4),IF(AND(H170>93,H170<97),VLOOKUP(I170,Feuil1!$A$10:$E$28,3),IF(AND(H170>96,H170<100),VLOOKUP(I170,Feuil1!$A$10:$E$28,3),VLOOKUP(I170,Feuil1!$A$10:$E$28,2))))),IF(OR(H170="SEN",H170<94),VLOOKUP(I170,Feuil1!$F$10:$J$24,5),IF(AND(H170>93,H170<97),VLOOKUP(I170,Feuil1!$F$10:$J$24,4),IF(AND(H170>93,H170<97),VLOOKUP(I170,Feuil1!$F$10:$J$24,4),IF(AND(H170>96,H170<100),VLOOKUP(I170,Feuil1!$F$10:$J$24,3),VLOOKUP(I170,Feuil1!$F$10:$J$24,2))))))) -> C50 | Y170: 157.8080811 | AA170: =T170-HLOOKUP(X170,Feuil1!$C$1:$AU$9,2,FALSE) -> 20 | AB170: =T170-HLOOKUP(X170,Feuil1!$C$1:$AU$9,3,FALSE) -> 5 | AC170: =T170-HLOOKUP(X170,Feuil1!$C$1:$AU$9,4,FALSE) -> -10 | AD170: =T170-HLOOKUP(X170,Feuil1!$C$1:$AU$9,5,FALSE) -> -25 | AE170: =T170-HLOOKUP(X170,Feuil1!$C$1:$AU$9,6,FALSE) -> -35 | AF170: =T170-HLOOKUP(X170,Feuil1!$C$1:$AU$9,7,FALSE) -> -50 | AG170: =T170-HLOOKUP(X170,Feuil1!$C$1:$AU$9,8,FALSE) -> -65 | AH170: =T170-HLOOKUP(X170,Feuil1!$C$1:$AU$9,9,FALSE) -> -915 | AP170: REG +
A171: H | B171: Nord | C171: IDF | D171: 18 | E171: 337983 | F171: KONATE | G171: MAKAN | H171: 98 | I171: 48.1 | J171: PONTOISE | K171: F | L171: 33 | M171: 36 | N171: 38 | O171: 38 | P171: 43 | Q171: 46 | R171: -48 | S171: 46 | T171: 84 | V171: REG + | W171: 4 | X171: =IF(I171="","",IF(A171="H",IF(OR(H171="SEN",H171<94),VLOOKUP(I171,Feuil1!$A$10:$E$28,5),IF(AND(H171>93,H171<97),VLOOKUP(I171,Feuil1!$A$10:$E$28,4),IF(AND(H171>93,H171<97),VLOOKUP(I171,Feuil1!$A$10:$E$28,3),IF(AND(H171>96,H171<100),VLOOKUP(I171,Feuil1!$A$10:$E$28,3),VLOOKUP(I171,Feuil1!$A$10:$E$28,2))))),IF(OR(H171="SEN",H171<94),VLOOKUP(I171,Feuil1!$F$10:$J$24,5),IF(AND(H171>93,H171<97),VLOOKUP(I171,Feuil1!$F$10:$J$24,4),IF(AND(H171>93,H171<97),VLOOKUP(I171,Feuil1!$F$10:$J$24,4),IF(AND(H171>96,H171<100),VLOOKUP(I171,Feuil1!$F$10:$J$24,3),VLOOKUP(I171,Feuil1!$F$10:$J$24,2))))))) -> C50 | Y171: 148.8820131 | AA171: =T171-HLOOKUP(X171,Feuil1!$C$1:$AU$9,2,FALSE) -> 19 | AB171: =T171-HLOOKUP(X171,Feuil1!$C$1:$AU$9,3,FALSE) -> 4 | AC171: =T171-HLOOKUP(X171,Feuil1!$C$1:$AU$9,4,FALSE) -> -11 | AD171: =T171-HLOOKUP(X171,Feuil1!$C$1:$AU$9,5,FALSE) -> -26 | AE171: =T171-HLOOKUP(X171,Feuil1!$C$1:$AU$9,6,FALSE) -> -36 | AF171: =T171-HLOOKUP(X171,Feuil1!$C$1:$AU$9,7,FALSE) -> -51 | AG171: =T171-HLOOKUP(X171,Feuil1!$C$1:$AU$9,8,FALSE) -> -66 | AH171: =T171-HLOOKUP(X171,Feuil1!$C$1:$AU$9,9,FALSE) -> -916 | AP171: REG +
A172: H | B172: SEST | C172: RAL | D172: 19 | E172: 325396 | F172: SIBEUD | G172: Pierre | H172: 98 | I172: 49.7 | J172: CREST | K172: F | L172: 37 | M172: -39 | N172: -39 | O172: 37 | P172: 38 | Q172: 42 | R172: 47 | S172: 47 | T172: 84 | V172: REG + | W172: 4 | X172: =IF(I172="","",IF(A172="H",IF(OR(H172="SEN",H172<94),VLOOKUP(I172,Feuil1!$A$10:$E$28,5),IF(AND(H172>93,H172<97),VLOOKUP(I172,Feuil1!$A$10:$E$28,4),IF(AND(H172>93,H172<97),VLOOKUP(I172,Feuil1!$A$10:$E$28,3),IF(AND(H172>96,H172<100),VLOOKUP(I172,Feuil1!$A$10:$E$28,3),VLOOKUP(I172,Feuil1!$A$10:$E$28,2))))),IF(OR(H172="SEN",H172<94),VLOOKUP(I172,Feuil1!$F$10:$J$24,5),IF(AND(H172>93,H172<97),VLOOKUP(I172,Feuil1!$F$10:$J$24,4),IF(AND(H172>93,H172<97),VLOOKUP(I172,Feuil1!$F$10:$J$24,4),IF(AND(H172>96,H172<100),VLOOKUP(I172,Feuil1!$F$10:$J$24,3),VLOOKUP(I172,Feuil1!$F$10:$J$24,2))))))) -> C50 | Y172: 144.6681855 | AA172: =T172-HLOOKUP(X172,Feuil1!$C$1:$AU$9,2,FALSE) -> 19 | AB172: =T172-HLOOKUP(X172,Feuil1!$C$1:$AU$9,3,FALSE) -> 4 | AC172: =T172-HLOOKUP(X172,Feuil1!$C$1:$AU$9,4,FALSE) -> -11 | AD172: =T172-HLOOKUP(X172,Feuil1!$C$1:$AU$9,5,FALSE) -> -26 | AE172: =T172-HLOOKUP(X172,Feuil1!$C$1:$AU$9,6,FALSE) -> -36 | AF172: =T172-HLOOKUP(X172,Feuil1!$C$1:$AU$9,7,FALSE) -> -51 | AG172: =T172-HLOOKUP(X172,Feuil1!$C$1:$AU$9,8,FALSE) -> -66 | AH172: =T172-HLOOKUP(X172,Feuil1!$C$1:$AU$9,9,FALSE) -> -916 | AP172: REG +
A173: H | B173: Nord | C173: IDF | D173: 20 | E173: 329803 | F173: DURANTEL | G173: Leo | H173: 98 | I173: 50 | J173: CHAVILLE | K173: F | L173: 30 | M173: -35 | N173: 35 | O173: 35 | P173: 37 | Q173: 42 | R173: 47 | S173: 47 | T173: 82 | V173: REG + | W173: 2 | X173: =IF(I173="","",IF(A173="H",IF(OR(H173="SEN",H173<94),VLOOKUP(I173,Feuil1!$A$10:$E$28,5),IF(AND(H173>93,H173<97),VLOOKUP(I173,Feuil1!$A$10:$E$28,4),IF(AND(H173>93,H173<97),VLOOKUP(I173,Feuil1!$A$10:$E$28,3),IF(AND(H173>96,H173<100),VLOOKUP(I173,Feuil1!$A$10:$E$28,3),VLOOKUP(I173,Feuil1!$A$10:$E$28,2))))),IF(OR(H173="SEN",H173<94),VLOOKUP(I173,Feuil1!$F$10:$J$24,5),IF(AND(H173>93,H173<97),VLOOKUP(I173,Feuil1!$F$10:$J$24,4),IF(AND(H173>93,H173<97),VLOOKUP(I173,Feuil1!$F$10:$J$24,4),IF(AND(H173>96,H173<100),VLOOKUP(I173,Feuil1!$F$10:$J$24,3),VLOOKUP(I173,Feuil1!$F$10:$J$24,2))))))) -> C50 | Y173: 140.4912608 | AA173: =T173-HLOOKUP(X173,Feuil1!$C$1:$AU$9,2,FALSE) -> 17 | AB173: =T173-HLOOKUP(X173,Feuil1!$C$1:$AU$9,3,FALSE) -> 2 | AC173: =T173-HLOOKUP(X173,Feuil1!$C$1:$AU$9,4,FALSE) -> -13 | AD173: =T173-HLOOKUP(X173,Feuil1!$C$1:$AU$9,5,FALSE) -> -28 | AE173: =T173-HLOOKUP(X173,Feuil1!$C$1:$AU$9,6,FALSE) -> -38 | AF173: =T173-HLOOKUP(X173,Feuil1!$C$1:$AU$9,7,FALSE) -> -53 | AG173: =T173-HLOOKUP(X173,Feuil1!$C$1:$AU$9,8,FALSE) -> -68 | AH173: =T173-HLOOKUP(X173,Feuil1!$C$1:$AU$9,9,FALSE) -> -918 | AP173: REG +
A174: H | B174: SEST | C174: LAN | D174: 21 | E174: 353669 | F174: SOREL | G174: Maxime | H174: 99 | I174: 50 | J174: Narbonne Haltéro | K174: F | L174: 33 | M174: 35 | N174: -37 | O174: 35 | P174: 43 | Q174: 45 | R174: 47 | S174: 47 | T174: 82 | V174: REG + | W174: 2 | X174: =IF(I174="","",IF(A174="H",IF(OR(H174="SEN",H174<94),VLOOKUP(I174,Feuil1!$A$10:$E$28,5),IF(AND(H174>93,H174<97),VLOOKUP(I174,Feuil1!$A$10:$E$28,4),IF(AND(H174>93,H174<97),VLOOKUP(I174,Feuil1!$A$10:$E$28,3),IF(AND(H174>96,H174<100),VLOOKUP(I174,Feuil1!$A$10:$E$28,3),VLOOKUP(I174,Feuil1!$A$10:$E$28,2))))),IF(OR(H174="SEN",H174<94),VLOOKUP(I174,Feuil1!$F$10:$J$24,5),IF(AND(H174>93,H174<97),VLOOKUP(I174,Feuil1!$F$10:$J$24,4),IF(AND(H174>93,H174<97),VLOOKUP(I174,Feuil1!$F$10:$J$24,4),IF(AND(H174>96,H174<100),VLOOKUP(I174,Feuil1!$F$10:$J$24,3),VLOOKUP(I174,Feuil1!$F$10:$J$24,2))))))) -> C50 | Y174: 140.4912608 | AA174: =T174-HLOOKUP(X174,Feuil1!$C$1:$AU$9,2,FALSE) -> 17 | AB174: =T174-HLOOKUP(X174,Feuil1!$C$1:$AU$9,3,FALSE) -> 2 | AC174: =T174-HLOOKUP(X174,Feuil1!$C$1:$AU$9,4,FALSE) -> -13 | AD174: =T174-HLOOKUP(X174,Feuil1!$C$1:$AU$9,5,FALSE) -> -28 | AE174: =T174-HLOOKUP(X174,Feuil1!$C$1:$AU$9,6,FALSE) -> -38 | AF174: =T174-HLOOKUP(X174,Feuil1!$C$1:$AU$9,7,FALSE) -> -53 | AG174: =T174-HLOOKUP(X174,Feuil1!$C$1:$AU$9,8,FALSE) -> -68 | AH174: =T174-HLOOKUP(X174,Feuil1!$C$1:$AU$9,9,FALSE) -> -918 | AP174: REG +
A175: H | B175: DOM | C175: GUA | D175: 22 | E175: 337362 | F175: APPATORE | G175: Jordan | H175: 99 | I175: 47 | J175: AHCS/Pointois | K175: F | L175: 35 | M175: 37 | N175: 39 | O175: 39 | P175: 35 | Q175: 40 | R175: 42 | S175: 42 | T175: 81 | V175: REG + | W175: 1 | X175: =IF(I175="","",IF(A175="H",IF(OR(H175="SEN",H175<94),VLOOKUP(I175,Feuil1!$A$10:$E$28,5),IF(AND(H175>93,H175<97),VLOOKUP(I175,Feuil1!$A$10:$E$28,4),IF(AND(H175>93,H175<97),VLOOKUP(I175,Feuil1!$A$10:$E$28,3),IF(AND(H175>96,H175<100),VLOOKUP(I175,Feuil1!$A$10:$E$28,3),VLOOKUP(I175,Feuil1!$A$10:$E$28,2))))),IF(OR(H175="SEN",H175<94),VLOOKUP(I175,Feuil1!$F$10:$J$24,5),IF(AND(H175>93,H175<97),VLOOKUP(I175,Feuil1!$F$10:$J$24,4),IF(AND(H175>93,H175<97),VLOOKUP(I175,Feuil1!$F$10:$J$24,4),IF(AND(H175>96,H175<100),VLOOKUP(I175,Feuil1!$F$10:$J$24,3),VLOOKUP(I175,Feuil1!$F$10:$J$24,2))))))) -> C50 | Y175: 146.5740676 | AA175: =T175-HLOOKUP(X175,Feuil1!$C$1:$AU$9,2,FALSE) -> 16 | AB175: =T175-HLOOKUP(X175,Feuil1!$C$1:$AU$9,3,FALSE) -> 1 | AC175: =T175-HLOOKUP(X175,Feuil1!$C$1:$AU$9,4,FALSE) -> -14 | AD175: =T175-HLOOKUP(X175,Feuil1!$C$1:$AU$9,5,FALSE) -> -29 | AE175: =T175-HLOOKUP(X175,Feuil1!$C$1:$AU$9,6,FALSE) -> -39 | AF175: =T175-HLOOKUP(X175,Feuil1!$C$1:$AU$9,7,FALSE) -> -54 | AG175: =T175-HLOOKUP(X175,Feuil1!$C$1:$AU$9,8,FALSE) -> -69 | AH175: =T175-HLOOKUP(X175,Feuil1!$C$1:$AU$9,9,FALSE) -> -919 | AP175: REG +
A176: H | B176: ZCO | C176: CEN | D176: 23 | E176: 307428 | F176: MAZEAU | G176: Angelo | H176: 99 | I176: 49.05 | J176: AAJ BLOIS | K176: F | L176: 33 | M176: 35 | N176: 38 | O176: 38 | P176: 40 | Q176: 43 | R176: -45 | S176: 43 | T176: 81 | V176: REG + | W176: 1 | X176: =IF(I176="","",IF(A176="H",IF(OR(H176="SEN",H176<94),VLOOKUP(I176,Feuil1!$A$10:$E$28,5),IF(AND(H176>93,H176<97),VLOOKUP(I176,Feuil1!$A$10:$E$28,4),IF(AND(H176>93,H176<97),VLOOKUP(I176,Feuil1!$A$10:$E$28,3),IF(AND(H176>96,H176<100),VLOOKUP(I176,Feuil1!$A$10:$E$28,3),VLOOKUP(I176,Feuil1!$A$10:$E$28,2))))),IF(OR(H176="SEN",H176<94),VLOOKUP(I176,Feuil1!$F$10:$J$24,5),IF(AND(H176>93,H176<97),VLOOKUP(I176,Feuil1!$F$10:$J$24,4),IF(AND(H176>93,H176<97),VLOOKUP(I176,Feuil1!$F$10:$J$24,4),IF(AND(H176>96,H176<100),VLOOKUP(I176,Feuil1!$F$10:$J$24,3),VLOOKUP(I176,Feuil1!$F$10:$J$24,2))))))) -> C50 | Y176: 141.1096435 | AA176: =T176-HLOOKUP(X176,Feuil1!$C$1:$AU$9,2,FALSE) -> 16 | AB176: =T176-HLOOKUP(X176,Feuil1!$C$1:$AU$9,3,FALSE) -> 1 | AC176: =T176-HLOOKUP(X176,Feuil1!$C$1:$AU$9,4,FALSE) -> -14 | AD176: =T176-HLOOKUP(X176,Feuil1!$C$1:$AU$9,5,FALSE) -> -29 | AE176: =T176-HLOOKUP(X176,Feuil1!$C$1:$AU$9,6,FALSE) -> -39 | AF176: =T176-HLOOKUP(X176,Feuil1!$C$1:$AU$9,7,FALSE) -> -54 | AG176: =T176-HLOOKUP(X176,Feuil1!$C$1:$AU$9,8,FALSE) -> -69 | AH176: =T176-HLOOKUP(X176,Feuil1!$C$1:$AU$9,9,FALSE) -> -919 | AP176: REG +
A177: H | B177: CO | C177: BNO | D177: 24 | E177: 312031 | F177: JAMES | G177: PAUL | H177: 99 | I177: 46.7 | J177: SAINT LO | K177: F | L177: 30 | M177: -35 | N177: 35 | O177: 35 | P177: 38 | Q177: 40 | R177: 43 | S177: 43 | T177: 78 | V177: DEP + | W177: 13 | X177: =IF(I177="","",IF(A177="H",IF(OR(H177="SEN",H177<94),VLOOKUP(I177,Feuil1!$A$10:$E$28,5),IF(AND(H177>93,H177<97),VLOOKUP(I177,Feuil1!$A$10:$E$28,4),IF(AND(H177>93,H177<97),VLOOKUP(I177,Feuil1!$A$10:$E$28,3),IF(AND(H177>96,H177<100),VLOOKUP(I177,Feuil1!$A$10:$E$28,3),VLOOKUP(I177,Feuil1!$A$10:$E$28,2))))),IF(OR(H177="SEN",H177<94),VLOOKUP(I177,Feuil1!$F$10:$J$24,5),IF(AND(H177>93,H177<97),VLOOKUP(I177,Feuil1!$F$10:$J$24,4),IF(AND(H177>93,H177<97),VLOOKUP(I177,Feuil1!$F$10:$J$24,4),IF(AND(H177>96,H177<100),VLOOKUP(I177,Feuil1!$F$10:$J$24,3),VLOOKUP(I177,Feuil1!$F$10:$J$24,2))))))) -> C50 | Y177: 141.9674296 | AA177: =T177-HLOOKUP(X177,Feuil1!$C$1:$AU$9,2,FALSE) -> 13 | AB177: =T177-HLOOKUP(X177,Feuil1!$C$1:$AU$9,3,FALSE) -> -2 | AC177: =T177-HLOOKUP(X177,Feuil1!$C$1:$AU$9,4,FALSE) -> -17 | AD177: =T177-HLOOKUP(X177,Feuil1!$C$1:$AU$9,5,FALSE) -> -32 | AE177: =T177-HLOOKUP(X177,Feuil1!$C$1:$AU$9,6,FALSE) -> -42 | AF177: =T177-HLOOKUP(X177,Feuil1!$C$1:$AU$9,7,FALSE) -> -57 | AG177: =T177-HLOOKUP(X177,Feuil1!$C$1:$AU$9,8,FALSE) -> -72 | AH177: =T177-HLOOKUP(X177,Feuil1!$C$1:$AU$9,9,FALSE) -> -922 | AP177: DEP +
A178: H | B178: SO | C178: AQU | D178: 25 | E178: 254572 | F178: SOUPRE | G178: Kevin | H178: 99 | I178: 48.4 | J178: SAUVETERRE DE GUYENNE | K178: F | L178: 30 | M178: 32 | N178: 34 | O178: 34 | P178: 40 | Q178: 42 | R178: 44 | S178: 44 | T178: 78 | V178: DEP + | W178: 13 | X178: =IF(I178="","",IF(A178="H",IF(OR(H178="SEN",H178<94),VLOOKUP(I178,Feuil1!$A$10:$E$28,5),IF(AND(H178>93,H178<97),VLOOKUP(I178,Feuil1!$A$10:$E$28,4),IF(AND(H178>93,H178<97),VLOOKUP(I178,Feuil1!$A$10:$E$28,3),IF(AND(H178>96,H178<100),VLOOKUP(I178,Feuil1!$A$10:$E$28,3),VLOOKUP(I178,Feuil1!$A$10:$E$28,2))))),IF(OR(H178="SEN",H178<94),VLOOKUP(I178,Feuil1!$F$10:$J$24,5),IF(AND(H178>93,H178<97),VLOOKUP(I178,Feuil1!$F$10:$J$24,4),IF(AND(H178>93,H178<97),VLOOKUP(I178,Feuil1!$F$10:$J$24,4),IF(AND(H178>96,H178<100),VLOOKUP(I178,Feuil1!$F$10:$J$24,3),VLOOKUP(I178,Feuil1!$F$10:$J$24,2))))))) -> C50 | Y178: 137.487619 | AA178: =T178-HLOOKUP(X178,Feuil1!$C$1:$AU$9,2,FALSE) -> 13 | AB178: =T178-HLOOKUP(X178,Feuil1!$C$1:$AU$9,3,FALSE) -> -2 | AC178: =T178-HLOOKUP(X178,Feuil1!$C$1:$AU$9,4,FALSE) -> -17 | AD178: =T178-HLOOKUP(X178,Feuil1!$C$1:$AU$9,5,FALSE) -> -32 | AE178: =T178-HLOOKUP(X178,Feuil1!$C$1:$AU$9,6,FALSE) -> -42 | AF178: =T178-HLOOKUP(X178,Feuil1!$C$1:$AU$9,7,FALSE) -> -57 | AG178: =T178-HLOOKUP(X178,Feuil1!$C$1:$AU$9,8,FALSE) -> -72 | AH178: =T178-HLOOKUP(X178,Feuil1!$C$1:$AU$9,9,FALSE) -> -922 | AP178: DEP +
A179: H | B179: Nord | C179: PIC | D179: 26 | E179: 298023 | F179: VIESIER | G179: Kévin | H179: 99 | I179: 49.1 | J179: CHM Saleux | K179: F | L179: 28 | M179: 31 | N179: -34 | O179: 31 | P179: 40 | Q179: 45 | R179: -48 | S179: 45 | T179: 76 | V179: DEP + | W179: 11 | X179: =IF(I179="","",IF(A179="H",IF(OR(H179="SEN",H179<94),VLOOKUP(I179,Feuil1!$A$10:$E$28,5),IF(AND(H179>93,H179<97),VLOOKUP(I179,Feuil1!$A$10:$E$28,4),IF(AND(H179>93,H179<97),VLOOKUP(I179,Feuil1!$A$10:$E$28,3),IF(AND(H179>96,H179<100),VLOOKUP(I179,Feuil1!$A$10:$E$28,3),VLOOKUP(I179,Feuil1!$A$10:$E$28,2))))),IF(OR(H179="SEN",H179<94),VLOOKUP(I179,Feuil1!$F$10:$J$24,5),IF(AND(H179>93,H179<97),VLOOKUP(I179,Feuil1!$F$10:$J$24,4),IF(AND(H179>93,H179<97),VLOOKUP(I179,Feuil1!$F$10:$J$24,4),IF(AND(H179>96,H179<100),VLOOKUP(I179,Feuil1!$F$10:$J$24,3),VLOOKUP(I179,Feuil1!$F$10:$J$24,2))))))) -> C50 | Y179: 132.2812107 | AA179: =T179-HLOOKUP(X179,Feuil1!$C$1:$AU$9,2,FALSE) -> 11 | AB179: =T179-HLOOKUP(X179,Feuil1!$C$1:$AU$9,3,FALSE) -> -4 | AC179: =T179-HLOOKUP(X179,Feuil1!$C$1:$AU$9,4,FALSE) -> -19 | AD179: =T179-HLOOKUP(X179,Feuil1!$C$1:$AU$9,5,FALSE) -> -34 | AE179: =T179-HLOOKUP(X179,Feuil1!$C$1:$AU$9,6,FALSE) -> -44 | AF179: =T179-HLOOKUP(X179,Feuil1!$C$1:$AU$9,7,FALSE) -> -59 | AG179: =T179-HLOOKUP(X179,Feuil1!$C$1:$AU$9,8,FALSE) -> -74 | AH179: =T179-HLOOKUP(X179,Feuil1!$C$1:$AU$9,9,FALSE) -> -924 | AP179: DEP +
A180: H | B180: SEST | C180: RAL | D180: 27 | E180: 364818 | F180: DUFOUR | G180: Kylian | H180: 98 | I180: 46 | J180: Charlieu | K180: F | L180: 22 | M180: -29 | N180: 29 | O180: 29 | P180: 35 | Q180: 40 | R180: -45 | S180: 40 | T180: 69 | V180: DEP + | W180: 4 | X180: =IF(I180="","",IF(A180="H",IF(OR(H180="SEN",H180<94),VLOOKUP(I180,Feuil1!$A$10:$E$28,5),IF(AND(H180>93,H180<97),VLOOKUP(I180,Feuil1!$A$10:$E$28,4),IF(AND(H180>93,H180<97),VLOOKUP(I180,Feuil1!$A$10:$E$28,3),IF(AND(H180>96,H180<100),VLOOKUP(I180,Feuil1!$A$10:$E$28,3),VLOOKUP(I180,Feuil1!$A$10:$E$28,2))))),IF(OR(H180="SEN",H180<94),VLOOKUP(I180,Feuil1!$F$10:$J$24,5),IF(AND(H180>93,H180<97),VLOOKUP(I180,Feuil1!$F$10:$J$24,4),IF(AND(H180>93,H180<97),VLOOKUP(I180,Feuil1!$F$10:$J$24,4),IF(AND(H180>96,H180<100),VLOOKUP(I180,Feuil1!$F$10:$J$24,3),VLOOKUP(I180,Feuil1!$F$10:$J$24,2))))))) -> C50 | Y180: 127.3327445 | AA180: =T180-HLOOKUP(X180,Feuil1!$C$1:$AU$9,2,FALSE) -> 4 | AB180: =T180-HLOOKUP(X180,Feuil1!$C$1:$AU$9,3,FALSE) -> -11 | AC180: =T180-HLOOKUP(X180,Feuil1!$C$1:$AU$9,4,FALSE) -> -26 | AD180: =T180-HLOOKUP(X180,Feuil1!$C$1:$AU$9,5,FALSE) -> -41 | AE180: =T180-HLOOKUP(X180,Feuil1!$C$1:$AU$9,6,FALSE) -> -51 | AF180: =T180-HLOOKUP(X180,Feuil1!$C$1:$AU$9,7,FALSE) -> -66 | AG180: =T180-HLOOKUP(X180,Feuil1!$C$1:$AU$9,8,FALSE) -> -81 | AH180: =T180-HLOOKUP(X180,Feuil1!$C$1:$AU$9,9,FALSE) -> -931 | AP180: DEP +
A181: H | B181: CO | C181: BNO | D181: 28 | E181: 368456 | F181: SEKKAT | G181: MOHAMED | H181: 99 | I181: 47.6 | J181: ALENCON | K181: F | L181: 24 | M181: 25 | N181: 30 | O181: 30 | P181: 34 | Q181: 37 | R181: 39 | S181: 39 | T181: 69 | V181: DEP + | W181: 4 | X181: =IF(I181="","",IF(A181="H",IF(OR(H181="SEN",H181<94),VLOOKUP(I181,Feuil1!$A$10:$E$28,5),IF(AND(H181>93,H181<97),VLOOKUP(I181,Feuil1!$A$10:$E$28,4),IF(AND(H181>93,H181<97),VLOOKUP(I181,Feuil1!$A$10:$E$28,3),IF(AND(H181>96,H181<100),VLOOKUP(I181,Feuil1!$A$10:$E$28,3),VLOOKUP(I181,Feuil1!$A$10:$E$28,2))))),IF(OR(H181="SEN",H181<94),VLOOKUP(I181,Feuil1!$F$10:$J$24,5),IF(AND(H181>93,H181<97),VLOOKUP(I181,Feuil1!$F$10:$J$24,4),IF(AND(H181>93,H181<97),VLOOKUP(I181,Feuil1!$F$10:$J$24,4),IF(AND(H181>96,H181<100),VLOOKUP(I181,Feuil1!$F$10:$J$24,3),VLOOKUP(I181,Feuil1!$F$10:$J$24,2))))))) -> C50 | Y181: 123.4415704 | AA181: =T181-HLOOKUP(X181,Feuil1!$C$1:$AU$9,2,FALSE) -> 4 | AB181: =T181-HLOOKUP(X181,Feuil1!$C$1:$AU$9,3,FALSE) -> -11 | AC181: =T181-HLOOKUP(X181,Feuil1!$C$1:$AU$9,4,FALSE) -> -26 | AD181: =T181-HLOOKUP(X181,Feuil1!$C$1:$AU$9,5,FALSE) -> -41 | AE181: =T181-HLOOKUP(X181,Feuil1!$C$1:$AU$9,6,FALSE) -> -51 | AF181: =T181-HLOOKUP(X181,Feuil1!$C$1:$AU$9,7,FALSE) -> -66 | AG181: =T181-HLOOKUP(X181,Feuil1!$C$1:$AU$9,8,FALSE) -> -81 | AH181: =T181-HLOOKUP(X181,Feuil1!$C$1:$AU$9,9,FALSE) -> -931 | AP181: DEP +
A182: H | B182: ZCO | C182: CEN | D182: 29 | E182: 337216 | F182: DELACOUTE | G182: Antoine | H182: 98 | I182: 45.8 | J182: CMO ORLEANS | K182: F | L182: 27 | M182: 30 | N182: -33 | O182: 30 | P182: 38 | Q182: -40 | R182: -42 | S182: 38 | T182: 68 | V182: DEP + | W182: 3 | X182: =IF(I182="","",IF(A182="H",IF(OR(H182="SEN",H182<94),VLOOKUP(I182,Feuil1!$A$10:$E$28,5),IF(AND(H182>93,H182<97),VLOOKUP(I182,Feuil1!$A$10:$E$28,4),IF(AND(H182>93,H182<97),VLOOKUP(I182,Feuil1!$A$10:$E$28,3),IF(AND(H182>96,H182<100),VLOOKUP(I182,Feuil1!$A$10:$E$28,3),VLOOKUP(I182,Feuil1!$A$10:$E$28,2))))),IF(OR(H182="SEN",H182<94),VLOOKUP(I182,Feuil1!$F$10:$J$24,5),IF(AND(H182>93,H182<97),VLOOKUP(I182,Feuil1!$F$10:$J$24,4),IF(AND(H182>93,H182<97),VLOOKUP(I182,Feuil1!$F$10:$J$24,4),IF(AND(H182>96,H182<100),VLOOKUP(I182,Feuil1!$F$10:$J$24,3),VLOOKUP(I182,Feuil1!$F$10:$J$24,2))))))) -> C50 | Y182: 125.9919483 | AA182: =T182-HLOOKUP(X182,Feuil1!$C$1:$AU$9,2,FALSE) -> 3 | AB182: =T182-HLOOKUP(X182,Feuil1!$C$1:$AU$9,3,FALSE) -> -12 | AC182: =T182-HLOOKUP(X182,Feuil1!$C$1:$AU$9,4,FALSE) -> -27 | AD182: =T182-HLOOKUP(X182,Feuil1!$C$1:$AU$9,5,FALSE) -> -42 | AE182: =T182-HLOOKUP(X182,Feuil1!$C$1:$AU$9,6,FALSE) -> -52 | AF182: =T182-HLOOKUP(X182,Feuil1!$C$1:$AU$9,7,FALSE) -> -67 | AG182: =T182-HLOOKUP(X182,Feuil1!$C$1:$AU$9,8,FALSE) -> -82 | AH182: =T182-HLOOKUP(X182,Feuil1!$C$1:$AU$9,9,FALSE) -> -932 | AP182: DEP +
A183: H | B183: SO | C183: MPY | D183: 30 | E183: 324054 | F183: MEAR | G183: Kévin | H183: 98 | I183: 48.3 | J183: FIGEAC HC | K183: F | L183: 25 | M183: 28 | N183: 30 | O183: 30 | P183: 35 | Q183: 38 | R183: -40 | S183: 38 | T183: 68 | V183: DEP + | W183: 3 | X183: =IF(I183="","",IF(A183="H",IF(OR(H183="SEN",H183<94),VLOOKUP(I183,Feuil1!$A$10:$E$28,5),IF(AND(H183>93,H183<97),VLOOKUP(I183,Feuil1!$A$10:$E$28,4),IF(AND(H183>93,H183<97),VLOOKUP(I183,Feuil1!$A$10:$E$28,3),IF(AND(H183>96,H183<100),VLOOKUP(I183,Feuil1!$A$10:$E$28,3),VLOOKUP(I183,Feuil1!$A$10:$E$28,2))))),IF(OR(H183="SEN",H183<94),VLOOKUP(I183,Feuil1!$F$10:$J$24,5),IF(AND(H183>93,H183<97),VLOOKUP(I183,Feuil1!$F$10:$J$24,4),IF(AND(H183>93,H183<97),VLOOKUP(I183,Feuil1!$F$10:$J$24,4),IF(AND(H183>96,H183<100),VLOOKUP(I183,Feuil1!$F$10:$J$24,3),VLOOKUP(I183,Feuil1!$F$10:$J$24,2))))))) -> C50 | Y183: 120.0806274 | AA183: =T183-HLOOKUP(X183,Feuil1!$C$1:$AU$9,2,FALSE) -> 3 | AB183: =T183-HLOOKUP(X183,Feuil1!$C$1:$AU$9,3,FALSE) -> -12 | AC183: =T183-HLOOKUP(X183,Feuil1!$C$1:$AU$9,4,FALSE) -> -27 | AD183: =T183-HLOOKUP(X183,Feuil1!$C$1:$AU$9,5,FALSE) -> -42 | AE183: =T183-HLOOKUP(X183,Feuil1!$C$1:$AU$9,6,FALSE) -> -52 | AF183: =T183-HLOOKUP(X183,Feuil1!$C$1:$AU$9,7,FALSE) -> -67 | AG183: =T183-HLOOKUP(X183,Feuil1!$C$1:$AU$9,8,FALSE) -> -82 | AH183: =T183-HLOOKUP(X183,Feuil1!$C$1:$AU$9,9,FALSE) -> -932 | AP183: DEP +
A184: H | B184: NE | C184: BOU | D184: 31 | E184: 358194 | F184: DUCHER | G184: PIERRE | H184: 98 | I184: 50 | J184: OLYMPIQUE MACON | K184: F | L184: 25 | M184: 28 | N184: 30 | O184: 30 | P184: 33 | Q184: 37 | R184: -40 | S184: 37 | T184: 67 | V184: DEP + | W184: 2 | X184: =IF(I184="","",IF(A184="H",IF(OR(H184="SEN",H184<94),VLOOKUP(I184,Feuil1!$A$10:$E$28,5),IF(AND(H184>93,H184<97),VLOOKUP(I184,Feuil1!$A$10:$E$28,4),IF(AND(H184>93,H184<97),VLOOKUP(I184,Feuil1!$A$10:$E$28,3),IF(AND(H184>96,H184<100),VLOOKUP(I184,Feuil1!$A$10:$E$28,3),VLOOKUP(I184,Feuil1!$A$10:$E$28,2))))),IF(OR(H184="SEN",H184<94),VLOOKUP(I184,Feuil1!$F$10:$J$24,5),IF(AND(H184>93,H184<97),VLOOKUP(I184,Feuil1!$F$10:$J$24,4),IF(AND(H184>93,H184<97),VLOOKUP(I184,Feuil1!$F$10:$J$24,4),IF(AND(H184>96,H184<100),VLOOKUP(I184,Feuil1!$F$10:$J$24,3),VLOOKUP(I184,Feuil1!$F$10:$J$24,2))))))) -> C50 | Y184: 114.7916399 | AA184: =T184-HLOOKUP(X184,Feuil1!$C$1:$AU$9,2,FALSE) -> 2 | AB184: =T184-HLOOKUP(X184,Feuil1!$C$1:$AU$9,3,FALSE) -> -13 | AC184: =T184-HLOOKUP(X184,Feuil1!$C$1:$AU$9,4,FALSE) -> -28 | AD184: =T184-HLOOKUP(X184,Feuil1!$C$1:$AU$9,5,FALSE) -> -43 | AE184: =T184-HLOOKUP(X184,Feuil1!$C$1:$AU$9,6,FALSE) -> -53 | AF184: =T184-HLOOKUP(X184,Feuil1!$C$1:$AU$9,7,FALSE) -> -68 | AG184: =T184-HLOOKUP(X184,Feuil1!$C$1:$AU$9,8,FALSE) -> -83 | AH184: =T184-HLOOKUP(X184,Feuil1!$C$1:$AU$9,9,FALSE) -> -933 | AP184: DEP +
A185: H | B185: CO | C185: BNO | D185: 32 | E185: 366862 | F185: AUVRAY | G185: SWANNY | H185: 99 | I185: 47.6 | J185: Caen CHM | K185: F | L185: 22 | M185: 26 | N185: 28 | O185: 28 | P185: 25 | Q185: 30 | R185: 33 | S185: 33 | T185: 61 | V185: NCL | W185: -4 | X185: =IF(I185="","",IF(A185="H",IF(OR(H185="SEN",H185<94),VLOOKUP(I185,Feuil1!$A$10:$E$28,5),IF(AND(H185>93,H185<97),VLOOKUP(I185,Feuil1!$A$10:$E$28,4),IF(AND(H185>93,H185<97),VLOOKUP(I185,Feuil1!$A$10:$E$28,3),IF(AND(H185>96,H185<100),VLOOKUP(I185,Feuil1!$A$10:$E$28,3),VLOOKUP(I185,Feuil1!$A$10:$E$28,2))))),IF(OR(H185="SEN",H185<94),VLOOKUP(I185,Feuil1!$F$10:$J$24,5),IF(AND(H185>93,H185<97),VLOOKUP(I185,Feuil1!$F$10:$J$24,4),IF(AND(H185>93,H185<97),VLOOKUP(I185,Feuil1!$F$10:$J$24,4),IF(AND(H185>96,H185<100),VLOOKUP(I185,Feuil1!$F$10:$J$24,3),VLOOKUP(I185,Feuil1!$F$10:$J$24,2))))))) -> C50 | Y185: 109.1295042 | AA185: =T185-HLOOKUP(X185,Feuil1!$C$1:$AU$9,2,FALSE) -> -4 | AB185: =T185-HLOOKUP(X185,Feuil1!$C$1:$AU$9,3,FALSE) -> -19 | AC185: =T185-HLOOKUP(X185,Feuil1!$C$1:$AU$9,4,FALSE) -> -34 | AD185: =T185-HLOOKUP(X185,Feuil1!$C$1:$AU$9,5,FALSE) -> -49 | AE185: =T185-HLOOKUP(X185,Feuil1!$C$1:$AU$9,6,FALSE) -> -59 | AF185: =T185-HLOOKUP(X185,Feuil1!$C$1:$AU$9,7,FALSE) -> -74 | AG185: =T185-HLOOKUP(X185,Feuil1!$C$1:$AU$9,8,FALSE) -> -89 | AH185: =T185-HLOOKUP(X185,Feuil1!$C$1:$AU$9,9,FALSE) -> -939 | AP185: NCL
A186: H | B186: NE | C186: LOR | D186: 33 | E186: 329101 | F186: ALBANESE | G186: Zaccaria | H186: 99 | I186: 48 | J186: S.C.Fameck | K186: F | L186: 20 | M186: 25 | N186: -30 | O186: 25 | P186: 25 | Q186: 30 | R186: 35 | S186: 35 | T186: 60 | V186: NCL | W186: -5 | X186: =IF(I186="","",IF(A186="H",IF(OR(H186="SEN",H186<94),VLOOKUP(I186,Feuil1!$A$10:$E$28,5),IF(AND(H186>93,H186<97),VLOOKUP(I186,Feuil1!$A$10:$E$28,4),IF(AND(H186>93,H186<97),VLOOKUP(I186,Feuil1!$A$10:$E$28,3),IF(AND(H186>96,H186<100),VLOOKUP(I186,Feuil1!$A$10:$E$28,3),VLOOKUP(I186,Feuil1!$A$10:$E$28,2))))),IF(OR(H186="SEN",H186<94),VLOOKUP(I186,Feuil1!$F$10:$J$24,5),IF(AND(H186>93,H186<97),VLOOKUP(I186,Feuil1!$F$10:$J$24,4),IF(AND(H186>93,H186<97),VLOOKUP(I186,Feuil1!$F$10:$J$24,4),IF(AND(H186>96,H186<100),VLOOKUP(I186,Feuil1!$F$10:$J$24,3),VLOOKUP(I186,Feuil1!$F$10:$J$24,2))))))) -> C50 | Y186: 106.541324 | AA186: =T186-HLOOKUP(X186,Feuil1!$C$1:$AU$9,2,FALSE) -> -5 | AB186: =T186-HLOOKUP(X186,Feuil1!$C$1:$AU$9,3,FALSE) -> -20 | AC186: =T186-HLOOKUP(X186,Feuil1!$C$1:$AU$9,4,FALSE) -> -35 | AD186: =T186-HLOOKUP(X186,Feuil1!$C$1:$AU$9,5,FALSE) -> -50 | AE186: =T186-HLOOKUP(X186,Feuil1!$C$1:$AU$9,6,FALSE) -> -60 | AF186: =T186-HLOOKUP(X186,Feuil1!$C$1:$AU$9,7,FALSE) -> -75 | AG186: =T186-HLOOKUP(X186,Feuil1!$C$1:$AU$9,8,FALSE) -> -90 | AH186: =T186-HLOOKUP(X186,Feuil1!$C$1:$AU$9,9,FALSE) -> -940 | AP186: NCL
A187: H | B187: CO | C187: BRE | D187: 34 | E187: 353054 | F187: DREANO | G187: Maxence | H187: 98 | I187: 48.5 | J187: C.A.LORIENT | K187: F | L187: 21 | M187: 23 | N187: 25 | O187: 25 | P187: -30 | Q187: -30 | R187: 30 | S187: 30 | T187: 55 | V187: NCL | W187: -10 | X187: =IF(I187="","",IF(A187="H",IF(OR(H187="SEN",H187<94),VLOOKUP(I187,Feuil1!$A$10:$E$28,5),IF(AND(H187>93,H187<97),VLOOKUP(I187,Feuil1!$A$10:$E$28,4),IF(AND(H187>93,H187<97),VLOOKUP(I187,Feuil1!$A$10:$E$28,3),IF(AND(H187>96,H187<100),VLOOKUP(I187,Feuil1!$A$10:$E$28,3),VLOOKUP(I187,Feuil1!$A$10:$E$28,2))))),IF(OR(H187="SEN",H187<94),VLOOKUP(I187,Feuil1!$F$10:$J$24,5),IF(AND(H187>93,H187<97),VLOOKUP(I187,Feuil1!$F$10:$J$24,4),IF(AND(H187>93,H187<97),VLOOKUP(I187,Feuil1!$F$10:$J$24,4),IF(AND(H187>96,H187<100),VLOOKUP(I187,Feuil1!$F$10:$J$24,3),VLOOKUP(I187,Feuil1!$F$10:$J$24,2))))))) -> C50 | Y187: 96.76973442 | AA187: =T187-HLOOKUP(X187,Feuil1!$C$1:$AU$9,2,FALSE) -> -10 | AB187: =T187-HLOOKUP(X187,Feuil1!$C$1:$AU$9,3,FALSE) -> -25 | AC187: =T187-HLOOKUP(X187,Feuil1!$C$1:$AU$9,4,FALSE) -> -40 | AD187: =T187-HLOOKUP(X187,Feuil1!$C$1:$AU$9,5,FALSE) -> -55 | AE187: =T187-HLOOKUP(X187,Feuil1!$C$1:$AU$9,6,FALSE) -> -65 | AF187: =T187-HLOOKUP(X187,Feuil1!$C$1:$AU$9,7,FALSE) -> -80 | AG187: =T187-HLOOKUP(X187,Feuil1!$C$1:$AU$9,8,FALSE) -> -95 | AH187: =T187-HLOOKUP(X187,Feuil1!$C$1:$AU$9,9,FALSE) -> -945 | AP187: NCL
A188: H | B188: CO | C188: BRE | D188: 35 | E188: 353056 | F188: LOAS | G188: Kévin | H188: 99 | I188: 49.5 | J188: CA Lorient | K188: F | L188: 18 | M188: 20 | N188: 22 | O188: 22 | P188: 30 | Q188: 33 | R188: -35 | S188: 33 | T188: 55 | V188: NCL | W188: -10 | X188: =IF(I188="","",IF(A188="H",IF(OR(H188="SEN",H188<94),VLOOKUP(I188,Feuil1!$A$10:$E$28,5),IF(AND(H188>93,H188<97),VLOOKUP(I188,Feuil1!$A$10:$E$28,4),IF(AND(H188>93,H188<97),VLOOKUP(I188,Feuil1!$A$10:$E$28,3),IF(AND(H188>96,H188<100),VLOOKUP(I188,Feuil1!$A$10:$E$28,3),VLOOKUP(I188,Feuil1!$A$10:$E$28,2))))),IF(OR(H188="SEN",H188<94),VLOOKUP(I188,Feuil1!$F$10:$J$24,5),IF(AND(H188>93,H188<97),VLOOKUP(I188,Feuil1!$F$10:$J$24,4),IF(AND(H188>93,H188<97),VLOOKUP(I188,Feuil1!$F$10:$J$24,4),IF(AND(H188>96,H188<100),VLOOKUP(I188,Feuil1!$F$10:$J$24,3),VLOOKUP(I188,Feuil1!$F$10:$J$24,2))))))) -> C50 | Y188: 95.05514364 | AA188: =T188-HLOOKUP(X188,Feuil1!$C$1:$AU$9,2,FALSE) -> -10 | AB188: =T188-HLOOKUP(X188,Feuil1!$C$1:$AU$9,3,FALSE) -> -25 | AC188: =T188-HLOOKUP(X188,Feuil1!$C$1:$AU$9,4,FALSE) -> -40 | AD188: =T188-HLOOKUP(X188,Feuil1!$C$1:$AU$9,5,FALSE) -> -55 | AE188: =T188-HLOOKUP(X188,Feuil1!$C$1:$AU$9,6,FALSE) -> -65 | AF188: =T188-HLOOKUP(X188,Feuil1!$C$1:$AU$9,7,FALSE) -> -80 | AG188: =T188-HLOOKUP(X188,Feuil1!$C$1:$AU$9,8,FALSE) -> -95 | AH188: =T188-HLOOKUP(X188,Feuil1!$C$1:$AU$9,9,FALSE) -> -945 | AP188: NCL
A189: H | B189: CO | C189: PDL | D189: 36 | E189: 249676 | F189: SAULNIER | G189: Benjamin | H189: 99 | I189: 43.9 | J189: A L SAVENAY | K189: F | L189: 17 | M189: 20 | N189: 22 | O189: 22 | P189: 27 | Q189: 30 | R189: 32 | S189: 32 | T189: 54 | V189: NCL | W189: -11 | X189: =IF(I189="","",IF(A189="H",IF(OR(H189="SEN",H189<94),VLOOKUP(I189,Feuil1!$A$10:$E$28,5),IF(AND(H189>93,H189<97),VLOOKUP(I189,Feuil1!$A$10:$E$28,4),IF(AND(H189>93,H189<97),VLOOKUP(I189,Feuil1!$A$10:$E$28,3),IF(AND(H189>96,H189<100),VLOOKUP(I189,Feuil1!$A$10:$E$28,3),VLOOKUP(I189,Feuil1!$A$10:$E$28,2))))),IF(OR(H189="SEN",H189<94),VLOOKUP(I189,Feuil1!$F$10:$J$24,5),IF(AND(H189>93,H189<97),VLOOKUP(I189,Feuil1!$F$10:$J$24,4),IF(AND(H189>93,H189<97),VLOOKUP(I189,Feuil1!$F$10:$J$24,4),IF(AND(H189>96,H189<100),VLOOKUP(I189,Feuil1!$F$10:$J$24,3),VLOOKUP(I189,Feuil1!$F$10:$J$24,2))))))) -> C50 | Y189: 104.1050187 | AA189: =T189-HLOOKUP(X189,Feuil1!$C$1:$AU$9,2,FALSE) -> -11 | AB189: =T189-HLOOKUP(X189,Feuil1!$C$1:$AU$9,3,FALSE) -> -26 | AC189: =T189-HLOOKUP(X189,Feuil1!$C$1:$AU$9,4,FALSE) -> -41 | AD189: =T189-HLOOKUP(X189,Feuil1!$C$1:$AU$9,5,FALSE) -> -56 | AE189: =T189-HLOOKUP(X189,Feuil1!$C$1:$AU$9,6,FALSE) -> -66 | AF189: =T189-HLOOKUP(X189,Feuil1!$C$1:$AU$9,7,FALSE) -> -81 | AG189: =T189-HLOOKUP(X189,Feuil1!$C$1:$AU$9,8,FALSE) -> -96 | AH189: =T189-HLOOKUP(X189,Feuil1!$C$1:$AU$9,9,FALSE) -> -946 | AP189: NCL
A190: H | B190: CO | C190: PDL | D190: 37 | E190: 302154 | F190: LE RAY | G190: Loan | H190: 99 | I190: 49.4 | J190: Saint Herblain H M | K190: F | L190: 19 | M190: 21 | N190: 23 | O190: 23 | P190: 27 | Q190: -30 | R190: 30 | S190: 30 | T190: 53 | V190: NCL | W190: -12 | X190: =IF(I190="","",IF(A190="H",IF(OR(H190="SEN",H190<94),VLOOKUP(I190,Feuil1!$A$10:$E$28,5),IF(AND(H190>93,H190<97),VLOOKUP(I190,Feuil1!$A$10:$E$28,4),IF(AND(H190>93,H190<97),VLOOKUP(I190,Feuil1!$A$10:$E$28,3),IF(AND(H190>96,H190<100),VLOOKUP(I190,Feuil1!$A$10:$E$28,3),VLOOKUP(I190,Feuil1!$A$10:$E$28,2))))),IF(OR(H190="SEN",H190<94),VLOOKUP(I190,Feuil1!$F$10:$J$24,5),IF(AND(H190>93,H190<97),VLOOKUP(I190,Feuil1!$F$10:$J$24,4),IF(AND(H190>93,H190<97),VLOOKUP(I190,Feuil1!$F$10:$J$24,4),IF(AND(H190>96,H190<100),VLOOKUP(I190,Feuil1!$F$10:$J$24,3),VLOOKUP(I190,Feuil1!$F$10:$J$24,2))))))) -> C50 | Y190: 91.75981572 | AA190: =T190-HLOOKUP(X190,Feuil1!$C$1:$AU$9,2,FALSE) -> -12 | AB190: =T190-HLOOKUP(X190,Feuil1!$C$1:$AU$9,3,FALSE) -> -27 | AC190: =T190-HLOOKUP(X190,Feuil1!$C$1:$AU$9,4,FALSE) -> -42 | AD190: =T190-HLOOKUP(X190,Feuil1!$C$1:$AU$9,5,FALSE) -> -57 | AE190: =T190-HLOOKUP(X190,Feuil1!$C$1:$AU$9,6,FALSE) -> -67 | AF190: =T190-HLOOKUP(X190,Feuil1!$C$1:$AU$9,7,FALSE) -> -82 | AG190: =T190-HLOOKUP(X190,Feuil1!$C$1:$AU$9,8,FALSE) -> -97 | AH190: =T190-HLOOKUP(X190,Feuil1!$C$1:$AU$9,9,FALSE) -> -947 | AP190: NCL
A191: H | B191: Nord | C191: PIC | D191: 38 | E191: 357158 | F191: ARNOUD | G191: Alex | H191: 99 | I191: 46.2 | J191: CHFM Roisel | K191: F | L191: 20 | M191: -23 | N191: 23 | O191: 23 | P191: 25 | Q191: 27 | R191: 29 | S191: 29 | T191: 52 | V191: NCL | W191: -13 | X191: =IF(I191="","",IF(A191="H",IF(OR(H191="SEN",H191<94),VLOOKUP(I191,Feuil1!$A$10:$E$28,5),IF(AND(H191>93,H191<97),VLOOKUP(I191,Feuil1!$A$10:$E$28,4),IF(AND(H191>93,H191<97),VLOOKUP(I191,Feuil1!$A$10:$E$28,3),IF(AND(H191>96,H191<100),VLOOKUP(I191,Feuil1!$A$10:$E$28,3),VLOOKUP(I191,Feuil1!$A$10:$E$28,2))))),IF(OR(H191="SEN",H191<94),VLOOKUP(I191,Feuil1!$F$10:$J$24,5),IF(AND(H191>93,H191<97),VLOOKUP(I191,Feuil1!$F$10:$J$24,4),IF(AND(H191>93,H191<97),VLOOKUP(I191,Feuil1!$F$10:$J$24,4),IF(AND(H191>96,H191<100),VLOOKUP(I191,Feuil1!$F$10:$J$24,3),VLOOKUP(I191,Feuil1!$F$10:$J$24,2))))))) -> C50 | Y191: 95.57948727 | AA191: =T191-HLOOKUP(X191,Feuil1!$C$1:$AU$9,2,FALSE) -> -13 | AB191: =T191-HLOOKUP(X191,Feuil1!$C$1:$AU$9,3,FALSE) -> -28 | AC191: =T191-HLOOKUP(X191,Feuil1!$C$1:$AU$9,4,FALSE) -> -43 | AD191: =T191-HLOOKUP(X191,Feuil1!$C$1:$AU$9,5,FALSE) -> -58 | AE191: =T191-HLOOKUP(X191,Feuil1!$C$1:$AU$9,6,FALSE) -> -68 | AF191: =T191-HLOOKUP(X191,Feuil1!$C$1:$AU$9,7,FALSE) -> -83 | AG191: =T191-HLOOKUP(X191,Feuil1!$C$1:$AU$9,8,FALSE) -> -98 | AH191: =T191-HLOOKUP(X191,Feuil1!$C$1:$AU$9,9,FALSE) -> -948 | AP191: NCL
A192: H | B192: CO | C192: BRE | D192: 39 | E192: 355831 | F192: LE MENN | G192: Judicael | H192: 99 | I192: 39.3 | J192: CHM Plougastel Daoulas | K192: F | L192: 16 | M192: 18 | N192: 19 | O192: 19 | P192: 20 | Q192: 21 | R192: 23 | S192: 23 | T192: 42 | V192: NCL | W192: -23 | X192: =IF(I192="","",IF(A192="H",IF(OR(H192="SEN",H192<94),VLOOKUP(I192,Feuil1!$A$10:$E$28,5),IF(AND(H192>93,H192<97),VLOOKUP(I192,Feuil1!$A$10:$E$28,4),IF(AND(H192>93,H192<97),VLOOKUP(I192,Feuil1!$A$10:$E$28,3),IF(AND(H192>96,H192<100),VLOOKUP(I192,Feuil1!$A$10:$E$28,3),VLOOKUP(I192,Feuil1!$A$10:$E$28,2))))),IF(OR(H192="SEN",H192<94),VLOOKUP(I192,Feuil1!$F$10:$J$24,5),IF(AND(H192>93,H192<97),VLOOKUP(I192,Feuil1!$F$10:$J$24,4),IF(AND(H192>93,H192<97),VLOOKUP(I192,Feuil1!$F$10:$J$24,4),IF(AND(H192>96,H192<100),VLOOKUP(I192,Feuil1!$F$10:$J$24,3),VLOOKUP(I192,Feuil1!$F$10:$J$24,2))))))) -> C50 | Y192: 90.34727929 | AA192: =T192-HLOOKUP(X192,Feuil1!$C$1:$AU$9,2,FALSE) -> -23 | AB192: =T192-HLOOKUP(X192,Feuil1!$C$1:$AU$9,3,FALSE) -> -38 | AC192: =T192-HLOOKUP(X192,Feuil1!$C$1:$AU$9,4,FALSE) -> -53 | AD192: =T192-HLOOKUP(X192,Feuil1!$C$1:$AU$9,5,FALSE) -> -68 | AE192: =T192-HLOOKUP(X192,Feuil1!$C$1:$AU$9,6,FALSE) -> -78 | AF192: =T192-HLOOKUP(X192,Feuil1!$C$1:$AU$9,7,FALSE) -> -93 | AG192: =T192-HLOOKUP(X192,Feuil1!$C$1:$AU$9,8,FALSE) -> -108 | AH192: =T192-HLOOKUP(X192,Feuil1!$C$1:$AU$9,9,FALSE) -> -958 | AP192: NCL
A193: H | B193: SEST | C193: CAZ | D193: 40 | E193: 366475 | F193: ANQUEZ | G193: Clement | H193: 99 | I193: 32.6 | J193: ES, VILL,LOUBET | K193: F | L193: 12 | M193: 15 | N193: 18 | O193: 18 | P193: 17 | Q193: 20 | R193: 23 | S193: 23 | T193: 41 | V193: NCL | W193: -24 | X193: =IF(I193="","",IF(A193="H",IF(OR(H193="SEN",H193<94),VLOOKUP(I193,Feuil1!$A$10:$E$28,5),IF(AND(H193>93,H193<97),VLOOKUP(I193,Feuil1!$A$10:$E$28,4),IF(AND(H193>93,H193<97),VLOOKUP(I193,Feuil1!$A$10:$E$28,3),IF(AND(H193>96,H193<100),VLOOKUP(I193,Feuil1!$A$10:$E$28,3),VLOOKUP(I193,Feuil1!$A$10:$E$28,2))))),IF(OR(H193="SEN",H193<94),VLOOKUP(I193,Feuil1!$F$10:$J$24,5),IF(AND(H193>93,H193<97),VLOOKUP(I193,Feuil1!$F$10:$J$24,4),IF(AND(H193>93,H193<97),VLOOKUP(I193,Feuil1!$F$10:$J$24,4),IF(AND(H193>96,H193<100),VLOOKUP(I193,Feuil1!$F$10:$J$24,3),VLOOKUP(I193,Feuil1!$F$10:$J$24,2))))))) -> C50 | Y193: 108.1785749 | AA193: =T193-HLOOKUP(X193,Feuil1!$C$1:$AU$9,2,FALSE) -> -24 | AB193: =T193-HLOOKUP(X193,Feuil1!$C$1:$AU$9,3,FALSE) -> -39 | AC193: =T193-HLOOKUP(X193,Feuil1!$C$1:$AU$9,4,FALSE) -> -54 | AD193: =T193-HLOOKUP(X193,Feuil1!$C$1:$AU$9,5,FALSE) -> -69 | AE193: =T193-HLOOKUP(X193,Feuil1!$C$1:$AU$9,6,FALSE) -> -79 | AF193: =T193-HLOOKUP(X193,Feuil1!$C$1:$AU$9,7,FALSE) -> -94 | AG193: =T193-HLOOKUP(X193,Feuil1!$C$1:$AU$9,8,FALSE) -> -109 | AH193: =T193-HLOOKUP(X193,Feuil1!$C$1:$AU$9,9,FALSE) -> -959 | AP193: NCL
A194: H | B194: Nord | C194: PIC | D194: 41 | E194: 361670 | F194: DUSSAUTOIR | G194: Alexis | H194: 99 | I194: 31.6 | J194: CHFM Roisel | K194: F | L194: 10 | M194: 13 | N194: 16 | O194: 16 | P194: 16 | Q194: 18 | R194: 20 | S194: 20 | T194: 36 | V194: NCL | W194: -29 | X194: =IF(I194="","",IF(A194="H",IF(OR(H194="SEN",H194<94),VLOOKUP(I194,Feuil1!$A$10:$E$28,5),IF(AND(H194>93,H194<97),VLOOKUP(I194,Feuil1!$A$10:$E$28,4),IF(AND(H194>93,H194<97),VLOOKUP(I194,Feuil1!$A$10:$E$28,3),IF(AND(H194>96,H194<100),VLOOKUP(I194,Feuil1!$A$10:$E$28,3),VLOOKUP(I194,Feuil1!$A$10:$E$28,2))))),IF(OR(H194="SEN",H194<94),VLOOKUP(I194,Feuil1!$F$10:$J$24,5),IF(AND(H194>93,H194<97),VLOOKUP(I194,Feuil1!$F$10:$J$24,4),IF(AND(H194>93,H194<97),VLOOKUP(I194,Feuil1!$F$10:$J$24,4),IF(AND(H194>96,H194<100),VLOOKUP(I194,Feuil1!$F$10:$J$24,3),VLOOKUP(I194,Feuil1!$F$10:$J$24,2))))))) -> C50 | Y194: 98.50566822 | AA194: =T194-HLOOKUP(X194,Feuil1!$C$1:$AU$9,2,FALSE) -> -29 | AB194: =T194-HLOOKUP(X194,Feuil1!$C$1:$AU$9,3,FALSE) -> -44 | AC194: =T194-HLOOKUP(X194,Feuil1!$C$1:$AU$9,4,FALSE) -> -59 | AD194: =T194-HLOOKUP(X194,Feuil1!$C$1:$AU$9,5,FALSE) -> -74 | AE194: =T194-HLOOKUP(X194,Feuil1!$C$1:$AU$9,6,FALSE) -> -84 | AF194: =T194-HLOOKUP(X194,Feuil1!$C$1:$AU$9,7,FALSE) -> -99 | AG194: =T194-HLOOKUP(X194,Feuil1!$C$1:$AU$9,8,FALSE) -> -114 | AH194: =T194-HLOOKUP(X194,Feuil1!$C$1:$AU$9,9,FALSE) -> -964 | AP194: NCL
A195: H | B195: NORD | C195: NPC | D195: 42 | E195: 360929 | F195: TRONSSON | G195: John | H195: 98 | I195: 40.9 | J195: AO SALLAUMINES | K195: F | L195: 10 | M195: 13 | N195: 15 | O195: 15 | P195: 12 | Q195: 15 | R195: 17 | S195: 17 | T195: 32 | V195: NCL | W195: -33 | X195: =IF(I195="","",IF(A195="H",IF(OR(H195="SEN",H195<94),VLOOKUP(I195,Feuil1!$A$10:$E$28,5),IF(AND(H195>93,H195<97),VLOOKUP(I195,Feuil1!$A$10:$E$28,4),IF(AND(H195>93,H195<97),VLOOKUP(I195,Feuil1!$A$10:$E$28,3),IF(AND(H195>96,H195<100),VLOOKUP(I195,Feuil1!$A$10:$E$28,3),VLOOKUP(I195,Feuil1!$A$10:$E$28,2))))),IF(OR(H195="SEN",H195<94),VLOOKUP(I195,Feuil1!$F$10:$J$24,5),IF(AND(H195>93,H195<97),VLOOKUP(I195,Feuil1!$F$10:$J$24,4),IF(AND(H195>93,H195<97),VLOOKUP(I195,Feuil1!$F$10:$J$24,4),IF(AND(H195>96,H195<100),VLOOKUP(I195,Feuil1!$F$10:$J$24,3),VLOOKUP(I195,Feuil1!$F$10:$J$24,2))))))) -> C50 | Y195: 66.10530632 | AA195: =T195-HLOOKUP(X195,Feuil1!$C$1:$AU$9,2,FALSE) -> -33 | AB195: =T195-HLOOKUP(X195,Feuil1!$C$1:$AU$9,3,FALSE) -> -48 | AC195: =T195-HLOOKUP(X195,Feuil1!$C$1:$AU$9,4,FALSE) -> -63 | AD195: =T195-HLOOKUP(X195,Feuil1!$C$1:$AU$9,5,FALSE) -> -78 | AE195: =T195-HLOOKUP(X195,Feuil1!$C$1:$AU$9,6,FALSE) -> -88 | AF195: =T195-HLOOKUP(X195,Feuil1!$C$1:$AU$9,7,FALSE) -> -103 | AG195: =T195-HLOOKUP(X195,Feuil1!$C$1:$AU$9,8,FALSE) -> -118 | AH195: =T195-HLOOKUP(X195,Feuil1!$C$1:$AU$9,9,FALSE) -> -968 | AP195: NCL
A197: H | B197: Nord | C197: PIC | D197: 1 | E197: 26141 | F197: PEDRAK | G197: Benjamin | H197: 98 | I197: 55.5 | J197: KC Villers-Bretonneux | K197: F | L197: 82 | M197: 86 | N197: -90 | O197: =IF(H197="","",IF(MAXA(L197:N197)<=0,0,MAXA(L197:N197))) -> 86 | P197: 100 | Q197: 105 | R197: -111 | S197: =IF(H197="","",IF(MAXA(P197:R197)<=0,0,MAXA(P197:R197))) -> 105 | T197: =IF(H197="","",IF(OR(O197=0,S197=0),0,O197+S197)) -> 191 | V197: =IF(H197="","",AP197) -> INTA + | W197: =IF(P197="","",IF(AH197>=0,AH197,IF(AG197>=0,AG197,IF(AF197>=0,AF197,IF(AE197>=0,AE197,IF(AD197>=0,AD197,IF(AC197>=0,AC197,IF(AB197>=0,AB197,AA197)))))))) -> 16 | X197: =IF(I197="","",IF(A197="H",IF(OR(H197="SEN",H197<94),VLOOKUP(I197,Feuil1!$A$10:$E$28,5),IF(AND(H197>93,H197<97),VLOOKUP(I197,Feuil1!$A$10:$E$28,4),IF(AND(H197>93,H197<97),VLOOKUP(I197,Feuil1!$A$10:$E$28,3),IF(AND(H197>96,H197<100),VLOOKUP(I197,Feuil1!$A$10:$E$28,3),VLOOKUP(I197,Feuil1!$A$10:$E$28,2))))),IF(OR(H197="SEN",H197<94),VLOOKUP(I197,Feuil1!$F$10:$J$24,5),IF(AND(H197>93,H197<97),VLOOKUP(I197,Feuil1!$F$10:$J$24,4),IF(AND(H197>93,H197<97),VLOOKUP(I197,Feuil1!$F$10:$J$24,4),IF(AND(H197>96,H197<100),VLOOKUP(I197,Feuil1!$F$10:$J$24,3),VLOOKUP(I197,Feuil1!$F$10:$J$24,2))))))) -> C56 | Y197: =IF(I197="","",IF(A197="H",10^(0.794358141*LOG(I197/174.393)^2)*T197,IF(A197="F",10^(0.89726074*LOG(I197/148.026)^2)*T197,""))) -> 300.2157116 | AA197: =T197-HLOOKUP(X197,Feuil1!$C$1:$AU$9,2,FALSE) -> 111 | AB197: =T197-HLOOKUP(X197,Feuil1!$C$1:$AU$9,3,FALSE) -> 96 | AC197: =T197-HLOOKUP(X197,Feuil1!$C$1:$AU$9,4,FALSE) -> 81 | AD197: =T197-HLOOKUP(X197,Feuil1!$C$1:$AU$9,5,FALSE) -> 66 | AE197: =T197-HLOOKUP(X197,Feuil1!$C$1:$AU$9,6,FALSE) -> 51 | AF197: =T197-HLOOKUP(X197,Feuil1!$C$1:$AU$9,7,FALSE) -> 36 | AG197: =T197-HLOOKUP(X197,Feuil1!$C$1:$AU$9,8,FALSE) -> 16 | AH197: =T197-HLOOKUP(X197,Feuil1!$C$1:$AU$9,9,FALSE) -> -809 | AP197: =IF(AH197>=0,$AH$4,IF(AG197>=0,$AG$4,IF(AF197>=0,$AF$4,IF(AE197>=0,$AE$4,IF(AD197>=0,$AD$4,IF(AC197>=0,$AC$4,IF(AB197>=0,$AB$4,IF(AA197>=0,$AA$4,$AI$4)))))))) -> INTA +
A198: H | B198: Nord | C198: PIC | D198: 2 | E198: 274621 | F198: CABON | G198: Lilian | H198: 98 | I198: 55.63 | J198: AAEEP Péronne | K198: F | L198: -69 | M198: 69 | N198: 72 | O198: 72 | P198: 92 | Q198: -99 | R198: 99 | S198: 99 | T198: 171 | V198: INTB + | W198: 16 | X198: =IF(I198="","",IF(A198="H",IF(OR(H198="SEN",H198<94),VLOOKUP(I198,Feuil1!$A$10:$E$28,5),IF(AND(H198>93,H198<97),VLOOKUP(I198,Feuil1!$A$10:$E$28,4),IF(AND(H198>93,H198<97),VLOOKUP(I198,Feuil1!$A$10:$E$28,3),IF(AND(H198>96,H198<100),VLOOKUP(I198,Feuil1!$A$10:$E$28,3),VLOOKUP(I198,Feuil1!$A$10:$E$28,2))))),IF(OR(H198="SEN",H198<94),VLOOKUP(I198,Feuil1!$F$10:$J$24,5),IF(AND(H198>93,H198<97),VLOOKUP(I198,Feuil1!$F$10:$J$24,4),IF(AND(H198>93,H198<97),VLOOKUP(I198,Feuil1!$F$10:$J$24,4),IF(AND(H198>96,H198<100),VLOOKUP(I198,Feuil1!$F$10:$J$24,3),VLOOKUP(I198,Feuil1!$F$10:$J$24,2))))))) -> C56 | Y198: 268.283716 | AA198: =T198-HLOOKUP(X198,Feuil1!$C$1:$AU$9,2,FALSE) -> 91 | AB198: =T198-HLOOKUP(X198,Feuil1!$C$1:$AU$9,3,FALSE) -> 76 | AC198: =T198-HLOOKUP(X198,Feuil1!$C$1:$AU$9,4,FALSE) -> 61 | AD198: =T198-HLOOKUP(X198,Feuil1!$C$1:$AU$9,5,FALSE) -> 46 | AE198: =T198-HLOOKUP(X198,Feuil1!$C$1:$AU$9,6,FALSE) -> 31 | AF198: =T198-HLOOKUP(X198,Feuil1!$C$1:$AU$9,7,FALSE) -> 16 | AG198: =T198-HLOOKUP(X198,Feuil1!$C$1:$AU$9,8,FALSE) -> -4 | AH198: =T198-HLOOKUP(X198,Feuil1!$C$1:$AU$9,9,FALSE) -> -829 | AP198: INTB +
A199: H | B199: NE | C199: LOR | D199: 3 | E199: 283960 | F199: CUVELLIER | G199: Valentin | H199: 98 | I199: 54.56 | J199: E.S.Laneuveville | K199: F | L199: 72 | M199: 75 | N199: -77 | O199: 75 | P199: 92 | Q199: 95 | R199: -97 | S199: 95 | T199: 170 | V199: INTB + | W199: 15 | X199: =IF(I199="","",IF(A199="H",IF(OR(H199="SEN",H199<94),VLOOKUP(I199,Feuil1!$A$10:$E$28,5),IF(AND(H199>93,H199<97),VLOOKUP(I199,Feuil1!$A$10:$E$28,4),IF(AND(H199>93,H199<97),VLOOKUP(I199,Feuil1!$A$10:$E$28,3),IF(AND(H199>96,H199<100),VLOOKUP(I199,Feuil1!$A$10:$E$28,3),VLOOKUP(I199,Feuil1!$A$10:$E$28,2))))),IF(OR(H199="SEN",H199<94),VLOOKUP(I199,Feuil1!$F$10:$J$24,5),IF(AND(H199>93,H199<97),VLOOKUP(I199,Feuil1!$F$10:$J$24,4),IF(AND(H199>93,H199<97),VLOOKUP(I199,Feuil1!$F$10:$J$24,4),IF(AND(H199>96,H199<100),VLOOKUP(I199,Feuil1!$F$10:$J$24,3),VLOOKUP(I199,Feuil1!$F$10:$J$24,2))))))) -> C56 | Y199: 270.8651652 | AA199: =T199-HLOOKUP(X199,Feuil1!$C$1:$AU$9,2,FALSE) -> 90 | AB199: =T199-HLOOKUP(X199,Feuil1!$C$1:$AU$9,3,FALSE) -> 75 | AC199: =T199-HLOOKUP(X199,Feuil1!$C$1:$AU$9,4,FALSE) -> 60 | AD199: =T199-HLOOKUP(X199,Feuil1!$C$1:$AU$9,5,FALSE) -> 45 | AE199: =T199-HLOOKUP(X199,Feuil1!$C$1:$AU$9,6,FALSE) -> 30 | AF199: =T199-HLOOKUP(X199,Feuil1!$C$1:$AU$9,7,FALSE) -> 15 | AG199: =T199-HLOOKUP(X199,Feuil1!$C$1:$AU$9,8,FALSE) -> -5 | AH199: =T199-HLOOKUP(X199,Feuil1!$C$1:$AU$9,9,FALSE) -> -830 | AP199: INTB +
A200: H | B200: SEST | C200: PRO | D200: 4 | E200: 245875 | F200: MARI | G200: Edouard | H200: 97 | I200: 52.1 | J200: HM SAINTE TULLE | K200: F | L200: -70 | M200: 70 | N200: -75 | O200: 70 | P200: 90 | Q200: 95 | R200: 97 | S200: 97 | T200: 167 | V200: INTB + | W200: 12 | X200: =IF(I200="","",IF(A200="H",IF(OR(H200="SEN",H200<94),VLOOKUP(I200,Feuil1!$A$10:$E$28,5),IF(AND(H200>93,H200<97),VLOOKUP(I200,Feuil1!$A$10:$E$28,4),IF(AND(H200>93,H200<97),VLOOKUP(I200,Feuil1!$A$10:$E$28,3),IF(AND(H200>96,H200<100),VLOOKUP(I200,Feuil1!$A$10:$E$28,3),VLOOKUP(I200,Feuil1!$A$10:$E$28,2))))),IF(OR(H200="SEN",H200<94),VLOOKUP(I200,Feuil1!$F$10:$J$24,5),IF(AND(H200>93,H200<97),VLOOKUP(I200,Feuil1!$F$10:$J$24,4),IF(AND(H200>93,H200<97),VLOOKUP(I200,Feuil1!$F$10:$J$24,4),IF(AND(H200>96,H200<100),VLOOKUP(I200,Feuil1!$F$10:$J$24,3),VLOOKUP(I200,Feuil1!$F$10:$J$24,2))))))) -> C56 | Y200: 276.314739 | AA200: =T200-HLOOKUP(X200,Feuil1!$C$1:$AU$9,2,FALSE) -> 87 | AB200: =T200-HLOOKUP(X200,Feuil1!$C$1:$AU$9,3,FALSE) -> 72 | AC200: =T200-HLOOKUP(X200,Feuil1!$C$1:$AU$9,4,FALSE) -> 57 | AD200: =T200-HLOOKUP(X200,Feuil1!$C$1:$AU$9,5,FALSE) -> 42 | AE200: =T200-HLOOKUP(X200,Feuil1!$C$1:$AU$9,6,FALSE) -> 27 | AF200: =T200-HLOOKUP(X200,Feuil1!$C$1:$AU$9,7,FALSE) -> 12 | AG200: =T200-HLOOKUP(X200,Feuil1!$C$1:$AU$9,8,FALSE) -> -8 | AH200: =T200-HLOOKUP(X200,Feuil1!$C$1:$AU$9,9,FALSE) -> -833 | AP200: INTB +
A201: H | B201: NORD | C201: NPC | D201: 5 | E201: 328452 | F201: HOELLE | G201: Alexis | H201: 98 | I201: 56 | J201: CA ROSENDAEL | K201: F | L201: 58 | M201: -62 | N201: 66 | O201: 66 | P201: 78 | Q201: 82 | R201: -86 | S201: 82 | T201: 148 | V201: NAT + | W201: 8 | X201: =IF(I201="","",IF(A201="H",IF(OR(H201="SEN",H201<94),VLOOKUP(I201,Feuil1!$A$10:$E$28,5),IF(AND(H201>93,H201<97),VLOOKUP(I201,Feuil1!$A$10:$E$28,4),IF(AND(H201>93,H201<97),VLOOKUP(I201,Feuil1!$A$10:$E$28,3),IF(AND(H201>96,H201<100),VLOOKUP(I201,Feuil1!$A$10:$E$28,3),VLOOKUP(I201,Feuil1!$A$10:$E$28,2))))),IF(OR(H201="SEN",H201<94),VLOOKUP(I201,Feuil1!$F$10:$J$24,5),IF(AND(H201>93,H201<97),VLOOKUP(I201,Feuil1!$F$10:$J$24,4),IF(AND(H201>93,H201<97),VLOOKUP(I201,Feuil1!$F$10:$J$24,4),IF(AND(H201>96,H201<100),VLOOKUP(I201,Feuil1!$F$10:$J$24,3),VLOOKUP(I201,Feuil1!$F$10:$J$24,2))))))) -> C56 | Y201: 230.9919581 | AA201: =T201-HLOOKUP(X201,Feuil1!$C$1:$AU$9,2,FALSE) -> 68 | AB201: =T201-HLOOKUP(X201,Feuil1!$C$1:$AU$9,3,FALSE) -> 53 | AC201: =T201-HLOOKUP(X201,Feuil1!$C$1:$AU$9,4,FALSE) -> 38 | AD201: =T201-HLOOKUP(X201,Feuil1!$C$1:$AU$9,5,FALSE) -> 23 | AE201: =T201-HLOOKUP(X201,Feuil1!$C$1:$AU$9,6,FALSE) -> 8 | AF201: =T201-HLOOKUP(X201,Feuil1!$C$1:$AU$9,7,FALSE) -> -7 | AG201: =T201-HLOOKUP(X201,Feuil1!$C$1:$AU$9,8,FALSE) -> -27 | AH201: =T201-HLOOKUP(X201,Feuil1!$C$1:$AU$9,9,FALSE) -> -852 | AP201: NAT +
A202: H | B202: SEST | C202: CAZ | D202: 6 | E202: 305873 | F202: LANDAIS | G202: Alexis | H202: 99 | I202: 51.6 | J202: E.S. VIL. LOUBET | K202: F | L202: 61 | M202: -64 | N202: 65 | O202: 65 | P202: 76 | Q202: 80 | R202: -82 | S202: 80 | T202: 145 | V202: NAT + | W202: 5 | X202: =IF(I202="","",IF(A202="H",IF(OR(H202="SEN",H202<94),VLOOKUP(I202,Feuil1!$A$10:$E$28,5),IF(AND(H202>93,H202<97),VLOOKUP(I202,Feuil1!$A$10:$E$28,4),IF(AND(H202>93,H202<97),VLOOKUP(I202,Feuil1!$A$10:$E$28,3),IF(AND(H202>96,H202<100),VLOOKUP(I202,Feuil1!$A$10:$E$28,3),VLOOKUP(I202,Feuil1!$A$10:$E$28,2))))),IF(OR(H202="SEN",H202<94),VLOOKUP(I202,Feuil1!$F$10:$J$24,5),IF(AND(H202>93,H202<97),VLOOKUP(I202,Feuil1!$F$10:$J$24,4),IF(AND(H202>93,H202<97),VLOOKUP(I202,Feuil1!$F$10:$J$24,4),IF(AND(H202>96,H202<100),VLOOKUP(I202,Feuil1!$F$10:$J$24,3),VLOOKUP(I202,Feuil1!$F$10:$J$24,2))))))) -> C56 | Y202: 241.8580739 | AA202: =T202-HLOOKUP(X202,Feuil1!$C$1:$AU$9,2,FALSE) -> 65 | AB202: =T202-HLOOKUP(X202,Feuil1!$C$1:$AU$9,3,FALSE) -> 50 | AC202: =T202-HLOOKUP(X202,Feuil1!$C$1:$AU$9,4,FALSE) -> 35 | AD202: =T202-HLOOKUP(X202,Feuil1!$C$1:$AU$9,5,FALSE) -> 20 | AE202: =T202-HLOOKUP(X202,Feuil1!$C$1:$AU$9,6,FALSE) -> 5 | AF202: =T202-HLOOKUP(X202,Feuil1!$C$1:$AU$9,7,FALSE) -> -10 | AG202: =T202-HLOOKUP(X202,Feuil1!$C$1:$AU$9,8,FALSE) -> -30 | AH202: =T202-HLOOKUP(X202,Feuil1!$C$1:$AU$9,9,FALSE) -> -855 | AP202: NAT +
A203: H | B203: Nord | C203: PIC | D203: 7 | E203: 343406 | F203: CANUT | G203: Timothé | H203: 99 | I203: 53 | J203: La Vaillante St Quentin | K203: F | L203: 60 | M203: 64 | N203: 66 | O203: 66 | P203: 70 | Q203: 75 | R203: 78 | S203: 78 | T203: 144 | V203: NAT + | W203: 4 | X203: =IF(I203="","",IF(A203="H",IF(OR(H203="SEN",H203<94),VLOOKUP(I203,Feuil1!$A$10:$E$28,5),IF(AND(H203>93,H203<97),VLOOKUP(I203,Feuil1!$A$10:$E$28,4),IF(AND(H203>93,H203<97),VLOOKUP(I203,Feuil1!$A$10:$E$28,3),IF(AND(H203>96,H203<100),VLOOKUP(I203,Feuil1!$A$10:$E$28,3),VLOOKUP(I203,Feuil1!$A$10:$E$28,2))))),IF(OR(H203="SEN",H203<94),VLOOKUP(I203,Feuil1!$F$10:$J$24,5),IF(AND(H203>93,H203<97),VLOOKUP(I203,Feuil1!$F$10:$J$24,4),IF(AND(H203>93,H203<97),VLOOKUP(I203,Feuil1!$F$10:$J$24,4),IF(AND(H203>96,H203<100),VLOOKUP(I203,Feuil1!$F$10:$J$24,3),VLOOKUP(I203,Feuil1!$F$10:$J$24,2))))))) -> C56 | Y203: 234.9057724 | AA203: =T203-HLOOKUP(X203,Feuil1!$C$1:$AU$9,2,FALSE) -> 64 | AB203: =T203-HLOOKUP(X203,Feuil1!$C$1:$AU$9,3,FALSE) -> 49 | AC203: =T203-HLOOKUP(X203,Feuil1!$C$1:$AU$9,4,FALSE) -> 34 | AD203: =T203-HLOOKUP(X203,Feuil1!$C$1:$AU$9,5,FALSE) -> 19 | AE203: =T203-HLOOKUP(X203,Feuil1!$C$1:$AU$9,6,FALSE) -> 4 | AF203: =T203-HLOOKUP(X203,Feuil1!$C$1:$AU$9,7,FALSE) -> -11 | AG203: =T203-HLOOKUP(X203,Feuil1!$C$1:$AU$9,8,FALSE) -> -31 | AH203: =T203-HLOOKUP(X203,Feuil1!$C$1:$AU$9,9,FALSE) -> -856 | AP203: NAT +
A204: H | B204: SEST | C204: RAL | D204: 8 | E204: 222418 | F204: BAILLET | G204: Valentin | H204: 97 | I204: 56 | J204: H.C. ST BALDOPH | K204: F | L204: 62 | M204: -66 | N204: 66 | O204: 66 | P204: 76 | Q204: -80 | R204: -80 | S204: 76 | T204: 142 | V204: NAT + | W204: 2 | X204: =IF(I204="","",IF(A204="H",IF(OR(H204="SEN",H204<94),VLOOKUP(I204,Feuil1!$A$10:$E$28,5),IF(AND(H204>93,H204<97),VLOOKUP(I204,Feuil1!$A$10:$E$28,4),IF(AND(H204>93,H204<97),VLOOKUP(I204,Feuil1!$A$10:$E$28,3),IF(AND(H204>96,H204<100),VLOOKUP(I204,Feuil1!$A$10:$E$28,3),VLOOKUP(I204,Feuil1!$A$10:$E$28,2))))),IF(OR(H204="SEN",H204<94),VLOOKUP(I204,Feuil1!$F$10:$J$24,5),IF(AND(H204>93,H204<97),VLOOKUP(I204,Feuil1!$F$10:$J$24,4),IF(AND(H204>93,H204<97),VLOOKUP(I204,Feuil1!$F$10:$J$24,4),IF(AND(H204>96,H204<100),VLOOKUP(I204,Feuil1!$F$10:$J$24,3),VLOOKUP(I204,Feuil1!$F$10:$J$24,2))))))) -> C56 | Y204: 221.6274193 | AA204: =T204-HLOOKUP(X204,Feuil1!$C$1:$AU$9,2,FALSE) -> 62 | AB204: =T204-HLOOKUP(X204,Feuil1!$C$1:$AU$9,3,FALSE) -> 47 | AC204: =T204-HLOOKUP(X204,Feuil1!$C$1:$AU$9,4,FALSE) -> 32 | AD204: =T204-HLOOKUP(X204,Feuil1!$C$1:$AU$9,5,FALSE) -> 17 | AE204: =T204-HLOOKUP(X204,Feuil1!$C$1:$AU$9,6,FALSE) -> 2 | AF204: =T204-HLOOKUP(X204,Feuil1!$C$1:$AU$9,7,FALSE) -> -13 | AG204: =T204-HLOOKUP(X204,Feuil1!$C$1:$AU$9,8,FALSE) -> -33 | AH204: =T204-HLOOKUP(X204,Feuil1!$C$1:$AU$9,9,FALSE) -> -858 | AP204: NAT +
A205: H | B205: SEST | C205: CAZ | D205: 9 | E205: 305874 | F205: FOLCHER | G205: Guilhem | H205: 98 | I205: 54.95 | J205: E.S. VIL. LOUBET | K205: F | L205: 60 | M205: -64 | N205: -64 | O205: 60 | P205: 76 | Q205: -80 | R205: -80 | S205: 76 | T205: 136 | V205: FED + | W205: 11 | X205: =IF(I205="","",IF(A205="H",IF(OR(H205="SEN",H205<94),VLOOKUP(I205,Feuil1!$A$10:$E$28,5),IF(AND(H205>93,H205<97),VLOOKUP(I205,Feuil1!$A$10:$E$28,4),IF(AND(H205>93,H205<97),VLOOKUP(I205,Feuil1!$A$10:$E$28,3),IF(AND(H205>96,H205<100),VLOOKUP(I205,Feuil1!$A$10:$E$28,3),VLOOKUP(I205,Feuil1!$A$10:$E$28,2))))),IF(OR(H205="SEN",H205<94),VLOOKUP(I205,Feuil1!$F$10:$J$24,5),IF(AND(H205>93,H205<97),VLOOKUP(I205,Feuil1!$F$10:$J$24,4),IF(AND(H205>93,H205<97),VLOOKUP(I205,Feuil1!$F$10:$J$24,4),IF(AND(H205>96,H205<100),VLOOKUP(I205,Feuil1!$F$10:$J$24,3),VLOOKUP(I205,Feuil1!$F$10:$J$24,2))))))) -> C56 | Y205: 215.4619831 | AA205: =T205-HLOOKUP(X205,Feuil1!$C$1:$AU$9,2,FALSE) -> 56 | AB205: =T205-HLOOKUP(X205,Feuil1!$C$1:$AU$9,3,FALSE) -> 41 | AC205: =T205-HLOOKUP(X205,Feuil1!$C$1:$AU$9,4,FALSE) -> 26 | AD205: =T205-HLOOKUP(X205,Feuil1!$C$1:$AU$9,5,FALSE) -> 11 | AE205: =T205-HLOOKUP(X205,Feuil1!$C$1:$AU$9,6,FALSE) -> -4 | AF205: =T205-HLOOKUP(X205,Feuil1!$C$1:$AU$9,7,FALSE) -> -19 | AG205: =T205-HLOOKUP(X205,Feuil1!$C$1:$AU$9,8,FALSE) -> -39 | AH205: =T205-HLOOKUP(X205,Feuil1!$C$1:$AU$9,9,FALSE) -> -864 | AP205: FED +
A206: H | B206: NE | C206: ALS | D206: 10 | E206: 219868 | F206: JACQUEL | G206: ANTHONY | H206: 97 | I206: 56 | J206: SHC Haguenau | K206: F | L206: -54 | M206: 54 | N206: 58 | O206: 58 | P206: 72 | Q206: 77 | R206: -82 | S206: 77 | T206: 135 | V206: FED + | W206: 10 | X206: =IF(I206="","",IF(A206="H",IF(OR(H206="SEN",H206<94),VLOOKUP(I206,Feuil1!$A$10:$E$28,5),IF(AND(H206>93,H206<97),VLOOKUP(I206,Feuil1!$A$10:$E$28,4),IF(AND(H206>93,H206<97),VLOOKUP(I206,Feuil1!$A$10:$E$28,3),IF(AND(H206>96,H206<100),VLOOKUP(I206,Feuil1!$A$10:$E$28,3),VLOOKUP(I206,Feuil1!$A$10:$E$28,2))))),IF(OR(H206="SEN",H206<94),VLOOKUP(I206,Feuil1!$F$10:$J$24,5),IF(AND(H206>93,H206<97),VLOOKUP(I206,Feuil1!$F$10:$J$24,4),IF(AND(H206>93,H206<97),VLOOKUP(I206,Feuil1!$F$10:$J$24,4),IF(AND(H206>96,H206<100),VLOOKUP(I206,Feuil1!$F$10:$J$24,3),VLOOKUP(I206,Feuil1!$F$10:$J$24,2))))))) -> C56 | Y206: 210.702124 | AA206: =T206-HLOOKUP(X206,Feuil1!$C$1:$AU$9,2,FALSE) -> 55 | AB206: =T206-HLOOKUP(X206,Feuil1!$C$1:$AU$9,3,FALSE) -> 40 | AC206: =T206-HLOOKUP(X206,Feuil1!$C$1:$AU$9,4,FALSE) -> 25 | AD206: =T206-HLOOKUP(X206,Feuil1!$C$1:$AU$9,5,FALSE) -> 10 | AE206: =T206-HLOOKUP(X206,Feuil1!$C$1:$AU$9,6,FALSE) -> -5 | AF206: =T206-HLOOKUP(X206,Feuil1!$C$1:$AU$9,7,FALSE) -> -20 | AG206: =T206-HLOOKUP(X206,Feuil1!$C$1:$AU$9,8,FALSE) -> -40 | AH206: =T206-HLOOKUP(X206,Feuil1!$C$1:$AU$9,9,FALSE) -> -865 | AP206: FED +
A207: H | B207: NE | C207: FCO | D207: 11 | E207: 330809 | F207: VENERI | G207: KORY | H207: 97 | I207: 54.5 | J207: CH LUXEUIL | K207: F | L207: 58 | M207: -61 | N207: 61 | O207: 61 | P207: -69 | Q207: 69 | R207: 73 | S207: 73 | T207: 134 | V207: FED + | W207: 9 | X207: =IF(I207="","",IF(A207="H",IF(OR(H207="SEN",H207<94),VLOOKUP(I207,Feuil1!$A$10:$E$28,5),IF(AND(H207>93,H207<97),VLOOKUP(I207,Feuil1!$A$10:$E$28,4),IF(AND(H207>93,H207<97),VLOOKUP(I207,Feuil1!$A$10:$E$28,3),IF(AND(H207>96,H207<100),VLOOKUP(I207,Feuil1!$A$10:$E$28,3),VLOOKUP(I207,Feuil1!$A$10:$E$28,2))))),IF(OR(H207="SEN",H207<94),VLOOKUP(I207,Feuil1!$F$10:$J$24,5),IF(AND(H207>93,H207<97),VLOOKUP(I207,Feuil1!$F$10:$J$24,4),IF(AND(H207>93,H207<97),VLOOKUP(I207,Feuil1!$F$10:$J$24,4),IF(AND(H207>96,H207<100),VLOOKUP(I207,Feuil1!$F$10:$J$24,3),VLOOKUP(I207,Feuil1!$F$10:$J$24,2))))))) -> C56 | Y207: 213.6940054 | AA207: =T207-HLOOKUP(X207,Feuil1!$C$1:$AU$9,2,FALSE) -> 54 | AB207: =T207-HLOOKUP(X207,Feuil1!$C$1:$AU$9,3,FALSE) -> 39 | AC207: =T207-HLOOKUP(X207,Feuil1!$C$1:$AU$9,4,FALSE) -> 24 | AD207: =T207-HLOOKUP(X207,Feuil1!$C$1:$AU$9,5,FALSE) -> 9 | AE207: =T207-HLOOKUP(X207,Feuil1!$C$1:$AU$9,6,FALSE) -> -6 | AF207: =T207-HLOOKUP(X207,Feuil1!$C$1:$AU$9,7,FALSE) -> -21 | AG207: =T207-HLOOKUP(X207,Feuil1!$C$1:$AU$9,8,FALSE) -> -41 | AH207: =T207-HLOOKUP(X207,Feuil1!$C$1:$AU$9,9,FALSE) -> -866 | AP207: FED +
A208: H | B208: SO | C208: MPY | D208: 12 | E208: 300998 | F208: DELPECH | G208: Rémy | H208: 97 | I208: 51.6 | J208: FIGEAC HC | K208: F | L208: 55 | M208: 60 | N208: -62 | O208: 60 | P208: 70 | Q208: -75 | R208: -75 | S208: 70 | T208: 130 | V208: FED + | W208: 5 | X208: =IF(I208="","",IF(A208="H",IF(OR(H208="SEN",H208<94),VLOOKUP(I208,Feuil1!$A$10:$E$28,5),IF(AND(H208>93,H208<97),VLOOKUP(I208,Feuil1!$A$10:$E$28,4),IF(AND(H208>93,H208<97),VLOOKUP(I208,Feuil1!$A$10:$E$28,3),IF(AND(H208>96,H208<100),VLOOKUP(I208,Feuil1!$A$10:$E$28,3),VLOOKUP(I208,Feuil1!$A$10:$E$28,2))))),IF(OR(H208="SEN",H208<94),VLOOKUP(I208,Feuil1!$F$10:$J$24,5),IF(AND(H208>93,H208<97),VLOOKUP(I208,Feuil1!$F$10:$J$24,4),IF(AND(H208>93,H208<97),VLOOKUP(I208,Feuil1!$F$10:$J$24,4),IF(AND(H208>96,H208<100),VLOOKUP(I208,Feuil1!$F$10:$J$24,3),VLOOKUP(I208,Feuil1!$F$10:$J$24,2))))))) -> C56 | Y208: 216.8382731 | AA208: =T208-HLOOKUP(X208,Feuil1!$C$1:$AU$9,2,FALSE) -> 50 | AB208: =T208-HLOOKUP(X208,Feuil1!$C$1:$AU$9,3,FALSE) -> 35 | AC208: =T208-HLOOKUP(X208,Feuil1!$C$1:$AU$9,4,FALSE) -> 20 | AD208: =T208-HLOOKUP(X208,Feuil1!$C$1:$AU$9,5,FALSE) -> 5 | AE208: =T208-HLOOKUP(X208,Feuil1!$C$1:$AU$9,6,FALSE) -> -10 | AF208: =T208-HLOOKUP(X208,Feuil1!$C$1:$AU$9,7,FALSE) -> -25 | AG208: =T208-HLOOKUP(X208,Feuil1!$C$1:$AU$9,8,FALSE) -> -45 | AH208: =T208-HLOOKUP(X208,Feuil1!$C$1:$AU$9,9,FALSE) -> -870 | AP208: FED +
A209: H | B209: SEST | C209: LAN | D209: 13 | E209: 280808 | F209: FERNANDEZ | G209: Gabriel | H209: 99 | I209: 51.7 | J209: Clermont Sports | K209: F | L209: 50 | M209: 53 | N209: 55 | O209: 55 | P209: 70 | Q209: 73 | R209: 75 | S209: 75 | T209: 130 | V209: FED + | W209: 5 | X209: =IF(I209="","",IF(A209="H",IF(OR(H209="SEN",H209<94),VLOOKUP(I209,Feuil1!$A$10:$E$28,5),IF(AND(H209>93,H209<97),VLOOKUP(I209,Feuil1!$A$10:$E$28,4),IF(AND(H209>93,H209<97),VLOOKUP(I209,Feuil1!$A$10:$E$28,3),IF(AND(H209>96,H209<100),VLOOKUP(I209,Feuil1!$A$10:$E$28,3),VLOOKUP(I209,Feuil1!$A$10:$E$28,2))))),IF(OR(H209="SEN",H209<94),VLOOKUP(I209,Feuil1!$F$10:$J$24,5),IF(AND(H209>93,H209<97),VLOOKUP(I209,Feuil1!$F$10:$J$24,4),IF(AND(H209>93,H209<97),VLOOKUP(I209,Feuil1!$F$10:$J$24,4),IF(AND(H209>96,H209<100),VLOOKUP(I209,Feuil1!$F$10:$J$24,3),VLOOKUP(I209,Feuil1!$F$10:$J$24,2))))))) -> C56 | Y209: 216.4860885 | AA209: =T209-HLOOKUP(X209,Feuil1!$C$1:$AU$9,2,FALSE) -> 50 | AB209: =T209-HLOOKUP(X209,Feuil1!$C$1:$AU$9,3,FALSE) -> 35 | AC209: =T209-HLOOKUP(X209,Feuil1!$C$1:$AU$9,4,FALSE) -> 20 | AD209: =T209-HLOOKUP(X209,Feuil1!$C$1:$AU$9,5,FALSE) -> 5 | AE209: =T209-HLOOKUP(X209,Feuil1!$C$1:$AU$9,6,FALSE) -> -10 | AF209: =T209-HLOOKUP(X209,Feuil1!$C$1:$AU$9,7,FALSE) -> -25 | AG209: =T209-HLOOKUP(X209,Feuil1!$C$1:$AU$9,8,FALSE) -> -45 | AH209: =T209-HLOOKUP(X209,Feuil1!$C$1:$AU$9,9,FALSE) -> -870 | AP209: FED +
A210: H | B210: NE | C210: BOU | D210: 14 | E210: 259204 | F210: CHIARISOLO | G210: JIMMY | H210: 98 | I210: 56 | J210: HC AVALLON | K210: F | L210: 52 | M210: -55 | N210: 55 | O210: 55 | P210: 67 | Q210: 70 | R210: -73 | S210: 70 | T210: 125 | V210: FED + | W210: 0 | X210: =IF(I210="","",IF(A210="H",IF(OR(H210="SEN",H210<94),VLOOKUP(I210,Feuil1!$A$10:$E$28,5),IF(AND(H210>93,H210<97),VLOOKUP(I210,Feuil1!$A$10:$E$28,4),IF(AND(H210>93,H210<97),VLOOKUP(I210,Feuil1!$A$10:$E$28,3),IF(AND(H210>96,H210<100),VLOOKUP(I210,Feuil1!$A$10:$E$28,3),VLOOKUP(I210,Feuil1!$A$10:$E$28,2))))),IF(OR(H210="SEN",H210<94),VLOOKUP(I210,Feuil1!$F$10:$J$24,5),IF(AND(H210>93,H210<97),VLOOKUP(I210,Feuil1!$F$10:$J$24,4),IF(AND(H210>93,H210<97),VLOOKUP(I210,Feuil1!$F$10:$J$24,4),IF(AND(H210>96,H210<100),VLOOKUP(I210,Feuil1!$F$10:$J$24,3),VLOOKUP(I210,Feuil1!$F$10:$J$24,2))))))) -> C56 | Y210: 195.0945592 | AA210: =T210-HLOOKUP(X210,Feuil1!$C$1:$AU$9,2,FALSE) -> 45 | AB210: =T210-HLOOKUP(X210,Feuil1!$C$1:$AU$9,3,FALSE) -> 30 | AC210: =T210-HLOOKUP(X210,Feuil1!$C$1:$AU$9,4,FALSE) -> 15 | AD210: =T210-HLOOKUP(X210,Feuil1!$C$1:$AU$9,5,FALSE) -> 0 | AE210: =T210-HLOOKUP(X210,Feuil1!$C$1:$AU$9,6,FALSE) -> -15 | AF210: =T210-HLOOKUP(X210,Feuil1!$C$1:$AU$9,7,FALSE) -> -30 | AG210: =T210-HLOOKUP(X210,Feuil1!$C$1:$AU$9,8,FALSE) -> -50 | AH210: =T210-HLOOKUP(X210,Feuil1!$C$1:$AU$9,9,FALSE) -> -875 | AP210: FED +
A211: H | B211: NE | C211: LOR | D211: 15 | E211: 273033 | F211: GUINDOS | G211: Vincent | H211: 98 | I211: 52.4 | J211: E.S.Laneuveville | K211: F | L211: 50 | M211: 53 | N211: 55 | O211: 55 | P211: 63 | Q211: 67 | R211: -70 | S211: 67 | T211: 122 | V211: IRG + | W211: 12 | X211: =IF(I211="","",IF(A211="H",IF(OR(H211="SEN",H211<94),VLOOKUP(I211,Feuil1!$A$10:$E$28,5),IF(AND(H211>93,H211<97),VLOOKUP(I211,Feuil1!$A$10:$E$28,4),IF(AND(H211>93,H211<97),VLOOKUP(I211,Feuil1!$A$10:$E$28,3),IF(AND(H211>96,H211<100),VLOOKUP(I211,Feuil1!$A$10:$E$28,3),VLOOKUP(I211,Feuil1!$A$10:$E$28,2))))),IF(OR(H211="SEN",H211<94),VLOOKUP(I211,Feuil1!$F$10:$J$24,5),IF(AND(H211>93,H211<97),VLOOKUP(I211,Feuil1!$F$10:$J$24,4),IF(AND(H211>93,H211<97),VLOOKUP(I211,Feuil1!$F$10:$J$24,4),IF(AND(H211>96,H211<100),VLOOKUP(I211,Feuil1!$F$10:$J$24,3),VLOOKUP(I211,Feuil1!$F$10:$J$24,2))))))) -> C56 | Y211: 200.8971386 | AA211: =T211-HLOOKUP(X211,Feuil1!$C$1:$AU$9,2,FALSE) -> 42 | AB211: =T211-HLOOKUP(X211,Feuil1!$C$1:$AU$9,3,FALSE) -> 27 | AC211: =T211-HLOOKUP(X211,Feuil1!$C$1:$AU$9,4,FALSE) -> 12 | AD211: =T211-HLOOKUP(X211,Feuil1!$C$1:$AU$9,5,FALSE) -> -3 | AE211: =T211-HLOOKUP(X211,Feuil1!$C$1:$AU$9,6,FALSE) -> -18 | AF211: =T211-HLOOKUP(X211,Feuil1!$C$1:$AU$9,7,FALSE) -> -33 | AG211: =T211-HLOOKUP(X211,Feuil1!$C$1:$AU$9,8,FALSE) -> -53 | AH211: =T211-HLOOKUP(X211,Feuil1!$C$1:$AU$9,9,FALSE) -> -878 | AP211: IRG +
... 379 more rows

Sheet JUNIORS
H1: MASCULINS et FEMININES | Q1: DATE : | S1: 2014-06-30
G2: LISTING NATIONAL 3° TRIMESTRE | O2: 2013-2014
A4: SEXE | B4: ZONE | C4: REG. | D4: CL. | E4: LICENCE | F4: NOMS | G4: Prénoms | H4: AN | I4: POIDS | J4: CLUB | K4: NAT | L4: 1 | M4: 2 | N4: 3 | O4: ARR | P4: 1 | Q4: 2 | R4: 3 | S4: EP-J | T4: Total | V4: SERIE | X4: Catég | Y4: IWF | AA4: DEP + | AB4: REG + | AC4: IRG + | AD4: FED + | AE4: NAT + | AF4: INTB + | AG4: INTA + | AH4: OLY + | AI4: NCL
A6: F | B6: NE | C6: BOU | D6: 1 | E6: 196470 | F6: BALACE | G6: Julie | H6: 96 | I6: 47.7 | J6: HC AVALLON | K6: F | L6: -56 | M6: 56 | N6: -61 | O6: =IF(H6="","",IF(MAXA(L6:N6)<=0,0,MAXA(L6:N6))) -> 56 | P6: 65 | Q6: 68 | R6: -72 | S6: =IF(H6="","",IF(MAXA(P6:R6)<=0,0,MAXA(P6:R6))) -> 68 | T6: =IF(H6="","",IF(OR(O6=0,S6=0),0,O6+S6)) -> 124 | V6: =IF(H6="","",AP6) -> INTB + | W6: =IF(P6="","",IF(AH6>=0,AH6,IF(AG6>=0,AG6,IF(AF6>=0,AF6,IF(AE6>=0,AE6,IF(AD6>=0,AD6,IF(AC6>=0,AC6,IF(AB6>=0,AB6,AA6)))))))) -> 14 | X6: =IF(I6="","",IF(A6="H",IF(OR(H6="SEN",H6<94),VLOOKUP(I6,Feuil1!$A$10:$E$28,5),IF(AND(H6>93,H6<97),VLOOKUP(I6,Feuil1!$A$10:$E$28,4),IF(AND(H6>93,H6<97),VLOOKUP(I6,Feuil1!$A$10:$E$28,3),IF(AND(H6>96,H6<100),VLOOKUP(I6,Feuil1!$A$10:$E$28,3),VLOOKUP(I6,Feuil1!$A$10:$E$28,2))))),IF(OR(H6="SEN",H6<94),VLOOKUP(I6,Feuil1!$F$10:$J$24,5),IF(AND(H6>93,H6<97),VLOOKUP(I6,Feuil1!$F$10:$J$24,4),IF(AND(H6>93,H6<97),VLOOKUP(I6,Feuil1!$F$10:$J$24,4),IF(AND(H6>96,H6<100),VLOOKUP(I6,Feuil1!$F$10:$J$24,3),VLOOKUP(I6,Feuil1!$F$10:$J$24,2))))))) -> FJ48 | Y6: =IF(I6="","",IF(A6="H",10^(0.794358141*LOG(I6/174.393)^2)*T6,IF(A6="F",10^(0.89726074*LOG(I6/148.026)^2)*T6,""))) -> 204.3887482 | AA6: =T6-HLOOKUP(X6,Feuil1!$C$1:$AU$9,2,FALSE) -> 74 | AB6: =T6-HLOOKUP(X6,Feuil1!$C$1:$AU$9,3,FALSE) -> 64 | AC6: =T6-HLOOKUP(X6,Feuil1!$C$1:$AU$9,4,FALSE) -> 49 | AD6: =T6-HLOOKUP(X6,Feuil1!$C$1:$AU$9,5,FALSE) -> 39 | AE6: =T6-HLOOKUP(X6,Feuil1!$C$1:$AU$9,6,FALSE) -> 29 | AF6: =T6-HLOOKUP(X6,Feuil1!$C$1:$AU$9,7,FALSE) -> 14 | AG6: =T6-HLOOKUP(X6,Feuil1!$C$1:$AU$9,8,FALSE) -> -1 | AH6: =T6-HLOOKUP(X6,Feuil1!$C$1:$AU$9,9,FALSE) -> -876 | AP6: =IF(AH6>=0,$AH$4,IF(AG6>=0,$AG$4,IF(AF6>=0,$AF$4,IF(AE6>=0,$AE$4,IF(AD6>=0,$AD$4,IF(AC6>=0,$AC$4,IF(AB6>=0,$AB$4,IF(AA6>=0,$AA$4,$AI$4)))))))) -> INTB +
A7: F | B7: CO | C7: PDL | D7: 2 | E7: 97644 | F7: L'HERMIER | G7: Mélanie | H7: 96 | I7: 46.83 | J7: CJF Laval-Voutré | K7: F | L7: 45 | M7: 49 | N7: 51 | O7: 51 | P7: 56 | Q7: 59 | R7: -62 | S7: 59 | T7: 110 | V7: INTB + | W7: 0 | X7: =IF(I7="","",IF(A7="H",IF(OR(H7="SEN",H7<94),VLOOKUP(I7,Feuil1!$A$10:$E$28,5),IF(AND(H7>93,H7<97),VLOOKUP(I7,Feuil1!$A$10:$E$28,4),IF(AND(H7>93,H7<97),VLOOKUP(I7,Feuil1!$A$10:$E$28,3),IF(AND(H7>96,H7<100),VLOOKUP(I7,Feuil1!$A$10:$E$28,3),VLOOKUP(I7,Feuil1!$A$10:$E$28,2))))),IF(OR(H7="SEN",H7<94),VLOOKUP(I7,Feuil1!$F$10:$J$24,5),IF(AND(H7>93,H7<97),VLOOKUP(I7,Feuil1!$F$10:$J$24,4),IF(AND(H7>93,H7<97),VLOOKUP(I7,Feuil1!$F$10:$J$24,4),IF(AND(H7>96,H7<100),VLOOKUP(I7,Feuil1!$F$10:$J$24,3),VLOOKUP(I7,Feuil1!$F$10:$J$24,2))))))) -> FJ48 | Y7: 184.3065936 | AA7: =T7-HLOOKUP(X7,Feuil1!$C$1:$AU$9,2,FALSE) -> 60 | AB7: =T7-HLOOKUP(X7,Feuil1!$C$1:$AU$9,3,FALSE) -> 50 | AC7: =T7-HLOOKUP(X7,Feuil1!$C$1:$AU$9,4,FALSE) -> 35 | AD7: =T7-HLOOKUP(X7,Feuil1!$C$1:$AU$9,5,FALSE) -> 25 | AE7: =T7-HLOOKUP(X7,Feuil1!$C$1:$AU$9,6,FALSE) -> 15 | AF7: =T7-HLOOKUP(X7,Feuil1!$C$1:$AU$9,7,FALSE) -> 0 | AG7: =T7-HLOOKUP(X7,Feuil1!$C$1:$AU$9,8,FALSE) -> -15 | AH7: =T7-HLOOKUP(X7,Feuil1!$C$1:$AU$9,9,FALSE) -> -890 | AP7: INTB +
A8: F | B8: NE | C8: CHA | D8: 3 | E8: 231646 | F8: MAIRE | G8: Laura | H8: 96 | I8: 47.9 | J8: Langres HM | K8: F | L8: 35 | M8: 40 | N8: 45 | O8: 45 | P8: 45 | Q8: 50 | R8: 55 | S8: 55 | T8: 100 | V8: NAT + | W8: 5 | X8: =IF(I8="","",IF(A8="H",IF(OR(H8="SEN",H8<94),VLOOKUP(I8,Feuil1!$A$10:$E$28,5),IF(AND(H8>93,H8<97),VLOOKUP(I8,Feuil1!$A$10:$E$28,4),IF(AND(H8>93,H8<97),VLOOKUP(I8,Feuil1!$A$10:$E$28,3),IF(AND(H8>96,H8<100),VLOOKUP(I8,Feuil1!$A$10:$E$28,3),VLOOKUP(I8,Feuil1!$A$10:$E$28,2))))),IF(OR(H8="SEN",H8<94),VLOOKUP(I8,Feuil1!$F$10:$J$24,5),IF(AND(H8>93,H8<97),VLOOKUP(I8,Feuil1!$F$10:$J$24,4),IF(AND(H8>93,H8<97),VLOOKUP(I8,Feuil1!$F$10:$J$24,4),IF(AND(H8>96,H8<100),VLOOKUP(I8,Feuil1!$F$10:$J$24,3),VLOOKUP(I8,Feuil1!$F$10:$J$24,2))))))) -> FJ48 | Y8: 164.2231936 | AA8: =T8-HLOOKUP(X8,Feuil1!$C$1:$AU$9,2,FALSE) -> 50 | AB8: =T8-HLOOKUP(X8,Feuil1!$C$1:$AU$9,3,FALSE) -> 40 | AC8: =T8-HLOOKUP(X8,Feuil1!$C$1:$AU$9,4,FALSE) -> 25 | AD8: =T8-HLOOKUP(X8,Feuil1!$C$1:$AU$9,5,FALSE) -> 15 | AE8: =T8-HLOOKUP(X8,Feuil1!$C$1:$AU$9,6,FALSE) -> 5 | AF8: =T8-HLOOKUP(X8,Feuil1!$C$1:$AU$9,7,FALSE) -> -10 | AG8: =T8-HLOOKUP(X8,Feuil1!$C$1:$AU$9,8,FALSE) -> -25 | AH8: =T8-HLOOKUP(X8,Feuil1!$C$1:$AU$9,9,FALSE) -> -900 | AP8: NAT +
A9: F | B9: SE | C9: PRO | D9: 4 | E9: 361701 | F9: DELEUIL | G9: Fanny | H9: 95 | I9: 46.89 | J9: EEAR. MONTEUX | K9: F | L9: 36 | M9: -39 | N9: 40 | O9: 40 | P9: 42 | Q9: 48 | R9: 51 | S9: 51 | T9: 91 | V9: FED + | W9: 6 | X9: =IF(I9="","",IF(A9="H",IF(OR(H9="SEN",H9<94),VLOOKUP(I9,Feuil1!$A$10:$E$28,5),IF(AND(H9>93,H9<97),VLOOKUP(I9,Feuil1!$A$10:$E$28,4),IF(AND(H9>93,H9<97),VLOOKUP(I9,Feuil1!$A$10:$E$28,3),IF(AND(H9>96,H9<100),VLOOKUP(I9,Feuil1!$A$10:$E$28,3),VLOOKUP(I9,Feuil1!$A$10:$E$28,2))))),IF(OR(H9="SEN",H9<94),VLOOKUP(I9,Feuil1!$F$10:$J$24,5),IF(AND(H9>93,H9<97),VLOOKUP(I9,Feuil1!$F$10:$J$24,4),IF(AND(H9>93,H9<97),VLOOKUP(I9,Feuil1!$F$10:$J$24,4),IF(AND(H9>96,H9<100),VLOOKUP(I9,Feuil1!$F$10:$J$24,3),VLOOKUP(I9,Feuil1!$F$10:$J$24,2))))))) -> FJ48 | Y9: 152.2969124 | AA9: =T9-HLOOKUP(X9,Feuil1!$C$1:$AU$9,2,FALSE) -> 41 | AB9: =T9-HLOOKUP(X9,Feuil1!$C$1:$AU$9,3,FALSE) -> 31 | AC9: =T9-HLOOKUP(X9,Feuil1!$C$1:$AU$9,4,FALSE) -> 16 | AD9: =T9-HLOOKUP(X9,Feuil1!$C$1:$AU$9,5,FALSE) -> 6 | AE9: =T9-HLOOKUP(X9,Feuil1!$C$1:$AU$9,6,FALSE) -> -4 | AF9: =T9-HLOOKUP(X9,Feuil1!$C$1:$AU$9,7,FALSE) -> -19 | AG9: =T9-HLOOKUP(X9,Feuil1!$C$1:$AU$9,8,FALSE) -> -34 | AH9: =T9-HLOOKUP(X9,Feuil1!$C$1:$AU$9,9,FALSE) -> -909 | AP9: FED +
A10: F | B10: DOM | C10: REU | D10: 5 | E10: 357739 | F10: VIRAMA | G10: DEBHORA | H10: 96 | I10: 47 | J10: CH La Plaine | K10: F | L10: 35 | M10: 37 | N10: 40 | O10: 40 | P10: 40 | Q10: 45 | R10: -47 | S10: 45 | T10: 85 | V10: FED + | W10: 0 | X10: =IF(I10="","",IF(A10="H",IF(OR(H10="SEN",H10<94),VLOOKUP(I10,Feuil1!$A$10:$E$28,5),IF(AND(H10>93,H10<97),VLOOKUP(I10,Feuil1!$A$10:$E$28,4),IF(AND(H10>93,H10<97),VLOOKUP(I10,Feuil1!$A$10:$E$28,3),IF(AND(H10>96,H10<100),VLOOKUP(I10,Feuil1!$A$10:$E$28,3),VLOOKUP(I10,Feuil1!$A$10:$E$28,2))))),IF(OR(H10="SEN",H10<94),VLOOKUP(I10,Feuil1!$F$10:$J$24,5),IF(AND(H10>93,H10<97),VLOOKUP(I10,Feuil1!$F$10:$J$24,4),IF(AND(H10>93,H10<97),VLOOKUP(I10,Feuil1!$F$10:$J$24,4),IF(AND(H10>96,H10<100),VLOOKUP(I10,Feuil1!$F$10:$J$24,3),VLOOKUP(I10,Feuil1!$F$10:$J$24,2))))))) -> FJ48 | Y10: 141.9573363 | AA10: =T10-HLOOKUP(X10,Feuil1!$C$1:$AU$9,2,FALSE) -> 35 | AB10: =T10-HLOOKUP(X10,Feuil1!$C$1:$AU$9,3,FALSE) -> 25 | AC10: =T10-HLOOKUP(X10,Feuil1!$C$1:$AU$9,4,FALSE) -> 10 | AD10: =T10-HLOOKUP(X10,Feuil1!$C$1:$AU$9,5,FALSE) -> 0 | AE10: =T10-HLOOKUP(X10,Feuil1!$C$1:$AU$9,6,FALSE) -> -10 | AF10: =T10-HLOOKUP(X10,Feuil1!$C$1:$AU$9,7,FALSE) -> -25 | AG10: =T10-HLOOKUP(X10,Feuil1!$C$1:$AU$9,8,FALSE) -> -40 | AH10: =T10-HLOOKUP(X10,Feuil1!$C$1:$AU$9,9,FALSE) -> -915 | AP10: FED +
A11: F | B11: Nord | C11: IDF | D11: 6 | E11: 364789 | F11: RICHARD | G11: IRENE | H11: 96 | I11: 48 | J11: BLANC MESNIL | K11: F | L11: 30 | M11: -33 | N11: 33 | O11: 33 | P11: 40 | Q11: -43 | R11: 43 | S11: 43 | T11: 76 | V11: IRG + | W11: 1 | X11: =IF(I11="","",IF(A11="H",IF(OR(H11="SEN",H11<94),VLOOKUP(I11,Feuil1!$A$10:$E$28,5),IF(AND(H11>93,H11<97),VLOOKUP(I11,Feuil1!$A$10:$E$28,4),IF(AND(H11>93,H11<97),VLOOKUP(I11,Feuil1!$A$10:$E$28,3),IF(AND(H11>96,H11<100),VLOOKUP(I11,Feuil1!$A$10:$E$28,3),VLOOKUP(I11,Feuil1!$A$10:$E$28,2))))),IF(OR(H11="SEN",H11<94),VLOOKUP(I11,Feuil1!$F$10:$J$24,5),IF(AND(H11>93,H11<97),VLOOKUP(I11,Feuil1!$F$10:$J$24,4),IF(AND(H11>93,H11<97),VLOOKUP(I11,Feuil1!$F$10:$J$24,4),IF(AND(H11>96,H11<100),VLOOKUP(I11,Feuil1!$F$10:$J$24,3),VLOOKUP(I11,Feuil1!$F$10:$J$24,2))))))) -> FJ48 | Y11: 124.5811687 | AA11: =T11-HLOOKUP(X11,Feuil1!$C$1:$AU$9,2,FALSE) -> 26 | AB11: =T11-HLOOKUP(X11,Feuil1!$C$1:$AU$9,3,FALSE) -> 16 | AC11: =T11-HLOOKUP(X11,Feuil1!$C$1:$AU$9,4,FALSE) -> 1 | AD11: =T11-HLOOKUP(X11,Feuil1!$C$1:$AU$9,5,FALSE) -> -9 | AE11: =T11-HLOOKUP(X11,Feuil1!$C$1:$AU$9,6,FALSE) -> -19 | AF11: =T11-HLOOKUP(X11,Feuil1!$C$1:$AU$9,7,FALSE) -> -34 | AG11: =T11-HLOOKUP(X11,Feuil1!$C$1:$AU$9,8,FALSE) -> -49 | AH11: =T11-HLOOKUP(X11,Feuil1!$C$1:$AU$9,9,FALSE) -> -924 | AP11: IRG +
A12: F | B12: NE | C12: BOU | D12: 7 | E12: 363265 | F12: GARCIA | G12: JOHANNA | H12: 95 | I12: 47.6 | J12: STADE DIJONNAIS HM | K12: F | L12: 28 | M12: 30 | N12: -32 | O12: 30 | P12: 38 | Q12: 40 | R12: 42 | S12: 42 | T12: 72 | V12: REG + | W12: 12 | X12: =IF(I12="","",IF(A12="H",IF(OR(H12="SEN",H12<94),VLOOKUP(I12,Feuil1!$A$10:$E$28,5),IF(AND(H12>93,H12<97),VLOOKUP(I12,Feuil1!$A$10:$E$28,4),IF(AND(H12>93,H12<97),VLOOKUP(I12,Feuil1!$A$10:$E$28,3),IF(AND(H12>96,H12<100),VLOOKUP(I12,Feuil1!$A$10:$E$28,3),VLOOKUP(I12,Feuil1!$A$10:$E$28,2))))),IF(OR(H12="SEN",H12<94),VLOOKUP(I12,Feuil1!$F$10:$J$24,5),IF(AND(H12>93,H12<97),VLOOKUP(I12,Feuil1!$F$10:$J$24,4),IF(AND(H12>93,H12<97),VLOOKUP(I12,Feuil1!$F$10:$J$24,4),IF(AND(H12>96,H12<100),VLOOKUP(I12,Feuil1!$F$10:$J$24,3),VLOOKUP(I12,Feuil1!$F$10:$J$24,2))))))) -> FJ48 | Y12: 118.8975616 | AA12: =T12-HLOOKUP(X12,Feuil1!$C$1:$AU$9,2,FALSE) -> 22 | AB12: =T12-HLOOKUP(X12,Feuil1!$C$1:$AU$9,3,FALSE) -> 12 | AC12: =T12-HLOOKUP(X12,Feuil1!$C$1:$AU$9,4,FALSE) -> -3 | AD12: =T12-HLOOKUP(X12,Feuil1!$C$1:$AU$9,5,FALSE) -> -13 | AE12: =T12-HLOOKUP(X12,Feuil1!$C$1:$AU$9,6,FALSE) -> -23 | AF12: =T12-HLOOKUP(X12,Feuil1!$C$1:$AU$9,7,FALSE) -> -38 | AG12: =T12-HLOOKUP(X12,Feuil1!$C$1:$AU$9,8,FALSE) -> -53 | AH12: =T12-HLOOKUP(X12,Feuil1!$C$1:$AU$9,9,FALSE) -> -928 | AP12: REG +
A13: F | B13: NE | C13: FCO | D13: 8 | E13: 279706 | F13: CREVOISIER | G13: MARIE | H13: 94 | I13: 47.4 | J13: MONTBELIARD HM | K13: F | L13: 21 | M13: 23 | N13: 25 | O13: 25 | P13: 32 | Q13: 35 | R13: 37 | S13: 37 | T13: 62 | V13: REG + | W13: 2 | X13: =IF(I13="","",IF(A13="H",IF(OR(H13="SEN",H13<94),VLOOKUP(I13,Feuil1!$A$10:$E$28,5),IF(AND(H13>93,H13<97),VLOOKUP(I13,Feuil1!$A$10:$E$28,4),IF(AND(H13>93,H13<97),VLOOKUP(I13,Feuil1!$A$10:$E$28,3),IF(AND(H13>96,H13<100),VLOOKUP(I13,Feuil1!$A$10:$E$28,3),VLOOKUP(I13,Feuil1!$A$10:$E$28,2))))),IF(OR(H13="SEN",H13<94),VLOOKUP(I13,Feuil1!$F$10:$J$24,5),IF(AND(H13>93,H13<97),VLOOKUP(I13,Feuil1!$F$10:$J$24,4),IF(AND(H13>93,H13<97),VLOOKUP(I13,Feuil1!$F$10:$J$24,4),IF(AND(H13>96,H13<100),VLOOKUP(I13,Feuil1!$F$10:$J$24,3),VLOOKUP(I13,Feuil1!$F$10:$J$24,2))))))) -> FJ48 | Y13: 102.7666097 | AA13: =T13-HLOOKUP(X13,Feuil1!$C$1:$AU$9,2,FALSE) -> 12 | AB13: =T13-HLOOKUP(X13,Feuil1!$C$1:$AU$9,3,FALSE) -> 2 | AC13: =T13-HLOOKUP(X13,Feuil1!$C$1:$AU$9,4,FALSE) -> -13 | AD13: =T13-HLOOKUP(X13,Feuil1!$C$1:$AU$9,5,FALSE) -> -23 | AE13: =T13-HLOOKUP(X13,Feuil1!$C$1:$AU$9,6,FALSE) -> -33 | AF13: =T13-HLOOKUP(X13,Feuil1!$C$1:$AU$9,7,FALSE) -> -48 | AG13: =T13-HLOOKUP(X13,Feuil1!$C$1:$AU$9,8,FALSE) -> -63 | AH13: =T13-HLOOKUP(X13,Feuil1!$C$1:$AU$9,9,FALSE) -> -938 | AP13: REG +
A15: F | B15: CO | C15: CEN | D15: 1 | E15: 357577 | F15: HERNANDEZ MARTIN | G15: Atenery | H15: 94 | I15: 52.1 | J15: CMO ORLEANS | K15: Esp | L15: 70 | M15: 73 | N15: -75 | O15: =IF(H15="","",IF(MAXA(L15:N15)<=0,0,MAXA(L15:N15))) -> 73 | P15: 87 | Q15: 89 | R15: -90 | S15: =IF(H15="","",IF(MAXA(P15:R15)<=0,0,MAXA(P15:R15))) -> 89 | T15: =IF(H15="","",IF(OR(O15=0,S15=0),0,O15+S15)) -> 162 | V15: =IF(H15="","",AP15) -> INTA + | W15: =IF(P15="","",IF(AH15>=0,AH15,IF(AG15>=0,AG15,IF(AF15>=0,AF15,IF(AE15>=0,AE15,IF(AD15>=0,AD15,IF(AC15>=0,AC15,IF(AB15>=0,AB15,AA15)))))))) -> 27 | X15: =IF(I15="","",IF(A15="H",IF(OR(H15="SEN",H15<94),VLOOKUP(I15,Feuil1!$A$10:$E$28,5),IF(AND(H15>93,H15<97),VLOOKUP(I15,Feuil1!$A$10:$E$28,4),IF(AND(H15>93,H15<97),VLOOKUP(I15,Feuil1!$A$10:$E$28,3),IF(AND(H15>96,H15<100),VLOOKUP(I15,Feuil1!$A$10:$E$28,3),VLOOKUP(I15,Feuil1!$A$10:$E$28,2))))),IF(OR(H15="SEN",H15<94),VLOOKUP(I15,Feuil1!$F$10:$J$24,5),IF(AND(H15>93,H15<97),VLOOKUP(I15,Feuil1!$F$10:$J$24,4),IF(AND(H15>93,H15<97),VLOOKUP(I15,Feuil1!$F$10:$J$24,4),IF(AND(H15>96,H15<100),VLOOKUP(I15,Feuil1!$F$10:$J$24,3),VLOOKUP(I15,Feuil1!$F$10:$J$24,2))))))) -> FJ53 | Y15: =IF(I15="","",IF(A15="H",10^(0.794358141*LOG(I15/174.393)^2)*T15,IF(A15="F",10^(0.89726074*LOG(I15/148.026)^2)*T15,""))) -> 247.7695348 | AA15: =T15-HLOOKUP(X15,Feuil1!$C$1:$AU$9,2,FALSE) -> 107 | AB15: =T15-HLOOKUP(X15,Feuil1!$C$1:$AU$9,3,FALSE) -> 97 | AC15: =T15-HLOOKUP(X15,Feuil1!$C$1:$AU$9,4,FALSE) -> 82 | AD15: =T15-HLOOKUP(X15,Feuil1!$C$1:$AU$9,5,FALSE) -> 67 | AE15: =T15-HLOOKUP(X15,Feuil1!$C$1:$AU$9,6,FALSE) -> 57 | AF15: =T15-HLOOKUP(X15,Feuil1!$C$1:$AU$9,7,FALSE) -> 42 | AG15: =T15-HLOOKUP(X15,Feuil1!$C$1:$AU$9,8,FALSE) -> 27 | AH15: =T15-HLOOKUP(X15,Feuil1!$C$1:$AU$9,9,FALSE) -> -838 | AP15: =IF(AH15>=0,$AH$4,IF(AG15>=0,$AG$4,IF(AF15>=0,$AF$4,IF(AE15>=0,$AE$4,IF(AD15>=0,$AD$4,IF(AC15>=0,$AC$4,IF(AB15>=0,$AB$4,IF(AA15>=0,$AA$4,$AI$4)))))))) -> INTA +
A16: F | B16: NE | C16: ALS | D16: 2 | E16: 191152 | F16: ESTNER | G16: SARAH | H16: 94 | I16: 52.46 | J16: US Wittenheim | K16: F | L16: 60 | M16: -63 | N16: 63 | O16: 63 | P16: -80 | Q16: -80 | R16: 80 | S16: 80 | T16: 143 | V16: INTA + | W16: 8 | X16: =IF(I16="","",IF(A16="H",IF(OR(H16="SEN",H16<94),VLOOKUP(I16,Feuil1!$A$10:$E$28,5),IF(AND(H16>93,H16<97),VLOOKUP(I16,Feuil1!$A$10:$E$28,4),IF(AND(H16>93,H16<97),VLOOKUP(I16,Feuil1!$A$10:$E$28,3),IF(AND(H16>96,H16<100),VLOOKUP(I16,Feuil1!$A$10:$E$28,3),VLOOKUP(I16,Feuil1!$A$10:$E$28,2))))),IF(OR(H16="SEN",H16<94),VLOOKUP(I16,Feuil1!$F$10:$J$24,5),IF(AND(H16>93,H16<97),VLOOKUP(I16,Feuil1!$F$10:$J$24,4),IF(AND(H16>93,H16<97),VLOOKUP(I16,Feuil1!$F$10:$J$24,4),IF(AND(H16>96,H16<100),VLOOKUP(I16,Feuil1!$F$10:$J$24,3),VLOOKUP(I16,Feuil1!$F$10:$J$24,2))))))) -> FJ53 | Y16: 217.4919489 | AA16: =T16-HLOOKUP(X16,Feuil1!$C$1:$AU$9,2,FALSE) -> 88 | AB16: =T16-HLOOKUP(X16,Feuil1!$C$1:$AU$9,3,FALSE) -> 78 | AC16: =T16-HLOOKUP(X16,Feuil1!$C$1:$AU$9,4,FALSE) -> 63 | AD16: =T16-HLOOKUP(X16,Feuil1!$C$1:$AU$9,5,FALSE) -> 48 | AE16: =T16-HLOOKUP(X16,Feuil1!$C$1:$AU$9,6,FALSE) -> 38 | AF16: =T16-HLOOKUP(X16,Feuil1!$C$1:$AU$9,7,FALSE) -> 23 | AG16: =T16-HLOOKUP(X16,Feuil1!$C$1:$AU$9,8,FALSE) -> 8 | AH16: =T16-HLOOKUP(X16,Feuil1!$C$1:$AU$9,9,FALSE) -> -857 | AP16: INTA +
A17: F | B17: NE | C17: BOU | D17: 3 | E17: 196470 | F17: BALACE | G17: Julie | H17: 96 | I17: 50.9 | J17: HC AVALLON | K17: F | L17: 57 | M17: 60 | N17: -63 | O17: 60 | P17: 68 | Q17: 72 | R17: 75 | S17: 75 | T17: 135 | V17: INTA + | W17: 0 | X17: =IF(I17="","",IF(A17="H",IF(OR(H17="SEN",H17<94),VLOOKUP(I17,Feuil1!$A$10:$E$28,5),IF(AND(H17>93,H17<97),VLOOKUP(I17,Feuil1!$A$10:$E$28,4),IF(AND(H17>93,H17<97),VLOOKUP(I17,Feuil1!$A$10:$E$28,3),IF(AND(H17>96,H17<100),VLOOKUP(I17,Feuil1!$A$10:$E$28,3),VLOOKUP(I17,Feuil1!$A$10:$E$28,2))))),IF(OR(H17="SEN",H17<94),VLOOKUP(I17,Feuil1!$F$10:$J$24,5),IF(AND(H17>93,H17<97),VLOOKUP(I17,Feuil1!$F$10:$J$24,4),IF(AND(H17>93,H17<97),VLOOKUP(I17,Feuil1!$F$10:$J$24,4),IF(AND(H17>96,H17<100),VLOOKUP(I17,Feuil1!$F$10:$J$24,3),VLOOKUP(I17,Feuil1!$F$10:$J$24,2))))))) -> FJ53 | Y17: 210.4719964 | AA17: =T17-HLOOKUP(X17,Feuil1!$C$1:$AU$9,2,FALSE) -> 80 | AB17: =T17-HLOOKUP(X17,Feuil1!$C$1:$AU$9,3,FALSE) -> 70 | AC17: =T17-HLOOKUP(X17,Feuil1!$C$1:$AU$9,4,FALSE) -> 55 | AD17: =T17-HLOOKUP(X17,Feuil1!$C$1:$AU$9,5,FALSE) -> 40 | AE17: =T17-HLOOKUP(X17,Feuil1!$C$1:$AU$9,6,FALSE) -> 30 | AF17: =T17-HLOOKUP(X17,Feuil1!$C$1:$AU$9,7,FALSE) -> 15 | AG17: =T17-HLOOKUP(X17,Feuil1!$C$1:$AU$9,8,FALSE) -> 0 | AH17: =T17-HLOOKUP(X17,Feuil1!$C$1:$AU$9,9,FALSE) -> -865 | AP17: INTA +
A18: F | B18: Nord | C18: IDF | D18: 4 | E18: 143815 | F18: PRONGUE | G18: Camille | H18: 95 | I18: 50.5 | J18: BLANC MESNIL | K18: F | L18: 47 | M18: 52 | N18: 55 | O18: 55 | P18: 65 | Q18: 69 | R18: 71 | S18: 71 | T18: 126 | V18: INTB + | W18: 6 | X18: =IF(I18="","",IF(A18="H",IF(OR(H18="SEN",H18<94),VLOOKUP(I18,Feuil1!$A$10:$E$28,5),IF(AND(H18>93,H18<97),VLOOKUP(I18,Feuil1!$A$10:$E$28,4),IF(AND(H18>93,H18<97),VLOOKUP(I18,Feuil1!$A$10:$E$28,3),IF(AND(H18>96,H18<100),VLOOKUP(I18,Feuil1!$A$10:$E$28,3),VLOOKUP(I18,Feuil1!$A$10:$E$28,2))))),IF(OR(H18="SEN",H18<94),VLOOKUP(I18,Feuil1!$F$10:$J$24,5),IF(AND(H18>93,H18<97),VLOOKUP(I18,Feuil1!$F$10:$J$24,4),IF(AND(H18>93,H18<97),VLOOKUP(I18,Feuil1!$F$10:$J$24,4),IF(AND(H18>96,H18<100),VLOOKUP(I18,Feuil1!$F$10:$J$24,3),VLOOKUP(I18,Feuil1!$F$10:$J$24,2))))))) -> FJ53 | Y18: 197.7389933 | AA18: =T18-HLOOKUP(X18,Feuil1!$C$1:$AU$9,2,FALSE) -> 71 | AB18: =T18-HLOOKUP(X18,Feuil1!$C$1:$AU$9,3,FALSE) -> 61 | AC18: =T18-HLOOKUP(X18,Feuil1!$C$1:$AU$9,4,FALSE) -> 46 | AD18: =T18-HLOOKUP(X18,Feuil1!$C$1:$AU$9,5,FALSE) -> 31 | AE18: =T18-HLOOKUP(X18,Feuil1!$C$1:$AU$9,6,FALSE) -> 21 | AF18: =T18-HLOOKUP(X18,Feuil1!$C$1:$AU$9,7,FALSE) -> 6 | AG18: =T18-HLOOKUP(X18,Feuil1!$C$1:$AU$9,8,FALSE) -> -9 | AH18: =T18-HLOOKUP(X18,Feuil1!$C$1:$AU$9,9,FALSE) -> -874 | AP18: INTB +
A19: F | B19: Nord | C19: PIC | D19: 5 | E19: 187400 | F19: CARON | G19: Amélie | H19: 96 | I19: 52.47 | J19: CHM Saleux | K19: F | L19: 53 | M19: 55 | N19: 57 | O19: 57 | P19: 63 | Q19: -67 | R19: 67 | S19: 67 | T19: 124 | V19: INTB + | W19: 4 | X19: =IF(I19="","",IF(A19="H",IF(OR(H19="SEN",H19<94),VLOOKUP(I19,Feuil1!$A$10:$E$28,5),IF(AND(H19>93,H19<97),VLOOKUP(I19,Feuil1!$A$10:$E$28,4),IF(AND(H19>93,H19<97),VLOOKUP(I19,Feuil1!$A$10:$E$28,3),IF(AND(H19>96,H19<100),VLOOKUP(I19,Feuil1!$A$10:$E$28,3),VLOOKUP(I19,Feuil1!$A$10:$E$28,2))))),IF(OR(H19="SEN",H19<94),VLOOKUP(I19,Feuil1!$F$10:$J$24,5),IF(AND(H19>93,H19<97),VLOOKUP(I19,Feuil1!$F$10:$J$24,4),IF(AND(H19>93,H19<97),VLOOKUP(I19,Feuil1!$F$10:$J$24,4),IF(AND(H19>96,H19<100),VLOOKUP(I19,Feuil1!$F$10:$J$24,3),VLOOKUP(I19,Feuil1!$F$10:$J$24,2))))))) -> FJ53 | Y19: 188.565361 | AA19: =T19-HLOOKUP(X19,Feuil1!$C$1:$AU$9,2,FALSE) -> 69 | AB19: =T19-HLOOKUP(X19,Feuil1!$C$1:$AU$9,3,FALSE) -> 59 | AC19: =T19-HLOOKUP(X19,Feuil1!$C$1:$AU$9,4,FALSE) -> 44 | AD19: =T19-HLOOKUP(X19,Feuil1!$C$1:$AU$9,5,FALSE) -> 29 | AE19: =T19-HLOOKUP(X19,Feuil1!$C$1:$AU$9,6,FALSE) -> 19 | AF19: =T19-HLOOKUP(X19,Feuil1!$C$1:$AU$9,7,FALSE) -> 4 | AG19: =T19-HLOOKUP(X19,Feuil1!$C$1:$AU$9,8,FALSE) -> -11 | AH19: =T19-HLOOKUP(X19,Feuil1!$C$1:$AU$9,9,FALSE) -> -876 | AP19: INTB +
A20: F | B20: SO | C20: MPY | D20: 6 | E20: 253454 | F20: JOURNET | G20: Mégane | H20: 95 | I20: 51.7 | J20: FIGEAC HC | K20: F | L20: 45 | M20: 50 | N20: -53 | O20: 50 | P20: 58 | Q20: 62 | R20: 65 | S20: 65 | T20: 115 | V20: NAT + | W20: 10 | X20: =IF(I20="","",IF(A20="H",IF(OR(H20="SEN",H20<94),VLOOKUP(I20,Feuil1!$A$10:$E$28,5),IF(AND(H20>93,H20<97),VLOOKUP(I20,Feuil1!$A$10:$E$28,4),IF(AND(H20>93,H20<97),VLOOKUP(I20,Feuil1!$A$10:$E$28,3),IF(AND(H20>96,H20<100),VLOOKUP(I20,Feuil1!$A$10:$E$28,3),VLOOKUP(I20,Feuil1!$A$10:$E$28,2))))),IF(OR(H20="SEN",H20<94),VLOOKUP(I20,Feuil1!$F$10:$J$24,5),IF(AND(H20>93,H20<97),VLOOKUP(I20,Feuil1!$F$10:$J$24,4),IF(AND(H20>93,H20<97),VLOOKUP(I20,Feuil1!$F$10:$J$24,4),IF(AND(H20>96,H20<100),VLOOKUP(I20,Feuil1!$F$10:$J$24,3),VLOOKUP(I20,Feuil1!$F$10:$J$24,2))))))) -> FJ53 | Y20: 176.9965383 | AA20: =T20-HLOOKUP(X20,Feuil1!$C$1:$AU$9,2,FALSE) -> 60 | AB20: =T20-HLOOKUP(X20,Feuil1!$C$1:$AU$9,3,FALSE) -> 50 | AC20: =T20-HLOOKUP(X20,Feuil1!$C$1:$AU$9,4,FALSE) -> 35 | AD20: =T20-HLOOKUP(X20,Feuil1!$C$1:$AU$9,5,FALSE) -> 20 | AE20: =T20-HLOOKUP(X20,Feuil1!$C$1:$AU$9,6,FALSE) -> 10 | AF20: =T20-HLOOKUP(X20,Feuil1!$C$1:$AU$9,7,FALSE) -> -5 | AG20: =T20-HLOOKUP(X20,Feuil1!$C$1:$AU$9,8,FALSE) -> -20 | AH20: =T20-HLOOKUP(X20,Feuil1!$C$1:$AU$9,9,FALSE) -> -885 | AP20: NAT +
A21: F | B21: CO | C21: CEN | D21: 7 | E21: 357304 | F21: DAUMAS | G21: Solène | H21: 95 | I21: 52.08 | J21: AAJ BLOIS | K21: F | L21: 49 | M21: -52 | N21: -53 | O21: 49 | P21: 59 | Q21: -61 | R21: -62 | S21: 59 | T21: 108 | V21: NAT + | W21: 3 | X21: =IF(I21="","",IF(A21="H",IF(OR(H21="SEN",H21<94),VLOOKUP(I21,Feuil1!$A$10:$E$28,5),IF(AND(H21>93,H21<97),VLOOKUP(I21,Feuil1!$A$10:$E$28,4),IF(AND(H21>93,H21<97),VLOOKUP(I21,Feuil1!$A$10:$E$28,3),IF(AND(H21>96,H21<100),VLOOKUP(I21,Feuil1!$A$10:$E$28,3),VLOOKUP(I21,Feuil1!$A$10:$E$28,2))))),IF(OR(H21="SEN",H21<94),VLOOKUP(I21,Feuil1!$F$10:$J$24,5),IF(AND(H21>93,H21<97),VLOOKUP(I21,Feuil1!$F$10:$J$24,4),IF(AND(H21>93,H21<97),VLOOKUP(I21,Feuil1!$F$10:$J$24,4),IF(AND(H21>96,H21<100),VLOOKUP(I21,Feuil1!$F$10:$J$24,3),VLOOKUP(I21,Feuil1!$F$10:$J$24,2))))))) -> FJ53 | Y21: 165.2313203 | AA21: =T21-HLOOKUP(X21,Feuil1!$C$1:$AU$9,2,FALSE) -> 53 | AB21: =T21-HLOOKUP(X21,Feuil1!$C$1:$AU$9,3,FALSE) -> 43 | AC21: =T21-HLOOKUP(X21,Feuil1!$C$1:$AU$9,4,FALSE) -> 28 | AD21: =T21-HLOOKUP(X21,Feuil1!$C$1:$AU$9,5,FALSE) -> 13 | AE21: =T21-HLOOKUP(X21,Feuil1!$C$1:$AU$9,6,FALSE) -> 3 | AF21: =T21-HLOOKUP(X21,Feuil1!$C$1:$AU$9,7,FALSE) -> -12 | AG21: =T21-HLOOKUP(X21,Feuil1!$C$1:$AU$9,8,FALSE) -> -27 | AH21: =T21-HLOOKUP(X21,Feuil1!$C$1:$AU$9,9,FALSE) -> -892 | AP21: NAT +
A22: F | B22: NE | C22: CHA | D22: 8 | E22: 231646 | F22: MAIRE | G22: Laura | H22: 96 | I22: 50.8 | J22: Langres HM | K22: F | L22: 43 | M22: 45 | N22: 47 | O22: 47 | P22: 50 | Q22: 54 | R22: 58 | S22: 58 | T22: 105 | V22: NAT + | W22: 0 | X22: =IF(I22="","",IF(A22="H",IF(OR(H22="SEN",H22<94),VLOOKUP(I22,Feuil1!$A$10:$E$28,5),IF(AND(H22>93,H22<97),VLOOKUP(I22,Feuil1!$A$10:$E$28,4),IF(AND(H22>93,H22<97),VLOOKUP(I22,Feuil1!$A$10:$E$28,3),IF(AND(H22>96,H22<100),VLOOKUP(I22,Feuil1!$A$10:$E$28,3),VLOOKUP(I22,Feuil1!$A$10:$E$28,2))))),IF(OR(H22="SEN",H22<94),VLOOKUP(I22,Feuil1!$F$10:$J$24,5),IF(AND(H22>93,H22<97),VLOOKUP(I22,Feuil1!$F$10:$J$24,4),IF(AND(H22>93,H22<97),VLOOKUP(I22,Feuil1!$F$10:$J$24,4),IF(AND(H22>96,H22<100),VLOOKUP(I22,Feuil1!$F$10:$J$24,3),VLOOKUP(I22,Feuil1!$F$10:$J$24,2))))))) -> FJ53 | Y22: 163.9687446 | AA22: =T22-HLOOKUP(X22,Feuil1!$C$1:$AU$9,2,FALSE) -> 50 | AB22: =T22-HLOOKUP(X22,Feuil1!$C$1:$AU$9,3,FALSE) -> 40 | AC22: =T22-HLOOKUP(X22,Feuil1!$C$1:$AU$9,4,FALSE) -> 25 | AD22: =T22-HLOOKUP(X22,Feuil1!$C$1:$AU$9,5,FALSE) -> 10 | AE22: =T22-HLOOKUP(X22,Feuil1!$C$1:$AU$9,6,FALSE) -> 0 | AF22: =T22-HLOOKUP(X22,Feuil1!$C$1:$AU$9,7,FALSE) -> -15 | AG22: =T22-HLOOKUP(X22,Feuil1!$C$1:$AU$9,8,FALSE) -> -30 | AH22: =T22-HLOOKUP(X22,Feuil1!$C$1:$AU$9,9,FALSE) -> -895 | AP22: NAT +
A23: F | B23: CO | C23: BNO | D23: 9 | E23: 233396 | F23: LABBADI | G23: Camille | H23: 96 | I23: 52.85 | J23: VERSON HM | K23: F | L23: 43 | M23: 46 | N23: -48 | O23: 46 | P23: 55 | Q23: 59 | R23: -62 | S23: 59 | T23: 105 | V23: NAT + | W23: 0 | X23: =IF(I23="","",IF(A23="H",IF(OR(H23="SEN",H23<94),VLOOKUP(I23,Feuil1!$A$10:$E$28,5),IF(AND(H23>93,H23<97),VLOOKUP(I23,Feuil1!$A$10:$E$28,4),IF(AND(H23>93,H23<97),VLOOKUP(I23,Feuil1!$A$10:$E$28,3),IF(AND(H23>96,H23<100),VLOOKUP(I23,Feuil1!$A$10:$E$28,3),VLOOKUP(I23,Feuil1!$A$10:$E$28,2))))),IF(OR(H23="SEN",H23<94),VLOOKUP(I23,Feuil1!$F$10:$J$24,5),IF(AND(H23>93,H23<97),VLOOKUP(I23,Feuil1!$F$10:$J$24,4),IF(AND(H23>93,H23<97),VLOOKUP(I23,Feuil1!$F$10:$J$24,4),IF(AND(H23>96,H23<100),VLOOKUP(I23,Feuil1!$F$10:$J$24,3),VLOOKUP(I23,Feuil1!$F$10:$J$24,2))))))) -> FJ53 | Y23: 158.7468759 | AA23: =T23-HLOOKUP(X23,Feuil1!$C$1:$AU$9,2,FALSE) -> 50 | AB23: =T23-HLOOKUP(X23,Feuil1!$C$1:$AU$9,3,FALSE) -> 40 | AC23: =T23-HLOOKUP(X23,Feuil1!$C$1:$AU$9,4,FALSE) -> 25 | AD23: =T23-HLOOKUP(X23,Feuil1!$C$1:$AU$9,5,FALSE) -> 10 | AE23: =T23-HLOOKUP(X23,Feuil1!$C$1:$AU$9,6,FALSE) -> 0 | AF23: =T23-HLOOKUP(X23,Feuil1!$C$1:$AU$9,7,FALSE) -> -15 | AG23: =T23-HLOOKUP(X23,Feuil1!$C$1:$AU$9,8,FALSE) -> -30 | AH23: =T23-HLOOKUP(X23,Feuil1!$C$1:$AU$9,9,FALSE) -> -895 | AP23: NAT +
A24: F | B24: NORD | C24: NPC | D24: 10 | E24: 192187 | F24: BAERT | G24: Blandine | H24: 95 | I24: 53 | J24: CHCD COMINES | K24: F | L24: 43 | M24: 45 | N24: 46 | O24: 46 | P24: 53 | Q24: 55 | R24: -57 | S24: 55 | T24: 101 | V24: FED + | W24: 6 | X24: =IF(I24="","",IF(A24="H",IF(OR(H24="SEN",H24<94),VLOOKUP(I24,Feuil1!$A$10:$E$28,5),IF(AND(H24>93,H24<97),VLOOKUP(I24,Feuil1!$A$10:$E$28,4),IF(AND(H24>93,H24<97),VLOOKUP(I24,Feuil1!$A$10:$E$28,3),IF(AND(H24>96,H24<100),VLOOKUP(I24,Feuil1!$A$10:$E$28,3),VLOOKUP(I24,Feuil1!$A$10:$E$28,2))))),IF(OR(H24="SEN",H24<94),VLOOKUP(I24,Feuil1!$F$10:$J$24,5),IF(AND(H24>93,H24<97),VLOOKUP(I24,Feuil1!$F$10:$J$24,4),IF(AND(H24>93,H24<97),VLOOKUP(I24,Feuil1!$F$10:$J$24,4),IF(AND(H24>96,H24<100),VLOOKUP(I24,Feuil1!$F$10:$J$24,3),VLOOKUP(I24,Feuil1!$F$10:$J$24,2))))))) -> FJ53 | Y24: 152.3528645 | AA24: =T24-HLOOKUP(X24,Feuil1!$C$1:$AU$9,2,FALSE) -> 46 | AB24: =T24-HLOOKUP(X24,Feuil1!$C$1:$AU$9,3,FALSE) -> 36 | AC24: =T24-HLOOKUP(X24,Feuil1!$C$1:$AU$9,4,FALSE) -> 21 | AD24: =T24-HLOOKUP(X24,Feuil1!$C$1:$AU$9,5,FALSE) -> 6 | AE24: =T24-HLOOKUP(X24,Feuil1!$C$1:$AU$9,6,FALSE) -> -4 | AF24: =T24-HLOOKUP(X24,Feuil1!$C$1:$AU$9,7,FALSE) -> -19 | AG24: =T24-HLOOKUP(X24,Feuil1!$C$1:$AU$9,8,FALSE) -> -34 | AH24: =T24-HLOOKUP(X24,Feuil1!$C$1:$AU$9,9,FALSE) -> -899 | AP24: FED +
